Workbook

Sheet ADP-Rank (hidden)
A1: PLAYERNAME | B1: IDPLAYER | C1: MC Pos | D1: OF Positions | E1: TEAM | F1: Age | G1: Fantrax | H1: Yahoo | I1: CBS | J1: High | K1: Low | L1: ESPN | M1: FantasyPros Avg | N1: NFBC | O1: High | P1: Low | Q1: Avg of ADP Sources | R1: RotoChamp | S1: Yahoo Staff | T1: ESPN - T. Cockcroft | U1: ESPN - E. Karabell | V1: FantasyPros Avg | W1: Mr. Cheatsheet | X1: Team In Sheet? | Y1: Rank Chosen | Z1: Filtered-Rank | AA1: Chosen-ADP | AB1: Filtered-ADP-Rank | AC1: ADP Round | AD1: Early | AE1: Late | AF1: Filtered-Early | AG1: Filtered-Late | AH1: Imported ADP | AI1: =IF('Name-Sort'!E2="",A2,"") -> CJ Abrams | AJ1: =IFERROR(INDEX($AI$1:$AI$919,SMALL(IF($AI$1:$AI$919<>"",ROW($AI$1:$AI$919)),ROW(AI1))),"") -> CJ Abrams
A2: CJ Abrams | B2: abramcj01 | C2: SS | E2: SD | F2: 20 | G2: 866 | L2: 365 | M2: 690.7 | N2: 743.72 | O2: 418 | P2: 745 | Q2: =_xlfn.AGGREGATE(1,6,G2,H2,I2,L2,M2,N2) -> 666.355 | X2: =IFERROR(INDEX('Guts-2'!$K$1:$K$30,MATCH(E2,'Guts-2'!$J$1:$J$30,0)),TRUE) -> TRUE | Y2: =IFERROR(IF(OR(X2=FALSE,INDEX('Player Notes'!$I$3:$I$999,MATCH(A2,'Player Notes'!$A$3:$A$999,0),1)="Yes"),"",IFERROR(CHOOSE('Guts-2'!$D$27,R2,S2,T2,U2,V2,W2),"")),"") ->  | Z2: =IFERROR(RANK(Y2,$Y$2:$Y$919,1),"") ->  | AA2: =IFERROR(IF(OR(X2=FALSE,INDEX('Player Notes'!$I$3:$I$999,MATCH(A2,'Player Notes'!$A$3:$A$999,0),1)="Yes"),"",IFERROR(CHOOSE('Guts-2'!$D$26,G2,H2,I2,L2,M2,N2,Q2,AH2),"")),"") -> 690.7 | AB2: =IFERROR(IF(Settings!$M$5="Mixed (Standard)",AA2,RANK(AA2,$AA$2:$AA$919,1)),"") -> 690.7 | AC2: =IFERROR(IF(Settings!$M$5="Mixed (Standard)",(RANK(AA2,$AA$2:$AA$919,1)/('Guts-2'!$M$1+1))+1,(RANK(AB2,$AB$2:$AB$919,1)/('Guts-2'!$M$1+1))+1),"") -> 53.07692308 | AD2: =IFERROR(IF(Settings!$R$5="CBS",J2,IF(Settings!$R$5="NFBC",O2,MIN(AA2*0.75,IFERROR($O2,999),IFERROR($J2,999)))),"") -> 418 | AE2: =IFERROR(IF(Settings!$R$5="CBS",K2,IF(Settings!$R$5="NFBC",P2,MAX(AA2*1.33,IFERROR($P2,999),IFERROR($K2,999)))),"") -> 999 | AF2: =IFERROR(IF(X2=TRUE,IF((AD2-COUNTIFS($AD$2:$AD$919,"<"&AD2,$X$2:$X$919,FALSE))<1,1,AD2-COUNTIFS($AD$2:$AD$919,"<"&AD2,$X$2:$X$919,FALSE)),""),"") -> 418 | AG2: =IFERROR(IF(X2=FALSE,"",IF((AE2-COUNTIFS($AE$2:$AE$919,"<"&AE2,$X$2:$X$919,FALSE))<1,1,AE2-COUNTIFS($AE$2:$AE$919,"<"&AE2,$X$2:$X$919,FALSE))),"") -> 999 | AH2: =INDEX('Import (ADP)'!$C$2:$C$999,MATCH(A2, 'Import (ADP)'!$B$2:$B$999,0)) ->  | AI2: =IF('Name-Sort'!E3="",A3,"") -> Jose Abreu | AJ2: =IFERROR(INDEX($AI$1:$AI$919,SMALL(IF($AI$1:$AI$919<>"",ROW($AI$1:$AI$919)),ROW(AI2))),"") -> Jose Abreu
A3: Jose Abreu | B3: abreujo02 | C3: 1B | E3: CHW | F3: 34 | G3: 38 | H3: 36 | I3: 36.33 | J3: 21 | K3: 49 | L3: 40 | M3: 37.6 | N3: 39.34 | O3: 16 | P3: 64 | Q3: 37.87833333 | R3: 28 | S3: 36 | T3: 43 | U3: 23 | V3: 30 | W3: 40 | X3: =IFERROR(INDEX('Guts-2'!$K$1:$K$30,MATCH(E3,'Guts-2'!$J$1:$J$30,0)),TRUE) -> TRUE | Y3: =IFERROR(IF(OR(X3=FALSE,INDEX('Player Notes'!$I$3:$I$999,MATCH(A3,'Player Notes'!$A$3:$A$999,0),1)="Yes"),"",IFERROR(CHOOSE('Guts-2'!$D$27,R3,S3,T3,U3,V3,W3),"")),"") -> 30 | Z3: 30 | AA3: =IFERROR(IF(OR(X3=FALSE,INDEX('Player Notes'!$I$3:$I$999,MATCH(A3,'Player Notes'!$A$3:$A$999,0),1)="Yes"),"",IFERROR(CHOOSE('Guts-2'!$D$26,G3,H3,I3,L3,M3,N3,Q3,AH3),"")),"") -> 37.6 | AB3: =IFERROR(IF(Settings!$M$5="Mixed (Standard)",AA3,RANK(AA3,$AA$2:$AA$919,1)),"") -> 37.6 | AC3: =IFERROR(IF(Settings!$M$5="Mixed (Standard)",(RANK(AA3,$AA$2:$AA$919,1)/('Guts-2'!$M$1+1))+1,(RANK(AB3,$AB$2:$AB$919,1)/('Guts-2'!$M$1+1))+1),"") -> 3.769230769 | AD3: =IFERROR(IF(Settings!$R$5="CBS",J3,IF(Settings!$R$5="NFBC",O3,MIN(AA3*0.75,IFERROR($O3,999),IFERROR($J3,999)))),"") -> 16 | AE3: =IFERROR(IF(Settings!$R$5="CBS",K3,IF(Settings!$R$5="NFBC",P3,MAX(AA3*1.33,IFERROR($P3,999),IFERROR($K3,999)))),"") -> 64 | AF3: 16 | AG3: 64 | AH3: =INDEX('Import (ADP)'!$C$2:$C$999,MATCH(A3, 'Import (ADP)'!$B$2:$B$999,0)) ->  | AI3: =IF('Name-Sort'!E4="",A4,"") -> Ronald Acuna | AJ3: =IFERROR(INDEX($AI$1:$AI$919,SMALL(IF($AI$1:$AI$919<>"",ROW($AI$1:$AI$919)),ROW(AI3))),"") -> Ronald Acuna
A4: Ronald Acuna | B4: acunaro01 | C4: OF | D4: LF,CF,RF | E4: ATL | F4: 23 | G4: 1 | H4: 1 | I4: 1.69 | J4: 1 | K4: 5 | L4: 2 | M4: 1 | N4: 1.69 | O4: 1 | P4: 6 | Q4: 1.396666667 | R4: 1 | S4: 1 | T4: 2 | U4: 2 | V4: 1 | W4: 1 | X4: =IFERROR(INDEX('Guts-2'!$K$1:$K$30,MATCH(E4,'Guts-2'!$J$1:$J$30,0)),TRUE) -> TRUE | Y4: =IFERROR(IF(OR(X4=FALSE,INDEX('Player Notes'!$I$3:$I$999,MATCH(A4,'Player Notes'!$A$3:$A$999,0),1)="Yes"),"",IFERROR(CHOOSE('Guts-2'!$D$27,R4,S4,T4,U4,V4,W4),"")),"") -> 1 | Z4: 1 | AA4: =IFERROR(IF(OR(X4=FALSE,INDEX('Player Notes'!$I$3:$I$999,MATCH(A4,'Player Notes'!$A$3:$A$999,0),1)="Yes"),"",IFERROR(CHOOSE('Guts-2'!$D$26,G4,H4,I4,L4,M4,N4,Q4,AH4),"")),"") -> 1 | AB4: =IFERROR(IF(Settings!$M$5="Mixed (Standard)",AA4,RANK(AA4,$AA$2:$AA$919,1)),"") -> 1 | AC4: =IFERROR(IF(Settings!$M$5="Mixed (Standard)",(RANK(AA4,$AA$2:$AA$919,1)/('Guts-2'!$M$1+1))+1,(RANK(AB4,$AB$2:$AB$919,1)/('Guts-2'!$M$1+1))+1),"") -> 1.076923077 | AD4: =IFERROR(IF(Settings!$R$5="CBS",J4,IF(Settings!$R$5="NFBC",O4,MIN(AA4*0.75,IFERROR($O4,999),IFERROR($J4,999)))),"") -> 0.75 | AE4: =IFERROR(IF(Settings!$R$5="CBS",K4,IF(Settings!$R$5="NFBC",P4,MAX(AA4*1.33,IFERROR($P4,999),IFERROR($K4,999)))),"") -> 6 | AF4: 1 | AG4: 6 | AH4: =INDEX('Import (ADP)'!$C$2:$C$999,MATCH(A4, 'Import (ADP)'!$B$2:$B$999,0)) -> 6 | AI4: =IF('Name-Sort'!E5="",A5,"") -> Willy Adames | AJ4: =IFERROR(INDEX($AI$1:$AI$919,SMALL(IF($AI$1:$AI$919<>"",ROW($AI$1:$AI$919)),ROW(AI4))),"") -> Willy Adames
A5: Willy Adames | B5: adamewi01 | C5: SS | E5: TB | F5: 25 | G5: 315 | H5: 361 | I5: 308.49 | J5: 132 | K5: 397 | M5: 365.8 | N5: 424.83 | O5: 204 | P5: 436 | Q5: 355.024 | S5: 261 | V5: 275 | W5: 293 | X5: =IFERROR(INDEX('Guts-2'!$K$1:$K$30,MATCH(E5,'Guts-2'!$J$1:$J$30,0)),TRUE) -> TRUE | Y5: =IFERROR(IF(OR(X5=FALSE,INDEX('Player Notes'!$I$3:$I$999,MATCH(A5,'Player Notes'!$A$3:$A$999,0),1)="Yes"),"",IFERROR(CHOOSE('Guts-2'!$D$27,R5,S5,T5,U5,V5,W5),"")),"") -> 275 | Z5: 274 | AA5: =IFERROR(IF(OR(X5=FALSE,INDEX('Player Notes'!$I$3:$I$999,MATCH(A5,'Player Notes'!$A$3:$A$999,0),1)="Yes"),"",IFERROR(CHOOSE('Guts-2'!$D$26,G5,H5,I5,L5,M5,N5,Q5,AH5),"")),"") -> 365.8 | AB5: =IFERROR(IF(Settings!$M$5="Mixed (Standard)",AA5,RANK(AA5,$AA$2:$AA$919,1)),"") -> 365.8 | AC5: =IFERROR(IF(Settings!$M$5="Mixed (Standard)",(RANK(AA5,$AA$2:$AA$919,1)/('Guts-2'!$M$1+1))+1,(RANK(AB5,$AB$2:$AB$919,1)/('Guts-2'!$M$1+1))+1),"") -> 29.76923077 | AD5: =IFERROR(IF(Settings!$R$5="CBS",J5,IF(Settings!$R$5="NFBC",O5,MIN(AA5*0.75,IFERROR($O5,999),IFERROR($J5,999)))),"") -> 132 | AE5: =IFERROR(IF(Settings!$R$5="CBS",K5,IF(Settings!$R$5="NFBC",P5,MAX(AA5*1.33,IFERROR($P5,999),IFERROR($K5,999)))),"") -> 486.514 | AF5: 132 | AG5: 486.514 | AH5: =INDEX('Import (ADP)'!$C$2:$C$999,MATCH(A5, 'Import (ADP)'!$B$2:$B$999,0)) ->  | AI5: =IF('Name-Sort'!E6="",A6,"") -> Austin Adams | AJ5: =IFERROR(INDEX($AI$1:$AI$919,SMALL(IF($AI$1:$AI$919<>"",ROW($AI$1:$AI$919)),ROW(AI5))),"") -> Austin Adams
A6: Austin Adams | B6: adamsau02 | C6: RP | E6: SD | F6: 29 | G6: 698 | M6: 678.5 | N6: 743.99 | O6: 415 | P6: 744 | Q6: 706.83 | V6: 616 | X6: =IFERROR(INDEX('Guts-2'!$K$1:$K$30,MATCH(E6,'Guts-2'!$J$1:$J$30,0)),TRUE) -> TRUE | Y6: =IFERROR(IF(OR(X6=FALSE,INDEX('Player Notes'!$I$3:$I$999,MATCH(A6,'Player Notes'!$A$3:$A$999,0),1)="Yes"),"",IFERROR(CHOOSE('Guts-2'!$D$27,R6,S6,T6,U6,V6,W6),"")),"") -> 616 | Z6: 570 | AA6: =IFERROR(IF(OR(X6=FALSE,INDEX('Player Notes'!$I$3:$I$999,MATCH(A6,'Player Notes'!$A$3:$A$999,0),1)="Yes"),"",IFERROR(CHOOSE('Guts-2'!$D$26,G6,H6,I6,L6,M6,N6,Q6,AH6),"")),"") -> 678.5 | AB6: =IFERROR(IF(Settings!$M$5="Mixed (Standard)",AA6,RANK(AA6,$AA$2:$AA$919,1)),"") -> 678.5 | AC6: =IFERROR(IF(Settings!$M$5="Mixed (Standard)",(RANK(AA6,$AA$2:$AA$919,1)/('Guts-2'!$M$1+1))+1,(RANK(AB6,$AB$2:$AB$919,1)/('Guts-2'!$M$1+1))+1),"") -> 52.61538462 | AD6: =IFERROR(IF(Settings!$R$5="CBS",J6,IF(Settings!$R$5="NFBC",O6,MIN(AA6*0.75,IFERROR($O6,999),IFERROR($J6,999)))),"") -> 415 | AE6: =IFERROR(IF(Settings!$R$5="CBS",K6,IF(Settings!$R$5="NFBC",P6,MAX(AA6*1.33,IFERROR($P6,999),IFERROR($K6,999)))),"") -> 999 | AF6: 415 | AG6: 999 | AH6: =INDEX('Import (ADP)'!$C$2:$C$999,MATCH(A6, 'Import (ADP)'!$B$2:$B$999,0)) ->  | AI6: =IF('Name-Sort'!E7="",A7,"") -> Jo Adell | AJ6: =IFERROR(INDEX($AI$1:$AI$919,SMALL(IF($AI$1:$AI$919<>"",ROW($AI$1:$AI$919)),ROW(AI6))),"") -> Jo Adell
A7: Jo Adell | B7: adelljo01 | C7: OF | D7: RF | E7: LAA | F7: 21 | G7: 375 | H7: 373 | I7: 299.52 | J7: 67 | K7: 429 | M7: 359.8 | N7: 474.19 | O7: 232 | P7: 512 | Q7: 376.302 | S7: 330 | V7: 333 | W7: 333 | X7: =IFERROR(INDEX('Guts-2'!$K$1:$K$30,MATCH(E7,'Guts-2'!$J$1:$J$30,0)),TRUE) -> TRUE | Y7: =IFERROR(IF(OR(X7=FALSE,INDEX('Player Notes'!$I$3:$I$999,MATCH(A7,'Player Notes'!$A$3:$A$999,0),1)="Yes"),"",IFERROR(CHOOSE('Guts-2'!$D$27,R7,S7,T7,U7,V7,W7),"")),"") -> 333 | Z7: 332 | AA7: =IFERROR(IF(OR(X7=FALSE,INDEX('Player Notes'!$I$3:$I$999,MATCH(A7,'Player Notes'!$A$3:$A$999,0),1)="Yes"),"",IFERROR(CHOOSE('Guts-2'!$D$26,G7,H7,I7,L7,M7,N7,Q7,AH7),"")),"") -> 359.8 | AB7: =IFERROR(IF(Settings!$M$5="Mixed (Standard)",AA7,RANK(AA7,$AA$2:$AA$919,1)),"") -> 359.8 | AC7: =IFERROR(IF(Settings!$M$5="Mixed (Standard)",(RANK(AA7,$AA$2:$AA$919,1)/('Guts-2'!$M$1+1))+1,(RANK(AB7,$AB$2:$AB$919,1)/('Guts-2'!$M$1+1))+1),"") -> 29 | AD7: =IFERROR(IF(Settings!$R$5="CBS",J7,IF(Settings!$R$5="NFBC",O7,MIN(AA7*0.75,IFERROR($O7,999),IFERROR($J7,999)))),"") -> 67 | AE7: =IFERROR(IF(Settings!$R$5="CBS",K7,IF(Settings!$R$5="NFBC",P7,MAX(AA7*1.33,IFERROR($P7,999),IFERROR($K7,999)))),"") -> 512 | AF7: 67 | AG7: 512 | AH7: =INDEX('Import (ADP)'!$C$2:$C$999,MATCH(A7, 'Import (ADP)'!$B$2:$B$999,0)) ->  | AI7: =IF('Name-Sort'!E8="",A8,"") -> Jesus Aguilar | AJ7: =IFERROR(INDEX($AI$1:$AI$919,SMALL(IF($AI$1:$AI$919<>"",ROW($AI$1:$AI$919)),ROW(AI7))),"") -> Jesus Aguilar
A8: Jesus Aguilar | B8: aguilje01 | C8: 1B | E8: MIA | F8: 30 | G8: 340 | I8: 291.85 | J8: 151 | K8: 356 | M8: 344 | N8: 419.52 | O8: 154 | P8: 412 | Q8: 348.8425 | S8: 281 | V8: 290 | W8: 328 | X8: =IFERROR(INDEX('Guts-2'!$K$1:$K$30,MATCH(E8,'Guts-2'!$J$1:$J$30,0)),TRUE) -> TRUE | Y8: =IFERROR(IF(OR(X8=FALSE,INDEX('Player Notes'!$I$3:$I$999,MATCH(A8,'Player Notes'!$A$3:$A$999,0),1)="Yes"),"",IFERROR(CHOOSE('Guts-2'!$D$27,R8,S8,T8,U8,V8,W8),"")),"") -> 290 | Z8: 289 | AA8: =IFERROR(IF(OR(X8=FALSE,INDEX('Player Notes'!$I$3:$I$999,MATCH(A8,'Player Notes'!$A$3:$A$999,0),1)="Yes"),"",IFERROR(CHOOSE('Guts-2'!$D$26,G8,H8,I8,L8,M8,N8,Q8,AH8),"")),"") -> 344 | AB8: =IFERROR(IF(Settings!$M$5="Mixed (Standard)",AA8,RANK(AA8,$AA$2:$AA$919,1)),"") -> 344 | AC8: =IFERROR(IF(Settings!$M$5="Mixed (Standard)",(RANK(AA8,$AA$2:$AA$919,1)/('Guts-2'!$M$1+1))+1,(RANK(AB8,$AB$2:$AB$919,1)/('Guts-2'!$M$1+1))+1),"") -> 27.38461538 | AD8: =IFERROR(IF(Settings!$R$5="CBS",J8,IF(Settings!$R$5="NFBC",O8,MIN(AA8*0.75,IFERROR($O8,999),IFERROR($J8,999)))),"") -> 151 | AE8: =IFERROR(IF(Settings!$R$5="CBS",K8,IF(Settings!$R$5="NFBC",P8,MAX(AA8*1.33,IFERROR($P8,999),IFERROR($K8,999)))),"") -> 457.52 | AF8: 151 | AG8: 457.52 | AH8: =INDEX('Import (ADP)'!$C$2:$C$999,MATCH(A8, 'Import (ADP)'!$B$2:$B$999,0)) ->  | AI8: =IF('Name-Sort'!E9="",A9,"") -> Nick Ahmed | AJ8: =IFERROR(INDEX($AI$1:$AI$919,SMALL(IF($AI$1:$AI$919<>"",ROW($AI$1:$AI$919)),ROW(AI8))),"") -> Nick Ahmed
A9: Nick Ahmed | B9: ahmedni01 | C9: SS | E9: ARI | F9: 31 | G9: 365 | H9: 351 | I9: 370.47 | J9: 238 | K9: 657 | M9: 369.8 | N9: 502.18 | O9: 283 | P9: 503 | Q9: 391.69 | R9: 294 | S9: 303 | V9: 335 | X9: =IFERROR(INDEX('Guts-2'!$K$1:$K$30,MATCH(E9,'Guts-2'!$J$1:$J$30,0)),TRUE) -> TRUE | Y9: =IFERROR(IF(OR(X9=FALSE,INDEX('Player Notes'!$I$3:$I$999,MATCH(A9,'Player Notes'!$A$3:$A$999,0),1)="Yes"),"",IFERROR(CHOOSE('Guts-2'!$D$27,R9,S9,T9,U9,V9,W9),"")),"") -> 335 | Z9: 334 | AA9: =IFERROR(IF(OR(X9=FALSE,INDEX('Player Notes'!$I$3:$I$999,MATCH(A9,'Player Notes'!$A$3:$A$999,0),1)="Yes"),"",IFERROR(CHOOSE('Guts-2'!$D$26,G9,H9,I9,L9,M9,N9,Q9,AH9),"")),"") -> 369.8 | AB9: =IFERROR(IF(Settings!$M$5="Mixed (Standard)",AA9,RANK(AA9,$AA$2:$AA$919,1)),"") -> 369.8 | AC9: =IFERROR(IF(Settings!$M$5="Mixed (Standard)",(RANK(AA9,$AA$2:$AA$919,1)/('Guts-2'!$M$1+1))+1,(RANK(AB9,$AB$2:$AB$919,1)/('Guts-2'!$M$1+1))+1),"") -> 30.07692308 | AD9: =IFERROR(IF(Settings!$R$5="CBS",J9,IF(Settings!$R$5="NFBC",O9,MIN(AA9*0.75,IFERROR($O9,999),IFERROR($J9,999)))),"") -> 238 | AE9: =IFERROR(IF(Settings!$R$5="CBS",K9,IF(Settings!$R$5="NFBC",P9,MAX(AA9*1.33,IFERROR($P9,999),IFERROR($K9,999)))),"") -> 657 | AF9: 238 | AG9: 657 | AH9: =INDEX('Import (ADP)'!$C$2:$C$999,MATCH(A9, 'Import (ADP)'!$B$2:$B$999,0)) ->  | AI9: =IF('Name-Sort'!E10="",A10,"") -> Shogo Akiyama | AJ9: =IFERROR(INDEX($AI$1:$AI$919,SMALL(IF($AI$1:$AI$919<>"",ROW($AI$1:$AI$919)),ROW(AI9))),"") -> Shogo Akiyama
A10: Shogo Akiyama | B10: akimash01 | C10: OF | D10: LF,CF | E10: CIN | F10: 32 | G10: 420 | M10: 432.5 | N10: 647.25 | O10: 361 | P10: 611 | Q10: 499.9166667 | V10: 454 | X10: =IFERROR(INDEX('Guts-2'!$K$1:$K$30,MATCH(E10,'Guts-2'!$J$1:$J$30,0)),TRUE) -> TRUE | Y10: =IFERROR(IF(OR(X10=FALSE,INDEX('Player Notes'!$I$3:$I$999,MATCH(A10,'Player Notes'!$A$3:$A$999,0),1)="Yes"),"",IFERROR(CHOOSE('Guts-2'!$D$27,R10,S10,T10,U10,V10,W10),"")),"") -> 454 | Z10: 452 | AA10: =IFERROR(IF(OR(X10=FALSE,INDEX('Player Notes'!$I$3:$I$999,MATCH(A10,'Player Notes'!$A$3:$A$999,0),1)="Yes"),"",IFERROR(CHOOSE('Guts-2'!$D$26,G10,H10,I10,L10,M10,N10,Q10,AH10),"")),"") -> 432.5 | AB10: =IFERROR(IF(Settings!$M$5="Mixed (Standard)",AA10,RANK(AA10,$AA$2:$AA$919,1)),"") -> 432.5 | AC10: =IFERROR(IF(Settings!$M$5="Mixed (Standard)",(RANK(AA10,$AA$2:$AA$919,1)/('Guts-2'!$M$1+1))+1,(RANK(AB10,$AB$2:$AB$919,1)/('Guts-2'!$M$1+1))+1),"") -> 36.53846154 | AD10: =IFERROR(IF(Settings!$R$5="CBS",J10,IF(Settings!$R$5="NFBC",O10,MIN(AA10*0.75,IFERROR($O10,999),IFERROR($J10,999)))),"") -> 324.375 | AE10: =IFERROR(IF(Settings!$R$5="CBS",K10,IF(Settings!$R$5="NFBC",P10,MAX(AA10*1.33,IFERROR($P10,999),IFERROR($K10,999)))),"") -> 999 | AF10: 324.375 | AG10: 999 | AH10: =INDEX('Import (ADP)'!$C$2:$C$999,MATCH(A10, 'Import (ADP)'!$B$2:$B$999,0)) ->  | AI10: =IF('Name-Sort'!E11="",A11,"") -> Keegan Akin | AJ10: =IFERROR(INDEX($AI$1:$AI$919,SMALL(IF($AI$1:$AI$919<>"",ROW($AI$1:$AI$919)),ROW(AI10))),"") -> Keegan Akin
A11: Keegan Akin | B11: akinke01 | C11: SP | E11: BAL | F11: 26 | G11: 493 | M11: 505.5 | N11: 657.18 | O11: 368 | P11: 623 | Q11: 551.8933333 | V11: 488 | X11: =IFERROR(INDEX('Guts-2'!$K$1:$K$30,MATCH(E11,'Guts-2'!$J$1:$J$30,0)),TRUE) -> TRUE | Y11: =IFERROR(IF(OR(X11=FALSE,INDEX('Player Notes'!$I$3:$I$999,MATCH(A11,'Player Notes'!$A$3:$A$999,0),1)="Yes"),"",IFERROR(CHOOSE('Guts-2'!$D$27,R11,S11,T11,U11,V11,W11),"")),"") -> 488 | Z11: 485 | AA11: =IFERROR(IF(OR(X11=FALSE,INDEX('Player Notes'!$I$3:$I$999,MATCH(A11,'Player Notes'!$A$3:$A$999,0),1)="Yes"),"",IFERROR(CHOOSE('Guts-2'!$D$26,G11,H11,I11,L11,M11,N11,Q11,AH11),"")),"") -> 505.5 | AB11: =IFERROR(IF(Settings!$M$5="Mixed (Standard)",AA11,RANK(AA11,$AA$2:$AA$919,1)),"") -> 505.5 | AC11: =IFERROR(IF(Settings!$M$5="Mixed (Standard)",(RANK(AA11,$AA$2:$AA$919,1)/('Guts-2'!$M$1+1))+1,(RANK(AB11,$AB$2:$AB$919,1)/('Guts-2'!$M$1+1))+1),"") -> 41.38461538 | AD11: =IFERROR(IF(Settings!$R$5="CBS",J11,IF(Settings!$R$5="NFBC",O11,MIN(AA11*0.75,IFERROR($O11,999),IFERROR($J11,999)))),"") -> 368 | AE11: =IFERROR(IF(Settings!$R$5="CBS",K11,IF(Settings!$R$5="NFBC",P11,MAX(AA11*1.33,IFERROR($P11,999),IFERROR($K11,999)))),"") -> 999 | AF11: 368 | AG11: 999 | AH11: =INDEX('Import (ADP)'!$C$2:$C$999,MATCH(A11, 'Import (ADP)'!$B$2:$B$999,0)) ->  | AI11: =IF('Name-Sort'!E12="",A12,"") -> Hanser Alberto | AJ11: =IFERROR(INDEX($AI$1:$AI$919,SMALL(IF($AI$1:$AI$919<>"",ROW($AI$1:$AI$919)),ROW(AI11))),"") -> Hanser Alberto
A12: Hanser Alberto | B12: alberha01 | C12: 2B | E12: KC | F12: 28 | G12: 499 | H12: 309 | L12: 452 | M12: 446.8 | N12: 677.43 | O12: 298 | P12: 710 | Q12: 476.846 | V12: 501 | X12: =IFERROR(INDEX('Guts-2'!$K$1:$K$30,MATCH(E12,'Guts-2'!$J$1:$J$30,0)),TRUE) -> TRUE | Y12: =IFERROR(IF(OR(X12=FALSE,INDEX('Player Notes'!$I$3:$I$999,MATCH(A12,'Player Notes'!$A$3:$A$999,0),1)="Yes"),"",IFERROR(CHOOSE('Guts-2'!$D$27,R12,S12,T12,U12,V12,W12),"")),"") -> 501 | Z12: 495 | AA12: =IFERROR(IF(OR(X12=FALSE,INDEX('Player Notes'!$I$3:$I$999,MATCH(A12,'Player Notes'!$A$3:$A$999,0),1)="Yes"),"",IFERROR(CHOOSE('Guts-2'!$D$26,G12,H12,I12,L12,M12,N12,Q12,AH12),"")),"") -> 446.8 | AB12: =IFERROR(IF(Settings!$M$5="Mixed (Standard)",AA12,RANK(AA12,$AA$2:$AA$919,1)),"") -> 446.8 | AC12: =IFERROR(IF(Settings!$M$5="Mixed (Standard)",(RANK(AA12,$AA$2:$AA$919,1)/('Guts-2'!$M$1+1))+1,(RANK(AB12,$AB$2:$AB$919,1)/('Guts-2'!$M$1+1))+1),"") -> 37.69230769 | AD12: =IFERROR(IF(Settings!$R$5="CBS",J12,IF(Settings!$R$5="NFBC",O12,MIN(AA12*0.75,IFERROR($O12,999),IFERROR($J12,999)))),"") -> 298 | AE12: =IFERROR(IF(Settings!$R$5="CBS",K12,IF(Settings!$R$5="NFBC",P12,MAX(AA12*1.33,IFERROR($P12,999),IFERROR($K12,999)))),"") -> 999 | AF12: 298 | AG12: 999 | AH12: =INDEX('Import (ADP)'!$C$2:$C$999,MATCH(A12, 'Import (ADP)'!$B$2:$B$999,0)) ->  | AI12: =IF('Name-Sort'!E13="",A13,"") -> Ozzie Albies | AJ12: =IFERROR(INDEX($AI$1:$AI$919,SMALL(IF($AI$1:$AI$919<>"",ROW($AI$1:$AI$919)),ROW(AI12))),"") -> Ozzie Albies
A13: Ozzie Albies | B13: albieoz01 | C13: 2B | E13: ATL | F13: 24 | G13: 29 | H13: 32 | I13: 34.79 | J13: 23 | K13: 45 | L13: 36 | M13: 34.8 | N13: 35.71 | O13: 20 | P13: 57 | Q13: 33.71666667 | R13: 25 | S13: 33 | T13: 36 | U13: 31 | V13: 32 | W13: 24 | X13: =IFERROR(INDEX('Guts-2'!$K$1:$K$30,MATCH(E13,'Guts-2'!$J$1:$J$30,0)),TRUE) -> TRUE | Y13: =IFERROR(IF(OR(X13=FALSE,INDEX('Player Notes'!$I$3:$I$999,MATCH(A13,'Player Notes'!$A$3:$A$999,0),1)="Yes"),"",IFERROR(CHOOSE('Guts-2'!$D$27,R13,S13,T13,U13,V13,W13),"")),"") -> 32 | Z13: 32 | AA13: =IFERROR(IF(OR(X13=FALSE,INDEX('Player Notes'!$I$3:$I$999,MATCH(A13,'Player Notes'!$A$3:$A$999,0),1)="Yes"),"",IFERROR(CHOOSE('Guts-2'!$D$26,G13,H13,I13,L13,M13,N13,Q13,AH13),"")),"") -> 34.8 | AB13: =IFERROR(IF(Settings!$M$5="Mixed (Standard)",AA13,RANK(AA13,$AA$2:$AA$919,1)),"") -> 34.8 | AC13: =IFERROR(IF(Settings!$M$5="Mixed (Standard)",(RANK(AA13,$AA$2:$AA$919,1)/('Guts-2'!$M$1+1))+1,(RANK(AB13,$AB$2:$AB$919,1)/('Guts-2'!$M$1+1))+1),"") -> 3.692307692 | AD13: =IFERROR(IF(Settings!$R$5="CBS",J13,IF(Settings!$R$5="NFBC",O13,MIN(AA13*0.75,IFERROR($O13,999),IFERROR($J13,999)))),"") -> 20 | AE13: =IFERROR(IF(Settings!$R$5="CBS",K13,IF(Settings!$R$5="NFBC",P13,MAX(AA13*1.33,IFERROR($P13,999),IFERROR($K13,999)))),"") -> 57 | AF13: 20 | AG13: 57 | AH13: =INDEX('Import (ADP)'!$C$2:$C$999,MATCH(A13, 'Import (ADP)'!$B$2:$B$999,0)) ->  | AI13: =IF('Name-Sort'!E14="",A14,"") -> Jorge Alcala | AJ13: =IFERROR(INDEX($AI$1:$AI$919,SMALL(IF($AI$1:$AI$919<>"",ROW($AI$1:$AI$919)),ROW(AI13))),"") -> Jorge Alcala
A14: Jorge Alcala | B14: alcaljo01 | C14: RP | E14: MIN | F14: 25 | G14: 969 | I14: 338.94 | J14: 95 | K14: 816 | M14: 882.5 | N14: 749.8 | O14: 598 | P14: 745 | Q14: 735.06 | V14: 626 | X14: =IFERROR(INDEX('Guts-2'!$K$1:$K$30,MATCH(E14,'Guts-2'!$J$1:$J$30,0)),TRUE) -> TRUE | Y14: =IFERROR(IF(OR(X14=FALSE,INDEX('Player Notes'!$I$3:$I$999,MATCH(A14,'Player Notes'!$A$3:$A$999,0),1)="Yes"),"",IFERROR(CHOOSE('Guts-2'!$D$27,R14,S14,T14,U14,V14,W14),"")),"") -> 626 | Z14: 579 | AA14: =IFERROR(IF(OR(X14=FALSE,INDEX('Player Notes'!$I$3:$I$999,MATCH(A14,'Player Notes'!$A$3:$A$999,0),1)="Yes"),"",IFERROR(CHOOSE('Guts-2'!$D$26,G14,H14,I14,L14,M14,N14,Q14,AH14),"")),"") -> 882.5 | AB14: =IFERROR(IF(Settings!$M$5="Mixed (Standard)",AA14,RANK(AA14,$AA$2:$AA$919,1)),"") -> 882.5 | AC14: =IFERROR(IF(Settings!$M$5="Mixed (Standard)",(RANK(AA14,$AA$2:$AA$919,1)/('Guts-2'!$M$1+1))+1,(RANK(AB14,$AB$2:$AB$919,1)/('Guts-2'!$M$1+1))+1),"") -> 57.92307692 | AD14: =IFERROR(IF(Settings!$R$5="CBS",J14,IF(Settings!$R$5="NFBC",O14,MIN(AA14*0.75,IFERROR($O14,999),IFERROR($J14,999)))),"") -> 95 | AE14: =IFERROR(IF(Settings!$R$5="CBS",K14,IF(Settings!$R$5="NFBC",P14,MAX(AA14*1.33,IFERROR($P14,999),IFERROR($K14,999)))),"") -> 1173.725 | AF14: 95 | AG14: 1173.725 | AH14: =INDEX('Import (ADP)'!$C$2:$C$999,MATCH(A14, 'Import (ADP)'!$B$2:$B$999,0)) ->  | AI14: =IF('Name-Sort'!E15="",A15,"") -> Sandy Alcantara | AJ14: =IFERROR(INDEX($AI$1:$AI$919,SMALL(IF($AI$1:$AI$919<>"",ROW($AI$1:$AI$919)),ROW(AI14))),"") -> Sandy Alcantara
A15: Sandy Alcantara | B15: alcansa01 | C15: SP | E15: MIA | F15: 25 | G15: 119 | H15: 161 | I15: 133.36 | J15: 84 | K15: 179 | L15: 171 | M15: 139.2 | N15: 139.74 | O15: 92 | P15: 213 | Q15: 143.8833333 | R15: 215 | S15: 176 | T15: 171 | U15: 148 | V15: 154 | W15: 256 | X15: =IFERROR(INDEX('Guts-2'!$K$1:$K$30,MATCH(E15,'Guts-2'!$J$1:$J$30,0)),TRUE) -> TRUE | Y15: =IFERROR(IF(OR(X15=FALSE,INDEX('Player Notes'!$I$3:$I$999,MATCH(A15,'Player Notes'!$A$3:$A$999,0),1)="Yes"),"",IFERROR(CHOOSE('Guts-2'!$D$27,R15,S15,T15,U15,V15,W15),"")),"") -> 154 | Z15: 153 | AA15: =IFERROR(IF(OR(X15=FALSE,INDEX('Player Notes'!$I$3:$I$999,MATCH(A15,'Player Notes'!$A$3:$A$999,0),1)="Yes"),"",IFERROR(CHOOSE('Guts-2'!$D$26,G15,H15,I15,L15,M15,N15,Q15,AH15),"")),"") -> 139.2 | AB15: =IFERROR(IF(Settings!$M$5="Mixed (Standard)",AA15,RANK(AA15,$AA$2:$AA$919,1)),"") -> 139.2 | AC15: =IFERROR(IF(Settings!$M$5="Mixed (Standard)",(RANK(AA15,$AA$2:$AA$919,1)/('Guts-2'!$M$1+1))+1,(RANK(AB15,$AB$2:$AB$919,1)/('Guts-2'!$M$1+1))+1),"") -> 11.30769231 | AD15: =IFERROR(IF(Settings!$R$5="CBS",J15,IF(Settings!$R$5="NFBC",O15,MIN(AA15*0.75,IFERROR($O15,999),IFERROR($J15,999)))),"") -> 84 | AE15: =IFERROR(IF(Settings!$R$5="CBS",K15,IF(Settings!$R$5="NFBC",P15,MAX(AA15*1.33,IFERROR($P15,999),IFERROR($K15,999)))),"") -> 213 | AF15: 84 | AG15: 213 | AH15: =INDEX('Import (ADP)'!$C$2:$C$999,MATCH(A15, 'Import (ADP)'!$B$2:$B$999,0)) ->  | AI15: =IF('Name-Sort'!E16="",A16,"") -> Jorge Alfaro | AJ15: =IFERROR(INDEX($AI$1:$AI$919,SMALL(IF($AI$1:$AI$919<>"",ROW($AI$1:$AI$919)),ROW(AI15))),"") -> Jorge Alfaro
A16: Jorge Alfaro | B16: alfarjo01 | C16: C | E16: MIA | F16: 27 | G16: 320 | H16: 380 | I16: 249.22 | J16: 144 | K16: 338 | M16: 298.2 | N16: 252.13 | O16: 167 | P16: 348 | Q16: 299.91 | S16: 340 | T16: 296 | V16: 312 | W16: 310 | X16: =IFERROR(INDEX('Guts-2'!$K$1:$K$30,MATCH(E16,'Guts-2'!$J$1:$J$30,0)),TRUE) -> TRUE | Y16: =IFERROR(IF(OR(X16=FALSE,INDEX('Player Notes'!$I$3:$I$999,MATCH(A16,'Player Notes'!$A$3:$A$999,0),1)="Yes"),"",IFERROR(CHOOSE('Guts-2'!$D$27,R16,S16,T16,U16,V16,W16),"")),"") -> 312 | Z16: 311 | AA16: =IFERROR(IF(OR(X16=FALSE,INDEX('Player Notes'!$I$3:$I$999,MATCH(A16,'Player Notes'!$A$3:$A$999,0),1)="Yes"),"",IFERROR(CHOOSE('Guts-2'!$D$26,G16,H16,I16,L16,M16,N16,Q16,AH16),"")),"") -> 298.2 | AB16: =IFERROR(IF(Settings!$M$5="Mixed (Standard)",AA16,RANK(AA16,$AA$2:$AA$919,1)),"") -> 298.2 | AC16: =IFERROR(IF(Settings!$M$5="Mixed (Standard)",(RANK(AA16,$AA$2:$AA$919,1)/('Guts-2'!$M$1+1))+1,(RANK(AB16,$AB$2:$AB$919,1)/('Guts-2'!$M$1+1))+1),"") -> 23.38461538 | AD16: =IFERROR(IF(Settings!$R$5="CBS",J16,IF(Settings!$R$5="NFBC",O16,MIN(AA16*0.75,IFERROR($O16,999),IFERROR($J16,999)))),"") -> 144 | AE16: =IFERROR(IF(Settings!$R$5="CBS",K16,IF(Settings!$R$5="NFBC",P16,MAX(AA16*1.33,IFERROR($P16,999),IFERROR($K16,999)))),"") -> 396.606 | AF16: 144 | AG16: 396.606 | AH16: =INDEX('Import (ADP)'!$C$2:$C$999,MATCH(A16, 'Import (ADP)'!$B$2:$B$999,0)) ->  | AI16: =IF('Name-Sort'!E17="",A17,"") -> Anthony Alford | AJ16: =IFERROR(INDEX($AI$1:$AI$919,SMALL(IF($AI$1:$AI$919<>"",ROW($AI$1:$AI$919)),ROW(AI16))),"") -> Anthony Alford
A17: Anthony Alford | B17: alforan01 | C17: OF | D17: LF,CF | E17: TOR | F17: 26 | G17: 618 | M17: 592.5 | N17: 671.54 | O17: 334 | P17: 607 | Q17: 627.3466667 | V17: 826 | X17: =IFERROR(INDEX('Guts-2'!$K$1:$K$30,MATCH(E17,'Guts-2'!$J$1:$J$30,0)),TRUE) -> TRUE | Y17: =IFERROR(IF(OR(X17=FALSE,INDEX('Player Notes'!$I$3:$I$999,MATCH(A17,'Player Notes'!$A$3:$A$999,0),1)="Yes"),"",IFERROR(CHOOSE('Guts-2'!$D$27,R17,S17,T17,U17,V17,W17),"")),"") -> 826 | Z17: 681 | AA17: =IFERROR(IF(OR(X17=FALSE,INDEX('Player Notes'!$I$3:$I$999,MATCH(A17,'Player Notes'!$A$3:$A$999,0),1)="Yes"),"",IFERROR(CHOOSE('Guts-2'!$D$26,G17,H17,I17,L17,M17,N17,Q17,AH17),"")),"") -> 592.5 | AB17: =IFERROR(IF(Settings!$M$5="Mixed (Standard)",AA17,RANK(AA17,$AA$2:$AA$919,1)),"") -> 592.5 | AC17: =IFERROR(IF(Settings!$M$5="Mixed (Standard)",(RANK(AA17,$AA$2:$AA$919,1)/('Guts-2'!$M$1+1))+1,(RANK(AB17,$AB$2:$AB$919,1)/('Guts-2'!$M$1+1))+1),"") -> 47.23076923 | AD17: =IFERROR(IF(Settings!$R$5="CBS",J17,IF(Settings!$R$5="NFBC",O17,MIN(AA17*0.75,IFERROR($O17,999),IFERROR($J17,999)))),"") -> 334 | AE17: =IFERROR(IF(Settings!$R$5="CBS",K17,IF(Settings!$R$5="NFBC",P17,MAX(AA17*1.33,IFERROR($P17,999),IFERROR($K17,999)))),"") -> 999 | AF17: 334 | AG17: 999 | AH17: =INDEX('Import (ADP)'!$C$2:$C$999,MATCH(A17, 'Import (ADP)'!$B$2:$B$999,0)) ->  | AI17: =IF('Name-Sort'!E18="",A18,"") -> Kolby Allard | AJ17: =IFERROR(INDEX($AI$1:$AI$919,SMALL(IF($AI$1:$AI$919<>"",ROW($AI$1:$AI$919)),ROW(AI17))),"") -> Kolby Allard
A18: Kolby Allard | B18: allarko01 | C18: SP | E18: TEX | F18: 23 | G18: 728 | M18: 750 | N18: 746.69 | O18: 444 | P18: 742 | Q18: 741.5633333 | V18: 664 | X18: =IFERROR(INDEX('Guts-2'!$K$1:$K$30,MATCH(E18,'Guts-2'!$J$1:$J$30,0)),TRUE) -> TRUE | Y18: =IFERROR(IF(OR(X18=FALSE,INDEX('Player Notes'!$I$3:$I$999,MATCH(A18,'Player Notes'!$A$3:$A$999,0),1)="Yes"),"",IFERROR(CHOOSE('Guts-2'!$D$27,R18,S18,T18,U18,V18,W18),"")),"") -> 664 | Z18: 603 | AA18: =IFERROR(IF(OR(X18=FALSE,INDEX('Player Notes'!$I$3:$I$999,MATCH(A18,'Player Notes'!$A$3:$A$999,0),1)="Yes"),"",IFERROR(CHOOSE('Guts-2'!$D$26,G18,H18,I18,L18,M18,N18,Q18,AH18),"")),"") -> 750 | AB18: =IFERROR(IF(Settings!$M$5="Mixed (Standard)",AA18,RANK(AA18,$AA$2:$AA$919,1)),"") -> 750 | AC18: =IFERROR(IF(Settings!$M$5="Mixed (Standard)",(RANK(AA18,$AA$2:$AA$919,1)/('Guts-2'!$M$1+1))+1,(RANK(AB18,$AB$2:$AB$919,1)/('Guts-2'!$M$1+1))+1),"") -> 55.61538462 | AD18: =IFERROR(IF(Settings!$R$5="CBS",J18,IF(Settings!$R$5="NFBC",O18,MIN(AA18*0.75,IFERROR($O18,999),IFERROR($J18,999)))),"") -> 444 | AE18: =IFERROR(IF(Settings!$R$5="CBS",K18,IF(Settings!$R$5="NFBC",P18,MAX(AA18*1.33,IFERROR($P18,999),IFERROR($K18,999)))),"") -> 999 | AF18: 444 | AG18: 999 | AH18: =INDEX('Import (ADP)'!$C$2:$C$999,MATCH(A18, 'Import (ADP)'!$B$2:$B$999,0)) ->  | AI18: =IF('Name-Sort'!E19="",A19,"") -> Austin Allen | AJ18: =IFERROR(INDEX($AI$1:$AI$919,SMALL(IF($AI$1:$AI$919<>"",ROW($AI$1:$AI$919)),ROW(AI18))),"") -> Austin Allen
A19: Austin Allen | B19: allenau01 | C19: C | E19: OAK | F19: 27 | G19: 803 | M19: 773.5 | N19: 743.5 | O19: 387 | P19: 741 | Q19: 773.3333333 | X19: =IFERROR(INDEX('Guts-2'!$K$1:$K$30,MATCH(E19,'Guts-2'!$J$1:$J$30,0)),TRUE) -> TRUE | Y19: =IFERROR(IF(OR(X19=FALSE,INDEX('Player Notes'!$I$3:$I$999,MATCH(A19,'Player Notes'!$A$3:$A$999,0),1)="Yes"),"",IFERROR(CHOOSE('Guts-2'!$D$27,R19,S19,T19,U19,V19,W19),"")),"") ->  | AA19: =IFERROR(IF(OR(X19=FALSE,INDEX('Player Notes'!$I$3:$I$999,MATCH(A19,'Player Notes'!$A$3:$A$999,0),1)="Yes"),"",IFERROR(CHOOSE('Guts-2'!$D$26,G19,H19,I19,L19,M19,N19,Q19,AH19),"")),"") -> 773.5 | AB19: =IFERROR(IF(Settings!$M$5="Mixed (Standard)",AA19,RANK(AA19,$AA$2:$AA$919,1)),"") -> 773.5 | AC19: =IFERROR(IF(Settings!$M$5="Mixed (Standard)",(RANK(AA19,$AA$2:$AA$919,1)/('Guts-2'!$M$1+1))+1,(RANK(AB19,$AB$2:$AB$919,1)/('Guts-2'!$M$1+1))+1),"") -> 56.15384615 | AD19: =IFERROR(IF(Settings!$R$5="CBS",J19,IF(Settings!$R$5="NFBC",O19,MIN(AA19*0.75,IFERROR($O19,999),IFERROR($J19,999)))),"") -> 387 | AE19: =IFERROR(IF(Settings!$R$5="CBS",K19,IF(Settings!$R$5="NFBC",P19,MAX(AA19*1.33,IFERROR($P19,999),IFERROR($K19,999)))),"") -> 1028.755 | AF19: 387 | AG19: 1028.755 | AH19: =INDEX('Import (ADP)'!$C$2:$C$999,MATCH(A19, 'Import (ADP)'!$B$2:$B$999,0)) ->  | AI19: =IF('Name-Sort'!E20="",A20,"") -> Pete Alonso | AJ19: =IFERROR(INDEX($AI$1:$AI$919,SMALL(IF($AI$1:$AI$919<>"",ROW($AI$1:$AI$919)),ROW(AI19))),"") -> Pete Alonso
A20: Pete Alonso | B20: alonspe01 | C20: 1B | E20: NYM | F20: 26 | G20: 48 | H20: 48 | I20: 46.64 | J20: 30 | K20: 59 | L20: 44 | M20: 48.2 | N20: 53.59 | O20: 27 | P20: 89 | Q20: 48.07166667 | R20: 44 | S20: 47 | T20: 48 | U20: 51 | V20: 48 | W20: 46 | X20: =IFERROR(INDEX('Guts-2'!$K$1:$K$30,MATCH(E20,'Guts-2'!$J$1:$J$30,0)),TRUE) -> TRUE | Y20: =IFERROR(IF(OR(X20=FALSE,INDEX('Player Notes'!$I$3:$I$999,MATCH(A20,'Player Notes'!$A$3:$A$999,0),1)="Yes"),"",IFERROR(CHOOSE('Guts-2'!$D$27,R20,S20,T20,U20,V20,W20),"")),"") -> 48 | Z20: 47 | AA20: =IFERROR(IF(OR(X20=FALSE,INDEX('Player Notes'!$I$3:$I$999,MATCH(A20,'Player Notes'!$A$3:$A$999,0),1)="Yes"),"",IFERROR(CHOOSE('Guts-2'!$D$26,G20,H20,I20,L20,M20,N20,Q20,AH20),"")),"") -> 48.2 | AB20: =IFERROR(IF(Settings!$M$5="Mixed (Standard)",AA20,RANK(AA20,$AA$2:$AA$919,1)),"") -> 48.2 | AC20: =IFERROR(IF(Settings!$M$5="Mixed (Standard)",(RANK(AA20,$AA$2:$AA$919,1)/('Guts-2'!$M$1+1))+1,(RANK(AB20,$AB$2:$AB$919,1)/('Guts-2'!$M$1+1))+1),"") -> 4.538461538 | AD20: =IFERROR(IF(Settings!$R$5="CBS",J20,IF(Settings!$R$5="NFBC",O20,MIN(AA20*0.75,IFERROR($O20,999),IFERROR($J20,999)))),"") -> 27 | AE20: =IFERROR(IF(Settings!$R$5="CBS",K20,IF(Settings!$R$5="NFBC",P20,MAX(AA20*1.33,IFERROR($P20,999),IFERROR($K20,999)))),"") -> 89 | AF20: 27 | AG20: 89 | AH20: =INDEX('Import (ADP)'!$C$2:$C$999,MATCH(A20, 'Import (ADP)'!$B$2:$B$999,0)) -> 32 | AI20: =IF('Name-Sort'!E21="",A21,"") -> Jose Altuve | AJ20: =IFERROR(INDEX($AI$1:$AI$919,SMALL(IF($AI$1:$AI$919<>"",ROW($AI$1:$AI$919)),ROW(AI20))),"") -> Jose Altuve
A21: Jose Altuve | B21: altuvjo01 | C21: 2B | E21: HOU | F21: 30 | G21: 89 | H21: 86 | I21: 60.31 | J21: 34 | K21: 81 | L21: 80 | M21: 90.2 | N21: 92.35 | O21: 51 | P21: 143 | Q21: 82.97666667 | R21: 52 | S21: 77 | T21: 84 | U21: 67 | V21: 78 | W21: 50 | X21: =IFERROR(INDEX('Guts-2'!$K$1:$K$30,MATCH(E21,'Guts-2'!$J$1:$J$30,0)),TRUE) -> TRUE | Y21: =IFERROR(IF(OR(X21=FALSE,INDEX('Player Notes'!$I$3:$I$999,MATCH(A21,'Player Notes'!$A$3:$A$999,0),1)="Yes"),"",IFERROR(CHOOSE('Guts-2'!$D$27,R21,S21,T21,U21,V21,W21),"")),"") -> 78 | Z21: 77 | AA21: =IFERROR(IF(OR(X21=FALSE,INDEX('Player Notes'!$I$3:$I$999,MATCH(A21,'Player Notes'!$A$3:$A$999,0),1)="Yes"),"",IFERROR(CHOOSE('Guts-2'!$D$26,G21,H21,I21,L21,M21,N21,Q21,AH21),"")),"") -> 90.2 | AB21: =IFERROR(IF(Settings!$M$5="Mixed (Standard)",AA21,RANK(AA21,$AA$2:$AA$919,1)),"") -> 90.2 | AC21: =IFERROR(IF(Settings!$M$5="Mixed (Standard)",(RANK(AA21,$AA$2:$AA$919,1)/('Guts-2'!$M$1+1))+1,(RANK(AB21,$AB$2:$AB$919,1)/('Guts-2'!$M$1+1))+1),"") -> 7.923076923 | AD21: =IFERROR(IF(Settings!$R$5="CBS",J21,IF(Settings!$R$5="NFBC",O21,MIN(AA21*0.75,IFERROR($O21,999),IFERROR($J21,999)))),"") -> 34 | AE21: =IFERROR(IF(Settings!$R$5="CBS",K21,IF(Settings!$R$5="NFBC",P21,MAX(AA21*1.33,IFERROR($P21,999),IFERROR($K21,999)))),"") -> 143 | AF21: 34 | AG21: 143 | AH21: =INDEX('Import (ADP)'!$C$2:$C$999,MATCH(A21, 'Import (ADP)'!$B$2:$B$999,0)) -> 22 | AI21: =IF('Name-Sort'!E22="",A22,"") -> Jose Alvarado | AJ21: =IFERROR(INDEX($AI$1:$AI$919,SMALL(IF($AI$1:$AI$919<>"",ROW($AI$1:$AI$919)),ROW(AI21))),"") -> Jose Alvarado
A22: Jose Alvarado | B22: alvarjo03 | C22: RP | E22: PHI | F22: 25 | G22: 594 | M22: 525.7 | N22: 605.57 | O22: 228 | P22: 707 | Q22: 575.09 | S22: 324 | V22: 445 | X22: =IFERROR(INDEX('Guts-2'!$K$1:$K$30,MATCH(E22,'Guts-2'!$J$1:$J$30,0)),TRUE) -> TRUE | Y22: =IFERROR(IF(OR(X22=FALSE,INDEX('Player Notes'!$I$3:$I$999,MATCH(A22,'Player Notes'!$A$3:$A$999,0),1)="Yes"),"",IFERROR(CHOOSE('Guts-2'!$D$27,R22,S22,T22,U22,V22,W22),"")),"") -> 445 | Z22: 443 | AA22: =IFERROR(IF(OR(X22=FALSE,INDEX('Player Notes'!$I$3:$I$999,MATCH(A22,'Player Notes'!$A$3:$A$999,0),1)="Yes"),"",IFERROR(CHOOSE('Guts-2'!$D$26,G22,H22,I22,L22,M22,N22,Q22,AH22),"")),"") -> 525.7 | AB22: =IFERROR(IF(Settings!$M$5="Mixed (Standard)",AA22,RANK(AA22,$AA$2:$AA$919,1)),"") -> 525.7 | AC22: =IFERROR(IF(Settings!$M$5="Mixed (Standard)",(RANK(AA22,$AA$2:$AA$919,1)/('Guts-2'!$M$1+1))+1,(RANK(AB22,$AB$2:$AB$919,1)/('Guts-2'!$M$1+1))+1),"") -> 42.84615385 | AD22: =IFERROR(IF(Settings!$R$5="CBS",J22,IF(Settings!$R$5="NFBC",O22,MIN(AA22*0.75,IFERROR($O22,999),IFERROR($J22,999)))),"") -> 228 | AE22: =IFERROR(IF(Settings!$R$5="CBS",K22,IF(Settings!$R$5="NFBC",P22,MAX(AA22*1.33,IFERROR($P22,999),IFERROR($K22,999)))),"") -> 999 | AF22: 228 | AG22: 999 | AH22: =INDEX('Import (ADP)'!$C$2:$C$999,MATCH(A22, 'Import (ADP)'!$B$2:$B$999,0)) ->  | AI22: =IF('Name-Sort'!E23="",A23,"") -> Yordan Alvarez | AJ22: =IFERROR(INDEX($AI$1:$AI$919,SMALL(IF($AI$1:$AI$919<>"",ROW($AI$1:$AI$919)),ROW(AI22))),"") -> Yordan Alvarez
A23: Yordan Alvarez | B23: alvaryo01 | C23: DH | D23: LF | E23: HOU | F23: 23 | G23: 94 | H23: 59 | I23: 72.1 | J23: 47 | K23: 107 | L23: 88 | M23: 81 | N23: 80.49 | O23: 47 | P23: 242 | Q23: 79.09833333 | R23: 53 | S23: 55 | T23: 73 | U23: 47 | V23: 58 | W23: 62 | X23: =IFERROR(INDEX('Guts-2'!$K$1:$K$30,MATCH(E23,'Guts-2'!$J$1:$J$30,0)),TRUE) -> TRUE | Y23: =IFERROR(IF(OR(X23=FALSE,INDEX('Player Notes'!$I$3:$I$999,MATCH(A23,'Player Notes'!$A$3:$A$999,0),1)="Yes"),"",IFERROR(CHOOSE('Guts-2'!$D$27,R23,S23,T23,U23,V23,W23),"")),"") -> 58 | Z23: 57 | AA23: =IFERROR(IF(OR(X23=FALSE,INDEX('Player Notes'!$I$3:$I$999,MATCH(A23,'Player Notes'!$A$3:$A$999,0),1)="Yes"),"",IFERROR(CHOOSE('Guts-2'!$D$26,G23,H23,I23,L23,M23,N23,Q23,AH23),"")),"") -> 81 | AB23: =IFERROR(IF(Settings!$M$5="Mixed (Standard)",AA23,RANK(AA23,$AA$2:$AA$919,1)),"") -> 81 | AC23: =IFERROR(IF(Settings!$M$5="Mixed (Standard)",(RANK(AA23,$AA$2:$AA$919,1)/('Guts-2'!$M$1+1))+1,(RANK(AB23,$AB$2:$AB$919,1)/('Guts-2'!$M$1+1))+1),"") -> 7.076923077 | AD23: =IFERROR(IF(Settings!$R$5="CBS",J23,IF(Settings!$R$5="NFBC",O23,MIN(AA23*0.75,IFERROR($O23,999),IFERROR($J23,999)))),"") -> 47 | AE23: =IFERROR(IF(Settings!$R$5="CBS",K23,IF(Settings!$R$5="NFBC",P23,MAX(AA23*1.33,IFERROR($P23,999),IFERROR($K23,999)))),"") -> 242 | AF23: 47 | AG23: 242 | AH23: =INDEX('Import (ADP)'!$C$2:$C$999,MATCH(A23, 'Import (ADP)'!$B$2:$B$999,0)) ->  | AI23: =IF('Name-Sort'!E24="",A24,"") -> Adbert Alzolay | AJ23: =IFERROR(INDEX($AI$1:$AI$919,SMALL(IF($AI$1:$AI$919<>"",ROW($AI$1:$AI$919)),ROW(AI23))),"") -> Adbert Alzolay
A24: Adbert Alzolay | B24: alzolad01 | C24: SP | E24: CHC | F24: 26 | G24: 342 | I24: 359.47 | J24: 90 | K24: 624 | M24: 347.5 | N24: 474.97 | O24: 265 | P24: 527 | Q24: 380.985 | V24: 374 | X24: =IFERROR(INDEX('Guts-2'!$K$1:$K$30,MATCH(E24,'Guts-2'!$J$1:$J$30,0)),TRUE) -> TRUE | Y24: =IFERROR(IF(OR(X24=FALSE,INDEX('Player Notes'!$I$3:$I$999,MATCH(A24,'Player Notes'!$A$3:$A$999,0),1)="Yes"),"",IFERROR(CHOOSE('Guts-2'!$D$27,R24,S24,T24,U24,V24,W24),"")),"") -> 374 | Z24: 373 | AA24: =IFERROR(IF(OR(X24=FALSE,INDEX('Player Notes'!$I$3:$I$999,MATCH(A24,'Player Notes'!$A$3:$A$999,0),1)="Yes"),"",IFERROR(CHOOSE('Guts-2'!$D$26,G24,H24,I24,L24,M24,N24,Q24,AH24),"")),"") -> 347.5 | AB24: =IFERROR(IF(Settings!$M$5="Mixed (Standard)",AA24,RANK(AA24,$AA$2:$AA$919,1)),"") -> 347.5 | AC24: =IFERROR(IF(Settings!$M$5="Mixed (Standard)",(RANK(AA24,$AA$2:$AA$919,1)/('Guts-2'!$M$1+1))+1,(RANK(AB24,$AB$2:$AB$919,1)/('Guts-2'!$M$1+1))+1),"") -> 27.92307692 | AD24: =IFERROR(IF(Settings!$R$5="CBS",J24,IF(Settings!$R$5="NFBC",O24,MIN(AA24*0.75,IFERROR($O24,999),IFERROR($J24,999)))),"") -> 90 | AE24: =IFERROR(IF(Settings!$R$5="CBS",K24,IF(Settings!$R$5="NFBC",P24,MAX(AA24*1.33,IFERROR($P24,999),IFERROR($K24,999)))),"") -> 624 | AF24: 90 | AG24: 624 | AH24: =INDEX('Import (ADP)'!$C$2:$C$999,MATCH(A24, 'Import (ADP)'!$B$2:$B$999,0)) ->  | AI24: =IF('Name-Sort'!E25="",A25,"") -> Brett Anderson | AJ24: =IFERROR(INDEX($AI$1:$AI$919,SMALL(IF($AI$1:$AI$919<>"",ROW($AI$1:$AI$919)),ROW(AI24))),"") -> Brett Anderson
A25: Brett Anderson | B25: anderbr04 | C25: SP | E25: MIL | F25: 33 | G25: 651 | M25: 642 | N25: 715.54 | O25: 339 | P25: 734 | Q25: 669.5133333 | V25: 666 | X25: =IFERROR(INDEX('Guts-2'!$K$1:$K$30,MATCH(E25,'Guts-2'!$J$1:$J$30,0)),TRUE) -> TRUE | Y25: =IFERROR(IF(OR(X25=FALSE,INDEX('Player Notes'!$I$3:$I$999,MATCH(A25,'Player Notes'!$A$3:$A$999,0),1)="Yes"),"",IFERROR(CHOOSE('Guts-2'!$D$27,R25,S25,T25,U25,V25,W25),"")),"") -> 666 | Z25: 604 | AA25: =IFERROR(IF(OR(X25=FALSE,INDEX('Player Notes'!$I$3:$I$999,MATCH(A25,'Player Notes'!$A$3:$A$999,0),1)="Yes"),"",IFERROR(CHOOSE('Guts-2'!$D$26,G25,H25,I25,L25,M25,N25,Q25,AH25),"")),"") -> 642 | AB25: =IFERROR(IF(Settings!$M$5="Mixed (Standard)",AA25,RANK(AA25,$AA$2:$AA$919,1)),"") -> 642 | AC25: =IFERROR(IF(Settings!$M$5="Mixed (Standard)",(RANK(AA25,$AA$2:$AA$919,1)/('Guts-2'!$M$1+1))+1,(RANK(AB25,$AB$2:$AB$919,1)/('Guts-2'!$M$1+1))+1),"") -> 50.92307692 | AD25: =IFERROR(IF(Settings!$R$5="CBS",J25,IF(Settings!$R$5="NFBC",O25,MIN(AA25*0.75,IFERROR($O25,999),IFERROR($J25,999)))),"") -> 339 | AE25: =IFERROR(IF(Settings!$R$5="CBS",K25,IF(Settings!$R$5="NFBC",P25,MAX(AA25*1.33,IFERROR($P25,999),IFERROR($K25,999)))),"") -> 999 | AF25: 339 | AG25: 999 | AH25: =INDEX('Import (ADP)'!$C$2:$C$999,MATCH(A25, 'Import (ADP)'!$B$2:$B$999,0)) ->  | AI25: =IF('Name-Sort'!E26="",A26,"") -> Brian Anderson | AJ25: =IFERROR(INDEX($AI$1:$AI$919,SMALL(IF($AI$1:$AI$919<>"",ROW($AI$1:$AI$919)),ROW(AI25))),"") -> Brian Anderson
A26: Brian Anderson | B26: anderbr06 | C26: 3B | D26: RF | E26: MIA | F26: 27 | G26: 701 | H26: 343 | I26: 210.45 | J26: 120 | K26: 279 | L26: 221 | M26: 258.4 | N26: 258.97 | O26: 168 | P26: 336 | Q26: 332.1366667 | R26: 203 | S26: 258 | T26: 202 | U26: 186 | V26: 205 | W26: 159 | X26: =IFERROR(INDEX('Guts-2'!$K$1:$K$30,MATCH(E26,'Guts-2'!$J$1:$J$30,0)),TRUE) -> TRUE | Y26: =IFERROR(IF(OR(X26=FALSE,INDEX('Player Notes'!$I$3:$I$999,MATCH(A26,'Player Notes'!$A$3:$A$999,0),1)="Yes"),"",IFERROR(CHOOSE('Guts-2'!$D$27,R26,S26,T26,U26,V26,W26),"")),"") -> 205 | Z26: 204 | AA26: =IFERROR(IF(OR(X26=FALSE,INDEX('Player Notes'!$I$3:$I$999,MATCH(A26,'Player Notes'!$A$3:$A$999,0),1)="Yes"),"",IFERROR(CHOOSE('Guts-2'!$D$26,G26,H26,I26,L26,M26,N26,Q26,AH26),"")),"") -> 258.4 | AB26: =IFERROR(IF(Settings!$M$5="Mixed (Standard)",AA26,RANK(AA26,$AA$2:$AA$919,1)),"") -> 258.4 | AC26: =IFERROR(IF(Settings!$M$5="Mixed (Standard)",(RANK(AA26,$AA$2:$AA$919,1)/('Guts-2'!$M$1+1))+1,(RANK(AB26,$AB$2:$AB$919,1)/('Guts-2'!$M$1+1))+1),"") -> 20.92307692 | AD26: =IFERROR(IF(Settings!$R$5="CBS",J26,IF(Settings!$R$5="NFBC",O26,MIN(AA26*0.75,IFERROR($O26,999),IFERROR($J26,999)))),"") -> 120 | AE26: =IFERROR(IF(Settings!$R$5="CBS",K26,IF(Settings!$R$5="NFBC",P26,MAX(AA26*1.33,IFERROR($P26,999),IFERROR($K26,999)))),"") -> 343.672 | AF26: 120 | AG26: 343.672 | AH26: =INDEX('Import (ADP)'!$C$2:$C$999,MATCH(A26, 'Import (ADP)'!$B$2:$B$999,0)) ->  | AI26: =IF('Name-Sort'!E27="",A27,"") -> Ian Anderson | AJ26: =IFERROR(INDEX($AI$1:$AI$919,SMALL(IF($AI$1:$AI$919<>"",ROW($AI$1:$AI$919)),ROW(AI26))),"") -> Ian Anderson
A27: Ian Anderson | B27: anderia01 | C27: SP | E27: ATL | F27: 22 | G27: 80 | H27: 108 | I27: 96.62 | J27: 65 | K27: 133 | L27: 138 | M27: 94.2 | N27: 100.69 | O27: 48 | P27: 149 | Q27: 102.9183333 | R27: 162 | S27: 92 | T27: 153 | U27: 178 | V27: 111 | W27: 179 | X27: =IFERROR(INDEX('Guts-2'!$K$1:$K$30,MATCH(E27,'Guts-2'!$J$1:$J$30,0)),TRUE) -> TRUE | Y27: =IFERROR(IF(OR(X27=FALSE,INDEX('Player Notes'!$I$3:$I$999,MATCH(A27,'Player Notes'!$A$3:$A$999,0),1)="Yes"),"",IFERROR(CHOOSE('Guts-2'!$D$27,R27,S27,T27,U27,V27,W27),"")),"") -> 111 | Z27: 110 | AA27: =IFERROR(IF(OR(X27=FALSE,INDEX('Player Notes'!$I$3:$I$999,MATCH(A27,'Player Notes'!$A$3:$A$999,0),1)="Yes"),"",IFERROR(CHOOSE('Guts-2'!$D$26,G27,H27,I27,L27,M27,N27,Q27,AH27),"")),"") -> 94.2 | AB27: =IFERROR(IF(Settings!$M$5="Mixed (Standard)",AA27,RANK(AA27,$AA$2:$AA$919,1)),"") -> 94.2 | AC27: =IFERROR(IF(Settings!$M$5="Mixed (Standard)",(RANK(AA27,$AA$2:$AA$919,1)/('Guts-2'!$M$1+1))+1,(RANK(AB27,$AB$2:$AB$919,1)/('Guts-2'!$M$1+1))+1),"") -> 8.076923077 | AD27: =IFERROR(IF(Settings!$R$5="CBS",J27,IF(Settings!$R$5="NFBC",O27,MIN(AA27*0.75,IFERROR($O27,999),IFERROR($J27,999)))),"") -> 48 | AE27: =IFERROR(IF(Settings!$R$5="CBS",K27,IF(Settings!$R$5="NFBC",P27,MAX(AA27*1.33,IFERROR($P27,999),IFERROR($K27,999)))),"") -> 149 | AF27: 48 | AG27: 149 | AH27: =INDEX('Import (ADP)'!$C$2:$C$999,MATCH(A27, 'Import (ADP)'!$B$2:$B$999,0)) ->  | AI27: =IF('Name-Sort'!E28="",A28,"") -> Nick Anderson | AJ27: =IFERROR(INDEX($AI$1:$AI$919,SMALL(IF($AI$1:$AI$919<>"",ROW($AI$1:$AI$919)),ROW(AI27))),"") -> Nick Anderson
A28: Nick Anderson | B28: anderni01 | C28: RP | E28: TB | F28: 30 | G28: 213 | H28: 136 | I28: 171.57 | J28: 105 | K28: 232 | L28: 144 | M28: 152.4 | N28: 170.55 | O28: 103 | P28: 387 | Q28: 164.5866667 | R28: 163 | S28: 228 | T28: 150 | U28: 154 | V28: 160 | W28: 143 | X28: =IFERROR(INDEX('Guts-2'!$K$1:$K$30,MATCH(E28,'Guts-2'!$J$1:$J$30,0)),TRUE) -> TRUE | Y28: =IFERROR(IF(OR(X28=FALSE,INDEX('Player Notes'!$I$3:$I$999,MATCH(A28,'Player Notes'!$A$3:$A$999,0),1)="Yes"),"",IFERROR(CHOOSE('Guts-2'!$D$27,R28,S28,T28,U28,V28,W28),"")),"") -> 160 | Z28: 159 | AA28: =IFERROR(IF(OR(X28=FALSE,INDEX('Player Notes'!$I$3:$I$999,MATCH(A28,'Player Notes'!$A$3:$A$999,0),1)="Yes"),"",IFERROR(CHOOSE('Guts-2'!$D$26,G28,H28,I28,L28,M28,N28,Q28,AH28),"")),"") -> 152.4 | AB28: =IFERROR(IF(Settings!$M$5="Mixed (Standard)",AA28,RANK(AA28,$AA$2:$AA$919,1)),"") -> 152.4 | AC28: =IFERROR(IF(Settings!$M$5="Mixed (Standard)",(RANK(AA28,$AA$2:$AA$919,1)/('Guts-2'!$M$1+1))+1,(RANK(AB28,$AB$2:$AB$919,1)/('Guts-2'!$M$1+1))+1),"") -> 12.61538462 | AD28: =IFERROR(IF(Settings!$R$5="CBS",J28,IF(Settings!$R$5="NFBC",O28,MIN(AA28*0.75,IFERROR($O28,999),IFERROR($J28,999)))),"") -> 103 | AE28: =IFERROR(IF(Settings!$R$5="CBS",K28,IF(Settings!$R$5="NFBC",P28,MAX(AA28*1.33,IFERROR($P28,999),IFERROR($K28,999)))),"") -> 387 | AF28: 103 | AG28: 387 | AH28: =INDEX('Import (ADP)'!$C$2:$C$999,MATCH(A28, 'Import (ADP)'!$B$2:$B$999,0)) ->  | AI28: =IF('Name-Sort'!E29="",A29,"") -> Tim Anderson | AJ28: =IFERROR(INDEX($AI$1:$AI$919,SMALL(IF($AI$1:$AI$919<>"",ROW($AI$1:$AI$919)),ROW(AI28))),"") -> Tim Anderson
A29: Tim Anderson | B29: anderti01 | C29: SS | E29: CHW | F29: 27 | G29: 51 | H29: 44 | I29: 50.5 | J29: 28 | K29: 80 | L29: 49 | M29: 48.4 | N29: 42.18 | O29: 19 | P29: 61 | Q29: 47.51333333 | R29: 23 | S29: 42 | T29: 44 | U29: 48 | V29: 40 | W29: 35 | X29: =IFERROR(INDEX('Guts-2'!$K$1:$K$30,MATCH(E29,'Guts-2'!$J$1:$J$30,0)),TRUE) -> TRUE | Y29: =IFERROR(IF(OR(X29=FALSE,INDEX('Player Notes'!$I$3:$I$999,MATCH(A29,'Player Notes'!$A$3:$A$999,0),1)="Yes"),"",IFERROR(CHOOSE('Guts-2'!$D$27,R29,S29,T29,U29,V29,W29),"")),"") -> 40 | Z29: 39 | AA29: =IFERROR(IF(OR(X29=FALSE,INDEX('Player Notes'!$I$3:$I$999,MATCH(A29,'Player Notes'!$A$3:$A$999,0),1)="Yes"),"",IFERROR(CHOOSE('Guts-2'!$D$26,G29,H29,I29,L29,M29,N29,Q29,AH29),"")),"") -> 48.4 | AB29: =IFERROR(IF(Settings!$M$5="Mixed (Standard)",AA29,RANK(AA29,$AA$2:$AA$919,1)),"") -> 48.4 | AC29: =IFERROR(IF(Settings!$M$5="Mixed (Standard)",(RANK(AA29,$AA$2:$AA$919,1)/('Guts-2'!$M$1+1))+1,(RANK(AB29,$AB$2:$AB$919,1)/('Guts-2'!$M$1+1))+1),"") -> 4.615384615 | AD29: =IFERROR(IF(Settings!$R$5="CBS",J29,IF(Settings!$R$5="NFBC",O29,MIN(AA29*0.75,IFERROR($O29,999),IFERROR($J29,999)))),"") -> 19 | AE29: =IFERROR(IF(Settings!$R$5="CBS",K29,IF(Settings!$R$5="NFBC",P29,MAX(AA29*1.33,IFERROR($P29,999),IFERROR($K29,999)))),"") -> 80 | AF29: 19 | AG29: 80 | AH29: =INDEX('Import (ADP)'!$C$2:$C$999,MATCH(A29, 'Import (ADP)'!$B$2:$B$999,0)) ->  | AI29: =IF('Name-Sort'!E30="",A30,"") -> Elvis Andrus | AJ29: =IFERROR(INDEX($AI$1:$AI$919,SMALL(IF($AI$1:$AI$919<>"",ROW($AI$1:$AI$919)),ROW(AI29))),"") -> Elvis Andrus
A30: Elvis Andrus | B30: andruel01 | C30: SS | E30: OAK | F30: 32 | G30: 381 | H30: 385 | I30: 245.39 | J30: 154 | K30: 322 | L30: 272 | M30: 345.8 | N30: 358.79 | O30: 183 | P30: 410 | Q30: 331.33 | R30: 264 | S30: 291 | T30: 250 | U30: 299 | V30: 274 | W30: 292 | X30: =IFERROR(INDEX('Guts-2'!$K$1:$K$30,MATCH(E30,'Guts-2'!$J$1:$J$30,0)),TRUE) -> TRUE | Y30: =IFERROR(IF(OR(X30=FALSE,INDEX('Player Notes'!$I$3:$I$999,MATCH(A30,'Player Notes'!$A$3:$A$999,0),1)="Yes"),"",IFERROR(CHOOSE('Guts-2'!$D$27,R30,S30,T30,U30,V30,W30),"")),"") -> 274 | Z30: 273 | AA30: =IFERROR(IF(OR(X30=FALSE,INDEX('Player Notes'!$I$3:$I$999,MATCH(A30,'Player Notes'!$A$3:$A$999,0),1)="Yes"),"",IFERROR(CHOOSE('Guts-2'!$D$26,G30,H30,I30,L30,M30,N30,Q30,AH30),"")),"") -> 345.8 | AB30: =IFERROR(IF(Settings!$M$5="Mixed (Standard)",AA30,RANK(AA30,$AA$2:$AA$919,1)),"") -> 345.8 | AC30: =IFERROR(IF(Settings!$M$5="Mixed (Standard)",(RANK(AA30,$AA$2:$AA$919,1)/('Guts-2'!$M$1+1))+1,(RANK(AB30,$AB$2:$AB$919,1)/('Guts-2'!$M$1+1))+1),"") -> 27.69230769 | AD30: =IFERROR(IF(Settings!$R$5="CBS",J30,IF(Settings!$R$5="NFBC",O30,MIN(AA30*0.75,IFERROR($O30,999),IFERROR($J30,999)))),"") -> 154 | AE30: =IFERROR(IF(Settings!$R$5="CBS",K30,IF(Settings!$R$5="NFBC",P30,MAX(AA30*1.33,IFERROR($P30,999),IFERROR($K30,999)))),"") -> 459.914 | AF30: 154 | AG30: 459.914 | AH30: =INDEX('Import (ADP)'!$C$2:$C$999,MATCH(A30, 'Import (ADP)'!$B$2:$B$999,0)) ->  | AI30: =IF('Name-Sort'!E31="",A31,"") -> Miguel Andujar | AJ30: =IFERROR(INDEX($AI$1:$AI$919,SMALL(IF($AI$1:$AI$919<>"",ROW($AI$1:$AI$919)),ROW(AI30))),"") -> Miguel Andujar
A31: Miguel Andujar | B31: andujmi01 | C31: OF | D31: LF | E31: NYY | F31: 26 | G31: 479 | L31: 371 | M31: 456.3 | N31: 678.29 | O31: 148 | P31: 729 | Q31: 496.1475 | V31: 731 | X31: =IFERROR(INDEX('Guts-2'!$K$1:$K$30,MATCH(E31,'Guts-2'!$J$1:$J$30,0)),TRUE) -> TRUE | Y31: =IFERROR(IF(OR(X31=FALSE,INDEX('Player Notes'!$I$3:$I$999,MATCH(A31,'Player Notes'!$A$3:$A$999,0),1)="Yes"),"",IFERROR(CHOOSE('Guts-2'!$D$27,R31,S31,T31,U31,V31,W31),"")),"") -> 731 | Z31: 644 | AA31: =IFERROR(IF(OR(X31=FALSE,INDEX('Player Notes'!$I$3:$I$999,MATCH(A31,'Player Notes'!$A$3:$A$999,0),1)="Yes"),"",IFERROR(CHOOSE('Guts-2'!$D$26,G31,H31,I31,L31,M31,N31,Q31,AH31),"")),"") -> 456.3 | AB31: =IFERROR(IF(Settings!$M$5="Mixed (Standard)",AA31,RANK(AA31,$AA$2:$AA$919,1)),"") -> 456.3 | AC31: =IFERROR(IF(Settings!$M$5="Mixed (Standard)",(RANK(AA31,$AA$2:$AA$919,1)/('Guts-2'!$M$1+1))+1,(RANK(AB31,$AB$2:$AB$919,1)/('Guts-2'!$M$1+1))+1),"") -> 38.38461538 | AD31: =IFERROR(IF(Settings!$R$5="CBS",J31,IF(Settings!$R$5="NFBC",O31,MIN(AA31*0.75,IFERROR($O31,999),IFERROR($J31,999)))),"") -> 148 | AE31: =IFERROR(IF(Settings!$R$5="CBS",K31,IF(Settings!$R$5="NFBC",P31,MAX(AA31*1.33,IFERROR($P31,999),IFERROR($K31,999)))),"") -> 999 | AF31: 148 | AG31: 999 | AH31: =INDEX('Import (ADP)'!$C$2:$C$999,MATCH(A31, 'Import (ADP)'!$B$2:$B$999,0)) ->  | AI31: =IF('Name-Sort'!E32="",A32,"") -> Tejay Antone | AJ31: =IFERROR(INDEX($AI$1:$AI$919,SMALL(IF($AI$1:$AI$919<>"",ROW($AI$1:$AI$919)),ROW(AI31))),"") -> Tejay Antone
... 38 more rows

Sheet Name-Sort (hidden)
B1: =IFERROR(INDEX($A$1:$A$899,SMALL(IF($A$1:$A$899<>"",ROW($A$1:$A$899)),ROW(A1))),"") -> Ronald Acuna | C1: ORDER | D1: PLAYERNAME | E1: Team | F1: Original Pos | H1: Pos to Use | I1: =IF('Your Roto Draft'!$P$5="Show All Positions",1,IF(OR('Your Roto Draft'!$P$5="Only Show: C",'Your Roto Draft'!$P$5="Only Show: 1B",'Your Roto Draft'!$P$5="Only Show: 2B",'Your Roto Draft'!$P$5="Only Show: 3B",'Your Roto Draft'!$P$5="Only Show: SS",'Your Roto Draft'!$P$5="Only Show: OF",'Your Roto Draft'!$P$5="Only Show: SP",'Your Roto Draft'!$P$5="Only Show: RP",'Your Roto Draft'!$P$5="Only Show: DH",'Your Roto Draft'!$P$5="Only Show: LF",'Your Roto Draft'!$P$5="Only Show: RF",'Your Roto Draft'!$P$5="Only Show: CF"),2,IF('Your Roto Draft'!$P$5="Only Show: CI",3,IF('Your Roto Draft'!$P$5="Only Show: MI",4,IF('Your Roto Draft'!$P$5="Only Show: IF",5,IF('Your Roto Draft'!$P$5="Only Show: P",6,IF('Your Roto Draft'!$P$5="Only Show: Hitters",7,IF('Your Roto Draft'!$P$5="Only Show: Pitchers",8,"")))))))) -> 1 | J1: Show Team? | K1: Drafted | L1: Show or No | M1: ADP | N1: WERTH | O1: Expert Ranking | P1: ='Your Roto Draft'!P10 -> AVG | Q1: ='Your Roto Draft'!Q10 -> HR | R1: ='Your Roto Draft'!R10 -> R | S1: ='Your Roto Draft'!S10 -> RBI | T1: ='Your Roto Draft'!T10 -> SB | U1: ='Your Roto Draft'!U10 ->  | V1: ='Your Roto Draft'!V10 ->  | W1: ='Your Roto Draft'!W10 ->  | X1: ='Your Roto Draft'!X10 ->  | Y1: ='Your Roto Draft'!Y10 ->  | Z1: ='Your Roto Draft'!Z10 ->  | AA1: ='Your Roto Draft'!AA10 ->  | AB1: ='Your Roto Draft'!P9 -> W | AC1: ='Your Roto Draft'!Q9 -> SV | AD1: ='Your Roto Draft'!R9 -> K | AE1: ='Your Roto Draft'!S9 -> ERA | AF1: ='Your Roto Draft'!T9 -> WHIP | AG1: ='Your Roto Draft'!U9 ->  | AH1: ='Your Roto Draft'!V9 ->  | AI1: ='Your Roto Draft'!W9 ->  | AJ1: ='Your Roto Draft'!X9 ->  | AK1: ='Your Roto Draft'!Y9 ->  | AL1: ='Your Roto Draft'!Z9 ->  | AM1: ='Your Roto Draft'!AA9 ->  | AN1: Pos Adj WERTH | AP1: =IFERROR(INDEX($AO$1:$AO$899,SMALL(IF($AO$1:$AO$899<>"",ROW($AO$1:$AO$899)),ROW(AO1))),"") -> Ronald Acuna
A2: =IFERROR(IF(INDEX($K$1:$K$982,MATCH(ROW($A1),$C$1:$C$982,0),1)=FALSE,INDEX($D$1:$D$982,MATCH(ROW($A1),$C$1:$C$982,0),1),""),"") -> Ronald Acuna | B2: =IFERROR(INDEX($A$1:$A$899,SMALL(IF($A$1:$A$899<>"",ROW($A$1:$A$899)),ROW(A2))),"") -> Fernando Tatis Jr. | C2: =IFERROR(IF(L2=FALSE,"",CHOOSE(MATCH(RIGHT('Your Roto Draft'!$P$4,LEN('Your Roto Draft'!$P$4)-8),$M$1:$AN$1,0),1+SUMPRODUCT(($L$2:$L$900=TRUE)*($M$2:$M$900<M2))+COUNTIFS($L$2:L2,L2,$M$2:M2,M2)-1,1+SUMPRODUCT(($L$2:$L$900=TRUE)*($N$2:$N$900>N2))+COUNTIFS($L$2:L2,L2,$N$2:N2,N2)-1,1+SUMPRODUCT(($L$2:$L$900=TRUE)*($O$2:$O$900<O2))+COUNTIFS($L$2:L2,L2,$O$2:O2,O2)-1,1+SUMPRODUCT(($L$2:$L$900=TRUE)*($P$2:$P$900>P2))+COUNTIFS($L$2:L2,L2,$P$2:P2,P2)-1,1+SUMPRODUCT(($L$2:$L$900=TRUE)*($Q$2:$Q$900>Q2))+COUNTIFS($L$2:L2,L2,$Q$2:Q2,Q2)-1,1+SUMPRODUCT(($L$2:$L$900=TRUE)*($R$2:$R$900>R2))+COUNTIFS($L$2:L2,L2,$R$2:R2,R2)-1,1+SUMPRODUCT(($L$2:$L$900=TRUE)*($S$2:$S$900>S2))+COUNTIFS($L$2:L2,L2,$S$2:S2,S2)-1,1+SUMPRODUCT(($L$2:$L$900=TRUE)*($T$2:$T$900>T2))+COUNTIFS($L$2:L2,L2,$T$2:T2,T2)-1,1+SUMPRODUCT(($L$2:$L$900=TRUE)*($U$2:$U$900>U2))+COUNTIFS($L$2:L2,L2,$U$2:U2,U2)-1,1+SUMPRODUCT(($L$2:$L$900=TRUE)*($V$2:$V$900>V2))+COUNTIFS($L$2:L2,L2,$V$2:V2,V2)-1,1+SUMPRODUCT(($L$2:$L$900=TRUE)*($W$2:$W$900>W2))+COUNTIFS($L$2:L2,L2,$W$2:W2,W2)-1,1+SUMPRODUCT(($L$2:$L$900=TRUE)*($X$2:$X$900>X2))+COUNTIFS($L$2:L2,L2,$X$2:X2,X2)-1,1+SUMPRODUCT(($L$2:$L$900=TRUE)*($Y$2:$Y$900>Y2))+COUNTIFS($L$2:L2,L2,$Y$2:Y2,Y2)-1,1+SUMPRODUCT(($L$2:$L$900=TRUE)*($Z$2:$Z$900>Z2))+COUNTIFS($L$2:L2,L2,$Z$2:Z2,Z2)-1,1+SUMPRODUCT(($L$2:$L$900=TRUE)*($AA$2:$AA$900>AA2))+COUNTIFS($L$2:L2,L2,$AA$2:AA2,AA2)-1,1+SUMPRODUCT(($L$2:$L$900=TRUE)*($AB$2:$AB$900>AB2))+COUNTIFS($L$2:L2,L2,$AB$2:AB2,AB2)-1,1+SUMPRODUCT(($L$2:$L$900=TRUE)*($AC$2:$AC$900>AC2))+COUNTIFS($L$2:L2,L2,$AC$2:AC2,AC2)-1,1+SUMPRODUCT(($L$2:$L$900=TRUE)*($AD$2:$AD$900>AD2))+COUNTIFS($L$2:L2,L2,$AD$2:AD2,AD2)-1,1+SUMPRODUCT(($L$2:$L$900=TRUE)*($AE$2:$AE$900>AE2))+COUNTIFS($L$2:L2,L2,$AE$2:AE2,AE2)-1,1+SUMPRODUCT(($L$2:$L$900=TRUE)*($AF$2:$AF$900>AF2))+COUNTIFS($L$2:L2,L2,$AF$2:AF2,AF2)-1,1+SUMPRODUCT(($L$2:$L$900=TRUE)*($AG$2:$AG$900>AG2))+COUNTIFS($L$2:L2,L2,$AG$2:AG2,AG2)-1,1+SUMPRODUCT(($L$2:$L$900=TRUE)*($AH$2:$AH$900>AH2))+COUNTIFS($L$2:L2,L2,$AH$2:AH2,AH2)-1,1+SUMPRODUCT(($L$2:$L$900=TRUE)*($AI$2:$AI$900>AI2))+COUNTIFS($L$2:L2,L2,$AI$2:AI2,AI2)-1,1+SUMPRODUCT(($L$2:$L$900=TRUE)*($AJ$2:$AJ$900>AJ2))+COUNTIFS($L$2:L2,L2,$AJ$2:AJ2,AJ2)-1,1+SUMPRODUCT(($L$2:$L$900=TRUE)*($AK$2:$AK$900>AK2))+COUNTIFS($L$2:L2,L2,$AK$2:AK2,AK2)-1,1+SUMPRODUCT(($L$2:$L$900=TRUE)*($AL$2:$AL$900>AL2))+COUNTIFS($L$2:L2,L2,$AL$2:AL2,AL2)-1,1+SUMPRODUCT(($L$2:$L$900=TRUE)*($AM$2:$AM$900>AM2))+COUNTIFS($L$2:L2,L2,$AM$2:AM2,AM2)-1,1+SUMPRODUCT(($L$2:$L$900=TRUE)*($AN$2:$AN$900>AN2))+COUNTIFS($L$2:L2,L2,$AN$2:AN2,AN2)-1)),"") -> 677 | D2: CJ Abrams | E2: =IFERROR(INDEX('Draft Log'!$D$4:$D$555,MATCH(D2,'Draft Log'!$C$4:$C$555,0)),"") ->  | F2: =IFERROR(INDEX('ADP-Rank'!$C$2:$C$790,MATCH(D2,'ADP-Rank'!$A$2:$A$790,0)),"") -> SS | H2: =IFERROR(IF(I2="",F2,IF(I2<>F2,I2,F2)),"") -> SS | I2: =IF(AND(F2="OF",'Guts-2'!$M$9=0),IF(MAX(Pre!J2:L2)=Pre!J2,"LF",IF(MAX(Pre!J2:L2)=Pre!K2,"CF",IF(MAX(Pre!J2:L2)=Pre!L2,"RF","LF"))),"") ->  | J2: =IFERROR(INDEX('ADP-Rank'!$X$2:$X$790,MATCH(D2,'ADP-Rank'!$A$2:$A$790,0)),TRUE) -> TRUE | K2: =IF(E2="",FALSE,TRUE) -> FALSE | L2: =IF(J2=FALSE,FALSE,IF(AND('Your Roto Draft'!$P$6="Hide Drafted Players",K2=TRUE),FALSE,CHOOSE($I$1,TRUE,OR(RIGHT('Your Roto Draft'!$P$5,LEN('Your Roto Draft'!$P$5)-11)=H2,IF(RIGHT('Your Roto Draft'!$P$5,LEN('Your Roto Draft'!$P$5)-11)<>"C",NOT(ISERROR(SEARCH(RIGHT('Your Roto Draft'!$P$5,LEN('Your Roto Draft'!$P$5)-11),Pre!$CB2))),AND(NOT(ISERROR(SEARCH(RIGHT('Your Roto Draft'!$P$5,LEN('Your Roto Draft'!$P$5)-11),Pre!$CB2))),ISERROR(SEARCH("CF",Pre!$CB2)))),RIGHT('Your Roto Draft'!$P$5,LEN('Your Roto Draft'!$P$5)-11)=Pre!BP2),OR(H2="1B",H2="3B",ISNUMBER(SEARCH("1B",Pre!$CB2)),ISNUMBER(SEARCH("3B",Pre!$CB2))),OR(H2="2B",H2="SS",ISNUMBER(SEARCH("2B",Pre!$CB2)),ISNUMBER(SEARCH("SS",Pre!$CB2))),OR(H2="1B",H2="3B",H2="2B",H2="SS",ISNUMBER(SEARCH("1B",Pre!$CB2)),ISNUMBER(SEARCH("3B",Pre!$CB2)),ISNUMBER(SEARCH("2B",Pre!$CB2)),ISNUMBER(SEARCH("SS",Pre!$CB2))),OR(H2="SP",H2="RP",ISNUMBER(SEARCH("SP",Pre!$CB2)),ISNUMBER(SEARCH("RP",Pre!$CB2))),AND(H2<>"RP",H2<>"SP",NOT(ISNUMBER(SEARCH("RP",Pre!$CB2))),NOT(ISNUMBER(SEARCH("SP",Pre!$CB2)))),OR(H2="SP",H2="RP",ISNUMBER(SEARCH("SP",Pre!$CB2)),ISNUMBER(SEARCH("RP",Pre!$CB2)))))) -> TRUE | M2: =IF('ADP-Rank'!AB2="",9999,'ADP-Rank'!AB2) -> 690.7 | N2: =IF(LEFT($D2,15)="Unlisted Player",-1001,'All-WERTH'!AQ2) -> -1000 | O2: =IF('ADP-Rank'!Z2="",9999,'ADP-Rank'!Z2) -> 9999 | P2: =IF(LEFT($D2,15)="Unlisted Player",-1001,IF('All-WERTH'!S2="",-1000,'All-WERTH'!S2)) -> -1000 | Q2: =IF(LEFT($D2,15)="Unlisted Player",-1001,IF('All-WERTH'!T2="",-1000,'All-WERTH'!T2)) -> -1000 | R2: =IF(LEFT($D2,15)="Unlisted Player",-1001,IF('All-WERTH'!U2="",-1000,'All-WERTH'!U2)) -> -1000 | S2: =IF(LEFT($D2,15)="Unlisted Player",-1001,IF('All-WERTH'!V2="",-1000,'All-WERTH'!V2)) -> -1000 | T2: =IF(LEFT($D2,15)="Unlisted Player",-1001,IF('All-WERTH'!W2="",-1000,'All-WERTH'!W2)) -> -1000 | U2: =IF(LEFT($D2,15)="Unlisted Player",-1001,IF('All-WERTH'!X2="",-1000,'All-WERTH'!X2)) -> -1000 | V2: =IF(LEFT($D2,15)="Unlisted Player",-1001,IF('All-WERTH'!Y2="",-1000,'All-WERTH'!Y2)) -> -1000 | W2: =IF(LEFT($D2,15)="Unlisted Player",-1001,IF('All-WERTH'!Z2="",-1000,'All-WERTH'!Z2)) -> -1000 | X2: =IF(LEFT($D2,15)="Unlisted Player",-1001,IF('All-WERTH'!AA2="",-1000,'All-WERTH'!AA2)) -> -1000 | Y2: =IF(LEFT($D2,15)="Unlisted Player",-1001,IF('All-WERTH'!AB2="",-1000,'All-WERTH'!AB2)) -> -1000 | Z2: =IF(LEFT($D2,15)="Unlisted Player",-1001,IF('All-WERTH'!AC2="",-1000,'All-WERTH'!AC2)) -> -1000 | AA2: =IF(LEFT($D2,15)="Unlisted Player",-1001,IF('All-WERTH'!AD2="",-1000,'All-WERTH'!AD2)) -> -1000 | AB2: =IF(LEFT($D2,15)="Unlisted Player",-1001,IF('All-WERTH'!AE2="",-1000,'All-WERTH'!AE2)) -> -1000 | AC2: =IF(LEFT($D2,15)="Unlisted Player",-1001,IF('All-WERTH'!AF2="",-1000,'All-WERTH'!AF2)) -> -1000 | AD2: =IF(LEFT($D2,15)="Unlisted Player",-1001,IF('All-WERTH'!AG2="",-1000,'All-WERTH'!AG2)) -> -1000 | AE2: =IF(LEFT($D2,15)="Unlisted Player",-1001,IF('All-WERTH'!AH2="",-1000,'All-WERTH'!AH2)) -> -1000 | AF2: =IF(LEFT($D2,15)="Unlisted Player",-1001,IF('All-WERTH'!AI2="",-1000,'All-WERTH'!AI2)) -> -1000 | AG2: =IF(LEFT($D2,15)="Unlisted Player",-1001,IF('All-WERTH'!AJ2="",-1000,'All-WERTH'!AJ2)) -> -1000 | AH2: =IF(LEFT($D2,15)="Unlisted Player",-1001,IF('All-WERTH'!AK2="",-1000,'All-WERTH'!AK2)) -> -1000 | AI2: =IF(LEFT($D2,15)="Unlisted Player",-1001,IF('All-WERTH'!AL2="",-1000,'All-WERTH'!AL2)) -> -1000 | AJ2: =IF(LEFT($D2,15)="Unlisted Player",-1001,IF('All-WERTH'!AM2="",-1000,'All-WERTH'!AM2)) -> -1000 | AK2: =IF(LEFT($D2,15)="Unlisted Player",-1001,IF('All-WERTH'!AN2="",-1000,'All-WERTH'!AN2)) -> -1000 | AL2: =IF(LEFT($D2,15)="Unlisted Player",-1001,IF('All-WERTH'!AO2="",-1000,'All-WERTH'!AO2)) -> -1000 | AM2: =IF(LEFT($D2,15)="Unlisted Player",-1001,IF('All-WERTH'!AP2="",-1000,'All-WERTH'!AP2)) -> -1000 | AN2: =IF(LEFT($D2,15)="Unlisted Player",-1001,'All-WERTH'!AT2) -> -997.3545956 | AO2: =IF(ISERROR(VLOOKUP($B1,Keepers!$C$2:$D$450,2,FALSE)),B1,"") -> Ronald Acuna | AP2: =IFERROR(INDEX($AO$1:$AO$899,SMALL(IF($AO$1:$AO$899<>"",ROW($AO$1:$AO$899)),ROW(AO2))),"") -> Fernando Tatis Jr.
A3: Fernando Tatis Jr. | B3: =IFERROR(INDEX($A$1:$A$899,SMALL(IF($A$1:$A$899<>"",ROW($A$1:$A$899)),ROW(A3))),"") -> Mookie Betts | C3: =IFERROR(IF(L3=FALSE,"",CHOOSE(MATCH(RIGHT('Your Roto Draft'!$P$4,LEN('Your Roto Draft'!$P$4)-8),$M$1:$AN$1,0),1+SUMPRODUCT(($L$2:$L$900=TRUE)*($M$2:$M$900<M3))+COUNTIFS($L$2:L3,L3,$M$2:M3,M3)-1,1+SUMPRODUCT(($L$2:$L$900=TRUE)*($N$2:$N$900>N3))+COUNTIFS($L$2:L3,L3,$N$2:N3,N3)-1,1+SUMPRODUCT(($L$2:$L$900=TRUE)*($O$2:$O$900<O3))+COUNTIFS($L$2:L3,L3,$O$2:O3,O3)-1,1+SUMPRODUCT(($L$2:$L$900=TRUE)*($P$2:$P$900>P3))+COUNTIFS($L$2:L3,L3,$P$2:P3,P3)-1,1+SUMPRODUCT(($L$2:$L$900=TRUE)*($Q$2:$Q$900>Q3))+COUNTIFS($L$2:L3,L3,$Q$2:Q3,Q3)-1,1+SUMPRODUCT(($L$2:$L$900=TRUE)*($R$2:$R$900>R3))+COUNTIFS($L$2:L3,L3,$R$2:R3,R3)-1,1+SUMPRODUCT(($L$2:$L$900=TRUE)*($S$2:$S$900>S3))+COUNTIFS($L$2:L3,L3,$S$2:S3,S3)-1,1+SUMPRODUCT(($L$2:$L$900=TRUE)*($T$2:$T$900>T3))+COUNTIFS($L$2:L3,L3,$T$2:T3,T3)-1,1+SUMPRODUCT(($L$2:$L$900=TRUE)*($U$2:$U$900>U3))+COUNTIFS($L$2:L3,L3,$U$2:U3,U3)-1,1+SUMPRODUCT(($L$2:$L$900=TRUE)*($V$2:$V$900>V3))+COUNTIFS($L$2:L3,L3,$V$2:V3,V3)-1,1+SUMPRODUCT(($L$2:$L$900=TRUE)*($W$2:$W$900>W3))+COUNTIFS($L$2:L3,L3,$W$2:W3,W3)-1,1+SUMPRODUCT(($L$2:$L$900=TRUE)*($X$2:$X$900>X3))+COUNTIFS($L$2:L3,L3,$X$2:X3,X3)-1,1+SUMPRODUCT(($L$2:$L$900=TRUE)*($Y$2:$Y$900>Y3))+COUNTIFS($L$2:L3,L3,$Y$2:Y3,Y3)-1,1+SUMPRODUCT(($L$2:$L$900=TRUE)*($Z$2:$Z$900>Z3))+COUNTIFS($L$2:L3,L3,$Z$2:Z3,Z3)-1,1+SUMPRODUCT(($L$2:$L$900=TRUE)*($AA$2:$AA$900>AA3))+COUNTIFS($L$2:L3,L3,$AA$2:AA3,AA3)-1,1+SUMPRODUCT(($L$2:$L$900=TRUE)*($AB$2:$AB$900>AB3))+COUNTIFS($L$2:L3,L3,$AB$2:AB3,AB3)-1,1+SUMPRODUCT(($L$2:$L$900=TRUE)*($AC$2:$AC$900>AC3))+COUNTIFS($L$2:L3,L3,$AC$2:AC3,AC3)-1,1+SUMPRODUCT(($L$2:$L$900=TRUE)*($AD$2:$AD$900>AD3))+COUNTIFS($L$2:L3,L3,$AD$2:AD3,AD3)-1,1+SUMPRODUCT(($L$2:$L$900=TRUE)*($AE$2:$AE$900>AE3))+COUNTIFS($L$2:L3,L3,$AE$2:AE3,AE3)-1,1+SUMPRODUCT(($L$2:$L$900=TRUE)*($AF$2:$AF$900>AF3))+COUNTIFS($L$2:L3,L3,$AF$2:AF3,AF3)-1,1+SUMPRODUCT(($L$2:$L$900=TRUE)*($AG$2:$AG$900>AG3))+COUNTIFS($L$2:L3,L3,$AG$2:AG3,AG3)-1,1+SUMPRODUCT(($L$2:$L$900=TRUE)*($AH$2:$AH$900>AH3))+COUNTIFS($L$2:L3,L3,$AH$2:AH3,AH3)-1,1+SUMPRODUCT(($L$2:$L$900=TRUE)*($AI$2:$AI$900>AI3))+COUNTIFS($L$2:L3,L3,$AI$2:AI3,AI3)-1,1+SUMPRODUCT(($L$2:$L$900=TRUE)*($AJ$2:$AJ$900>AJ3))+COUNTIFS($L$2:L3,L3,$AJ$2:AJ3,AJ3)-1,1+SUMPRODUCT(($L$2:$L$900=TRUE)*($AK$2:$AK$900>AK3))+COUNTIFS($L$2:L3,L3,$AK$2:AK3,AK3)-1,1+SUMPRODUCT(($L$2:$L$900=TRUE)*($AL$2:$AL$900>AL3))+COUNTIFS($L$2:L3,L3,$AL$2:AL3,AL3)-1,1+SUMPRODUCT(($L$2:$L$900=TRUE)*($AM$2:$AM$900>AM3))+COUNTIFS($L$2:L3,L3,$AM$2:AM3,AM3)-1,1+SUMPRODUCT(($L$2:$L$900=TRUE)*($AN$2:$AN$900>AN3))+COUNTIFS($L$2:L3,L3,$AN$2:AN3,AN3)-1)),"") -> 36 | D3: Jose Abreu | E3: =IFERROR(INDEX('Draft Log'!$D$4:$D$555,MATCH(D3,'Draft Log'!$C$4:$C$555,0)),"") ->  | F3: =IFERROR(INDEX('ADP-Rank'!$C$2:$C$790,MATCH(D3,'ADP-Rank'!$A$2:$A$790,0)),"") -> 1B | H3: 1B | I3: =IF(AND(F3="OF",'Guts-2'!$M$9=0),IF(MAX(Pre!J3:L3)=Pre!J3,"LF",IF(MAX(Pre!J3:L3)=Pre!K3,"CF",IF(MAX(Pre!J3:L3)=Pre!L3,"RF","LF"))),"") ->  | J3: =IFERROR(INDEX('ADP-Rank'!$X$2:$X$790,MATCH(D3,'ADP-Rank'!$A$2:$A$790,0)),TRUE) -> TRUE | K3: FALSE | L3: =IF(J3=FALSE,FALSE,IF(AND('Your Roto Draft'!$P$6="Hide Drafted Players",K3=TRUE),FALSE,CHOOSE($I$1,TRUE,OR(RIGHT('Your Roto Draft'!$P$5,LEN('Your Roto Draft'!$P$5)-11)=H3,IF(RIGHT('Your Roto Draft'!$P$5,LEN('Your Roto Draft'!$P$5)-11)<>"C",NOT(ISERROR(SEARCH(RIGHT('Your Roto Draft'!$P$5,LEN('Your Roto Draft'!$P$5)-11),Pre!$CB3))),AND(NOT(ISERROR(SEARCH(RIGHT('Your Roto Draft'!$P$5,LEN('Your Roto Draft'!$P$5)-11),Pre!$CB3))),ISERROR(SEARCH("CF",Pre!$CB3)))),RIGHT('Your Roto Draft'!$P$5,LEN('Your Roto Draft'!$P$5)-11)=Pre!BP3),OR(H3="1B",H3="3B",ISNUMBER(SEARCH("1B",Pre!$CB3)),ISNUMBER(SEARCH("3B",Pre!$CB3))),OR(H3="2B",H3="SS",ISNUMBER(SEARCH("2B",Pre!$CB3)),ISNUMBER(SEARCH("SS",Pre!$CB3))),OR(H3="1B",H3="3B",H3="2B",H3="SS",ISNUMBER(SEARCH("1B",Pre!$CB3)),ISNUMBER(SEARCH("3B",Pre!$CB3)),ISNUMBER(SEARCH("2B",Pre!$CB3)),ISNUMBER(SEARCH("SS",Pre!$CB3))),OR(H3="SP",H3="RP",ISNUMBER(SEARCH("SP",Pre!$CB3)),ISNUMBER(SEARCH("RP",Pre!$CB3))),AND(H3<>"RP",H3<>"SP",NOT(ISNUMBER(SEARCH("RP",Pre!$CB3))),NOT(ISNUMBER(SEARCH("SP",Pre!$CB3)))),OR(H3="SP",H3="RP",ISNUMBER(SEARCH("SP",Pre!$CB3)),ISNUMBER(SEARCH("RP",Pre!$CB3)))))) -> TRUE | M3: =IF('ADP-Rank'!AB3="",9999,'ADP-Rank'!AB3) -> 37.6 | N3: =IF(LEFT($D3,15)="Unlisted Player",-1001,'All-WERTH'!AQ3) -> 3.010155709 | O3: =IF('ADP-Rank'!Z3="",9999,'ADP-Rank'!Z3) -> 30 | P3: =IF(LEFT($D3,15)="Unlisted Player",-1001,IF('All-WERTH'!S3="",-1000,'All-WERTH'!S3)) -> 0.7776589029 | Q3: =IF(LEFT($D3,15)="Unlisted Player",-1001,IF('All-WERTH'!T3="",-1000,'All-WERTH'!T3)) -> 1.028815407 | R3: =IF(LEFT($D3,15)="Unlisted Player",-1001,IF('All-WERTH'!U3="",-1000,'All-WERTH'!U3)) -> 0.3393022934 | S3: =IF(LEFT($D3,15)="Unlisted Player",-1001,IF('All-WERTH'!V3="",-1000,'All-WERTH'!V3)) -> 1.84723303 | T3: =IF(LEFT($D3,15)="Unlisted Player",-1001,IF('All-WERTH'!W3="",-1000,'All-WERTH'!W3)) -> -0.9828539247 | U3: =IF(LEFT($D3,15)="Unlisted Player",-1001,IF('All-WERTH'!X3="",-1000,'All-WERTH'!X3)) -> -1000 | V3: =IF(LEFT($D3,15)="Unlisted Player",-1001,IF('All-WERTH'!Y3="",-1000,'All-WERTH'!Y3)) -> -1000 | W3: =IF(LEFT($D3,15)="Unlisted Player",-1001,IF('All-WERTH'!Z3="",-1000,'All-WERTH'!Z3)) -> -1000 | X3: =IF(LEFT($D3,15)="Unlisted Player",-1001,IF('All-WERTH'!AA3="",-1000,'All-WERTH'!AA3)) -> -1000 | Y3: =IF(LEFT($D3,15)="Unlisted Player",-1001,IF('All-WERTH'!AB3="",-1000,'All-WERTH'!AB3)) -> -1000 | Z3: =IF(LEFT($D3,15)="Unlisted Player",-1001,IF('All-WERTH'!AC3="",-1000,'All-WERTH'!AC3)) -> -1000 | AA3: =IF(LEFT($D3,15)="Unlisted Player",-1001,IF('All-WERTH'!AD3="",-1000,'All-WERTH'!AD3)) -> -1000 | AB3: =IF(LEFT($D3,15)="Unlisted Player",-1001,IF('All-WERTH'!AE3="",-1000,'All-WERTH'!AE3)) -> -1000 | AC3: =IF(LEFT($D3,15)="Unlisted Player",-1001,IF('All-WERTH'!AF3="",-1000,'All-WERTH'!AF3)) -> -1000 | AD3: =IF(LEFT($D3,15)="Unlisted Player",-1001,IF('All-WERTH'!AG3="",-1000,'All-WERTH'!AG3)) -> -1000 | AE3: =IF(LEFT($D3,15)="Unlisted Player",-1001,IF('All-WERTH'!AH3="",-1000,'All-WERTH'!AH3)) -> -1000 | AF3: =IF(LEFT($D3,15)="Unlisted Player",-1001,IF('All-WERTH'!AI3="",-1000,'All-WERTH'!AI3)) -> -1000 | AG3: =IF(LEFT($D3,15)="Unlisted Player",-1001,IF('All-WERTH'!AJ3="",-1000,'All-WERTH'!AJ3)) -> -1000 | AH3: =IF(LEFT($D3,15)="Unlisted Player",-1001,IF('All-WERTH'!AK3="",-1000,'All-WERTH'!AK3)) -> -1000 | AI3: =IF(LEFT($D3,15)="Unlisted Player",-1001,IF('All-WERTH'!AL3="",-1000,'All-WERTH'!AL3)) -> -1000 | AJ3: =IF(LEFT($D3,15)="Unlisted Player",-1001,IF('All-WERTH'!AM3="",-1000,'All-WERTH'!AM3)) -> -1000 | AK3: =IF(LEFT($D3,15)="Unlisted Player",-1001,IF('All-WERTH'!AN3="",-1000,'All-WERTH'!AN3)) -> -1000 | AL3: =IF(LEFT($D3,15)="Unlisted Player",-1001,IF('All-WERTH'!AO3="",-1000,'All-WERTH'!AO3)) -> -1000 | AM3: =IF(LEFT($D3,15)="Unlisted Player",-1001,IF('All-WERTH'!AP3="",-1000,'All-WERTH'!AP3)) -> -1000 | AN3: =IF(LEFT($D3,15)="Unlisted Player",-1001,'All-WERTH'!AT3) -> 5.800966011 | AO3: =IF(ISERROR(VLOOKUP($B2,Keepers!$C$2:$D$450,2,FALSE)),B2,"") -> Fernando Tatis Jr. | AP3: =IFERROR(INDEX($AO$1:$AO$899,SMALL(IF($AO$1:$AO$899<>"",ROW($AO$1:$AO$899)),ROW(AO3))),"") -> Mookie Betts
A4: Mookie Betts | B4: =IFERROR(INDEX($A$1:$A$899,SMALL(IF($A$1:$A$899<>"",ROW($A$1:$A$899)),ROW(A4))),"") -> Juan Soto | C4: =IFERROR(IF(L4=FALSE,"",CHOOSE(MATCH(RIGHT('Your Roto Draft'!$P$4,LEN('Your Roto Draft'!$P$4)-8),$M$1:$AN$1,0),1+SUMPRODUCT(($L$2:$L$900=TRUE)*($M$2:$M$900<M4))+COUNTIFS($L$2:L4,L4,$M$2:M4,M4)-1,1+SUMPRODUCT(($L$2:$L$900=TRUE)*($N$2:$N$900>N4))+COUNTIFS($L$2:L4,L4,$N$2:N4,N4)-1,1+SUMPRODUCT(($L$2:$L$900=TRUE)*($O$2:$O$900<O4))+COUNTIFS($L$2:L4,L4,$O$2:O4,O4)-1,1+SUMPRODUCT(($L$2:$L$900=TRUE)*($P$2:$P$900>P4))+COUNTIFS($L$2:L4,L4,$P$2:P4,P4)-1,1+SUMPRODUCT(($L$2:$L$900=TRUE)*($Q$2:$Q$900>Q4))+COUNTIFS($L$2:L4,L4,$Q$2:Q4,Q4)-1,1+SUMPRODUCT(($L$2:$L$900=TRUE)*($R$2:$R$900>R4))+COUNTIFS($L$2:L4,L4,$R$2:R4,R4)-1,1+SUMPRODUCT(($L$2:$L$900=TRUE)*($S$2:$S$900>S4))+COUNTIFS($L$2:L4,L4,$S$2:S4,S4)-1,1+SUMPRODUCT(($L$2:$L$900=TRUE)*($T$2:$T$900>T4))+COUNTIFS($L$2:L4,L4,$T$2:T4,T4)-1,1+SUMPRODUCT(($L$2:$L$900=TRUE)*($U$2:$U$900>U4))+COUNTIFS($L$2:L4,L4,$U$2:U4,U4)-1,1+SUMPRODUCT(($L$2:$L$900=TRUE)*($V$2:$V$900>V4))+COUNTIFS($L$2:L4,L4,$V$2:V4,V4)-1,1+SUMPRODUCT(($L$2:$L$900=TRUE)*($W$2:$W$900>W4))+COUNTIFS($L$2:L4,L4,$W$2:W4,W4)-1,1+SUMPRODUCT(($L$2:$L$900=TRUE)*($X$2:$X$900>X4))+COUNTIFS($L$2:L4,L4,$X$2:X4,X4)-1,1+SUMPRODUCT(($L$2:$L$900=TRUE)*($Y$2:$Y$900>Y4))+COUNTIFS($L$2:L4,L4,$Y$2:Y4,Y4)-1,1+SUMPRODUCT(($L$2:$L$900=TRUE)*($Z$2:$Z$900>Z4))+COUNTIFS($L$2:L4,L4,$Z$2:Z4,Z4)-1,1+SUMPRODUCT(($L$2:$L$900=TRUE)*($AA$2:$AA$900>AA4))+COUNTIFS($L$2:L4,L4,$AA$2:AA4,AA4)-1,1+SUMPRODUCT(($L$2:$L$900=TRUE)*($AB$2:$AB$900>AB4))+COUNTIFS($L$2:L4,L4,$AB$2:AB4,AB4)-1,1+SUMPRODUCT(($L$2:$L$900=TRUE)*($AC$2:$AC$900>AC4))+COUNTIFS($L$2:L4,L4,$AC$2:AC4,AC4)-1,1+SUMPRODUCT(($L$2:$L$900=TRUE)*($AD$2:$AD$900>AD4))+COUNTIFS($L$2:L4,L4,$AD$2:AD4,AD4)-1,1+SUMPRODUCT(($L$2:$L$900=TRUE)*($AE$2:$AE$900>AE4))+COUNTIFS($L$2:L4,L4,$AE$2:AE4,AE4)-1,1+SUMPRODUCT(($L$2:$L$900=TRUE)*($AF$2:$AF$900>AF4))+COUNTIFS($L$2:L4,L4,$AF$2:AF4,AF4)-1,1+SUMPRODUCT(($L$2:$L$900=TRUE)*($AG$2:$AG$900>AG4))+COUNTIFS($L$2:L4,L4,$AG$2:AG4,AG4)-1,1+SUMPRODUCT(($L$2:$L$900=TRUE)*($AH$2:$AH$900>AH4))+COUNTIFS($L$2:L4,L4,$AH$2:AH4,AH4)-1,1+SUMPRODUCT(($L$2:$L$900=TRUE)*($AI$2:$AI$900>AI4))+COUNTIFS($L$2:L4,L4,$AI$2:AI4,AI4)-1,1+SUMPRODUCT(($L$2:$L$900=TRUE)*($AJ$2:$AJ$900>AJ4))+COUNTIFS($L$2:L4,L4,$AJ$2:AJ4,AJ4)-1,1+SUMPRODUCT(($L$2:$L$900=TRUE)*($AK$2:$AK$900>AK4))+COUNTIFS($L$2:L4,L4,$AK$2:AK4,AK4)-1,1+SUMPRODUCT(($L$2:$L$900=TRUE)*($AL$2:$AL$900>AL4))+COUNTIFS($L$2:L4,L4,$AL$2:AL4,AL4)-1,1+SUMPRODUCT(($L$2:$L$900=TRUE)*($AM$2:$AM$900>AM4))+COUNTIFS($L$2:L4,L4,$AM$2:AM4,AM4)-1,1+SUMPRODUCT(($L$2:$L$900=TRUE)*($AN$2:$AN$900>AN4))+COUNTIFS($L$2:L4,L4,$AN$2:AN4,AN4)-1)),"") -> 1 | D4: Ronald Acuna | E4: =IFERROR(INDEX('Draft Log'!$D$4:$D$555,MATCH(D4,'Draft Log'!$C$4:$C$555,0)),"") ->  | F4: =IFERROR(INDEX('ADP-Rank'!$C$2:$C$790,MATCH(D4,'ADP-Rank'!$A$2:$A$790,0)),"") -> OF | H4: OF | I4: =IF(AND(F4="OF",'Guts-2'!$M$9=0),IF(MAX(Pre!J4:L4)=Pre!J4,"LF",IF(MAX(Pre!J4:L4)=Pre!K4,"CF",IF(MAX(Pre!J4:L4)=Pre!L4,"RF","LF"))),"") ->  | J4: =IFERROR(INDEX('ADP-Rank'!$X$2:$X$790,MATCH(D4,'ADP-Rank'!$A$2:$A$790,0)),TRUE) -> TRUE | K4: FALSE | L4: =IF(J4=FALSE,FALSE,IF(AND('Your Roto Draft'!$P$6="Hide Drafted Players",K4=TRUE),FALSE,CHOOSE($I$1,TRUE,OR(RIGHT('Your Roto Draft'!$P$5,LEN('Your Roto Draft'!$P$5)-11)=H4,IF(RIGHT('Your Roto Draft'!$P$5,LEN('Your Roto Draft'!$P$5)-11)<>"C",NOT(ISERROR(SEARCH(RIGHT('Your Roto Draft'!$P$5,LEN('Your Roto Draft'!$P$5)-11),Pre!$CB4))),AND(NOT(ISERROR(SEARCH(RIGHT('Your Roto Draft'!$P$5,LEN('Your Roto Draft'!$P$5)-11),Pre!$CB4))),ISERROR(SEARCH("CF",Pre!$CB4)))),RIGHT('Your Roto Draft'!$P$5,LEN('Your Roto Draft'!$P$5)-11)=Pre!BP4),OR(H4="1B",H4="3B",ISNUMBER(SEARCH("1B",Pre!$CB4)),ISNUMBER(SEARCH("3B",Pre!$CB4))),OR(H4="2B",H4="SS",ISNUMBER(SEARCH("2B",Pre!$CB4)),ISNUMBER(SEARCH("SS",Pre!$CB4))),OR(H4="1B",H4="3B",H4="2B",H4="SS",ISNUMBER(SEARCH("1B",Pre!$CB4)),ISNUMBER(SEARCH("3B",Pre!$CB4)),ISNUMBER(SEARCH("2B",Pre!$CB4)),ISNUMBER(SEARCH("SS",Pre!$CB4))),OR(H4="SP",H4="RP",ISNUMBER(SEARCH("SP",Pre!$CB4)),ISNUMBER(SEARCH("RP",Pre!$CB4))),AND(H4<>"RP",H4<>"SP",NOT(ISNUMBER(SEARCH("RP",Pre!$CB4))),NOT(ISNUMBER(SEARCH("SP",Pre!$CB4)))),OR(H4="SP",H4="RP",ISNUMBER(SEARCH("SP",Pre!$CB4)),ISNUMBER(SEARCH("RP",Pre!$CB4)))))) -> TRUE | M4: =IF('ADP-Rank'!AB4="",9999,'ADP-Rank'!AB4) -> 1 | N4: =IF(LEFT($D4,15)="Unlisted Player",-1001,'All-WERTH'!AQ4) -> 12.46841789 | O4: =IF('ADP-Rank'!Z4="",9999,'ADP-Rank'!Z4) -> 1 | P4: =IF(LEFT($D4,15)="Unlisted Player",-1001,IF('All-WERTH'!S4="",-1000,'All-WERTH'!S4)) -> 1.314085024 | Q4: =IF(LEFT($D4,15)="Unlisted Player",-1001,IF('All-WERTH'!T4="",-1000,'All-WERTH'!T4)) -> 2.322788627 | R4: =IF(LEFT($D4,15)="Unlisted Player",-1001,IF('All-WERTH'!U4="",-1000,'All-WERTH'!U4)) -> 3.540086888 | S4: =IF(LEFT($D4,15)="Unlisted Player",-1001,IF('All-WERTH'!V4="",-1000,'All-WERTH'!V4)) -> 1.736209681 | T4: =IF(LEFT($D4,15)="Unlisted Player",-1001,IF('All-WERTH'!W4="",-1000,'All-WERTH'!W4)) -> 3.555247674 | U4: =IF(LEFT($D4,15)="Unlisted Player",-1001,IF('All-WERTH'!X4="",-1000,'All-WERTH'!X4)) -> -1000 | V4: =IF(LEFT($D4,15)="Unlisted Player",-1001,IF('All-WERTH'!Y4="",-1000,'All-WERTH'!Y4)) -> -1000 | W4: =IF(LEFT($D4,15)="Unlisted Player",-1001,IF('All-WERTH'!Z4="",-1000,'All-WERTH'!Z4)) -> -1000 | X4: =IF(LEFT($D4,15)="Unlisted Player",-1001,IF('All-WERTH'!AA4="",-1000,'All-WERTH'!AA4)) -> -1000 | Y4: =IF(LEFT($D4,15)="Unlisted Player",-1001,IF('All-WERTH'!AB4="",-1000,'All-WERTH'!AB4)) -> -1000 | Z4: =IF(LEFT($D4,15)="Unlisted Player",-1001,IF('All-WERTH'!AC4="",-1000,'All-WERTH'!AC4)) -> -1000 | AA4: =IF(LEFT($D4,15)="Unlisted Player",-1001,IF('All-WERTH'!AD4="",-1000,'All-WERTH'!AD4)) -> -1000 | AB4: =IF(LEFT($D4,15)="Unlisted Player",-1001,IF('All-WERTH'!AE4="",-1000,'All-WERTH'!AE4)) -> -1000 | AC4: =IF(LEFT($D4,15)="Unlisted Player",-1001,IF('All-WERTH'!AF4="",-1000,'All-WERTH'!AF4)) -> -1000 | AD4: =IF(LEFT($D4,15)="Unlisted Player",-1001,IF('All-WERTH'!AG4="",-1000,'All-WERTH'!AG4)) -> -1000 | AE4: =IF(LEFT($D4,15)="Unlisted Player",-1001,IF('All-WERTH'!AH4="",-1000,'All-WERTH'!AH4)) -> -1000 | AF4: =IF(LEFT($D4,15)="Unlisted Player",-1001,IF('All-WERTH'!AI4="",-1000,'All-WERTH'!AI4)) -> -1000 | AG4: =IF(LEFT($D4,15)="Unlisted Player",-1001,IF('All-WERTH'!AJ4="",-1000,'All-WERTH'!AJ4)) -> -1000 | AH4: =IF(LEFT($D4,15)="Unlisted Player",-1001,IF('All-WERTH'!AK4="",-1000,'All-WERTH'!AK4)) -> -1000 | AI4: =IF(LEFT($D4,15)="Unlisted Player",-1001,IF('All-WERTH'!AL4="",-1000,'All-WERTH'!AL4)) -> -1000 | AJ4: =IF(LEFT($D4,15)="Unlisted Player",-1001,IF('All-WERTH'!AM4="",-1000,'All-WERTH'!AM4)) -> -1000 | AK4: =IF(LEFT($D4,15)="Unlisted Player",-1001,IF('All-WERTH'!AN4="",-1000,'All-WERTH'!AN4)) -> -1000 | AL4: =IF(LEFT($D4,15)="Unlisted Player",-1001,IF('All-WERTH'!AO4="",-1000,'All-WERTH'!AO4)) -> -1000 | AM4: =IF(LEFT($D4,15)="Unlisted Player",-1001,IF('All-WERTH'!AP4="",-1000,'All-WERTH'!AP4)) -> -1000 | AN4: =IF(LEFT($D4,15)="Unlisted Player",-1001,'All-WERTH'!AT4) -> 15.32901263 | AO4: =IF(ISERROR(VLOOKUP($B3,Keepers!$C$2:$D$450,2,FALSE)),B3,"") -> Mookie Betts | AP4: =IFERROR(INDEX($AO$1:$AO$899,SMALL(IF($AO$1:$AO$899<>"",ROW($AO$1:$AO$899)),ROW(AO4))),"") -> Juan Soto
A5: Juan Soto | B5: =IFERROR(INDEX($A$1:$A$899,SMALL(IF($A$1:$A$899<>"",ROW($A$1:$A$899)),ROW(A5))),"") -> Mike Trout | C5: =IFERROR(IF(L5=FALSE,"",CHOOSE(MATCH(RIGHT('Your Roto Draft'!$P$4,LEN('Your Roto Draft'!$P$4)-8),$M$1:$AN$1,0),1+SUMPRODUCT(($L$2:$L$900=TRUE)*($M$2:$M$900<M5))+COUNTIFS($L$2:L5,L5,$M$2:M5,M5)-1,1+SUMPRODUCT(($L$2:$L$900=TRUE)*($N$2:$N$900>N5))+COUNTIFS($L$2:L5,L5,$N$2:N5,N5)-1,1+SUMPRODUCT(($L$2:$L$900=TRUE)*($O$2:$O$900<O5))+COUNTIFS($L$2:L5,L5,$O$2:O5,O5)-1,1+SUMPRODUCT(($L$2:$L$900=TRUE)*($P$2:$P$900>P5))+COUNTIFS($L$2:L5,L5,$P$2:P5,P5)-1,1+SUMPRODUCT(($L$2:$L$900=TRUE)*($Q$2:$Q$900>Q5))+COUNTIFS($L$2:L5,L5,$Q$2:Q5,Q5)-1,1+SUMPRODUCT(($L$2:$L$900=TRUE)*($R$2:$R$900>R5))+COUNTIFS($L$2:L5,L5,$R$2:R5,R5)-1,1+SUMPRODUCT(($L$2:$L$900=TRUE)*($S$2:$S$900>S5))+COUNTIFS($L$2:L5,L5,$S$2:S5,S5)-1,1+SUMPRODUCT(($L$2:$L$900=TRUE)*($T$2:$T$900>T5))+COUNTIFS($L$2:L5,L5,$T$2:T5,T5)-1,1+SUMPRODUCT(($L$2:$L$900=TRUE)*($U$2:$U$900>U5))+COUNTIFS($L$2:L5,L5,$U$2:U5,U5)-1,1+SUMPRODUCT(($L$2:$L$900=TRUE)*($V$2:$V$900>V5))+COUNTIFS($L$2:L5,L5,$V$2:V5,V5)-1,1+SUMPRODUCT(($L$2:$L$900=TRUE)*($W$2:$W$900>W5))+COUNTIFS($L$2:L5,L5,$W$2:W5,W5)-1,1+SUMPRODUCT(($L$2:$L$900=TRUE)*($X$2:$X$900>X5))+COUNTIFS($L$2:L5,L5,$X$2:X5,X5)-1,1+SUMPRODUCT(($L$2:$L$900=TRUE)*($Y$2:$Y$900>Y5))+COUNTIFS($L$2:L5,L5,$Y$2:Y5,Y5)-1,1+SUMPRODUCT(($L$2:$L$900=TRUE)*($Z$2:$Z$900>Z5))+COUNTIFS($L$2:L5,L5,$Z$2:Z5,Z5)-1,1+SUMPRODUCT(($L$2:$L$900=TRUE)*($AA$2:$AA$900>AA5))+COUNTIFS($L$2:L5,L5,$AA$2:AA5,AA5)-1,1+SUMPRODUCT(($L$2:$L$900=TRUE)*($AB$2:$AB$900>AB5))+COUNTIFS($L$2:L5,L5,$AB$2:AB5,AB5)-1,1+SUMPRODUCT(($L$2:$L$900=TRUE)*($AC$2:$AC$900>AC5))+COUNTIFS($L$2:L5,L5,$AC$2:AC5,AC5)-1,1+SUMPRODUCT(($L$2:$L$900=TRUE)*($AD$2:$AD$900>AD5))+COUNTIFS($L$2:L5,L5,$AD$2:AD5,AD5)-1,1+SUMPRODUCT(($L$2:$L$900=TRUE)*($AE$2:$AE$900>AE5))+COUNTIFS($L$2:L5,L5,$AE$2:AE5,AE5)-1,1+SUMPRODUCT(($L$2:$L$900=TRUE)*($AF$2:$AF$900>AF5))+COUNTIFS($L$2:L5,L5,$AF$2:AF5,AF5)-1,1+SUMPRODUCT(($L$2:$L$900=TRUE)*($AG$2:$AG$900>AG5))+COUNTIFS($L$2:L5,L5,$AG$2:AG5,AG5)-1,1+SUMPRODUCT(($L$2:$L$900=TRUE)*($AH$2:$AH$900>AH5))+COUNTIFS($L$2:L5,L5,$AH$2:AH5,AH5)-1,1+SUMPRODUCT(($L$2:$L$900=TRUE)*($AI$2:$AI$900>AI5))+COUNTIFS($L$2:L5,L5,$AI$2:AI5,AI5)-1,1+SUMPRODUCT(($L$2:$L$900=TRUE)*($AJ$2:$AJ$900>AJ5))+COUNTIFS($L$2:L5,L5,$AJ$2:AJ5,AJ5)-1,1+SUMPRODUCT(($L$2:$L$900=TRUE)*($AK$2:$AK$900>AK5))+COUNTIFS($L$2:L5,L5,$AK$2:AK5,AK5)-1,1+SUMPRODUCT(($L$2:$L$900=TRUE)*($AL$2:$AL$900>AL5))+COUNTIFS($L$2:L5,L5,$AL$2:AL5,AL5)-1,1+SUMPRODUCT(($L$2:$L$900=TRUE)*($AM$2:$AM$900>AM5))+COUNTIFS($L$2:L5,L5,$AM$2:AM5,AM5)-1,1+SUMPRODUCT(($L$2:$L$900=TRUE)*($AN$2:$AN$900>AN5))+COUNTIFS($L$2:L5,L5,$AN$2:AN5,AN5)-1)),"") -> 374 | D5: Willy Adames | E5: =IFERROR(INDEX('Draft Log'!$D$4:$D$555,MATCH(D5,'Draft Log'!$C$4:$C$555,0)),"") ->  | F5: =IFERROR(INDEX('ADP-Rank'!$C$2:$C$790,MATCH(D5,'ADP-Rank'!$A$2:$A$790,0)),"") -> SS | H5: SS | I5: =IF(AND(F5="OF",'Guts-2'!$M$9=0),IF(MAX(Pre!J5:L5)=Pre!J5,"LF",IF(MAX(Pre!J5:L5)=Pre!K5,"CF",IF(MAX(Pre!J5:L5)=Pre!L5,"RF","LF"))),"") ->  | J5: =IFERROR(INDEX('ADP-Rank'!$X$2:$X$790,MATCH(D5,'ADP-Rank'!$A$2:$A$790,0)),TRUE) -> TRUE | K5: FALSE | L5: =IF(J5=FALSE,FALSE,IF(AND('Your Roto Draft'!$P$6="Hide Drafted Players",K5=TRUE),FALSE,CHOOSE($I$1,TRUE,OR(RIGHT('Your Roto Draft'!$P$5,LEN('Your Roto Draft'!$P$5)-11)=H5,IF(RIGHT('Your Roto Draft'!$P$5,LEN('Your Roto Draft'!$P$5)-11)<>"C",NOT(ISERROR(SEARCH(RIGHT('Your Roto Draft'!$P$5,LEN('Your Roto Draft'!$P$5)-11),Pre!$CB5))),AND(NOT(ISERROR(SEARCH(RIGHT('Your Roto Draft'!$P$5,LEN('Your Roto Draft'!$P$5)-11),Pre!$CB5))),ISERROR(SEARCH("CF",Pre!$CB5)))),RIGHT('Your Roto Draft'!$P$5,LEN('Your Roto Draft'!$P$5)-11)=Pre!BP5),OR(H5="1B",H5="3B",ISNUMBER(SEARCH("1B",Pre!$CB5)),ISNUMBER(SEARCH("3B",Pre!$CB5))),OR(H5="2B",H5="SS",ISNUMBER(SEARCH("2B",Pre!$CB5)),ISNUMBER(SEARCH("SS",Pre!$CB5))),OR(H5="1B",H5="3B",H5="2B",H5="SS",ISNUMBER(SEARCH("1B",Pre!$CB5)),ISNUMBER(SEARCH("3B",Pre!$CB5)),ISNUMBER(SEARCH("2B",Pre!$CB5)),ISNUMBER(SEARCH("SS",Pre!$CB5))),OR(H5="SP",H5="RP",ISNUMBER(SEARCH("SP",Pre!$CB5)),ISNUMBER(SEARCH("RP",Pre!$CB5))),AND(H5<>"RP",H5<>"SP",NOT(ISNUMBER(SEARCH("RP",Pre!$CB5))),NOT(ISNUMBER(SEARCH("SP",Pre!$CB5)))),OR(H5="SP",H5="RP",ISNUMBER(SEARCH("SP",Pre!$CB5)),ISNUMBER(SEARCH("RP",Pre!$CB5)))))) -> TRUE | M5: =IF('ADP-Rank'!AB5="",9999,'ADP-Rank'!AB5) -> 365.8 | N5: =IF(LEFT($D5,15)="Unlisted Player",-1001,'All-WERTH'!AQ5) -> -3.071190021 | O5: =IF('ADP-Rank'!Z5="",9999,'ADP-Rank'!Z5) -> 274 | P5: =IF(LEFT($D5,15)="Unlisted Player",-1001,IF('All-WERTH'!S5="",-1000,'All-WERTH'!S5)) -> -0.7889636041 | Q5: =IF(LEFT($D5,15)="Unlisted Player",-1001,IF('All-WERTH'!T5="",-1000,'All-WERTH'!T5)) -> -0.7093533786 | R5: =IF(LEFT($D5,15)="Unlisted Player",-1001,IF('All-WERTH'!U5="",-1000,'All-WERTH'!U5)) -> -0.6322995918 | S5: =IF(LEFT($D5,15)="Unlisted Player",-1001,IF('All-WERTH'!V5="",-1000,'All-WERTH'!V5)) -> -0.8062888689 | T5: =IF(LEFT($D5,15)="Unlisted Player",-1001,IF('All-WERTH'!W5="",-1000,'All-WERTH'!W5)) -> -0.134284578 | U5: =IF(LEFT($D5,15)="Unlisted Player",-1001,IF('All-WERTH'!X5="",-1000,'All-WERTH'!X5)) -> -1000 | V5: =IF(LEFT($D5,15)="Unlisted Player",-1001,IF('All-WERTH'!Y5="",-1000,'All-WERTH'!Y5)) -> -1000 | W5: =IF(LEFT($D5,15)="Unlisted Player",-1001,IF('All-WERTH'!Z5="",-1000,'All-WERTH'!Z5)) -> -1000 | X5: =IF(LEFT($D5,15)="Unlisted Player",-1001,IF('All-WERTH'!AA5="",-1000,'All-WERTH'!AA5)) -> -1000 | Y5: =IF(LEFT($D5,15)="Unlisted Player",-1001,IF('All-WERTH'!AB5="",-1000,'All-WERTH'!AB5)) -> -1000 | Z5: =IF(LEFT($D5,15)="Unlisted Player",-1001,IF('All-WERTH'!AC5="",-1000,'All-WERTH'!AC5)) -> -1000 | AA5: =IF(LEFT($D5,15)="Unlisted Player",-1001,IF('All-WERTH'!AD5="",-1000,'All-WERTH'!AD5)) -> -1000 | AB5: =IF(LEFT($D5,15)="Unlisted Player",-1001,IF('All-WERTH'!AE5="",-1000,'All-WERTH'!AE5)) -> -1000 | AC5: =IF(LEFT($D5,15)="Unlisted Player",-1001,IF('All-WERTH'!AF5="",-1000,'All-WERTH'!AF5)) -> -1000 | AD5: =IF(LEFT($D5,15)="Unlisted Player",-1001,IF('All-WERTH'!AG5="",-1000,'All-WERTH'!AG5)) -> -1000 | AE5: =IF(LEFT($D5,15)="Unlisted Player",-1001,IF('All-WERTH'!AH5="",-1000,'All-WERTH'!AH5)) -> -1000 | AF5: =IF(LEFT($D5,15)="Unlisted Player",-1001,IF('All-WERTH'!AI5="",-1000,'All-WERTH'!AI5)) -> -1000 | AG5: =IF(LEFT($D5,15)="Unlisted Player",-1001,IF('All-WERTH'!AJ5="",-1000,'All-WERTH'!AJ5)) -> -1000 | AH5: =IF(LEFT($D5,15)="Unlisted Player",-1001,IF('All-WERTH'!AK5="",-1000,'All-WERTH'!AK5)) -> -1000 | AI5: =IF(LEFT($D5,15)="Unlisted Player",-1001,IF('All-WERTH'!AL5="",-1000,'All-WERTH'!AL5)) -> -1000 | AJ5: =IF(LEFT($D5,15)="Unlisted Player",-1001,IF('All-WERTH'!AM5="",-1000,'All-WERTH'!AM5)) -> -1000 | AK5: =IF(LEFT($D5,15)="Unlisted Player",-1001,IF('All-WERTH'!AN5="",-1000,'All-WERTH'!AN5)) -> -1000 | AL5: =IF(LEFT($D5,15)="Unlisted Player",-1001,IF('All-WERTH'!AO5="",-1000,'All-WERTH'!AO5)) -> -1000 | AM5: =IF(LEFT($D5,15)="Unlisted Player",-1001,IF('All-WERTH'!AP5="",-1000,'All-WERTH'!AP5)) -> -1000 | AN5: =IF(LEFT($D5,15)="Unlisted Player",-1001,'All-WERTH'!AT5) -> -0.4257855821 | AO5: =IF(ISERROR(VLOOKUP($B4,Keepers!$C$2:$D$450,2,FALSE)),B4,"") -> Juan Soto | AP5: =IFERROR(INDEX($AO$1:$AO$899,SMALL(IF($AO$1:$AO$899<>"",ROW($AO$1:$AO$899)),ROW(AO5))),"") -> Mike Trout
A6: Mike Trout | B6: =IFERROR(INDEX($A$1:$A$899,SMALL(IF($A$1:$A$899<>"",ROW($A$1:$A$899)),ROW(A6))),"") -> Jacob deGrom | C6: =IFERROR(IF(L6=FALSE,"",CHOOSE(MATCH(RIGHT('Your Roto Draft'!$P$4,LEN('Your Roto Draft'!$P$4)-8),$M$1:$AN$1,0),1+SUMPRODUCT(($L$2:$L$900=TRUE)*($M$2:$M$900<M6))+COUNTIFS($L$2:L6,L6,$M$2:M6,M6)-1,1+SUMPRODUCT(($L$2:$L$900=TRUE)*($N$2:$N$900>N6))+COUNTIFS($L$2:L6,L6,$N$2:N6,N6)-1,1+SUMPRODUCT(($L$2:$L$900=TRUE)*($O$2:$O$900<O6))+COUNTIFS($L$2:L6,L6,$O$2:O6,O6)-1,1+SUMPRODUCT(($L$2:$L$900=TRUE)*($P$2:$P$900>P6))+COUNTIFS($L$2:L6,L6,$P$2:P6,P6)-1,1+SUMPRODUCT(($L$2:$L$900=TRUE)*($Q$2:$Q$900>Q6))+COUNTIFS($L$2:L6,L6,$Q$2:Q6,Q6)-1,1+SUMPRODUCT(($L$2:$L$900=TRUE)*($R$2:$R$900>R6))+COUNTIFS($L$2:L6,L6,$R$2:R6,R6)-1,1+SUMPRODUCT(($L$2:$L$900=TRUE)*($S$2:$S$900>S6))+COUNTIFS($L$2:L6,L6,$S$2:S6,S6)-1,1+SUMPRODUCT(($L$2:$L$900=TRUE)*($T$2:$T$900>T6))+COUNTIFS($L$2:L6,L6,$T$2:T6,T6)-1,1+SUMPRODUCT(($L$2:$L$900=TRUE)*($U$2:$U$900>U6))+COUNTIFS($L$2:L6,L6,$U$2:U6,U6)-1,1+SUMPRODUCT(($L$2:$L$900=TRUE)*($V$2:$V$900>V6))+COUNTIFS($L$2:L6,L6,$V$2:V6,V6)-1,1+SUMPRODUCT(($L$2:$L$900=TRUE)*($W$2:$W$900>W6))+COUNTIFS($L$2:L6,L6,$W$2:W6,W6)-1,1+SUMPRODUCT(($L$2:$L$900=TRUE)*($X$2:$X$900>X6))+COUNTIFS($L$2:L6,L6,$X$2:X6,X6)-1,1+SUMPRODUCT(($L$2:$L$900=TRUE)*($Y$2:$Y$900>Y6))+COUNTIFS($L$2:L6,L6,$Y$2:Y6,Y6)-1,1+SUMPRODUCT(($L$2:$L$900=TRUE)*($Z$2:$Z$900>Z6))+COUNTIFS($L$2:L6,L6,$Z$2:Z6,Z6)-1,1+SUMPRODUCT(($L$2:$L$900=TRUE)*($AA$2:$AA$900>AA6))+COUNTIFS($L$2:L6,L6,$AA$2:AA6,AA6)-1,1+SUMPRODUCT(($L$2:$L$900=TRUE)*($AB$2:$AB$900>AB6))+COUNTIFS($L$2:L6,L6,$AB$2:AB6,AB6)-1,1+SUMPRODUCT(($L$2:$L$900=TRUE)*($AC$2:$AC$900>AC6))+COUNTIFS($L$2:L6,L6,$AC$2:AC6,AC6)-1,1+SUMPRODUCT(($L$2:$L$900=TRUE)*($AD$2:$AD$900>AD6))+COUNTIFS($L$2:L6,L6,$AD$2:AD6,AD6)-1,1+SUMPRODUCT(($L$2:$L$900=TRUE)*($AE$2:$AE$900>AE6))+COUNTIFS($L$2:L6,L6,$AE$2:AE6,AE6)-1,1+SUMPRODUCT(($L$2:$L$900=TRUE)*($AF$2:$AF$900>AF6))+COUNTIFS($L$2:L6,L6,$AF$2:AF6,AF6)-1,1+SUMPRODUCT(($L$2:$L$900=TRUE)*($AG$2:$AG$900>AG6))+COUNTIFS($L$2:L6,L6,$AG$2:AG6,AG6)-1,1+SUMPRODUCT(($L$2:$L$900=TRUE)*($AH$2:$AH$900>AH6))+COUNTIFS($L$2:L6,L6,$AH$2:AH6,AH6)-1,1+SUMPRODUCT(($L$2:$L$900=TRUE)*($AI$2:$AI$900>AI6))+COUNTIFS($L$2:L6,L6,$AI$2:AI6,AI6)-1,1+SUMPRODUCT(($L$2:$L$900=TRUE)*($AJ$2:$AJ$900>AJ6))+COUNTIFS($L$2:L6,L6,$AJ$2:AJ6,AJ6)-1,1+SUMPRODUCT(($L$2:$L$900=TRUE)*($AK$2:$AK$900>AK6))+COUNTIFS($L$2:L6,L6,$AK$2:AK6,AK6)-1,1+SUMPRODUCT(($L$2:$L$900=TRUE)*($AL$2:$AL$900>AL6))+COUNTIFS($L$2:L6,L6,$AL$2:AL6,AL6)-1,1+SUMPRODUCT(($L$2:$L$900=TRUE)*($AM$2:$AM$900>AM6))+COUNTIFS($L$2:L6,L6,$AM$2:AM6,AM6)-1,1+SUMPRODUCT(($L$2:$L$900=TRUE)*($AN$2:$AN$900>AN6))+COUNTIFS($L$2:L6,L6,$AN$2:AN6,AN6)-1)),"") -> 671 | D6: Austin Adams | E6: =IFERROR(INDEX('Draft Log'!$D$4:$D$555,MATCH(D6,'Draft Log'!$C$4:$C$555,0)),"") ->  | F6: =IFERROR(INDEX('ADP-Rank'!$C$2:$C$790,MATCH(D6,'ADP-Rank'!$A$2:$A$790,0)),"") -> RP | H6: RP | I6: =IF(AND(F6="OF",'Guts-2'!$M$9=0),IF(MAX(Pre!J6:L6)=Pre!J6,"LF",IF(MAX(Pre!J6:L6)=Pre!K6,"CF",IF(MAX(Pre!J6:L6)=Pre!L6,"RF","LF"))),"") ->  | J6: =IFERROR(INDEX('ADP-Rank'!$X$2:$X$790,MATCH(D6,'ADP-Rank'!$A$2:$A$790,0)),TRUE) -> TRUE | K6: FALSE | L6: =IF(J6=FALSE,FALSE,IF(AND('Your Roto Draft'!$P$6="Hide Drafted Players",K6=TRUE),FALSE,CHOOSE($I$1,TRUE,OR(RIGHT('Your Roto Draft'!$P$5,LEN('Your Roto Draft'!$P$5)-11)=H6,IF(RIGHT('Your Roto Draft'!$P$5,LEN('Your Roto Draft'!$P$5)-11)<>"C",NOT(ISERROR(SEARCH(RIGHT('Your Roto Draft'!$P$5,LEN('Your Roto Draft'!$P$5)-11),Pre!$CB6))),AND(NOT(ISERROR(SEARCH(RIGHT('Your Roto Draft'!$P$5,LEN('Your Roto Draft'!$P$5)-11),Pre!$CB6))),ISERROR(SEARCH("CF",Pre!$CB6)))),RIGHT('Your Roto Draft'!$P$5,LEN('Your Roto Draft'!$P$5)-11)=Pre!BP6),OR(H6="1B",H6="3B",ISNUMBER(SEARCH("1B",Pre!$CB6)),ISNUMBER(SEARCH("3B",Pre!$CB6))),OR(H6="2B",H6="SS",ISNUMBER(SEARCH("2B",Pre!$CB6)),ISNUMBER(SEARCH("SS",Pre!$CB6))),OR(H6="1B",H6="3B",H6="2B",H6="SS",ISNUMBER(SEARCH("1B",Pre!$CB6)),ISNUMBER(SEARCH("3B",Pre!$CB6)),ISNUMBER(SEARCH("2B",Pre!$CB6)),ISNUMBER(SEARCH("SS",Pre!$CB6))),OR(H6="SP",H6="RP",ISNUMBER(SEARCH("SP",Pre!$CB6)),ISNUMBER(SEARCH("RP",Pre!$CB6))),AND(H6<>"RP",H6<>"SP",NOT(ISNUMBER(SEARCH("RP",Pre!$CB6))),NOT(ISNUMBER(SEARCH("SP",Pre!$CB6)))),OR(H6="SP",H6="RP",ISNUMBER(SEARCH("SP",Pre!$CB6)),ISNUMBER(SEARCH("RP",Pre!$CB6)))))) -> TRUE | M6: =IF('ADP-Rank'!AB6="",9999,'ADP-Rank'!AB6) -> 678.5 | N6: =IF(LEFT($D6,15)="Unlisted Player",-1001,'All-WERTH'!AQ6) -> -4.859698902 | O6: =IF('ADP-Rank'!Z6="",9999,'ADP-Rank'!Z6) -> 570 | P6: =IF(LEFT($D6,15)="Unlisted Player",-1001,IF('All-WERTH'!S6="",-1000,'All-WERTH'!S6)) -> -1000 | Q6: =IF(LEFT($D6,15)="Unlisted Player",-1001,IF('All-WERTH'!T6="",-1000,'All-WERTH'!T6)) -> -1000 | R6: =IF(LEFT($D6,15)="Unlisted Player",-1001,IF('All-WERTH'!U6="",-1000,'All-WERTH'!U6)) -> -1000 | S6: =IF(LEFT($D6,15)="Unlisted Player",-1001,IF('All-WERTH'!V6="",-1000,'All-WERTH'!V6)) -> -1000 | T6: =IF(LEFT($D6,15)="Unlisted Player",-1001,IF('All-WERTH'!W6="",-1000,'All-WERTH'!W6)) -> -1000 | U6: =IF(LEFT($D6,15)="Unlisted Player",-1001,IF('All-WERTH'!X6="",-1000,'All-WERTH'!X6)) -> -1000 | V6: =IF(LEFT($D6,15)="Unlisted Player",-1001,IF('All-WERTH'!Y6="",-1000,'All-WERTH'!Y6)) -> -1000 | W6: =IF(LEFT($D6,15)="Unlisted Player",-1001,IF('All-WERTH'!Z6="",-1000,'All-WERTH'!Z6)) -> -1000 | X6: =IF(LEFT($D6,15)="Unlisted Player",-1001,IF('All-WERTH'!AA6="",-1000,'All-WERTH'!AA6)) -> -1000 | Y6: =IF(LEFT($D6,15)="Unlisted Player",-1001,IF('All-WERTH'!AB6="",-1000,'All-WERTH'!AB6)) -> -1000 | Z6: =IF(LEFT($D6,15)="Unlisted Player",-1001,IF('All-WERTH'!AC6="",-1000,'All-WERTH'!AC6)) -> -1000 | AA6: =IF(LEFT($D6,15)="Unlisted Player",-1001,IF('All-WERTH'!AD6="",-1000,'All-WERTH'!AD6)) -> -1000 | AB6: =IF(LEFT($D6,15)="Unlisted Player",-1001,IF('All-WERTH'!AE6="",-1000,'All-WERTH'!AE6)) -> -1.83769567 | AC6: =IF(LEFT($D6,15)="Unlisted Player",-1001,IF('All-WERTH'!AF6="",-1000,'All-WERTH'!AF6)) -> -0.4598927588 | AD6: =IF(LEFT($D6,15)="Unlisted Player",-1001,IF('All-WERTH'!AG6="",-1000,'All-WERTH'!AG6)) -> -1.61016579 | AE6: =IF(LEFT($D6,15)="Unlisted Player",-1001,IF('All-WERTH'!AH6="",-1000,'All-WERTH'!AH6)) -> -0.1300808483 | AF6: =IF(LEFT($D6,15)="Unlisted Player",-1001,IF('All-WERTH'!AI6="",-1000,'All-WERTH'!AI6)) -> -0.8218638347 | AG6: =IF(LEFT($D6,15)="Unlisted Player",-1001,IF('All-WERTH'!AJ6="",-1000,'All-WERTH'!AJ6)) -> -1000 | AH6: =IF(LEFT($D6,15)="Unlisted Player",-1001,IF('All-WERTH'!AK6="",-1000,'All-WERTH'!AK6)) -> -1000 | AI6: =IF(LEFT($D6,15)="Unlisted Player",-1001,IF('All-WERTH'!AL6="",-1000,'All-WERTH'!AL6)) -> -1000 | AJ6: =IF(LEFT($D6,15)="Unlisted Player",-1001,IF('All-WERTH'!AM6="",-1000,'All-WERTH'!AM6)) -> -1000 | AK6: =IF(LEFT($D6,15)="Unlisted Player",-1001,IF('All-WERTH'!AN6="",-1000,'All-WERTH'!AN6)) -> -1000 | AL6: =IF(LEFT($D6,15)="Unlisted Player",-1001,IF('All-WERTH'!AO6="",-1000,'All-WERTH'!AO6)) -> -1000 | AM6: =IF(LEFT($D6,15)="Unlisted Player",-1001,IF('All-WERTH'!AP6="",-1000,'All-WERTH'!AP6)) -> -1000 | AN6: =IF(LEFT($D6,15)="Unlisted Player",-1001,'All-WERTH'!AT6) -> -2.13860183 | AO6: =IF(ISERROR(VLOOKUP($B5,Keepers!$C$2:$D$450,2,FALSE)),B5,"") -> Mike Trout | AP6: =IFERROR(INDEX($AO$1:$AO$899,SMALL(IF($AO$1:$AO$899<>"",ROW($AO$1:$AO$899)),ROW(AO6))),"") -> Jacob deGrom
A7: Jacob deGrom | B7: =IFERROR(INDEX($A$1:$A$899,SMALL(IF($A$1:$A$899<>"",ROW($A$1:$A$899)),ROW(A7))),"") -> Gerrit Cole | C7: =IFERROR(IF(L7=FALSE,"",CHOOSE(MATCH(RIGHT('Your Roto Draft'!$P$4,LEN('Your Roto Draft'!$P$4)-8),$M$1:$AN$1,0),1+SUMPRODUCT(($L$2:$L$900=TRUE)*($M$2:$M$900<M7))+COUNTIFS($L$2:L7,L7,$M$2:M7,M7)-1,1+SUMPRODUCT(($L$2:$L$900=TRUE)*($N$2:$N$900>N7))+COUNTIFS($L$2:L7,L7,$N$2:N7,N7)-1,1+SUMPRODUCT(($L$2:$L$900=TRUE)*($O$2:$O$900<O7))+COUNTIFS($L$2:L7,L7,$O$2:O7,O7)-1,1+SUMPRODUCT(($L$2:$L$900=TRUE)*($P$2:$P$900>P7))+COUNTIFS($L$2:L7,L7,$P$2:P7,P7)-1,1+SUMPRODUCT(($L$2:$L$900=TRUE)*($Q$2:$Q$900>Q7))+COUNTIFS($L$2:L7,L7,$Q$2:Q7,Q7)-1,1+SUMPRODUCT(($L$2:$L$900=TRUE)*($R$2:$R$900>R7))+COUNTIFS($L$2:L7,L7,$R$2:R7,R7)-1,1+SUMPRODUCT(($L$2:$L$900=TRUE)*($S$2:$S$900>S7))+COUNTIFS($L$2:L7,L7,$S$2:S7,S7)-1,1+SUMPRODUCT(($L$2:$L$900=TRUE)*($T$2:$T$900>T7))+COUNTIFS($L$2:L7,L7,$T$2:T7,T7)-1,1+SUMPRODUCT(($L$2:$L$900=TRUE)*($U$2:$U$900>U7))+COUNTIFS($L$2:L7,L7,$U$2:U7,U7)-1,1+SUMPRODUCT(($L$2:$L$900=TRUE)*($V$2:$V$900>V7))+COUNTIFS($L$2:L7,L7,$V$2:V7,V7)-1,1+SUMPRODUCT(($L$2:$L$900=TRUE)*($W$2:$W$900>W7))+COUNTIFS($L$2:L7,L7,$W$2:W7,W7)-1,1+SUMPRODUCT(($L$2:$L$900=TRUE)*($X$2:$X$900>X7))+COUNTIFS($L$2:L7,L7,$X$2:X7,X7)-1,1+SUMPRODUCT(($L$2:$L$900=TRUE)*($Y$2:$Y$900>Y7))+COUNTIFS($L$2:L7,L7,$Y$2:Y7,Y7)-1,1+SUMPRODUCT(($L$2:$L$900=TRUE)*($Z$2:$Z$900>Z7))+COUNTIFS($L$2:L7,L7,$Z$2:Z7,Z7)-1,1+SUMPRODUCT(($L$2:$L$900=TRUE)*($AA$2:$AA$900>AA7))+COUNTIFS($L$2:L7,L7,$AA$2:AA7,AA7)-1,1+SUMPRODUCT(($L$2:$L$900=TRUE)*($AB$2:$AB$900>AB7))+COUNTIFS($L$2:L7,L7,$AB$2:AB7,AB7)-1,1+SUMPRODUCT(($L$2:$L$900=TRUE)*($AC$2:$AC$900>AC7))+COUNTIFS($L$2:L7,L7,$AC$2:AC7,AC7)-1,1+SUMPRODUCT(($L$2:$L$900=TRUE)*($AD$2:$AD$900>AD7))+COUNTIFS($L$2:L7,L7,$AD$2:AD7,AD7)-1,1+SUMPRODUCT(($L$2:$L$900=TRUE)*($AE$2:$AE$900>AE7))+COUNTIFS($L$2:L7,L7,$AE$2:AE7,AE7)-1,1+SUMPRODUCT(($L$2:$L$900=TRUE)*($AF$2:$AF$900>AF7))+COUNTIFS($L$2:L7,L7,$AF$2:AF7,AF7)-1,1+SUMPRODUCT(($L$2:$L$900=TRUE)*($AG$2:$AG$900>AG7))+COUNTIFS($L$2:L7,L7,$AG$2:AG7,AG7)-1,1+SUMPRODUCT(($L$2:$L$900=TRUE)*($AH$2:$AH$900>AH7))+COUNTIFS($L$2:L7,L7,$AH$2:AH7,AH7)-1,1+SUMPRODUCT(($L$2:$L$900=TRUE)*($AI$2:$AI$900>AI7))+COUNTIFS($L$2:L7,L7,$AI$2:AI7,AI7)-1,1+SUMPRODUCT(($L$2:$L$900=TRUE)*($AJ$2:$AJ$900>AJ7))+COUNTIFS($L$2:L7,L7,$AJ$2:AJ7,AJ7)-1,1+SUMPRODUCT(($L$2:$L$900=TRUE)*($AK$2:$AK$900>AK7))+COUNTIFS($L$2:L7,L7,$AK$2:AK7,AK7)-1,1+SUMPRODUCT(($L$2:$L$900=TRUE)*($AL$2:$AL$900>AL7))+COUNTIFS($L$2:L7,L7,$AL$2:AL7,AL7)-1,1+SUMPRODUCT(($L$2:$L$900=TRUE)*($AM$2:$AM$900>AM7))+COUNTIFS($L$2:L7,L7,$AM$2:AM7,AM7)-1,1+SUMPRODUCT(($L$2:$L$900=TRUE)*($AN$2:$AN$900>AN7))+COUNTIFS($L$2:L7,L7,$AN$2:AN7,AN7)-1)),"") -> 364 | D7: Jo Adell | E7: =IFERROR(INDEX('Draft Log'!$D$4:$D$555,MATCH(D7,'Draft Log'!$C$4:$C$555,0)),"") ->  | F7: =IFERROR(INDEX('ADP-Rank'!$C$2:$C$790,MATCH(D7,'ADP-Rank'!$A$2:$A$790,0)),"") -> OF | H7: OF | I7: =IF(AND(F7="OF",'Guts-2'!$M$9=0),IF(MAX(Pre!J7:L7)=Pre!J7,"LF",IF(MAX(Pre!J7:L7)=Pre!K7,"CF",IF(MAX(Pre!J7:L7)=Pre!L7,"RF","LF"))),"") ->  | J7: =IFERROR(INDEX('ADP-Rank'!$X$2:$X$790,MATCH(D7,'ADP-Rank'!$A$2:$A$790,0)),TRUE) -> TRUE | K7: FALSE | L7: =IF(J7=FALSE,FALSE,IF(AND('Your Roto Draft'!$P$6="Hide Drafted Players",K7=TRUE),FALSE,CHOOSE($I$1,TRUE,OR(RIGHT('Your Roto Draft'!$P$5,LEN('Your Roto Draft'!$P$5)-11)=H7,IF(RIGHT('Your Roto Draft'!$P$5,LEN('Your Roto Draft'!$P$5)-11)<>"C",NOT(ISERROR(SEARCH(RIGHT('Your Roto Draft'!$P$5,LEN('Your Roto Draft'!$P$5)-11),Pre!$CB7))),AND(NOT(ISERROR(SEARCH(RIGHT('Your Roto Draft'!$P$5,LEN('Your Roto Draft'!$P$5)-11),Pre!$CB7))),ISERROR(SEARCH("CF",Pre!$CB7)))),RIGHT('Your Roto Draft'!$P$5,LEN('Your Roto Draft'!$P$5)-11)=Pre!BP7),OR(H7="1B",H7="3B",ISNUMBER(SEARCH("1B",Pre!$CB7)),ISNUMBER(SEARCH("3B",Pre!$CB7))),OR(H7="2B",H7="SS",ISNUMBER(SEARCH("2B",Pre!$CB7)),ISNUMBER(SEARCH("SS",Pre!$CB7))),OR(H7="1B",H7="3B",H7="2B",H7="SS",ISNUMBER(SEARCH("1B",Pre!$CB7)),ISNUMBER(SEARCH("3B",Pre!$CB7)),ISNUMBER(SEARCH("2B",Pre!$CB7)),ISNUMBER(SEARCH("SS",Pre!$CB7))),OR(H7="SP",H7="RP",ISNUMBER(SEARCH("SP",Pre!$CB7)),ISNUMBER(SEARCH("RP",Pre!$CB7))),AND(H7<>"RP",H7<>"SP",NOT(ISNUMBER(SEARCH("RP",Pre!$CB7))),NOT(ISNUMBER(SEARCH("SP",Pre!$CB7)))),OR(H7="SP",H7="RP",ISNUMBER(SEARCH("SP",Pre!$CB7)),ISNUMBER(SEARCH("RP",Pre!$CB7)))))) -> TRUE | M7: =IF('ADP-Rank'!AB7="",9999,'ADP-Rank'!AB7) -> 359.8 | N7: =IF(LEFT($D7,15)="Unlisted Player",-1001,'All-WERTH'!AQ7) -> -8.077124891 | O7: =IF('ADP-Rank'!Z7="",9999,'ADP-Rank'!Z7) -> 332 | P7: =IF(LEFT($D7,15)="Unlisted Player",-1001,IF('All-WERTH'!S7="",-1000,'All-WERTH'!S7)) -> -0.9942692149 | Q7: =IF(LEFT($D7,15)="Unlisted Player",-1001,IF('All-WERTH'!T7="",-1000,'All-WERTH'!T7)) -> -1.515584606 | R7: =IF(LEFT($D7,15)="Unlisted Player",-1001,IF('All-WERTH'!U7="",-1000,'All-WERTH'!U7)) -> -2.545507487 | S7: =IF(LEFT($D7,15)="Unlisted Player",-1001,IF('All-WERTH'!V7="",-1000,'All-WERTH'!V7)) -> -2.480892074 | T7: =IF(LEFT($D7,15)="Unlisted Player",-1001,IF('All-WERTH'!W7="",-1000,'All-WERTH'!W7)) -> -0.5408715095 | U7: =IF(LEFT($D7,15)="Unlisted Player",-1001,IF('All-WERTH'!X7="",-1000,'All-WERTH'!X7)) -> -1000 | V7: =IF(LEFT($D7,15)="Unlisted Player",-1001,IF('All-WERTH'!Y7="",-1000,'All-WERTH'!Y7)) -> -1000 | W7: =IF(LEFT($D7,15)="Unlisted Player",-1001,IF('All-WERTH'!Z7="",-1000,'All-WERTH'!Z7)) -> -1000 | X7: =IF(LEFT($D7,15)="Unlisted Player",-1001,IF('All-WERTH'!AA7="",-1000,'All-WERTH'!AA7)) -> -1000 | Y7: =IF(LEFT($D7,15)="Unlisted Player",-1001,IF('All-WERTH'!AB7="",-1000,'All-WERTH'!AB7)) -> -1000 | Z7: =IF(LEFT($D7,15)="Unlisted Player",-1001,IF('All-WERTH'!AC7="",-1000,'All-WERTH'!AC7)) -> -1000 | AA7: =IF(LEFT($D7,15)="Unlisted Player",-1001,IF('All-WERTH'!AD7="",-1000,'All-WERTH'!AD7)) -> -1000 | AB7: =IF(LEFT($D7,15)="Unlisted Player",-1001,IF('All-WERTH'!AE7="",-1000,'All-WERTH'!AE7)) -> -1000 | AC7: =IF(LEFT($D7,15)="Unlisted Player",-1001,IF('All-WERTH'!AF7="",-1000,'All-WERTH'!AF7)) -> -1000 | AD7: =IF(LEFT($D7,15)="Unlisted Player",-1001,IF('All-WERTH'!AG7="",-1000,'All-WERTH'!AG7)) -> -1000 | AE7: =IF(LEFT($D7,15)="Unlisted Player",-1001,IF('All-WERTH'!AH7="",-1000,'All-WERTH'!AH7)) -> -1000 | AF7: =IF(LEFT($D7,15)="Unlisted Player",-1001,IF('All-WERTH'!AI7="",-1000,'All-WERTH'!AI7)) -> -1000 | AG7: =IF(LEFT($D7,15)="Unlisted Player",-1001,IF('All-WERTH'!AJ7="",-1000,'All-WERTH'!AJ7)) -> -1000 | AH7: =IF(LEFT($D7,15)="Unlisted Player",-1001,IF('All-WERTH'!AK7="",-1000,'All-WERTH'!AK7)) -> -1000 | AI7: =IF(LEFT($D7,15)="Unlisted Player",-1001,IF('All-WERTH'!AL7="",-1000,'All-WERTH'!AL7)) -> -1000 | AJ7: =IF(LEFT($D7,15)="Unlisted Player",-1001,IF('All-WERTH'!AM7="",-1000,'All-WERTH'!AM7)) -> -1000 | AK7: =IF(LEFT($D7,15)="Unlisted Player",-1001,IF('All-WERTH'!AN7="",-1000,'All-WERTH'!AN7)) -> -1000 | AL7: =IF(LEFT($D7,15)="Unlisted Player",-1001,IF('All-WERTH'!AO7="",-1000,'All-WERTH'!AO7)) -> -1000 | AM7: =IF(LEFT($D7,15)="Unlisted Player",-1001,IF('All-WERTH'!AP7="",-1000,'All-WERTH'!AP7)) -> -1000 | AN7: =IF(LEFT($D7,15)="Unlisted Player",-1001,'All-WERTH'!AT7) -> -5.216530157 | AO7: =IF(ISERROR(VLOOKUP($B6,Keepers!$C$2:$D$450,2,FALSE)),B6,"") -> Jacob deGrom | AP7: =IFERROR(INDEX($AO$1:$AO$899,SMALL(IF($AO$1:$AO$899<>"",ROW($AO$1:$AO$899)),ROW(AO7))),"") -> Gerrit Cole
A8: Gerrit Cole | B8: =IFERROR(INDEX($A$1:$A$899,SMALL(IF($A$1:$A$899<>"",ROW($A$1:$A$899)),ROW(A8))),"") -> Trea Turner | C8: =IFERROR(IF(L8=FALSE,"",CHOOSE(MATCH(RIGHT('Your Roto Draft'!$P$4,LEN('Your Roto Draft'!$P$4)-8),$M$1:$AN$1,0),1+SUMPRODUCT(($L$2:$L$900=TRUE)*($M$2:$M$900<M8))+COUNTIFS($L$2:L8,L8,$M$2:M8,M8)-1,1+SUMPRODUCT(($L$2:$L$900=TRUE)*($N$2:$N$900>N8))+COUNTIFS($L$2:L8,L8,$N$2:N8,N8)-1,1+SUMPRODUCT(($L$2:$L$900=TRUE)*($O$2:$O$900<O8))+COUNTIFS($L$2:L8,L8,$O$2:O8,O8)-1,1+SUMPRODUCT(($L$2:$L$900=TRUE)*($P$2:$P$900>P8))+COUNTIFS($L$2:L8,L8,$P$2:P8,P8)-1,1+SUMPRODUCT(($L$2:$L$900=TRUE)*($Q$2:$Q$900>Q8))+COUNTIFS($L$2:L8,L8,$Q$2:Q8,Q8)-1,1+SUMPRODUCT(($L$2:$L$900=TRUE)*($R$2:$R$900>R8))+COUNTIFS($L$2:L8,L8,$R$2:R8,R8)-1,1+SUMPRODUCT(($L$2:$L$900=TRUE)*($S$2:$S$900>S8))+COUNTIFS($L$2:L8,L8,$S$2:S8,S8)-1,1+SUMPRODUCT(($L$2:$L$900=TRUE)*($T$2:$T$900>T8))+COUNTIFS($L$2:L8,L8,$T$2:T8,T8)-1,1+SUMPRODUCT(($L$2:$L$900=TRUE)*($U$2:$U$900>U8))+COUNTIFS($L$2:L8,L8,$U$2:U8,U8)-1,1+SUMPRODUCT(($L$2:$L$900=TRUE)*($V$2:$V$900>V8))+COUNTIFS($L$2:L8,L8,$V$2:V8,V8)-1,1+SUMPRODUCT(($L$2:$L$900=TRUE)*($W$2:$W$900>W8))+COUNTIFS($L$2:L8,L8,$W$2:W8,W8)-1,1+SUMPRODUCT(($L$2:$L$900=TRUE)*($X$2:$X$900>X8))+COUNTIFS($L$2:L8,L8,$X$2:X8,X8)-1,1+SUMPRODUCT(($L$2:$L$900=TRUE)*($Y$2:$Y$900>Y8))+COUNTIFS($L$2:L8,L8,$Y$2:Y8,Y8)-1,1+SUMPRODUCT(($L$2:$L$900=TRUE)*($Z$2:$Z$900>Z8))+COUNTIFS($L$2:L8,L8,$Z$2:Z8,Z8)-1,1+SUMPRODUCT(($L$2:$L$900=TRUE)*($AA$2:$AA$900>AA8))+COUNTIFS($L$2:L8,L8,$AA$2:AA8,AA8)-1,1+SUMPRODUCT(($L$2:$L$900=TRUE)*($AB$2:$AB$900>AB8))+COUNTIFS($L$2:L8,L8,$AB$2:AB8,AB8)-1,1+SUMPRODUCT(($L$2:$L$900=TRUE)*($AC$2:$AC$900>AC8))+COUNTIFS($L$2:L8,L8,$AC$2:AC8,AC8)-1,1+SUMPRODUCT(($L$2:$L$900=TRUE)*($AD$2:$AD$900>AD8))+COUNTIFS($L$2:L8,L8,$AD$2:AD8,AD8)-1,1+SUMPRODUCT(($L$2:$L$900=TRUE)*($AE$2:$AE$900>AE8))+COUNTIFS($L$2:L8,L8,$AE$2:AE8,AE8)-1,1+SUMPRODUCT(($L$2:$L$900=TRUE)*($AF$2:$AF$900>AF8))+COUNTIFS($L$2:L8,L8,$AF$2:AF8,AF8)-1,1+SUMPRODUCT(($L$2:$L$900=TRUE)*($AG$2:$AG$900>AG8))+COUNTIFS($L$2:L8,L8,$AG$2:AG8,AG8)-1,1+SUMPRODUCT(($L$2:$L$900=TRUE)*($AH$2:$AH$900>AH8))+COUNTIFS($L$2:L8,L8,$AH$2:AH8,AH8)-1,1+SUMPRODUCT(($L$2:$L$900=TRUE)*($AI$2:$AI$900>AI8))+COUNTIFS($L$2:L8,L8,$AI$2:AI8,AI8)-1,1+SUMPRODUCT(($L$2:$L$900=TRUE)*($AJ$2:$AJ$900>AJ8))+COUNTIFS($L$2:L8,L8,$AJ$2:AJ8,AJ8)-1,1+SUMPRODUCT(($L$2:$L$900=TRUE)*($AK$2:$AK$900>AK8))+COUNTIFS($L$2:L8,L8,$AK$2:AK8,AK8)-1,1+SUMPRODUCT(($L$2:$L$900=TRUE)*($AL$2:$AL$900>AL8))+COUNTIFS($L$2:L8,L8,$AL$2:AL8,AL8)-1,1+SUMPRODUCT(($L$2:$L$900=TRUE)*($AM$2:$AM$900>AM8))+COUNTIFS($L$2:L8,L8,$AM$2:AM8,AM8)-1,1+SUMPRODUCT(($L$2:$L$900=TRUE)*($AN$2:$AN$900>AN8))+COUNTIFS($L$2:L8,L8,$AN$2:AN8,AN8)-1)),"") -> 343 | D8: Jesus Aguilar | E8: =IFERROR(INDEX('Draft Log'!$D$4:$D$555,MATCH(D8,'Draft Log'!$C$4:$C$555,0)),"") ->  | F8: =IFERROR(INDEX('ADP-Rank'!$C$2:$C$790,MATCH(D8,'ADP-Rank'!$A$2:$A$790,0)),"") -> 1B | H8: 1B | I8: =IF(AND(F8="OF",'Guts-2'!$M$9=0),IF(MAX(Pre!J8:L8)=Pre!J8,"LF",IF(MAX(Pre!J8:L8)=Pre!K8,"CF",IF(MAX(Pre!J8:L8)=Pre!L8,"RF","LF"))),"") ->  | J8: =IFERROR(INDEX('ADP-Rank'!$X$2:$X$790,MATCH(D8,'ADP-Rank'!$A$2:$A$790,0)),TRUE) -> TRUE | K8: FALSE | L8: =IF(J8=FALSE,FALSE,IF(AND('Your Roto Draft'!$P$6="Hide Drafted Players",K8=TRUE),FALSE,CHOOSE($I$1,TRUE,OR(RIGHT('Your Roto Draft'!$P$5,LEN('Your Roto Draft'!$P$5)-11)=H8,IF(RIGHT('Your Roto Draft'!$P$5,LEN('Your Roto Draft'!$P$5)-11)<>"C",NOT(ISERROR(SEARCH(RIGHT('Your Roto Draft'!$P$5,LEN('Your Roto Draft'!$P$5)-11),Pre!$CB8))),AND(NOT(ISERROR(SEARCH(RIGHT('Your Roto Draft'!$P$5,LEN('Your Roto Draft'!$P$5)-11),Pre!$CB8))),ISERROR(SEARCH("CF",Pre!$CB8)))),RIGHT('Your Roto Draft'!$P$5,LEN('Your Roto Draft'!$P$5)-11)=Pre!BP8),OR(H8="1B",H8="3B",ISNUMBER(SEARCH("1B",Pre!$CB8)),ISNUMBER(SEARCH("3B",Pre!$CB8))),OR(H8="2B",H8="SS",ISNUMBER(SEARCH("2B",Pre!$CB8)),ISNUMBER(SEARCH("SS",Pre!$CB8))),OR(H8="1B",H8="3B",H8="2B",H8="SS",ISNUMBER(SEARCH("1B",Pre!$CB8)),ISNUMBER(SEARCH("3B",Pre!$CB8)),ISNUMBER(SEARCH("2B",Pre!$CB8)),ISNUMBER(SEARCH("SS",Pre!$CB8))),OR(H8="SP",H8="RP",ISNUMBER(SEARCH("SP",Pre!$CB8)),ISNUMBER(SEARCH("RP",Pre!$CB8))),AND(H8<>"RP",H8<>"SP",NOT(ISNUMBER(SEARCH("RP",Pre!$CB8))),NOT(ISNUMBER(SEARCH("SP",Pre!$CB8)))),OR(H8="SP",H8="RP",ISNUMBER(SEARCH("SP",Pre!$CB8)),ISNUMBER(SEARCH("RP",Pre!$CB8)))))) -> TRUE | M8: =IF('ADP-Rank'!AB8="",9999,'ADP-Rank'!AB8) -> 344 | N8: =IF(LEFT($D8,15)="Unlisted Player",-1001,'All-WERTH'!AQ8) -> -3.641798704 | O8: =IF('ADP-Rank'!Z8="",9999,'ADP-Rank'!Z8) -> 289 | P8: =IF(LEFT($D8,15)="Unlisted Player",-1001,IF('All-WERTH'!S8="",-1000,'All-WERTH'!S8)) -> -0.72519326 | Q8: =IF(LEFT($D8,15)="Unlisted Player",-1001,IF('All-WERTH'!T8="",-1000,'All-WERTH'!T8)) -> -0.2523019242 | R8: =IF(LEFT($D8,15)="Unlisted Player",-1001,IF('All-WERTH'!U8="",-1000,'All-WERTH'!U8)) -> -1.124412516 | S8: =IF(LEFT($D8,15)="Unlisted Player",-1001,IF('All-WERTH'!V8="",-1000,'All-WERTH'!V8)) -> -0.4369488383 | T8: =IF(LEFT($D8,15)="Unlisted Player",-1001,IF('All-WERTH'!W8="",-1000,'All-WERTH'!W8)) -> -1.102942165 | U8: =IF(LEFT($D8,15)="Unlisted Player",-1001,IF('All-WERTH'!X8="",-1000,'All-WERTH'!X8)) -> -1000 | V8: =IF(LEFT($D8,15)="Unlisted Player",-1001,IF('All-WERTH'!Y8="",-1000,'All-WERTH'!Y8)) -> -1000 | W8: =IF(LEFT($D8,15)="Unlisted Player",-1001,IF('All-WERTH'!Z8="",-1000,'All-WERTH'!Z8)) -> -1000 | X8: =IF(LEFT($D8,15)="Unlisted Player",-1001,IF('All-WERTH'!AA8="",-1000,'All-WERTH'!AA8)) -> -1000 | Y8: =IF(LEFT($D8,15)="Unlisted Player",-1001,IF('All-WERTH'!AB8="",-1000,'All-WERTH'!AB8)) -> -1000 | Z8: =IF(LEFT($D8,15)="Unlisted Player",-1001,IF('All-WERTH'!AC8="",-1000,'All-WERTH'!AC8)) -> -1000 | AA8: =IF(LEFT($D8,15)="Unlisted Player",-1001,IF('All-WERTH'!AD8="",-1000,'All-WERTH'!AD8)) -> -1000 | AB8: =IF(LEFT($D8,15)="Unlisted Player",-1001,IF('All-WERTH'!AE8="",-1000,'All-WERTH'!AE8)) -> -1000 | AC8: =IF(LEFT($D8,15)="Unlisted Player",-1001,IF('All-WERTH'!AF8="",-1000,'All-WERTH'!AF8)) -> -1000 | AD8: =IF(LEFT($D8,15)="Unlisted Player",-1001,IF('All-WERTH'!AG8="",-1000,'All-WERTH'!AG8)) -> -1000 | AE8: =IF(LEFT($D8,15)="Unlisted Player",-1001,IF('All-WERTH'!AH8="",-1000,'All-WERTH'!AH8)) -> -1000 | AF8: =IF(LEFT($D8,15)="Unlisted Player",-1001,IF('All-WERTH'!AI8="",-1000,'All-WERTH'!AI8)) -> -1000 | AG8: =IF(LEFT($D8,15)="Unlisted Player",-1001,IF('All-WERTH'!AJ8="",-1000,'All-WERTH'!AJ8)) -> -1000 | AH8: =IF(LEFT($D8,15)="Unlisted Player",-1001,IF('All-WERTH'!AK8="",-1000,'All-WERTH'!AK8)) -> -1000 | AI8: =IF(LEFT($D8,15)="Unlisted Player",-1001,IF('All-WERTH'!AL8="",-1000,'All-WERTH'!AL8)) -> -1000 | AJ8: =IF(LEFT($D8,15)="Unlisted Player",-1001,IF('All-WERTH'!AM8="",-1000,'All-WERTH'!AM8)) -> -1000 | AK8: =IF(LEFT($D8,15)="Unlisted Player",-1001,IF('All-WERTH'!AN8="",-1000,'All-WERTH'!AN8)) -> -1000 | AL8: =IF(LEFT($D8,15)="Unlisted Player",-1001,IF('All-WERTH'!AO8="",-1000,'All-WERTH'!AO8)) -> -1000 | AM8: =IF(LEFT($D8,15)="Unlisted Player",-1001,IF('All-WERTH'!AP8="",-1000,'All-WERTH'!AP8)) -> -1000 | AN8: =IF(LEFT($D8,15)="Unlisted Player",-1001,'All-WERTH'!AT8) -> -0.8509884018 | AO8: =IF(ISERROR(VLOOKUP($B7,Keepers!$C$2:$D$450,2,FALSE)),B7,"") -> Gerrit Cole | AP8: =IFERROR(INDEX($AO$1:$AO$899,SMALL(IF($AO$1:$AO$899<>"",ROW($AO$1:$AO$899)),ROW(AO8))),"") -> Trea Turner
A9: Trea Turner | B9: =IFERROR(INDEX($A$1:$A$899,SMALL(IF($A$1:$A$899<>"",ROW($A$1:$A$899)),ROW(A9))),"") -> Shane Bieber | C9: =IFERROR(IF(L9=FALSE,"",CHOOSE(MATCH(RIGHT('Your Roto Draft'!$P$4,LEN('Your Roto Draft'!$P$4)-8),$M$1:$AN$1,0),1+SUMPRODUCT(($L$2:$L$900=TRUE)*($M$2:$M$900<M9))+COUNTIFS($L$2:L9,L9,$M$2:M9,M9)-1,1+SUMPRODUCT(($L$2:$L$900=TRUE)*($N$2:$N$900>N9))+COUNTIFS($L$2:L9,L9,$N$2:N9,N9)-1,1+SUMPRODUCT(($L$2:$L$900=TRUE)*($O$2:$O$900<O9))+COUNTIFS($L$2:L9,L9,$O$2:O9,O9)-1,1+SUMPRODUCT(($L$2:$L$900=TRUE)*($P$2:$P$900>P9))+COUNTIFS($L$2:L9,L9,$P$2:P9,P9)-1,1+SUMPRODUCT(($L$2:$L$900=TRUE)*($Q$2:$Q$900>Q9))+COUNTIFS($L$2:L9,L9,$Q$2:Q9,Q9)-1,1+SUMPRODUCT(($L$2:$L$900=TRUE)*($R$2:$R$900>R9))+COUNTIFS($L$2:L9,L9,$R$2:R9,R9)-1,1+SUMPRODUCT(($L$2:$L$900=TRUE)*($S$2:$S$900>S9))+COUNTIFS($L$2:L9,L9,$S$2:S9,S9)-1,1+SUMPRODUCT(($L$2:$L$900=TRUE)*($T$2:$T$900>T9))+COUNTIFS($L$2:L9,L9,$T$2:T9,T9)-1,1+SUMPRODUCT(($L$2:$L$900=TRUE)*($U$2:$U$900>U9))+COUNTIFS($L$2:L9,L9,$U$2:U9,U9)-1,1+SUMPRODUCT(($L$2:$L$900=TRUE)*($V$2:$V$900>V9))+COUNTIFS($L$2:L9,L9,$V$2:V9,V9)-1,1+SUMPRODUCT(($L$2:$L$900=TRUE)*($W$2:$W$900>W9))+COUNTIFS($L$2:L9,L9,$W$2:W9,W9)-1,1+SUMPRODUCT(($L$2:$L$900=TRUE)*($X$2:$X$900>X9))+COUNTIFS($L$2:L9,L9,$X$2:X9,X9)-1,1+SUMPRODUCT(($L$2:$L$900=TRUE)*($Y$2:$Y$900>Y9))+COUNTIFS($L$2:L9,L9,$Y$2:Y9,Y9)-1,1+SUMPRODUCT(($L$2:$L$900=TRUE)*($Z$2:$Z$900>Z9))+COUNTIFS($L$2:L9,L9,$Z$2:Z9,Z9)-1,1+SUMPRODUCT(($L$2:$L$900=TRUE)*($AA$2:$AA$900>AA9))+COUNTIFS($L$2:L9,L9,$AA$2:AA9,AA9)-1,1+SUMPRODUCT(($L$2:$L$900=TRUE)*($AB$2:$AB$900>AB9))+COUNTIFS($L$2:L9,L9,$AB$2:AB9,AB9)-1,1+SUMPRODUCT(($L$2:$L$900=TRUE)*($AC$2:$AC$900>AC9))+COUNTIFS($L$2:L9,L9,$AC$2:AC9,AC9)-1,1+SUMPRODUCT(($L$2:$L$900=TRUE)*($AD$2:$AD$900>AD9))+COUNTIFS($L$2:L9,L9,$AD$2:AD9,AD9)-1,1+SUMPRODUCT(($L$2:$L$900=TRUE)*($AE$2:$AE$900>AE9))+COUNTIFS($L$2:L9,L9,$AE$2:AE9,AE9)-1,1+SUMPRODUCT(($L$2:$L$900=TRUE)*($AF$2:$AF$900>AF9))+COUNTIFS($L$2:L9,L9,$AF$2:AF9,AF9)-1,1+SUMPRODUCT(($L$2:$L$900=TRUE)*($AG$2:$AG$900>AG9))+COUNTIFS($L$2:L9,L9,$AG$2:AG9,AG9)-1,1+SUMPRODUCT(($L$2:$L$900=TRUE)*($AH$2:$AH$900>AH9))+COUNTIFS($L$2:L9,L9,$AH$2:AH9,AH9)-1,1+SUMPRODUCT(($L$2:$L$900=TRUE)*($AI$2:$AI$900>AI9))+COUNTIFS($L$2:L9,L9,$AI$2:AI9,AI9)-1,1+SUMPRODUCT(($L$2:$L$900=TRUE)*($AJ$2:$AJ$900>AJ9))+COUNTIFS($L$2:L9,L9,$AJ$2:AJ9,AJ9)-1,1+SUMPRODUCT(($L$2:$L$900=TRUE)*($AK$2:$AK$900>AK9))+COUNTIFS($L$2:L9,L9,$AK$2:AK9,AK9)-1,1+SUMPRODUCT(($L$2:$L$900=TRUE)*($AL$2:$AL$900>AL9))+COUNTIFS($L$2:L9,L9,$AL$2:AL9,AL9)-1,1+SUMPRODUCT(($L$2:$L$900=TRUE)*($AM$2:$AM$900>AM9))+COUNTIFS($L$2:L9,L9,$AM$2:AM9,AM9)-1,1+SUMPRODUCT(($L$2:$L$900=TRUE)*($AN$2:$AN$900>AN9))+COUNTIFS($L$2:L9,L9,$AN$2:AN9,AN9)-1)),"") -> 378 | D9: Nick Ahmed | E9: =IFERROR(INDEX('Draft Log'!$D$4:$D$555,MATCH(D9,'Draft Log'!$C$4:$C$555,0)),"") ->  | F9: =IFERROR(INDEX('ADP-Rank'!$C$2:$C$790,MATCH(D9,'ADP-Rank'!$A$2:$A$790,0)),"") -> SS | H9: SS | I9: =IF(AND(F9="OF",'Guts-2'!$M$9=0),IF(MAX(Pre!J9:L9)=Pre!J9,"LF",IF(MAX(Pre!J9:L9)=Pre!K9,"CF",IF(MAX(Pre!J9:L9)=Pre!L9,"RF","LF"))),"") ->  | J9: =IFERROR(INDEX('ADP-Rank'!$X$2:$X$790,MATCH(D9,'ADP-Rank'!$A$2:$A$790,0)),TRUE) -> TRUE | K9: FALSE | L9: =IF(J9=FALSE,FALSE,IF(AND('Your Roto Draft'!$P$6="Hide Drafted Players",K9=TRUE),FALSE,CHOOSE($I$1,TRUE,OR(RIGHT('Your Roto Draft'!$P$5,LEN('Your Roto Draft'!$P$5)-11)=H9,IF(RIGHT('Your Roto Draft'!$P$5,LEN('Your Roto Draft'!$P$5)-11)<>"C",NOT(ISERROR(SEARCH(RIGHT('Your Roto Draft'!$P$5,LEN('Your Roto Draft'!$P$5)-11),Pre!$CB9))),AND(NOT(ISERROR(SEARCH(RIGHT('Your Roto Draft'!$P$5,LEN('Your Roto Draft'!$P$5)-11),Pre!$CB9))),ISERROR(SEARCH("CF",Pre!$CB9)))),RIGHT('Your Roto Draft'!$P$5,LEN('Your Roto Draft'!$P$5)-11)=Pre!BP9),OR(H9="1B",H9="3B",ISNUMBER(SEARCH("1B",Pre!$CB9)),ISNUMBER(SEARCH("3B",Pre!$CB9))),OR(H9="2B",H9="SS",ISNUMBER(SEARCH("2B",Pre!$CB9)),ISNUMBER(SEARCH("SS",Pre!$CB9))),OR(H9="1B",H9="3B",H9="2B",H9="SS",ISNUMBER(SEARCH("1B",Pre!$CB9)),ISNUMBER(SEARCH("3B",Pre!$CB9)),ISNUMBER(SEARCH("2B",Pre!$CB9)),ISNUMBER(SEARCH("SS",Pre!$CB9))),OR(H9="SP",H9="RP",ISNUMBER(SEARCH("SP",Pre!$CB9)),ISNUMBER(SEARCH("RP",Pre!$CB9))),AND(H9<>"RP",H9<>"SP",NOT(ISNUMBER(SEARCH("RP",Pre!$CB9))),NOT(ISNUMBER(SEARCH("SP",Pre!$CB9)))),OR(H9="SP",H9="RP",ISNUMBER(SEARCH("SP",Pre!$CB9)),ISNUMBER(SEARCH("RP",Pre!$CB9)))))) -> TRUE | M9: =IF('ADP-Rank'!AB9="",9999,'ADP-Rank'!AB9) -> 369.8 | N9: =IF(LEFT($D9,15)="Unlisted Player",-1001,'All-WERTH'!AQ9) -> -2.594927239 | O9: =IF('ADP-Rank'!Z9="",9999,'ADP-Rank'!Z9) -> 334 | P9: =IF(LEFT($D9,15)="Unlisted Player",-1001,IF('All-WERTH'!S9="",-1000,'All-WERTH'!S9)) -> -0.8717581473 | Q9: =IF(LEFT($D9,15)="Unlisted Player",-1001,IF('All-WERTH'!T9="",-1000,'All-WERTH'!T9)) -> -0.808427758 | R9: =IF(LEFT($D9,15)="Unlisted Player",-1001,IF('All-WERTH'!U9="",-1000,'All-WERTH'!U9)) -> -0.470073849 | S9: =IF(LEFT($D9,15)="Unlisted Player",-1001,IF('All-WERTH'!V9="",-1000,'All-WERTH'!V9)) -> -0.3739567314 | T9: =IF(LEFT($D9,15)="Unlisted Player",-1001,IF('All-WERTH'!W9="",-1000,'All-WERTH'!W9)) -> -0.07071075282 | U9: =IF(LEFT($D9,15)="Unlisted Player",-1001,IF('All-WERTH'!X9="",-1000,'All-WERTH'!X9)) -> -1000 | V9: =IF(LEFT($D9,15)="Unlisted Player",-1001,IF('All-WERTH'!Y9="",-1000,'All-WERTH'!Y9)) -> -1000 | W9: =IF(LEFT($D9,15)="Unlisted Player",-1001,IF('All-WERTH'!Z9="",-1000,'All-WERTH'!Z9)) -> -1000 | X9: =IF(LEFT($D9,15)="Unlisted Player",-1001,IF('All-WERTH'!AA9="",-1000,'All-WERTH'!AA9)) -> -1000 | Y9: =IF(LEFT($D9,15)="Unlisted Player",-1001,IF('All-WERTH'!AB9="",-1000,'All-WERTH'!AB9)) -> -1000 | Z9: =IF(LEFT($D9,15)="Unlisted Player",-1001,IF('All-WERTH'!AC9="",-1000,'All-WERTH'!AC9)) -> -1000 | AA9: =IF(LEFT($D9,15)="Unlisted Player",-1001,IF('All-WERTH'!AD9="",-1000,'All-WERTH'!AD9)) -> -1000 | AB9: =IF(LEFT($D9,15)="Unlisted Player",-1001,IF('All-WERTH'!AE9="",-1000,'All-WERTH'!AE9)) -> -1000 | AC9: =IF(LEFT($D9,15)="Unlisted Player",-1001,IF('All-WERTH'!AF9="",-1000,'All-WERTH'!AF9)) -> -1000 | AD9: =IF(LEFT($D9,15)="Unlisted Player",-1001,IF('All-WERTH'!AG9="",-1000,'All-WERTH'!AG9)) -> -1000 | AE9: =IF(LEFT($D9,15)="Unlisted Player",-1001,IF('All-WERTH'!AH9="",-1000,'All-WERTH'!AH9)) -> -1000 | AF9: =IF(LEFT($D9,15)="Unlisted Player",-1001,IF('All-WERTH'!AI9="",-1000,'All-WERTH'!AI9)) -> -1000 | AG9: =IF(LEFT($D9,15)="Unlisted Player",-1001,IF('All-WERTH'!AJ9="",-1000,'All-WERTH'!AJ9)) -> -1000 | AH9: =IF(LEFT($D9,15)="Unlisted Player",-1001,IF('All-WERTH'!AK9="",-1000,'All-WERTH'!AK9)) -> -1000 | AI9: =IF(LEFT($D9,15)="Unlisted Player",-1001,IF('All-WERTH'!AL9="",-1000,'All-WERTH'!AL9)) -> -1000 | AJ9: =IF(LEFT($D9,15)="Unlisted Player",-1001,IF('All-WERTH'!AM9="",-1000,'All-WERTH'!AM9)) -> -1000 | AK9: =IF(LEFT($D9,15)="Unlisted Player",-1001,IF('All-WERTH'!AN9="",-1000,'All-WERTH'!AN9)) -> -1000 | AL9: =IF(LEFT($D9,15)="Unlisted Player",-1001,IF('All-WERTH'!AO9="",-1000,'All-WERTH'!AO9)) -> -1000 | AM9: =IF(LEFT($D9,15)="Unlisted Player",-1001,IF('All-WERTH'!AP9="",-1000,'All-WERTH'!AP9)) -> -1000 | AN9: =IF(LEFT($D9,15)="Unlisted Player",-1001,'All-WERTH'!AT9) -> 0.05047720068 | AO9: =IF(ISERROR(VLOOKUP($B8,Keepers!$C$2:$D$450,2,FALSE)),B8,"") -> Trea Turner | AP9: =IFERROR(INDEX($AO$1:$AO$899,SMALL(IF($AO$1:$AO$899<>"",ROW($AO$1:$AO$899)),ROW(AO9))),"") -> Shane Bieber
A10: Shane Bieber | B10: =IFERROR(INDEX($A$1:$A$899,SMALL(IF($A$1:$A$899<>"",ROW($A$1:$A$899)),ROW(A10))),"") -> Jose Ramirez | C10: =IFERROR(IF(L10=FALSE,"",CHOOSE(MATCH(RIGHT('Your Roto Draft'!$P$4,LEN('Your Roto Draft'!$P$4)-8),$M$1:$AN$1,0),1+SUMPRODUCT(($L$2:$L$900=TRUE)*($M$2:$M$900<M10))+COUNTIFS($L$2:L10,L10,$M$2:M10,M10)-1,1+SUMPRODUCT(($L$2:$L$900=TRUE)*($N$2:$N$900>N10))+COUNTIFS($L$2:L10,L10,$N$2:N10,N10)-1,1+SUMPRODUCT(($L$2:$L$900=TRUE)*($O$2:$O$900<O10))+COUNTIFS($L$2:L10,L10,$O$2:O10,O10)-1,1+SUMPRODUCT(($L$2:$L$900=TRUE)*($P$2:$P$900>P10))+COUNTIFS($L$2:L10,L10,$P$2:P10,P10)-1,1+SUMPRODUCT(($L$2:$L$900=TRUE)*($Q$2:$Q$900>Q10))+COUNTIFS($L$2:L10,L10,$Q$2:Q10,Q10)-1,1+SUMPRODUCT(($L$2:$L$900=TRUE)*($R$2:$R$900>R10))+COUNTIFS($L$2:L10,L10,$R$2:R10,R10)-1,1+SUMPRODUCT(($L$2:$L$900=TRUE)*($S$2:$S$900>S10))+COUNTIFS($L$2:L10,L10,$S$2:S10,S10)-1,1+SUMPRODUCT(($L$2:$L$900=TRUE)*($T$2:$T$900>T10))+COUNTIFS($L$2:L10,L10,$T$2:T10,T10)-1,1+SUMPRODUCT(($L$2:$L$900=TRUE)*($U$2:$U$900>U10))+COUNTIFS($L$2:L10,L10,$U$2:U10,U10)-1,1+SUMPRODUCT(($L$2:$L$900=TRUE)*($V$2:$V$900>V10))+COUNTIFS($L$2:L10,L10,$V$2:V10,V10)-1,1+SUMPRODUCT(($L$2:$L$900=TRUE)*($W$2:$W$900>W10))+COUNTIFS($L$2:L10,L10,$W$2:W10,W10)-1,1+SUMPRODUCT(($L$2:$L$900=TRUE)*($X$2:$X$900>X10))+COUNTIFS($L$2:L10,L10,$X$2:X10,X10)-1,1+SUMPRODUCT(($L$2:$L$900=TRUE)*($Y$2:$Y$900>Y10))+COUNTIFS($L$2:L10,L10,$Y$2:Y10,Y10)-1,1+SUMPRODUCT(($L$2:$L$900=TRUE)*($Z$2:$Z$900>Z10))+COUNTIFS($L$2:L10,L10,$Z$2:Z10,Z10)-1,1+SUMPRODUCT(($L$2:$L$900=TRUE)*($AA$2:$AA$900>AA10))+COUNTIFS($L$2:L10,L10,$AA$2:AA10,AA10)-1,1+SUMPRODUCT(($L$2:$L$900=TRUE)*($AB$2:$AB$900>AB10))+COUNTIFS($L$2:L10,L10,$AB$2:AB10,AB10)-1,1+SUMPRODUCT(($L$2:$L$900=TRUE)*($AC$2:$AC$900>AC10))+COUNTIFS($L$2:L10,L10,$AC$2:AC10,AC10)-1,1+SUMPRODUCT(($L$2:$L$900=TRUE)*($AD$2:$AD$900>AD10))+COUNTIFS($L$2:L10,L10,$AD$2:AD10,AD10)-1,1+SUMPRODUCT(($L$2:$L$900=TRUE)*($AE$2:$AE$900>AE10))+COUNTIFS($L$2:L10,L10,$AE$2:AE10,AE10)-1,1+SUMPRODUCT(($L$2:$L$900=TRUE)*($AF$2:$AF$900>AF10))+COUNTIFS($L$2:L10,L10,$AF$2:AF10,AF10)-1,1+SUMPRODUCT(($L$2:$L$900=TRUE)*($AG$2:$AG$900>AG10))+COUNTIFS($L$2:L10,L10,$AG$2:AG10,AG10)-1,1+SUMPRODUCT(($L$2:$L$900=TRUE)*($AH$2:$AH$900>AH10))+COUNTIFS($L$2:L10,L10,$AH$2:AH10,AH10)-1,1+SUMPRODUCT(($L$2:$L$900=TRUE)*($AI$2:$AI$900>AI10))+COUNTIFS($L$2:L10,L10,$AI$2:AI10,AI10)-1,1+SUMPRODUCT(($L$2:$L$900=TRUE)*($AJ$2:$AJ$900>AJ10))+COUNTIFS($L$2:L10,L10,$AJ$2:AJ10,AJ10)-1,1+SUMPRODUCT(($L$2:$L$900=TRUE)*($AK$2:$AK$900>AK10))+COUNTIFS($L$2:L10,L10,$AK$2:AK10,AK10)-1,1+SUMPRODUCT(($L$2:$L$900=TRUE)*($AL$2:$AL$900>AL10))+COUNTIFS($L$2:L10,L10,$AL$2:AL10,AL10)-1,1+SUMPRODUCT(($L$2:$L$900=TRUE)*($AM$2:$AM$900>AM10))+COUNTIFS($L$2:L10,L10,$AM$2:AM10,AM10)-1,1+SUMPRODUCT(($L$2:$L$900=TRUE)*($AN$2:$AN$900>AN10))+COUNTIFS($L$2:L10,L10,$AN$2:AN10,AN10)-1)),"") -> 462 | D10: Shogo Akiyama | E10: =IFERROR(INDEX('Draft Log'!$D$4:$D$555,MATCH(D10,'Draft Log'!$C$4:$C$555,0)),"") ->  | F10: =IFERROR(INDEX('ADP-Rank'!$C$2:$C$790,MATCH(D10,'ADP-Rank'!$A$2:$A$790,0)),"") -> OF | H10: OF | I10: =IF(AND(F10="OF",'Guts-2'!$M$9=0),IF(MAX(Pre!J10:L10)=Pre!J10,"LF",IF(MAX(Pre!J10:L10)=Pre!K10,"CF",IF(MAX(Pre!J10:L10)=Pre!L10,"RF","LF"))),"") ->  | J10: =IFERROR(INDEX('ADP-Rank'!$X$2:$X$790,MATCH(D10,'ADP-Rank'!$A$2:$A$790,0)),TRUE) -> TRUE | K10: FALSE | L10: =IF(J10=FALSE,FALSE,IF(AND('Your Roto Draft'!$P$6="Hide Drafted Players",K10=TRUE),FALSE,CHOOSE($I$1,TRUE,OR(RIGHT('Your Roto Draft'!$P$5,LEN('Your Roto Draft'!$P$5)-11)=H10,IF(RIGHT('Your Roto Draft'!$P$5,LEN('Your Roto Draft'!$P$5)-11)<>"C",NOT(ISERROR(SEARCH(RIGHT('Your Roto Draft'!$P$5,LEN('Your Roto Draft'!$P$5)-11),Pre!$CB10))),AND(NOT(ISERROR(SEARCH(RIGHT('Your Roto Draft'!$P$5,LEN('Your Roto Draft'!$P$5)-11),Pre!$CB10))),ISERROR(SEARCH("CF",Pre!$CB10)))),RIGHT('Your Roto Draft'!$P$5,LEN('Your Roto Draft'!$P$5)-11)=Pre!BP10),OR(H10="1B",H10="3B",ISNUMBER(SEARCH("1B",Pre!$CB10)),ISNUMBER(SEARCH("3B",Pre!$CB10))),OR(H10="2B",H10="SS",ISNUMBER(SEARCH("2B",Pre!$CB10)),ISNUMBER(SEARCH("SS",Pre!$CB10))),OR(H10="1B",H10="3B",H10="2B",H10="SS",ISNUMBER(SEARCH("1B",Pre!$CB10)),ISNUMBER(SEARCH("3B",Pre!$CB10)),ISNUMBER(SEARCH("2B",Pre!$CB10)),ISNUMBER(SEARCH("SS",Pre!$CB10))),OR(H10="SP",H10="RP",ISNUMBER(SEARCH("SP",Pre!$CB10)),ISNUMBER(SEARCH("RP",Pre!$CB10))),AND(H10<>"RP",H10<>"SP",NOT(ISNUMBER(SEARCH("RP",Pre!$CB10))),NOT(ISNUMBER(SEARCH("SP",Pre!$CB10)))),OR(H10="SP",H10="RP",ISNUMBER(SEARCH("SP",Pre!$CB10)),ISNUMBER(SEARCH("RP",Pre!$CB10)))))) -> TRUE | M10: =IF('ADP-Rank'!AB10="",9999,'ADP-Rank'!AB10) -> 432.5 | N10: =IF(LEFT($D10,15)="Unlisted Player",-1001,'All-WERTH'!AQ10) -> -4.408897179 | O10: =IF('ADP-Rank'!Z10="",9999,'ADP-Rank'!Z10) -> 452 | P10: =IF(LEFT($D10,15)="Unlisted Player",-1001,IF('All-WERTH'!S10="",-1000,'All-WERTH'!S10)) -> 0.01280525341 | Q10: =IF(LEFT($D10,15)="Unlisted Player",-1001,IF('All-WERTH'!T10="",-1000,'All-WERTH'!T10)) -> -1.649542825 | R10: =IF(LEFT($D10,15)="Unlisted Player",-1001,IF('All-WERTH'!U10="",-1000,'All-WERTH'!U10)) -> -1.095454967 | S10: =IF(LEFT($D10,15)="Unlisted Player",-1001,IF('All-WERTH'!V10="",-1000,'All-WERTH'!V10)) -> -1.922470428 | T10: =IF(LEFT($D10,15)="Unlisted Player",-1001,IF('All-WERTH'!W10="",-1000,'All-WERTH'!W10)) -> 0.245765787 | U10: =IF(LEFT($D10,15)="Unlisted Player",-1001,IF('All-WERTH'!X10="",-1000,'All-WERTH'!X10)) -> -1000 | V10: =IF(LEFT($D10,15)="Unlisted Player",-1001,IF('All-WERTH'!Y10="",-1000,'All-WERTH'!Y10)) -> -1000 | W10: =IF(LEFT($D10,15)="Unlisted Player",-1001,IF('All-WERTH'!Z10="",-1000,'All-WERTH'!Z10)) -> -1000 | X10: =IF(LEFT($D10,15)="Unlisted Player",-1001,IF('All-WERTH'!AA10="",-1000,'All-WERTH'!AA10)) -> -1000 | Y10: =IF(LEFT($D10,15)="Unlisted Player",-1001,IF('All-WERTH'!AB10="",-1000,'All-WERTH'!AB10)) -> -1000 | Z10: =IF(LEFT($D10,15)="Unlisted Player",-1001,IF('All-WERTH'!AC10="",-1000,'All-WERTH'!AC10)) -> -1000 | AA10: =IF(LEFT($D10,15)="Unlisted Player",-1001,IF('All-WERTH'!AD10="",-1000,'All-WERTH'!AD10)) -> -1000 | AB10: =IF(LEFT($D10,15)="Unlisted Player",-1001,IF('All-WERTH'!AE10="",-1000,'All-WERTH'!AE10)) -> -1000 | AC10: =IF(LEFT($D10,15)="Unlisted Player",-1001,IF('All-WERTH'!AF10="",-1000,'All-WERTH'!AF10)) -> -1000 | AD10: =IF(LEFT($D10,15)="Unlisted Player",-1001,IF('All-WERTH'!AG10="",-1000,'All-WERTH'!AG10)) -> -1000 | AE10: =IF(LEFT($D10,15)="Unlisted Player",-1001,IF('All-WERTH'!AH10="",-1000,'All-WERTH'!AH10)) -> -1000 | AF10: =IF(LEFT($D10,15)="Unlisted Player",-1001,IF('All-WERTH'!AI10="",-1000,'All-WERTH'!AI10)) -> -1000 | AG10: =IF(LEFT($D10,15)="Unlisted Player",-1001,IF('All-WERTH'!AJ10="",-1000,'All-WERTH'!AJ10)) -> -1000 | AH10: =IF(LEFT($D10,15)="Unlisted Player",-1001,IF('All-WERTH'!AK10="",-1000,'All-WERTH'!AK10)) -> -1000 | AI10: =IF(LEFT($D10,15)="Unlisted Player",-1001,IF('All-WERTH'!AL10="",-1000,'All-WERTH'!AL10)) -> -1000 | AJ10: =IF(LEFT($D10,15)="Unlisted Player",-1001,IF('All-WERTH'!AM10="",-1000,'All-WERTH'!AM10)) -> -1000 | AK10: =IF(LEFT($D10,15)="Unlisted Player",-1001,IF('All-WERTH'!AN10="",-1000,'All-WERTH'!AN10)) -> -1000 | AL10: =IF(LEFT($D10,15)="Unlisted Player",-1001,IF('All-WERTH'!AO10="",-1000,'All-WERTH'!AO10)) -> -1000 | AM10: =IF(LEFT($D10,15)="Unlisted Player",-1001,IF('All-WERTH'!AP10="",-1000,'All-WERTH'!AP10)) -> -1000 | AN10: =IF(LEFT($D10,15)="Unlisted Player",-1001,'All-WERTH'!AT10) -> -1.548302446 | AO10: =IF(ISERROR(VLOOKUP($B9,Keepers!$C$2:$D$450,2,FALSE)),B9,"") -> Shane Bieber | AP10: =IFERROR(INDEX($AO$1:$AO$899,SMALL(IF($AO$1:$AO$899<>"",ROW($AO$1:$AO$899)),ROW(AO10))),"") -> Jose Ramirez
A11: Jose Ramirez | B11: =IFERROR(INDEX($A$1:$A$899,SMALL(IF($A$1:$A$899<>"",ROW($A$1:$A$899)),ROW(A11))),"") -> Freddie Freeman | C11: =IFERROR(IF(L11=FALSE,"",CHOOSE(MATCH(RIGHT('Your Roto Draft'!$P$4,LEN('Your Roto Draft'!$P$4)-8),$M$1:$AN$1,0),1+SUMPRODUCT(($L$2:$L$900=TRUE)*($M$2:$M$900<M11))+COUNTIFS($L$2:L11,L11,$M$2:M11,M11)-1,1+SUMPRODUCT(($L$2:$L$900=TRUE)*($N$2:$N$900>N11))+COUNTIFS($L$2:L11,L11,$N$2:N11,N11)-1,1+SUMPRODUCT(($L$2:$L$900=TRUE)*($O$2:$O$900<O11))+COUNTIFS($L$2:L11,L11,$O$2:O11,O11)-1,1+SUMPRODUCT(($L$2:$L$900=TRUE)*($P$2:$P$900>P11))+COUNTIFS($L$2:L11,L11,$P$2:P11,P11)-1,1+SUMPRODUCT(($L$2:$L$900=TRUE)*($Q$2:$Q$900>Q11))+COUNTIFS($L$2:L11,L11,$Q$2:Q11,Q11)-1,1+SUMPRODUCT(($L$2:$L$900=TRUE)*($R$2:$R$900>R11))+COUNTIFS($L$2:L11,L11,$R$2:R11,R11)-1,1+SUMPRODUCT(($L$2:$L$900=TRUE)*($S$2:$S$900>S11))+COUNTIFS($L$2:L11,L11,$S$2:S11,S11)-1,1+SUMPRODUCT(($L$2:$L$900=TRUE)*($T$2:$T$900>T11))+COUNTIFS($L$2:L11,L11,$T$2:T11,T11)-1,1+SUMPRODUCT(($L$2:$L$900=TRUE)*($U$2:$U$900>U11))+COUNTIFS($L$2:L11,L11,$U$2:U11,U11)-1,1+SUMPRODUCT(($L$2:$L$900=TRUE)*($V$2:$V$900>V11))+COUNTIFS($L$2:L11,L11,$V$2:V11,V11)-1,1+SUMPRODUCT(($L$2:$L$900=TRUE)*($W$2:$W$900>W11))+COUNTIFS($L$2:L11,L11,$W$2:W11,W11)-1,1+SUMPRODUCT(($L$2:$L$900=TRUE)*($X$2:$X$900>X11))+COUNTIFS($L$2:L11,L11,$X$2:X11,X11)-1,1+SUMPRODUCT(($L$2:$L$900=TRUE)*($Y$2:$Y$900>Y11))+COUNTIFS($L$2:L11,L11,$Y$2:Y11,Y11)-1,1+SUMPRODUCT(($L$2:$L$900=TRUE)*($Z$2:$Z$900>Z11))+COUNTIFS($L$2:L11,L11,$Z$2:Z11,Z11)-1,1+SUMPRODUCT(($L$2:$L$900=TRUE)*($AA$2:$AA$900>AA11))+COUNTIFS($L$2:L11,L11,$AA$2:AA11,AA11)-1,1+SUMPRODUCT(($L$2:$L$900=TRUE)*($AB$2:$AB$900>AB11))+COUNTIFS($L$2:L11,L11,$AB$2:AB11,AB11)-1,1+SUMPRODUCT(($L$2:$L$900=TRUE)*($AC$2:$AC$900>AC11))+COUNTIFS($L$2:L11,L11,$AC$2:AC11,AC11)-1,1+SUMPRODUCT(($L$2:$L$900=TRUE)*($AD$2:$AD$900>AD11))+COUNTIFS($L$2:L11,L11,$AD$2:AD11,AD11)-1,1+SUMPRODUCT(($L$2:$L$900=TRUE)*($AE$2:$AE$900>AE11))+COUNTIFS($L$2:L11,L11,$AE$2:AE11,AE11)-1,1+SUMPRODUCT(($L$2:$L$900=TRUE)*($AF$2:$AF$900>AF11))+COUNTIFS($L$2:L11,L11,$AF$2:AF11,AF11)-1,1+SUMPRODUCT(($L$2:$L$900=TRUE)*($AG$2:$AG$900>AG11))+COUNTIFS($L$2:L11,L11,$AG$2:AG11,AG11)-1,1+SUMPRODUCT(($L$2:$L$900=TRUE)*($AH$2:$AH$900>AH11))+COUNTIFS($L$2:L11,L11,$AH$2:AH11,AH11)-1,1+SUMPRODUCT(($L$2:$L$900=TRUE)*($AI$2:$AI$900>AI11))+COUNTIFS($L$2:L11,L11,$AI$2:AI11,AI11)-1,1+SUMPRODUCT(($L$2:$L$900=TRUE)*($AJ$2:$AJ$900>AJ11))+COUNTIFS($L$2:L11,L11,$AJ$2:AJ11,AJ11)-1,1+SUMPRODUCT(($L$2:$L$900=TRUE)*($AK$2:$AK$900>AK11))+COUNTIFS($L$2:L11,L11,$AK$2:AK11,AK11)-1,1+SUMPRODUCT(($L$2:$L$900=TRUE)*($AL$2:$AL$900>AL11))+COUNTIFS($L$2:L11,L11,$AL$2:AL11,AL11)-1,1+SUMPRODUCT(($L$2:$L$900=TRUE)*($AM$2:$AM$900>AM11))+COUNTIFS($L$2:L11,L11,$AM$2:AM11,AM11)-1,1+SUMPRODUCT(($L$2:$L$900=TRUE)*($AN$2:$AN$900>AN11))+COUNTIFS($L$2:L11,L11,$AN$2:AN11,AN11)-1)),"") -> 525 | D11: Keegan Akin | E11: =IFERROR(INDEX('Draft Log'!$D$4:$D$555,MATCH(D11,'Draft Log'!$C$4:$C$555,0)),"") ->  | F11: =IFERROR(INDEX('ADP-Rank'!$C$2:$C$790,MATCH(D11,'ADP-Rank'!$A$2:$A$790,0)),"") -> SP | H11: SP | I11: =IF(AND(F11="OF",'Guts-2'!$M$9=0),IF(MAX(Pre!J11:L11)=Pre!J11,"LF",IF(MAX(Pre!J11:L11)=Pre!K11,"CF",IF(MAX(Pre!J11:L11)=Pre!L11,"RF","LF"))),"") ->  | J11: =IFERROR(INDEX('ADP-Rank'!$X$2:$X$790,MATCH(D11,'ADP-Rank'!$A$2:$A$790,0)),TRUE) -> TRUE | K11: FALSE | L11: =IF(J11=FALSE,FALSE,IF(AND('Your Roto Draft'!$P$6="Hide Drafted Players",K11=TRUE),FALSE,CHOOSE($I$1,TRUE,OR(RIGHT('Your Roto Draft'!$P$5,LEN('Your Roto Draft'!$P$5)-11)=H11,IF(RIGHT('Your Roto Draft'!$P$5,LEN('Your Roto Draft'!$P$5)-11)<>"C",NOT(ISERROR(SEARCH(RIGHT('Your Roto Draft'!$P$5,LEN('Your Roto Draft'!$P$5)-11),Pre!$CB11))),AND(NOT(ISERROR(SEARCH(RIGHT('Your Roto Draft'!$P$5,LEN('Your Roto Draft'!$P$5)-11),Pre!$CB11))),ISERROR(SEARCH("CF",Pre!$CB11)))),RIGHT('Your Roto Draft'!$P$5,LEN('Your Roto Draft'!$P$5)-11)=Pre!BP11),OR(H11="1B",H11="3B",ISNUMBER(SEARCH("1B",Pre!$CB11)),ISNUMBER(SEARCH("3B",Pre!$CB11))),OR(H11="2B",H11="SS",ISNUMBER(SEARCH("2B",Pre!$CB11)),ISNUMBER(SEARCH("SS",Pre!$CB11))),OR(H11="1B",H11="3B",H11="2B",H11="SS",ISNUMBER(SEARCH("1B",Pre!$CB11)),ISNUMBER(SEARCH("3B",Pre!$CB11)),ISNUMBER(SEARCH("2B",Pre!$CB11)),ISNUMBER(SEARCH("SS",Pre!$CB11))),OR(H11="SP",H11="RP",ISNUMBER(SEARCH("SP",Pre!$CB11)),ISNUMBER(SEARCH("RP",Pre!$CB11))),AND(H11<>"RP",H11<>"SP",NOT(ISNUMBER(SEARCH("RP",Pre!$CB11))),NOT(ISNUMBER(SEARCH("SP",Pre!$CB11)))),OR(H11="SP",H11="RP",ISNUMBER(SEARCH("SP",Pre!$CB11)),ISNUMBER(SEARCH("RP",Pre!$CB11)))))) -> TRUE | M11: =IF('ADP-Rank'!AB11="",9999,'ADP-Rank'!AB11) -> 505.5 | N11: =IF(LEFT($D11,15)="Unlisted Player",-1001,'All-WERTH'!AQ11) -> -1000 | O11: =IF('ADP-Rank'!Z11="",9999,'ADP-Rank'!Z11) -> 485 | P11: =IF(LEFT($D11,15)="Unlisted Player",-1001,IF('All-WERTH'!S11="",-1000,'All-WERTH'!S11)) -> -1000 | Q11: =IF(LEFT($D11,15)="Unlisted Player",-1001,IF('All-WERTH'!T11="",-1000,'All-WERTH'!T11)) -> -1000 | R11: =IF(LEFT($D11,15)="Unlisted Player",-1001,IF('All-WERTH'!U11="",-1000,'All-WERTH'!U11)) -> -1000 | S11: =IF(LEFT($D11,15)="Unlisted Player",-1001,IF('All-WERTH'!V11="",-1000,'All-WERTH'!V11)) -> -1000 | T11: =IF(LEFT($D11,15)="Unlisted Player",-1001,IF('All-WERTH'!W11="",-1000,'All-WERTH'!W11)) -> -1000 | U11: =IF(LEFT($D11,15)="Unlisted Player",-1001,IF('All-WERTH'!X11="",-1000,'All-WERTH'!X11)) -> -1000 | V11: =IF(LEFT($D11,15)="Unlisted Player",-1001,IF('All-WERTH'!Y11="",-1000,'All-WERTH'!Y11)) -> -1000 | W11: =IF(LEFT($D11,15)="Unlisted Player",-1001,IF('All-WERTH'!Z11="",-1000,'All-WERTH'!Z11)) -> -1000 | X11: =IF(LEFT($D11,15)="Unlisted Player",-1001,IF('All-WERTH'!AA11="",-1000,'All-WERTH'!AA11)) -> -1000 | Y11: =IF(LEFT($D11,15)="Unlisted Player",-1001,IF('All-WERTH'!AB11="",-1000,'All-WERTH'!AB11)) -> -1000 | Z11: =IF(LEFT($D11,15)="Unlisted Player",-1001,IF('All-WERTH'!AC11="",-1000,'All-WERTH'!AC11)) -> -1000 | AA11: =IF(LEFT($D11,15)="Unlisted Player",-1001,IF('All-WERTH'!AD11="",-1000,'All-WERTH'!AD11)) -> -1000 | AB11: =IF(LEFT($D11,15)="Unlisted Player",-1001,IF('All-WERTH'!AE11="",-1000,'All-WERTH'!AE11)) -> -1000 | AC11: =IF(LEFT($D11,15)="Unlisted Player",-1001,IF('All-WERTH'!AF11="",-1000,'All-WERTH'!AF11)) -> -1000 | AD11: =IF(LEFT($D11,15)="Unlisted Player",-1001,IF('All-WERTH'!AG11="",-1000,'All-WERTH'!AG11)) -> -1000 | AE11: =IF(LEFT($D11,15)="Unlisted Player",-1001,IF('All-WERTH'!AH11="",-1000,'All-WERTH'!AH11)) -> -1000 | AF11: =IF(LEFT($D11,15)="Unlisted Player",-1001,IF('All-WERTH'!AI11="",-1000,'All-WERTH'!AI11)) -> -1000 | AG11: =IF(LEFT($D11,15)="Unlisted Player",-1001,IF('All-WERTH'!AJ11="",-1000,'All-WERTH'!AJ11)) -> -1000 | AH11: =IF(LEFT($D11,15)="Unlisted Player",-1001,IF('All-WERTH'!AK11="",-1000,'All-WERTH'!AK11)) -> -1000 | AI11: =IF(LEFT($D11,15)="Unlisted Player",-1001,IF('All-WERTH'!AL11="",-1000,'All-WERTH'!AL11)) -> -1000 | AJ11: =IF(LEFT($D11,15)="Unlisted Player",-1001,IF('All-WERTH'!AM11="",-1000,'All-WERTH'!AM11)) -> -1000 | AK11: =IF(LEFT($D11,15)="Unlisted Player",-1001,IF('All-WERTH'!AN11="",-1000,'All-WERTH'!AN11)) -> -1000 | AL11: =IF(LEFT($D11,15)="Unlisted Player",-1001,IF('All-WERTH'!AO11="",-1000,'All-WERTH'!AO11)) -> -1000 | AM11: =IF(LEFT($D11,15)="Unlisted Player",-1001,IF('All-WERTH'!AP11="",-1000,'All-WERTH'!AP11)) -> -1000 | AN11: =IF(LEFT($D11,15)="Unlisted Player",-1001,'All-WERTH'!AT11) -> -996.6480785 | AO11: =IF(ISERROR(VLOOKUP($B10,Keepers!$C$2:$D$450,2,FALSE)),B10,"") -> Jose Ramirez | AP11: =IFERROR(INDEX($AO$1:$AO$899,SMALL(IF($AO$1:$AO$899<>"",ROW($AO$1:$AO$899)),ROW(AO11))),"") -> Freddie Freeman
A12: Freddie Freeman | B12: =IFERROR(INDEX($A$1:$A$899,SMALL(IF($A$1:$A$899<>"",ROW($A$1:$A$899)),ROW(A12))),"") -> Trevor Story | C12: =IFERROR(IF(L12=FALSE,"",CHOOSE(MATCH(RIGHT('Your Roto Draft'!$P$4,LEN('Your Roto Draft'!$P$4)-8),$M$1:$AN$1,0),1+SUMPRODUCT(($L$2:$L$900=TRUE)*($M$2:$M$900<M12))+COUNTIFS($L$2:L12,L12,$M$2:M12,M12)-1,1+SUMPRODUCT(($L$2:$L$900=TRUE)*($N$2:$N$900>N12))+COUNTIFS($L$2:L12,L12,$N$2:N12,N12)-1,1+SUMPRODUCT(($L$2:$L$900=TRUE)*($O$2:$O$900<O12))+COUNTIFS($L$2:L12,L12,$O$2:O12,O12)-1,1+SUMPRODUCT(($L$2:$L$900=TRUE)*($P$2:$P$900>P12))+COUNTIFS($L$2:L12,L12,$P$2:P12,P12)-1,1+SUMPRODUCT(($L$2:$L$900=TRUE)*($Q$2:$Q$900>Q12))+COUNTIFS($L$2:L12,L12,$Q$2:Q12,Q12)-1,1+SUMPRODUCT(($L$2:$L$900=TRUE)*($R$2:$R$900>R12))+COUNTIFS($L$2:L12,L12,$R$2:R12,R12)-1,1+SUMPRODUCT(($L$2:$L$900=TRUE)*($S$2:$S$900>S12))+COUNTIFS($L$2:L12,L12,$S$2:S12,S12)-1,1+SUMPRODUCT(($L$2:$L$900=TRUE)*($T$2:$T$900>T12))+COUNTIFS($L$2:L12,L12,$T$2:T12,T12)-1,1+SUMPRODUCT(($L$2:$L$900=TRUE)*($U$2:$U$900>U12))+COUNTIFS($L$2:L12,L12,$U$2:U12,U12)-1,1+SUMPRODUCT(($L$2:$L$900=TRUE)*($V$2:$V$900>V12))+COUNTIFS($L$2:L12,L12,$V$2:V12,V12)-1,1+SUMPRODUCT(($L$2:$L$900=TRUE)*($W$2:$W$900>W12))+COUNTIFS($L$2:L12,L12,$W$2:W12,W12)-1,1+SUMPRODUCT(($L$2:$L$900=TRUE)*($X$2:$X$900>X12))+COUNTIFS($L$2:L12,L12,$X$2:X12,X12)-1,1+SUMPRODUCT(($L$2:$L$900=TRUE)*($Y$2:$Y$900>Y12))+COUNTIFS($L$2:L12,L12,$Y$2:Y12,Y12)-1,1+SUMPRODUCT(($L$2:$L$900=TRUE)*($Z$2:$Z$900>Z12))+COUNTIFS($L$2:L12,L12,$Z$2:Z12,Z12)-1,1+SUMPRODUCT(($L$2:$L$900=TRUE)*($AA$2:$AA$900>AA12))+COUNTIFS($L$2:L12,L12,$AA$2:AA12,AA12)-1,1+SUMPRODUCT(($L$2:$L$900=TRUE)*($AB$2:$AB$900>AB12))+COUNTIFS($L$2:L12,L12,$AB$2:AB12,AB12)-1,1+SUMPRODUCT(($L$2:$L$900=TRUE)*($AC$2:$AC$900>AC12))+COUNTIFS($L$2:L12,L12,$AC$2:AC12,AC12)-1,1+SUMPRODUCT(($L$2:$L$900=TRUE)*($AD$2:$AD$900>AD12))+COUNTIFS($L$2:L12,L12,$AD$2:AD12,AD12)-1,1+SUMPRODUCT(($L$2:$L$900=TRUE)*($AE$2:$AE$900>AE12))+COUNTIFS($L$2:L12,L12,$AE$2:AE12,AE12)-1,1+SUMPRODUCT(($L$2:$L$900=TRUE)*($AF$2:$AF$900>AF12))+COUNTIFS($L$2:L12,L12,$AF$2:AF12,AF12)-1,1+SUMPRODUCT(($L$2:$L$900=TRUE)*($AG$2:$AG$900>AG12))+COUNTIFS($L$2:L12,L12,$AG$2:AG12,AG12)-1,1+SUMPRODUCT(($L$2:$L$900=TRUE)*($AH$2:$AH$900>AH12))+COUNTIFS($L$2:L12,L12,$AH$2:AH12,AH12)-1,1+SUMPRODUCT(($L$2:$L$900=TRUE)*($AI$2:$AI$900>AI12))+COUNTIFS($L$2:L12,L12,$AI$2:AI12,AI12)-1,1+SUMPRODUCT(($L$2:$L$900=TRUE)*($AJ$2:$AJ$900>AJ12))+COUNTIFS($L$2:L12,L12,$AJ$2:AJ12,AJ12)-1,1+SUMPRODUCT(($L$2:$L$900=TRUE)*($AK$2:$AK$900>AK12))+COUNTIFS($L$2:L12,L12,$AK$2:AK12,AK12)-1,1+SUMPRODUCT(($L$2:$L$900=TRUE)*($AL$2:$AL$900>AL12))+COUNTIFS($L$2:L12,L12,$AL$2:AL12,AL12)-1,1+SUMPRODUCT(($L$2:$L$900=TRUE)*($AM$2:$AM$900>AM12))+COUNTIFS($L$2:L12,L12,$AM$2:AM12,AM12)-1,1+SUMPRODUCT(($L$2:$L$900=TRUE)*($AN$2:$AN$900>AN12))+COUNTIFS($L$2:L12,L12,$AN$2:AN12,AN12)-1)),"") -> 477 | D12: Hanser Alberto | E12: =IFERROR(INDEX('Draft Log'!$D$4:$D$555,MATCH(D12,'Draft Log'!$C$4:$C$555,0)),"") ->  | F12: =IFERROR(INDEX('ADP-Rank'!$C$2:$C$790,MATCH(D12,'ADP-Rank'!$A$2:$A$790,0)),"") -> 2B | H12: 2B | I12: =IF(AND(F12="OF",'Guts-2'!$M$9=0),IF(MAX(Pre!J12:L12)=Pre!J12,"LF",IF(MAX(Pre!J12:L12)=Pre!K12,"CF",IF(MAX(Pre!J12:L12)=Pre!L12,"RF","LF"))),"") ->  | J12: =IFERROR(INDEX('ADP-Rank'!$X$2:$X$790,MATCH(D12,'ADP-Rank'!$A$2:$A$790,0)),TRUE) -> TRUE | K12: FALSE | L12: =IF(J12=FALSE,FALSE,IF(AND('Your Roto Draft'!$P$6="Hide Drafted Players",K12=TRUE),FALSE,CHOOSE($I$1,TRUE,OR(RIGHT('Your Roto Draft'!$P$5,LEN('Your Roto Draft'!$P$5)-11)=H12,IF(RIGHT('Your Roto Draft'!$P$5,LEN('Your Roto Draft'!$P$5)-11)<>"C",NOT(ISERROR(SEARCH(RIGHT('Your Roto Draft'!$P$5,LEN('Your Roto Draft'!$P$5)-11),Pre!$CB12))),AND(NOT(ISERROR(SEARCH(RIGHT('Your Roto Draft'!$P$5,LEN('Your Roto Draft'!$P$5)-11),Pre!$CB12))),ISERROR(SEARCH("CF",Pre!$CB12)))),RIGHT('Your Roto Draft'!$P$5,LEN('Your Roto Draft'!$P$5)-11)=Pre!BP12),OR(H12="1B",H12="3B",ISNUMBER(SEARCH("1B",Pre!$CB12)),ISNUMBER(SEARCH("3B",Pre!$CB12))),OR(H12="2B",H12="SS",ISNUMBER(SEARCH("2B",Pre!$CB12)),ISNUMBER(SEARCH("SS",Pre!$CB12))),OR(H12="1B",H12="3B",H12="2B",H12="SS",ISNUMBER(SEARCH("1B",Pre!$CB12)),ISNUMBER(SEARCH("3B",Pre!$CB12)),ISNUMBER(SEARCH("2B",Pre!$CB12)),ISNUMBER(SEARCH("SS",Pre!$CB12))),OR(H12="SP",H12="RP",ISNUMBER(SEARCH("SP",Pre!$CB12)),ISNUMBER(SEARCH("RP",Pre!$CB12))),AND(H12<>"RP",H12<>"SP",NOT(ISNUMBER(SEARCH("RP",Pre!$CB12))),NOT(ISNUMBER(SEARCH("SP",Pre!$CB12)))),OR(H12="SP",H12="RP",ISNUMBER(SEARCH("SP",Pre!$CB12)),ISNUMBER(SEARCH("RP",Pre!$CB12)))))) -> TRUE | M12: =IF('ADP-Rank'!AB12="",9999,'ADP-Rank'!AB12) -> 446.8 | N12: =IF(LEFT($D12,15)="Unlisted Player",-1001,'All-WERTH'!AQ12) -> -6.465160797 | O12: =IF('ADP-Rank'!Z12="",9999,'ADP-Rank'!Z12) -> 495 | P12: =IF(LEFT($D12,15)="Unlisted Player",-1001,IF('All-WERTH'!S12="",-1000,'All-WERTH'!S12)) -> 0.6578489663 | Q12: =IF(LEFT($D12,15)="Unlisted Player",-1001,IF('All-WERTH'!T12="",-1000,'All-WERTH'!T12)) -> -2.205205426 | R12: =IF(LEFT($D12,15)="Unlisted Player",-1001,IF('All-WERTH'!U12="",-1000,'All-WERTH'!U12)) -> -1.899602941 | S12: =IF(LEFT($D12,15)="Unlisted Player",-1001,IF('All-WERTH'!V12="",-1000,'All-WERTH'!V12)) -> -2.354635039 | T12: =IF(LEFT($D12,15)="Unlisted Player",-1001,IF('All-WERTH'!W12="",-1000,'All-WERTH'!W12)) -> -0.6635663575 | U12: =IF(LEFT($D12,15)="Unlisted Player",-1001,IF('All-WERTH'!X12="",-1000,'All-WERTH'!X12)) -> -1000 | V12: =IF(LEFT($D12,15)="Unlisted Player",-1001,IF('All-WERTH'!Y12="",-1000,'All-WERTH'!Y12)) -> -1000 | W12: =IF(LEFT($D12,15)="Unlisted Player",-1001,IF('All-WERTH'!Z12="",-1000,'All-WERTH'!Z12)) -> -1000 | X12: =IF(LEFT($D12,15)="Unlisted Player",-1001,IF('All-WERTH'!AA12="",-1000,'All-WERTH'!AA12)) -> -1000 | Y12: =IF(LEFT($D12,15)="Unlisted Player",-1001,IF('All-WERTH'!AB12="",-1000,'All-WERTH'!AB12)) -> -1000 | Z12: =IF(LEFT($D12,15)="Unlisted Player",-1001,IF('All-WERTH'!AC12="",-1000,'All-WERTH'!AC12)) -> -1000 | AA12: =IF(LEFT($D12,15)="Unlisted Player",-1001,IF('All-WERTH'!AD12="",-1000,'All-WERTH'!AD12)) -> -1000 | AB12: =IF(LEFT($D12,15)="Unlisted Player",-1001,IF('All-WERTH'!AE12="",-1000,'All-WERTH'!AE12)) -> -1000 | AC12: =IF(LEFT($D12,15)="Unlisted Player",-1001,IF('All-WERTH'!AF12="",-1000,'All-WERTH'!AF12)) -> -1000 | AD12: =IF(LEFT($D12,15)="Unlisted Player",-1001,IF('All-WERTH'!AG12="",-1000,'All-WERTH'!AG12)) -> -1000 | AE12: =IF(LEFT($D12,15)="Unlisted Player",-1001,IF('All-WERTH'!AH12="",-1000,'All-WERTH'!AH12)) -> -1000 | AF12: =IF(LEFT($D12,15)="Unlisted Player",-1001,IF('All-WERTH'!AI12="",-1000,'All-WERTH'!AI12)) -> -1000 | AG12: =IF(LEFT($D12,15)="Unlisted Player",-1001,IF('All-WERTH'!AJ12="",-1000,'All-WERTH'!AJ12)) -> -1000 | AH12: =IF(LEFT($D12,15)="Unlisted Player",-1001,IF('All-WERTH'!AK12="",-1000,'All-WERTH'!AK12)) -> -1000 | AI12: =IF(LEFT($D12,15)="Unlisted Player",-1001,IF('All-WERTH'!AL12="",-1000,'All-WERTH'!AL12)) -> -1000 | AJ12: =IF(LEFT($D12,15)="Unlisted Player",-1001,IF('All-WERTH'!AM12="",-1000,'All-WERTH'!AM12)) -> -1000 | AK12: =IF(LEFT($D12,15)="Unlisted Player",-1001,IF('All-WERTH'!AN12="",-1000,'All-WERTH'!AN12)) -> -1000 | AL12: =IF(LEFT($D12,15)="Unlisted Player",-1001,IF('All-WERTH'!AO12="",-1000,'All-WERTH'!AO12)) -> -1000 | AM12: =IF(LEFT($D12,15)="Unlisted Player",-1001,IF('All-WERTH'!AP12="",-1000,'All-WERTH'!AP12)) -> -1000 | AN12: =IF(LEFT($D12,15)="Unlisted Player",-1001,'All-WERTH'!AT12) -> -3.817665332 | AO12: =IF(ISERROR(VLOOKUP($B11,Keepers!$C$2:$D$450,2,FALSE)),B11,"") -> Freddie Freeman | AP12: =IFERROR(INDEX($AO$1:$AO$899,SMALL(IF($AO$1:$AO$899<>"",ROW($AO$1:$AO$899)),ROW(AO12))),"") -> Trevor Story
A13: Trevor Story | B13: =IFERROR(INDEX($A$1:$A$899,SMALL(IF($A$1:$A$899<>"",ROW($A$1:$A$899)),ROW(A13))),"") -> Christian Yelich | C13: =IFERROR(IF(L13=FALSE,"",CHOOSE(MATCH(RIGHT('Your Roto Draft'!$P$4,LEN('Your Roto Draft'!$P$4)-8),$M$1:$AN$1,0),1+SUMPRODUCT(($L$2:$L$900=TRUE)*($M$2:$M$900<M13))+COUNTIFS($L$2:L13,L13,$M$2:M13,M13)-1,1+SUMPRODUCT(($L$2:$L$900=TRUE)*($N$2:$N$900>N13))+COUNTIFS($L$2:L13,L13,$N$2:N13,N13)-1,1+SUMPRODUCT(($L$2:$L$900=TRUE)*($O$2:$O$900<O13))+COUNTIFS($L$2:L13,L13,$O$2:O13,O13)-1,1+SUMPRODUCT(($L$2:$L$900=TRUE)*($P$2:$P$900>P13))+COUNTIFS($L$2:L13,L13,$P$2:P13,P13)-1,1+SUMPRODUCT(($L$2:$L$900=TRUE)*($Q$2:$Q$900>Q13))+COUNTIFS($L$2:L13,L13,$Q$2:Q13,Q13)-1,1+SUMPRODUCT(($L$2:$L$900=TRUE)*($R$2:$R$900>R13))+COUNTIFS($L$2:L13,L13,$R$2:R13,R13)-1,1+SUMPRODUCT(($L$2:$L$900=TRUE)*($S$2:$S$900>S13))+COUNTIFS($L$2:L13,L13,$S$2:S13,S13)-1,1+SUMPRODUCT(($L$2:$L$900=TRUE)*($T$2:$T$900>T13))+COUNTIFS($L$2:L13,L13,$T$2:T13,T13)-1,1+SUMPRODUCT(($L$2:$L$900=TRUE)*($U$2:$U$900>U13))+COUNTIFS($L$2:L13,L13,$U$2:U13,U13)-1,1+SUMPRODUCT(($L$2:$L$900=TRUE)*($V$2:$V$900>V13))+COUNTIFS($L$2:L13,L13,$V$2:V13,V13)-1,1+SUMPRODUCT(($L$2:$L$900=TRUE)*($W$2:$W$900>W13))+COUNTIFS($L$2:L13,L13,$W$2:W13,W13)-1,1+SUMPRODUCT(($L$2:$L$900=TRUE)*($X$2:$X$900>X13))+COUNTIFS($L$2:L13,L13,$X$2:X13,X13)-1,1+SUMPRODUCT(($L$2:$L$900=TRUE)*($Y$2:$Y$900>Y13))+COUNTIFS($L$2:L13,L13,$Y$2:Y13,Y13)-1,1+SUMPRODUCT(($L$2:$L$900=TRUE)*($Z$2:$Z$900>Z13))+COUNTIFS($L$2:L13,L13,$Z$2:Z13,Z13)-1,1+SUMPRODUCT(($L$2:$L$900=TRUE)*($AA$2:$AA$900>AA13))+COUNTIFS($L$2:L13,L13,$AA$2:AA13,AA13)-1,1+SUMPRODUCT(($L$2:$L$900=TRUE)*($AB$2:$AB$900>AB13))+COUNTIFS($L$2:L13,L13,$AB$2:AB13,AB13)-1,1+SUMPRODUCT(($L$2:$L$900=TRUE)*($AC$2:$AC$900>AC13))+COUNTIFS($L$2:L13,L13,$AC$2:AC13,AC13)-1,1+SUMPRODUCT(($L$2:$L$900=TRUE)*($AD$2:$AD$900>AD13))+COUNTIFS($L$2:L13,L13,$AD$2:AD13,AD13)-1,1+SUMPRODUCT(($L$2:$L$900=TRUE)*($AE$2:$AE$900>AE13))+COUNTIFS($L$2:L13,L13,$AE$2:AE13,AE13)-1,1+SUMPRODUCT(($L$2:$L$900=TRUE)*($AF$2:$AF$900>AF13))+COUNTIFS($L$2:L13,L13,$AF$2:AF13,AF13)-1,1+SUMPRODUCT(($L$2:$L$900=TRUE)*($AG$2:$AG$900>AG13))+COUNTIFS($L$2:L13,L13,$AG$2:AG13,AG13)-1,1+SUMPRODUCT(($L$2:$L$900=TRUE)*($AH$2:$AH$900>AH13))+COUNTIFS($L$2:L13,L13,$AH$2:AH13,AH13)-1,1+SUMPRODUCT(($L$2:$L$900=TRUE)*($AI$2:$AI$900>AI13))+COUNTIFS($L$2:L13,L13,$AI$2:AI13,AI13)-1,1+SUMPRODUCT(($L$2:$L$900=TRUE)*($AJ$2:$AJ$900>AJ13))+COUNTIFS($L$2:L13,L13,$AJ$2:AJ13,AJ13)-1,1+SUMPRODUCT(($L$2:$L$900=TRUE)*($AK$2:$AK$900>AK13))+COUNTIFS($L$2:L13,L13,$AK$2:AK13,AK13)-1,1+SUMPRODUCT(($L$2:$L$900=TRUE)*($AL$2:$AL$900>AL13))+COUNTIFS($L$2:L13,L13,$AL$2:AL13,AL13)-1,1+SUMPRODUCT(($L$2:$L$900=TRUE)*($AM$2:$AM$900>AM13))+COUNTIFS($L$2:L13,L13,$AM$2:AM13,AM13)-1,1+SUMPRODUCT(($L$2:$L$900=TRUE)*($AN$2:$AN$900>AN13))+COUNTIFS($L$2:L13,L13,$AN$2:AN13,AN13)-1)),"") -> 35 | D13: Ozzie Albies | E13: =IFERROR(INDEX('Draft Log'!$D$4:$D$555,MATCH(D13,'Draft Log'!$C$4:$C$555,0)),"") ->  | F13: =IFERROR(INDEX('ADP-Rank'!$C$2:$C$790,MATCH(D13,'ADP-Rank'!$A$2:$A$790,0)),"") -> 2B | H13: 2B | I13: =IF(AND(F13="OF",'Guts-2'!$M$9=0),IF(MAX(Pre!J13:L13)=Pre!J13,"LF",IF(MAX(Pre!J13:L13)=Pre!K13,"CF",IF(MAX(Pre!J13:L13)=Pre!L13,"RF","LF"))),"") ->  | J13: =IFERROR(INDEX('ADP-Rank'!$X$2:$X$790,MATCH(D13,'ADP-Rank'!$A$2:$A$790,0)),TRUE) -> TRUE | K13: FALSE | L13: =IF(J13=FALSE,FALSE,IF(AND('Your Roto Draft'!$P$6="Hide Drafted Players",K13=TRUE),FALSE,CHOOSE($I$1,TRUE,OR(RIGHT('Your Roto Draft'!$P$5,LEN('Your Roto Draft'!$P$5)-11)=H13,IF(RIGHT('Your Roto Draft'!$P$5,LEN('Your Roto Draft'!$P$5)-11)<>"C",NOT(ISERROR(SEARCH(RIGHT('Your Roto Draft'!$P$5,LEN('Your Roto Draft'!$P$5)-11),Pre!$CB13))),AND(NOT(ISERROR(SEARCH(RIGHT('Your Roto Draft'!$P$5,LEN('Your Roto Draft'!$P$5)-11),Pre!$CB13))),ISERROR(SEARCH("CF",Pre!$CB13)))),RIGHT('Your Roto Draft'!$P$5,LEN('Your Roto Draft'!$P$5)-11)=Pre!BP13),OR(H13="1B",H13="3B",ISNUMBER(SEARCH("1B",Pre!$CB13)),ISNUMBER(SEARCH("3B",Pre!$CB13))),OR(H13="2B",H13="SS",ISNUMBER(SEARCH("2B",Pre!$CB13)),ISNUMBER(SEARCH("SS",Pre!$CB13))),OR(H13="1B",H13="3B",H13="2B",H13="SS",ISNUMBER(SEARCH("1B",Pre!$CB13)),ISNUMBER(SEARCH("3B",Pre!$CB13)),ISNUMBER(SEARCH("2B",Pre!$CB13)),ISNUMBER(SEARCH("SS",Pre!$CB13))),OR(H13="SP",H13="RP",ISNUMBER(SEARCH("SP",Pre!$CB13)),ISNUMBER(SEARCH("RP",Pre!$CB13))),AND(H13<>"RP",H13<>"SP",NOT(ISNUMBER(SEARCH("RP",Pre!$CB13))),NOT(ISNUMBER(SEARCH("SP",Pre!$CB13)))),OR(H13="SP",H13="RP",ISNUMBER(SEARCH("SP",Pre!$CB13)),ISNUMBER(SEARCH("RP",Pre!$CB13)))))) -> TRUE | M13: =IF('ADP-Rank'!AB13="",9999,'ADP-Rank'!AB13) -> 34.8 | N13: =IF(LEFT($D13,15)="Unlisted Player",-1001,'All-WERTH'!AQ13) -> 5.48225945 | O13: =IF('ADP-Rank'!Z13="",9999,'ADP-Rank'!Z13) -> 32 | P13: =IF(LEFT($D13,15)="Unlisted Player",-1001,IF('All-WERTH'!S13="",-1000,'All-WERTH'!S13)) -> 1.443298637 | Q13: =IF(LEFT($D13,15)="Unlisted Player",-1001,IF('All-WERTH'!T13="",-1000,'All-WERTH'!T13)) -> 0.3515024404 | R13: =IF(LEFT($D13,15)="Unlisted Player",-1001,IF('All-WERTH'!U13="",-1000,'All-WERTH'!U13)) -> 1.572598132 | S13: =IF(LEFT($D13,15)="Unlisted Player",-1001,IF('All-WERTH'!V13="",-1000,'All-WERTH'!V13)) -> 0.7630414808 | T13: =IF(LEFT($D13,15)="Unlisted Player",-1001,IF('All-WERTH'!W13="",-1000,'All-WERTH'!W13)) -> 1.35181876 | U13: =IF(LEFT($D13,15)="Unlisted Player",-1001,IF('All-WERTH'!X13="",-1000,'All-WERTH'!X13)) -> -1000 | V13: =IF(LEFT($D13,15)="Unlisted Player",-1001,IF('All-WERTH'!Y13="",-1000,'All-WERTH'!Y13)) -> -1000 | W13: =IF(LEFT($D13,15)="Unlisted Player",-1001,IF('All-WERTH'!Z13="",-1000,'All-WERTH'!Z13)) -> -1000 | X13: =IF(LEFT($D13,15)="Unlisted Player",-1001,IF('All-WERTH'!AA13="",-1000,'All-WERTH'!AA13)) -> -1000 | Y13: =IF(LEFT($D13,15)="Unlisted Player",-1001,IF('All-WERTH'!AB13="",-1000,'All-WERTH'!AB13)) -> -1000 | Z13: =IF(LEFT($D13,15)="Unlisted Player",-1001,IF('All-WERTH'!AC13="",-1000,'All-WERTH'!AC13)) -> -1000 | AA13: =IF(LEFT($D13,15)="Unlisted Player",-1001,IF('All-WERTH'!AD13="",-1000,'All-WERTH'!AD13)) -> -1000 | AB13: =IF(LEFT($D13,15)="Unlisted Player",-1001,IF('All-WERTH'!AE13="",-1000,'All-WERTH'!AE13)) -> -1000 | AC13: =IF(LEFT($D13,15)="Unlisted Player",-1001,IF('All-WERTH'!AF13="",-1000,'All-WERTH'!AF13)) -> -1000 | AD13: =IF(LEFT($D13,15)="Unlisted Player",-1001,IF('All-WERTH'!AG13="",-1000,'All-WERTH'!AG13)) -> -1000 | AE13: =IF(LEFT($D13,15)="Unlisted Player",-1001,IF('All-WERTH'!AH13="",-1000,'All-WERTH'!AH13)) -> -1000 | AF13: =IF(LEFT($D13,15)="Unlisted Player",-1001,IF('All-WERTH'!AI13="",-1000,'All-WERTH'!AI13)) -> -1000 | AG13: =IF(LEFT($D13,15)="Unlisted Player",-1001,IF('All-WERTH'!AJ13="",-1000,'All-WERTH'!AJ13)) -> -1000 | AH13: =IF(LEFT($D13,15)="Unlisted Player",-1001,IF('All-WERTH'!AK13="",-1000,'All-WERTH'!AK13)) -> -1000 | AI13: =IF(LEFT($D13,15)="Unlisted Player",-1001,IF('All-WERTH'!AL13="",-1000,'All-WERTH'!AL13)) -> -1000 | AJ13: =IF(LEFT($D13,15)="Unlisted Player",-1001,IF('All-WERTH'!AM13="",-1000,'All-WERTH'!AM13)) -> -1000 | AK13: =IF(LEFT($D13,15)="Unlisted Player",-1001,IF('All-WERTH'!AN13="",-1000,'All-WERTH'!AN13)) -> -1000 | AL13: =IF(LEFT($D13,15)="Unlisted Player",-1001,IF('All-WERTH'!AO13="",-1000,'All-WERTH'!AO13)) -> -1000 | AM13: =IF(LEFT($D13,15)="Unlisted Player",-1001,IF('All-WERTH'!AP13="",-1000,'All-WERTH'!AP13)) -> -1000 | AN13: =IF(LEFT($D13,15)="Unlisted Player",-1001,'All-WERTH'!AT13) -> 8.129754915 | AO13: =IF(ISERROR(VLOOKUP($B12,Keepers!$C$2:$D$450,2,FALSE)),B12,"") -> Trevor Story | AP13: =IFERROR(INDEX($AO$1:$AO$899,SMALL(IF($AO$1:$AO$899<>"",ROW($AO$1:$AO$899)),ROW(AO13))),"") -> Christian Yelich
A14: Christian Yelich | B14: =IFERROR(INDEX($A$1:$A$899,SMALL(IF($A$1:$A$899<>"",ROW($A$1:$A$899)),ROW(A14))),"") -> Trevor Bauer | C14: =IFERROR(IF(L14=FALSE,"",CHOOSE(MATCH(RIGHT('Your Roto Draft'!$P$4,LEN('Your Roto Draft'!$P$4)-8),$M$1:$AN$1,0),1+SUMPRODUCT(($L$2:$L$900=TRUE)*($M$2:$M$900<M14))+COUNTIFS($L$2:L14,L14,$M$2:M14,M14)-1,1+SUMPRODUCT(($L$2:$L$900=TRUE)*($N$2:$N$900>N14))+COUNTIFS($L$2:L14,L14,$N$2:N14,N14)-1,1+SUMPRODUCT(($L$2:$L$900=TRUE)*($O$2:$O$900<O14))+COUNTIFS($L$2:L14,L14,$O$2:O14,O14)-1,1+SUMPRODUCT(($L$2:$L$900=TRUE)*($P$2:$P$900>P14))+COUNTIFS($L$2:L14,L14,$P$2:P14,P14)-1,1+SUMPRODUCT(($L$2:$L$900=TRUE)*($Q$2:$Q$900>Q14))+COUNTIFS($L$2:L14,L14,$Q$2:Q14,Q14)-1,1+SUMPRODUCT(($L$2:$L$900=TRUE)*($R$2:$R$900>R14))+COUNTIFS($L$2:L14,L14,$R$2:R14,R14)-1,1+SUMPRODUCT(($L$2:$L$900=TRUE)*($S$2:$S$900>S14))+COUNTIFS($L$2:L14,L14,$S$2:S14,S14)-1,1+SUMPRODUCT(($L$2:$L$900=TRUE)*($T$2:$T$900>T14))+COUNTIFS($L$2:L14,L14,$T$2:T14,T14)-1,1+SUMPRODUCT(($L$2:$L$900=TRUE)*($U$2:$U$900>U14))+COUNTIFS($L$2:L14,L14,$U$2:U14,U14)-1,1+SUMPRODUCT(($L$2:$L$900=TRUE)*($V$2:$V$900>V14))+COUNTIFS($L$2:L14,L14,$V$2:V14,V14)-1,1+SUMPRODUCT(($L$2:$L$900=TRUE)*($W$2:$W$900>W14))+COUNTIFS($L$2:L14,L14,$W$2:W14,W14)-1,1+SUMPRODUCT(($L$2:$L$900=TRUE)*($X$2:$X$900>X14))+COUNTIFS($L$2:L14,L14,$X$2:X14,X14)-1,1+SUMPRODUCT(($L$2:$L$900=TRUE)*($Y$2:$Y$900>Y14))+COUNTIFS($L$2:L14,L14,$Y$2:Y14,Y14)-1,1+SUMPRODUCT(($L$2:$L$900=TRUE)*($Z$2:$Z$900>Z14))+COUNTIFS($L$2:L14,L14,$Z$2:Z14,Z14)-1,1+SUMPRODUCT(($L$2:$L$900=TRUE)*($AA$2:$AA$900>AA14))+COUNTIFS($L$2:L14,L14,$AA$2:AA14,AA14)-1,1+SUMPRODUCT(($L$2:$L$900=TRUE)*($AB$2:$AB$900>AB14))+COUNTIFS($L$2:L14,L14,$AB$2:AB14,AB14)-1,1+SUMPRODUCT(($L$2:$L$900=TRUE)*($AC$2:$AC$900>AC14))+COUNTIFS($L$2:L14,L14,$AC$2:AC14,AC14)-1,1+SUMPRODUCT(($L$2:$L$900=TRUE)*($AD$2:$AD$900>AD14))+COUNTIFS($L$2:L14,L14,$AD$2:AD14,AD14)-1,1+SUMPRODUCT(($L$2:$L$900=TRUE)*($AE$2:$AE$900>AE14))+COUNTIFS($L$2:L14,L14,$AE$2:AE14,AE14)-1,1+SUMPRODUCT(($L$2:$L$900=TRUE)*($AF$2:$AF$900>AF14))+COUNTIFS($L$2:L14,L14,$AF$2:AF14,AF14)-1,1+SUMPRODUCT(($L$2:$L$900=TRUE)*($AG$2:$AG$900>AG14))+COUNTIFS($L$2:L14,L14,$AG$2:AG14,AG14)-1,1+SUMPRODUCT(($L$2:$L$900=TRUE)*($AH$2:$AH$900>AH14))+COUNTIFS($L$2:L14,L14,$AH$2:AH14,AH14)-1,1+SUMPRODUCT(($L$2:$L$900=TRUE)*($AI$2:$AI$900>AI14))+COUNTIFS($L$2:L14,L14,$AI$2:AI14,AI14)-1,1+SUMPRODUCT(($L$2:$L$900=TRUE)*($AJ$2:$AJ$900>AJ14))+COUNTIFS($L$2:L14,L14,$AJ$2:AJ14,AJ14)-1,1+SUMPRODUCT(($L$2:$L$900=TRUE)*($AK$2:$AK$900>AK14))+COUNTIFS($L$2:L14,L14,$AK$2:AK14,AK14)-1,1+SUMPRODUCT(($L$2:$L$900=TRUE)*($AL$2:$AL$900>AL14))+COUNTIFS($L$2:L14,L14,$AL$2:AL14,AL14)-1,1+SUMPRODUCT(($L$2:$L$900=TRUE)*($AM$2:$AM$900>AM14))+COUNTIFS($L$2:L14,L14,$AM$2:AM14,AM14)-1,1+SUMPRODUCT(($L$2:$L$900=TRUE)*($AN$2:$AN$900>AN14))+COUNTIFS($L$2:L14,L14,$AN$2:AN14,AN14)-1)),"") -> 740 | D14: Jorge Alcala | E14: =IFERROR(INDEX('Draft Log'!$D$4:$D$555,MATCH(D14,'Draft Log'!$C$4:$C$555,0)),"") ->  | F14: =IFERROR(INDEX('ADP-Rank'!$C$2:$C$790,MATCH(D14,'ADP-Rank'!$A$2:$A$790,0)),"") -> RP | H14: RP | I14: =IF(AND(F14="OF",'Guts-2'!$M$9=0),IF(MAX(Pre!J14:L14)=Pre!J14,"LF",IF(MAX(Pre!J14:L14)=Pre!K14,"CF",IF(MAX(Pre!J14:L14)=Pre!L14,"RF","LF"))),"") ->  | J14: =IFERROR(INDEX('ADP-Rank'!$X$2:$X$790,MATCH(D14,'ADP-Rank'!$A$2:$A$790,0)),TRUE) -> TRUE | K14: FALSE | L14: =IF(J14=FALSE,FALSE,IF(AND('Your Roto Draft'!$P$6="Hide Drafted Players",K14=TRUE),FALSE,CHOOSE($I$1,TRUE,OR(RIGHT('Your Roto Draft'!$P$5,LEN('Your Roto Draft'!$P$5)-11)=H14,IF(RIGHT('Your Roto Draft'!$P$5,LEN('Your Roto Draft'!$P$5)-11)<>"C",NOT(ISERROR(SEARCH(RIGHT('Your Roto Draft'!$P$5,LEN('Your Roto Draft'!$P$5)-11),Pre!$CB14))),AND(NOT(ISERROR(SEARCH(RIGHT('Your Roto Draft'!$P$5,LEN('Your Roto Draft'!$P$5)-11),Pre!$CB14))),ISERROR(SEARCH("CF",Pre!$CB14)))),RIGHT('Your Roto Draft'!$P$5,LEN('Your Roto Draft'!$P$5)-11)=Pre!BP14),OR(H14="1B",H14="3B",ISNUMBER(SEARCH("1B",Pre!$CB14)),ISNUMBER(SEARCH("3B",Pre!$CB14))),OR(H14="2B",H14="SS",ISNUMBER(SEARCH("2B",Pre!$CB14)),ISNUMBER(SEARCH("SS",Pre!$CB14))),OR(H14="1B",H14="3B",H14="2B",H14="SS",ISNUMBER(SEARCH("1B",Pre!$CB14)),ISNUMBER(SEARCH("3B",Pre!$CB14)),ISNUMBER(SEARCH("2B",Pre!$CB14)),ISNUMBER(SEARCH("SS",Pre!$CB14))),OR(H14="SP",H14="RP",ISNUMBER(SEARCH("SP",Pre!$CB14)),ISNUMBER(SEARCH("RP",Pre!$CB14))),AND(H14<>"RP",H14<>"SP",NOT(ISNUMBER(SEARCH("RP",Pre!$CB14))),NOT(ISNUMBER(SEARCH("SP",Pre!$CB14)))),OR(H14="SP",H14="RP",ISNUMBER(SEARCH("SP",Pre!$CB14)),ISNUMBER(SEARCH("RP",Pre!$CB14)))))) -> TRUE | M14: =IF('ADP-Rank'!AB14="",9999,'ADP-Rank'!AB14) -> 882.5 | N14: =IF(LEFT($D14,15)="Unlisted Player",-1001,'All-WERTH'!AQ14) -> -7.404433954 | O14: =IF('ADP-Rank'!Z14="",9999,'ADP-Rank'!Z14) -> 579 | P14: =IF(LEFT($D14,15)="Unlisted Player",-1001,IF('All-WERTH'!S14="",-1000,'All-WERTH'!S14)) -> -1000 | Q14: =IF(LEFT($D14,15)="Unlisted Player",-1001,IF('All-WERTH'!T14="",-1000,'All-WERTH'!T14)) -> -1000 | R14: =IF(LEFT($D14,15)="Unlisted Player",-1001,IF('All-WERTH'!U14="",-1000,'All-WERTH'!U14)) -> -1000 | S14: =IF(LEFT($D14,15)="Unlisted Player",-1001,IF('All-WERTH'!V14="",-1000,'All-WERTH'!V14)) -> -1000 | T14: =IF(LEFT($D14,15)="Unlisted Player",-1001,IF('All-WERTH'!W14="",-1000,'All-WERTH'!W14)) -> -1000 | U14: =IF(LEFT($D14,15)="Unlisted Player",-1001,IF('All-WERTH'!X14="",-1000,'All-WERTH'!X14)) -> -1000 | V14: =IF(LEFT($D14,15)="Unlisted Player",-1001,IF('All-WERTH'!Y14="",-1000,'All-WERTH'!Y14)) -> -1000 | W14: =IF(LEFT($D14,15)="Unlisted Player",-1001,IF('All-WERTH'!Z14="",-1000,'All-WERTH'!Z14)) -> -1000 | X14: =IF(LEFT($D14,15)="Unlisted Player",-1001,IF('All-WERTH'!AA14="",-1000,'All-WERTH'!AA14)) -> -1000 | Y14: =IF(LEFT($D14,15)="Unlisted Player",-1001,IF('All-WERTH'!AB14="",-1000,'All-WERTH'!AB14)) -> -1000 | Z14: =IF(LEFT($D14,15)="Unlisted Player",-1001,IF('All-WERTH'!AC14="",-1000,'All-WERTH'!AC14)) -> -1000 | AA14: =IF(LEFT($D14,15)="Unlisted Player",-1001,IF('All-WERTH'!AD14="",-1000,'All-WERTH'!AD14)) -> -1000 | AB14: =IF(LEFT($D14,15)="Unlisted Player",-1001,IF('All-WERTH'!AE14="",-1000,'All-WERTH'!AE14)) -> -1.821643021 | AC14: =IF(LEFT($D14,15)="Unlisted Player",-1001,IF('All-WERTH'!AF14="",-1000,'All-WERTH'!AF14)) -> -0.3765103334 | AD14: =IF(LEFT($D14,15)="Unlisted Player",-1001,IF('All-WERTH'!AG14="",-1000,'All-WERTH'!AG14)) -> -1.721929654 | AE14: =IF(LEFT($D14,15)="Unlisted Player",-1001,IF('All-WERTH'!AH14="",-1000,'All-WERTH'!AH14)) -> -1.467595232 | AF14: =IF(LEFT($D14,15)="Unlisted Player",-1001,IF('All-WERTH'!AI14="",-1000,'All-WERTH'!AI14)) -> -2.016755714 | AG14: =IF(LEFT($D14,15)="Unlisted Player",-1001,IF('All-WERTH'!AJ14="",-1000,'All-WERTH'!AJ14)) -> -1000 | AH14: =IF(LEFT($D14,15)="Unlisted Player",-1001,IF('All-WERTH'!AK14="",-1000,'All-WERTH'!AK14)) -> -1000 | AI14: =IF(LEFT($D14,15)="Unlisted Player",-1001,IF('All-WERTH'!AL14="",-1000,'All-WERTH'!AL14)) -> -1000 | AJ14: =IF(LEFT($D14,15)="Unlisted Player",-1001,IF('All-WERTH'!AM14="",-1000,'All-WERTH'!AM14)) -> -1000 | AK14: =IF(LEFT($D14,15)="Unlisted Player",-1001,IF('All-WERTH'!AN14="",-1000,'All-WERTH'!AN14)) -> -1000 | AL14: =IF(LEFT($D14,15)="Unlisted Player",-1001,IF('All-WERTH'!AO14="",-1000,'All-WERTH'!AO14)) -> -1000 | AM14: =IF(LEFT($D14,15)="Unlisted Player",-1001,IF('All-WERTH'!AP14="",-1000,'All-WERTH'!AP14)) -> -1000 | AN14: =IF(LEFT($D14,15)="Unlisted Player",-1001,'All-WERTH'!AT14) -> -4.683336883 | AO14: =IF(ISERROR(VLOOKUP($B13,Keepers!$C$2:$D$450,2,FALSE)),B13,"") -> Christian Yelich | AP14: =IFERROR(INDEX($AO$1:$AO$899,SMALL(IF($AO$1:$AO$899<>"",ROW($AO$1:$AO$899)),ROW(AO14))),"") -> Trevor Bauer
A15: Trevor Bauer | B15: =IFERROR(INDEX($A$1:$A$899,SMALL(IF($A$1:$A$899<>"",ROW($A$1:$A$899)),ROW(A15))),"") -> Cody Bellinger | C15: =IFERROR(IF(L15=FALSE,"",CHOOSE(MATCH(RIGHT('Your Roto Draft'!$P$4,LEN('Your Roto Draft'!$P$4)-8),$M$1:$AN$1,0),1+SUMPRODUCT(($L$2:$L$900=TRUE)*($M$2:$M$900<M15))+COUNTIFS($L$2:L15,L15,$M$2:M15,M15)-1,1+SUMPRODUCT(($L$2:$L$900=TRUE)*($N$2:$N$900>N15))+COUNTIFS($L$2:L15,L15,$N$2:N15,N15)-1,1+SUMPRODUCT(($L$2:$L$900=TRUE)*($O$2:$O$900<O15))+COUNTIFS($L$2:L15,L15,$O$2:O15,O15)-1,1+SUMPRODUCT(($L$2:$L$900=TRUE)*($P$2:$P$900>P15))+COUNTIFS($L$2:L15,L15,$P$2:P15,P15)-1,1+SUMPRODUCT(($L$2:$L$900=TRUE)*($Q$2:$Q$900>Q15))+COUNTIFS($L$2:L15,L15,$Q$2:Q15,Q15)-1,1+SUMPRODUCT(($L$2:$L$900=TRUE)*($R$2:$R$900>R15))+COUNTIFS($L$2:L15,L15,$R$2:R15,R15)-1,1+SUMPRODUCT(($L$2:$L$900=TRUE)*($S$2:$S$900>S15))+COUNTIFS($L$2:L15,L15,$S$2:S15,S15)-1,1+SUMPRODUCT(($L$2:$L$900=TRUE)*($T$2:$T$900>T15))+COUNTIFS($L$2:L15,L15,$T$2:T15,T15)-1,1+SUMPRODUCT(($L$2:$L$900=TRUE)*($U$2:$U$900>U15))+COUNTIFS($L$2:L15,L15,$U$2:U15,U15)-1,1+SUMPRODUCT(($L$2:$L$900=TRUE)*($V$2:$V$900>V15))+COUNTIFS($L$2:L15,L15,$V$2:V15,V15)-1,1+SUMPRODUCT(($L$2:$L$900=TRUE)*($W$2:$W$900>W15))+COUNTIFS($L$2:L15,L15,$W$2:W15,W15)-1,1+SUMPRODUCT(($L$2:$L$900=TRUE)*($X$2:$X$900>X15))+COUNTIFS($L$2:L15,L15,$X$2:X15,X15)-1,1+SUMPRODUCT(($L$2:$L$900=TRUE)*($Y$2:$Y$900>Y15))+COUNTIFS($L$2:L15,L15,$Y$2:Y15,Y15)-1,1+SUMPRODUCT(($L$2:$L$900=TRUE)*($Z$2:$Z$900>Z15))+COUNTIFS($L$2:L15,L15,$Z$2:Z15,Z15)-1,1+SUMPRODUCT(($L$2:$L$900=TRUE)*($AA$2:$AA$900>AA15))+COUNTIFS($L$2:L15,L15,$AA$2:AA15,AA15)-1,1+SUMPRODUCT(($L$2:$L$900=TRUE)*($AB$2:$AB$900>AB15))+COUNTIFS($L$2:L15,L15,$AB$2:AB15,AB15)-1,1+SUMPRODUCT(($L$2:$L$900=TRUE)*($AC$2:$AC$900>AC15))+COUNTIFS($L$2:L15,L15,$AC$2:AC15,AC15)-1,1+SUMPRODUCT(($L$2:$L$900=TRUE)*($AD$2:$AD$900>AD15))+COUNTIFS($L$2:L15,L15,$AD$2:AD15,AD15)-1,1+SUMPRODUCT(($L$2:$L$900=TRUE)*($AE$2:$AE$900>AE15))+COUNTIFS($L$2:L15,L15,$AE$2:AE15,AE15)-1,1+SUMPRODUCT(($L$2:$L$900=TRUE)*($AF$2:$AF$900>AF15))+COUNTIFS($L$2:L15,L15,$AF$2:AF15,AF15)-1,1+SUMPRODUCT(($L$2:$L$900=TRUE)*($AG$2:$AG$900>AG15))+COUNTIFS($L$2:L15,L15,$AG$2:AG15,AG15)-1,1+SUMPRODUCT(($L$2:$L$900=TRUE)*($AH$2:$AH$900>AH15))+COUNTIFS($L$2:L15,L15,$AH$2:AH15,AH15)-1,1+SUMPRODUCT(($L$2:$L$900=TRUE)*($AI$2:$AI$900>AI15))+COUNTIFS($L$2:L15,L15,$AI$2:AI15,AI15)-1,1+SUMPRODUCT(($L$2:$L$900=TRUE)*($AJ$2:$AJ$900>AJ15))+COUNTIFS($L$2:L15,L15,$AJ$2:AJ15,AJ15)-1,1+SUMPRODUCT(($L$2:$L$900=TRUE)*($AK$2:$AK$900>AK15))+COUNTIFS($L$2:L15,L15,$AK$2:AK15,AK15)-1,1+SUMPRODUCT(($L$2:$L$900=TRUE)*($AL$2:$AL$900>AL15))+COUNTIFS($L$2:L15,L15,$AL$2:AL15,AL15)-1,1+SUMPRODUCT(($L$2:$L$900=TRUE)*($AM$2:$AM$900>AM15))+COUNTIFS($L$2:L15,L15,$AM$2:AM15,AM15)-1,1+SUMPRODUCT(($L$2:$L$900=TRUE)*($AN$2:$AN$900>AN15))+COUNTIFS($L$2:L15,L15,$AN$2:AN15,AN15)-1)),"") -> 134 | D15: Sandy Alcantara | E15: =IFERROR(INDEX('Draft Log'!$D$4:$D$555,MATCH(D15,'Draft Log'!$C$4:$C$555,0)),"") ->  | F15: =IFERROR(INDEX('ADP-Rank'!$C$2:$C$790,MATCH(D15,'ADP-Rank'!$A$2:$A$790,0)),"") -> SP | H15: SP | I15: =IF(AND(F15="OF",'Guts-2'!$M$9=0),IF(MAX(Pre!J15:L15)=Pre!J15,"LF",IF(MAX(Pre!J15:L15)=Pre!K15,"CF",IF(MAX(Pre!J15:L15)=Pre!L15,"RF","LF"))),"") ->  | J15: =IFERROR(INDEX('ADP-Rank'!$X$2:$X$790,MATCH(D15,'ADP-Rank'!$A$2:$A$790,0)),TRUE) -> TRUE | K15: FALSE | L15: =IF(J15=FALSE,FALSE,IF(AND('Your Roto Draft'!$P$6="Hide Drafted Players",K15=TRUE),FALSE,CHOOSE($I$1,TRUE,OR(RIGHT('Your Roto Draft'!$P$5,LEN('Your Roto Draft'!$P$5)-11)=H15,IF(RIGHT('Your Roto Draft'!$P$5,LEN('Your Roto Draft'!$P$5)-11)<>"C",NOT(ISERROR(SEARCH(RIGHT('Your Roto Draft'!$P$5,LEN('Your Roto Draft'!$P$5)-11),Pre!$CB15))),AND(NOT(ISERROR(SEARCH(RIGHT('Your Roto Draft'!$P$5,LEN('Your Roto Draft'!$P$5)-11),Pre!$CB15))),ISERROR(SEARCH("CF",Pre!$CB15)))),RIGHT('Your Roto Draft'!$P$5,LEN('Your Roto Draft'!$P$5)-11)=Pre!BP15),OR(H15="1B",H15="3B",ISNUMBER(SEARCH("1B",Pre!$CB15)),ISNUMBER(SEARCH("3B",Pre!$CB15))),OR(H15="2B",H15="SS",ISNUMBER(SEARCH("2B",Pre!$CB15)),ISNUMBER(SEARCH("SS",Pre!$CB15))),OR(H15="1B",H15="3B",H15="2B",H15="SS",ISNUMBER(SEARCH("1B",Pre!$CB15)),ISNUMBER(SEARCH("3B",Pre!$CB15)),ISNUMBER(SEARCH("2B",Pre!$CB15)),ISNUMBER(SEARCH("SS",Pre!$CB15))),OR(H15="SP",H15="RP",ISNUMBER(SEARCH("SP",Pre!$CB15)),ISNUMBER(SEARCH("RP",Pre!$CB15))),AND(H15<>"RP",H15<>"SP",NOT(ISNUMBER(SEARCH("RP",Pre!$CB15))),NOT(ISNUMBER(SEARCH("SP",Pre!$CB15)))),OR(H15="SP",H15="RP",ISNUMBER(SEARCH("SP",Pre!$CB15)),ISNUMBER(SEARCH("RP",Pre!$CB15)))))) -> TRUE | M15: =IF('ADP-Rank'!AB15="",9999,'ADP-Rank'!AB15) -> 139.2 | N15: =IF(LEFT($D15,15)="Unlisted Player",-1001,'All-WERTH'!AQ15) -> -4.016504534 | O15: =IF('ADP-Rank'!Z15="",9999,'ADP-Rank'!Z15) -> 153 | P15: =IF(LEFT($D15,15)="Unlisted Player",-1001,IF('All-WERTH'!S15="",-1000,'All-WERTH'!S15)) -> -1000 | Q15: =IF(LEFT($D15,15)="Unlisted Player",-1001,IF('All-WERTH'!T15="",-1000,'All-WERTH'!T15)) -> -1000 | R15: =IF(LEFT($D15,15)="Unlisted Player",-1001,IF('All-WERTH'!U15="",-1000,'All-WERTH'!U15)) -> -1000 | S15: =IF(LEFT($D15,15)="Unlisted Player",-1001,IF('All-WERTH'!V15="",-1000,'All-WERTH'!V15)) -> -1000 | T15: =IF(LEFT($D15,15)="Unlisted Player",-1001,IF('All-WERTH'!W15="",-1000,'All-WERTH'!W15)) -> -1000 | U15: =IF(LEFT($D15,15)="Unlisted Player",-1001,IF('All-WERTH'!X15="",-1000,'All-WERTH'!X15)) -> -1000 | V15: =IF(LEFT($D15,15)="Unlisted Player",-1001,IF('All-WERTH'!Y15="",-1000,'All-WERTH'!Y15)) -> -1000 | W15: =IF(LEFT($D15,15)="Unlisted Player",-1001,IF('All-WERTH'!Z15="",-1000,'All-WERTH'!Z15)) -> -1000 | X15: =IF(LEFT($D15,15)="Unlisted Player",-1001,IF('All-WERTH'!AA15="",-1000,'All-WERTH'!AA15)) -> -1000 | Y15: =IF(LEFT($D15,15)="Unlisted Player",-1001,IF('All-WERTH'!AB15="",-1000,'All-WERTH'!AB15)) -> -1000 | Z15: =IF(LEFT($D15,15)="Unlisted Player",-1001,IF('All-WERTH'!AC15="",-1000,'All-WERTH'!AC15)) -> -1000 | AA15: =IF(LEFT($D15,15)="Unlisted Player",-1001,IF('All-WERTH'!AD15="",-1000,'All-WERTH'!AD15)) -> -1000 | AB15: =IF(LEFT($D15,15)="Unlisted Player",-1001,IF('All-WERTH'!AE15="",-1000,'All-WERTH'!AE15)) -> -0.1687300508 | AC15: =IF(LEFT($D15,15)="Unlisted Player",-1001,IF('All-WERTH'!AF15="",-1000,'All-WERTH'!AF15)) -> -0.4598927588 | AD15: =IF(LEFT($D15,15)="Unlisted Player",-1001,IF('All-WERTH'!AG15="",-1000,'All-WERTH'!AG15)) -> 0.05795505264 | AE15: =IF(LEFT($D15,15)="Unlisted Player",-1001,IF('All-WERTH'!AH15="",-1000,'All-WERTH'!AH15)) -> -1.471614206 | AF15: =IF(LEFT($D15,15)="Unlisted Player",-1001,IF('All-WERTH'!AI15="",-1000,'All-WERTH'!AI15)) -> -1.974222571 | AG15: =IF(LEFT($D15,15)="Unlisted Player",-1001,IF('All-WERTH'!AJ15="",-1000,'All-WERTH'!AJ15)) -> -1000 | AH15: =IF(LEFT($D15,15)="Unlisted Player",-1001,IF('All-WERTH'!AK15="",-1000,'All-WERTH'!AK15)) -> -1000 | AI15: =IF(LEFT($D15,15)="Unlisted Player",-1001,IF('All-WERTH'!AL15="",-1000,'All-WERTH'!AL15)) -> -1000 | AJ15: =IF(LEFT($D15,15)="Unlisted Player",-1001,IF('All-WERTH'!AM15="",-1000,'All-WERTH'!AM15)) -> -1000 | AK15: =IF(LEFT($D15,15)="Unlisted Player",-1001,IF('All-WERTH'!AN15="",-1000,'All-WERTH'!AN15)) -> -1000 | AL15: =IF(LEFT($D15,15)="Unlisted Player",-1001,IF('All-WERTH'!AO15="",-1000,'All-WERTH'!AO15)) -> -1000 | AM15: =IF(LEFT($D15,15)="Unlisted Player",-1001,IF('All-WERTH'!AP15="",-1000,'All-WERTH'!AP15)) -> -1000 | AN15: =IF(LEFT($D15,15)="Unlisted Player",-1001,'All-WERTH'!AT15) -> -0.6645830766 | AO15: =IF(ISERROR(VLOOKUP($B14,Keepers!$C$2:$D$450,2,FALSE)),B14,"") -> Trevor Bauer | AP15: =IFERROR(INDEX($AO$1:$AO$899,SMALL(IF($AO$1:$AO$899<>"",ROW($AO$1:$AO$899)),ROW(AO15))),"") -> Cody Bellinger
A16: Cody Bellinger | B16: =IFERROR(INDEX($A$1:$A$899,SMALL(IF($A$1:$A$899<>"",ROW($A$1:$A$899)),ROW(A16))),"") -> Francisco Lindor | C16: =IFERROR(IF(L16=FALSE,"",CHOOSE(MATCH(RIGHT('Your Roto Draft'!$P$4,LEN('Your Roto Draft'!$P$4)-8),$M$1:$AN$1,0),1+SUMPRODUCT(($L$2:$L$900=TRUE)*($M$2:$M$900<M16))+COUNTIFS($L$2:L16,L16,$M$2:M16,M16)-1,1+SUMPRODUCT(($L$2:$L$900=TRUE)*($N$2:$N$900>N16))+COUNTIFS($L$2:L16,L16,$N$2:N16,N16)-1,1+SUMPRODUCT(($L$2:$L$900=TRUE)*($O$2:$O$900<O16))+COUNTIFS($L$2:L16,L16,$O$2:O16,O16)-1,1+SUMPRODUCT(($L$2:$L$900=TRUE)*($P$2:$P$900>P16))+COUNTIFS($L$2:L16,L16,$P$2:P16,P16)-1,1+SUMPRODUCT(($L$2:$L$900=TRUE)*($Q$2:$Q$900>Q16))+COUNTIFS($L$2:L16,L16,$Q$2:Q16,Q16)-1,1+SUMPRODUCT(($L$2:$L$900=TRUE)*($R$2:$R$900>R16))+COUNTIFS($L$2:L16,L16,$R$2:R16,R16)-1,1+SUMPRODUCT(($L$2:$L$900=TRUE)*($S$2:$S$900>S16))+COUNTIFS($L$2:L16,L16,$S$2:S16,S16)-1,1+SUMPRODUCT(($L$2:$L$900=TRUE)*($T$2:$T$900>T16))+COUNTIFS($L$2:L16,L16,$T$2:T16,T16)-1,1+SUMPRODUCT(($L$2:$L$900=TRUE)*($U$2:$U$900>U16))+COUNTIFS($L$2:L16,L16,$U$2:U16,U16)-1,1+SUMPRODUCT(($L$2:$L$900=TRUE)*($V$2:$V$900>V16))+COUNTIFS($L$2:L16,L16,$V$2:V16,V16)-1,1+SUMPRODUCT(($L$2:$L$900=TRUE)*($W$2:$W$900>W16))+COUNTIFS($L$2:L16,L16,$W$2:W16,W16)-1,1+SUMPRODUCT(($L$2:$L$900=TRUE)*($X$2:$X$900>X16))+COUNTIFS($L$2:L16,L16,$X$2:X16,X16)-1,1+SUMPRODUCT(($L$2:$L$900=TRUE)*($Y$2:$Y$900>Y16))+COUNTIFS($L$2:L16,L16,$Y$2:Y16,Y16)-1,1+SUMPRODUCT(($L$2:$L$900=TRUE)*($Z$2:$Z$900>Z16))+COUNTIFS($L$2:L16,L16,$Z$2:Z16,Z16)-1,1+SUMPRODUCT(($L$2:$L$900=TRUE)*($AA$2:$AA$900>AA16))+COUNTIFS($L$2:L16,L16,$AA$2:AA16,AA16)-1,1+SUMPRODUCT(($L$2:$L$900=TRUE)*($AB$2:$AB$900>AB16))+COUNTIFS($L$2:L16,L16,$AB$2:AB16,AB16)-1,1+SUMPRODUCT(($L$2:$L$900=TRUE)*($AC$2:$AC$900>AC16))+COUNTIFS($L$2:L16,L16,$AC$2:AC16,AC16)-1,1+SUMPRODUCT(($L$2:$L$900=TRUE)*($AD$2:$AD$900>AD16))+COUNTIFS($L$2:L16,L16,$AD$2:AD16,AD16)-1,1+SUMPRODUCT(($L$2:$L$900=TRUE)*($AE$2:$AE$900>AE16))+COUNTIFS($L$2:L16,L16,$AE$2:AE16,AE16)-1,1+SUMPRODUCT(($L$2:$L$900=TRUE)*($AF$2:$AF$900>AF16))+COUNTIFS($L$2:L16,L16,$AF$2:AF16,AF16)-1,1+SUMPRODUCT(($L$2:$L$900=TRUE)*($AG$2:$AG$900>AG16))+COUNTIFS($L$2:L16,L16,$AG$2:AG16,AG16)-1,1+SUMPRODUCT(($L$2:$L$900=TRUE)*($AH$2:$AH$900>AH16))+COUNTIFS($L$2:L16,L16,$AH$2:AH16,AH16)-1,1+SUMPRODUCT(($L$2:$L$900=TRUE)*($AI$2:$AI$900>AI16))+COUNTIFS($L$2:L16,L16,$AI$2:AI16,AI16)-1,1+SUMPRODUCT(($L$2:$L$900=TRUE)*($AJ$2:$AJ$900>AJ16))+COUNTIFS($L$2:L16,L16,$AJ$2:AJ16,AJ16)-1,1+SUMPRODUCT(($L$2:$L$900=TRUE)*($AK$2:$AK$900>AK16))+COUNTIFS($L$2:L16,L16,$AK$2:AK16,AK16)-1,1+SUMPRODUCT(($L$2:$L$900=TRUE)*($AL$2:$AL$900>AL16))+COUNTIFS($L$2:L16,L16,$AL$2:AL16,AL16)-1,1+SUMPRODUCT(($L$2:$L$900=TRUE)*($AM$2:$AM$900>AM16))+COUNTIFS($L$2:L16,L16,$AM$2:AM16,AM16)-1,1+SUMPRODUCT(($L$2:$L$900=TRUE)*($AN$2:$AN$900>AN16))+COUNTIFS($L$2:L16,L16,$AN$2:AN16,AN16)-1)),"") -> 291 | D16: Jorge Alfaro | E16: =IFERROR(INDEX('Draft Log'!$D$4:$D$555,MATCH(D16,'Draft Log'!$C$4:$C$555,0)),"") ->  | F16: =IFERROR(INDEX('ADP-Rank'!$C$2:$C$790,MATCH(D16,'ADP-Rank'!$A$2:$A$790,0)),"") -> C | H16: C | I16: =IF(AND(F16="OF",'Guts-2'!$M$9=0),IF(MAX(Pre!J16:L16)=Pre!J16,"LF",IF(MAX(Pre!J16:L16)=Pre!K16,"CF",IF(MAX(Pre!J16:L16)=Pre!L16,"RF","LF"))),"") ->  | J16: =IFERROR(INDEX('ADP-Rank'!$X$2:$X$790,MATCH(D16,'ADP-Rank'!$A$2:$A$790,0)),TRUE) -> TRUE | K16: FALSE | L16: =IF(J16=FALSE,FALSE,IF(AND('Your Roto Draft'!$P$6="Hide Drafted Players",K16=TRUE),FALSE,CHOOSE($I$1,TRUE,OR(RIGHT('Your Roto Draft'!$P$5,LEN('Your Roto Draft'!$P$5)-11)=H16,IF(RIGHT('Your Roto Draft'!$P$5,LEN('Your Roto Draft'!$P$5)-11)<>"C",NOT(ISERROR(SEARCH(RIGHT('Your Roto Draft'!$P$5,LEN('Your Roto Draft'!$P$5)-11),Pre!$CB16))),AND(NOT(ISERROR(SEARCH(RIGHT('Your Roto Draft'!$P$5,LEN('Your Roto Draft'!$P$5)-11),Pre!$CB16))),ISERROR(SEARCH("CF",Pre!$CB16)))),RIGHT('Your Roto Draft'!$P$5,LEN('Your Roto Draft'!$P$5)-11)=Pre!BP16),OR(H16="1B",H16="3B",ISNUMBER(SEARCH("1B",Pre!$CB16)),ISNUMBER(SEARCH("3B",Pre!$CB16))),OR(H16="2B",H16="SS",ISNUMBER(SEARCH("2B",Pre!$CB16)),ISNUMBER(SEARCH("SS",Pre!$CB16))),OR(H16="1B",H16="3B",H16="2B",H16="SS",ISNUMBER(SEARCH("1B",Pre!$CB16)),ISNUMBER(SEARCH("3B",Pre!$CB16)),ISNUMBER(SEARCH("2B",Pre!$CB16)),ISNUMBER(SEARCH("SS",Pre!$CB16))),OR(H16="SP",H16="RP",ISNUMBER(SEARCH("SP",Pre!$CB16)),ISNUMBER(SEARCH("RP",Pre!$CB16))),AND(H16<>"RP",H16<>"SP",NOT(ISNUMBER(SEARCH("RP",Pre!$CB16))),NOT(ISNUMBER(SEARCH("SP",Pre!$CB16)))),OR(H16="SP",H16="RP",ISNUMBER(SEARCH("SP",Pre!$CB16)),ISNUMBER(SEARCH("RP",Pre!$CB16)))))) -> TRUE | M16: =IF('ADP-Rank'!AB16="",9999,'ADP-Rank'!AB16) -> 298.2 | N16: =IF(LEFT($D16,15)="Unlisted Player",-1001,'All-WERTH'!AQ16) -> -8.350257946 | O16: =IF('ADP-Rank'!Z16="",9999,'ADP-Rank'!Z16) -> 311 | P16: =IF(LEFT($D16,15)="Unlisted Player",-1001,IF('All-WERTH'!S16="",-1000,'All-WERTH'!S16)) -> -1.113208838 | Q16: =IF(LEFT($D16,15)="Unlisted Player",-1001,IF('All-WERTH'!T16="",-1000,'All-WERTH'!T16)) -> -1.615959578 | R16: =IF(LEFT($D16,15)="Unlisted Player",-1001,IF('All-WERTH'!U16="",-1000,'All-WERTH'!U16)) -> -2.800096228 | S16: =IF(LEFT($D16,15)="Unlisted Player",-1001,IF('All-WERTH'!V16="",-1000,'All-WERTH'!V16)) -> -2.123166725 | T16: =IF(LEFT($D16,15)="Unlisted Player",-1001,IF('All-WERTH'!W16="",-1000,'All-WERTH'!W16)) -> -0.6978265786 | U16: =IF(LEFT($D16,15)="Unlisted Player",-1001,IF('All-WERTH'!X16="",-1000,'All-WERTH'!X16)) -> -1000 | V16: =IF(LEFT($D16,15)="Unlisted Player",-1001,IF('All-WERTH'!Y16="",-1000,'All-WERTH'!Y16)) -> -1000 | W16: =IF(LEFT($D16,15)="Unlisted Player",-1001,IF('All-WERTH'!Z16="",-1000,'All-WERTH'!Z16)) -> -1000 | X16: =IF(LEFT($D16,15)="Unlisted Player",-1001,IF('All-WERTH'!AA16="",-1000,'All-WERTH'!AA16)) -> -1000 | Y16: =IF(LEFT($D16,15)="Unlisted Player",-1001,IF('All-WERTH'!AB16="",-1000,'All-WERTH'!AB16)) -> -1000 | Z16: =IF(LEFT($D16,15)="Unlisted Player",-1001,IF('All-WERTH'!AC16="",-1000,'All-WERTH'!AC16)) -> -1000 | AA16: =IF(LEFT($D16,15)="Unlisted Player",-1001,IF('All-WERTH'!AD16="",-1000,'All-WERTH'!AD16)) -> -1000 | AB16: =IF(LEFT($D16,15)="Unlisted Player",-1001,IF('All-WERTH'!AE16="",-1000,'All-WERTH'!AE16)) -> -1000 | AC16: =IF(LEFT($D16,15)="Unlisted Player",-1001,IF('All-WERTH'!AF16="",-1000,'All-WERTH'!AF16)) -> -1000 | AD16: =IF(LEFT($D16,15)="Unlisted Player",-1001,IF('All-WERTH'!AG16="",-1000,'All-WERTH'!AG16)) -> -1000 | AE16: =IF(LEFT($D16,15)="Unlisted Player",-1001,IF('All-WERTH'!AH16="",-1000,'All-WERTH'!AH16)) -> -1000 | AF16: =IF(LEFT($D16,15)="Unlisted Player",-1001,IF('All-WERTH'!AI16="",-1000,'All-WERTH'!AI16)) -> -1000 | AG16: =IF(LEFT($D16,15)="Unlisted Player",-1001,IF('All-WERTH'!AJ16="",-1000,'All-WERTH'!AJ16)) -> -1000 | AH16: =IF(LEFT($D16,15)="Unlisted Player",-1001,IF('All-WERTH'!AK16="",-1000,'All-WERTH'!AK16)) -> -1000 | AI16: =IF(LEFT($D16,15)="Unlisted Player",-1001,IF('All-WERTH'!AL16="",-1000,'All-WERTH'!AL16)) -> -1000 | AJ16: =IF(LEFT($D16,15)="Unlisted Player",-1001,IF('All-WERTH'!AM16="",-1000,'All-WERTH'!AM16)) -> -1000 | AK16: =IF(LEFT($D16,15)="Unlisted Player",-1001,IF('All-WERTH'!AN16="",-1000,'All-WERTH'!AN16)) -> -1000 | AL16: =IF(LEFT($D16,15)="Unlisted Player",-1001,IF('All-WERTH'!AO16="",-1000,'All-WERTH'!AO16)) -> -1000 | AM16: =IF(LEFT($D16,15)="Unlisted Player",-1001,IF('All-WERTH'!AP16="",-1000,'All-WERTH'!AP16)) -> -1000 | AN16: =IF(LEFT($D16,15)="Unlisted Player",-1001,'All-WERTH'!AT16) -> -1.170786248 | AO16: =IF(ISERROR(VLOOKUP($B15,Keepers!$C$2:$D$450,2,FALSE)),B15,"") -> Cody Bellinger | AP16: =IFERROR(INDEX($AO$1:$AO$899,SMALL(IF($AO$1:$AO$899<>"",ROW($AO$1:$AO$899)),ROW(AO16))),"") -> Francisco Lindor
A17: Francisco Lindor | B17: =IFERROR(INDEX($A$1:$A$899,SMALL(IF($A$1:$A$899<>"",ROW($A$1:$A$899)),ROW(A17))),"") -> Yu Darvish | C17: =IFERROR(IF(L17=FALSE,"",CHOOSE(MATCH(RIGHT('Your Roto Draft'!$P$4,LEN('Your Roto Draft'!$P$4)-8),$M$1:$AN$1,0),1+SUMPRODUCT(($L$2:$L$900=TRUE)*($M$2:$M$900<M17))+COUNTIFS($L$2:L17,L17,$M$2:M17,M17)-1,1+SUMPRODUCT(($L$2:$L$900=TRUE)*($N$2:$N$900>N17))+COUNTIFS($L$2:L17,L17,$N$2:N17,N17)-1,1+SUMPRODUCT(($L$2:$L$900=TRUE)*($O$2:$O$900<O17))+COUNTIFS($L$2:L17,L17,$O$2:O17,O17)-1,1+SUMPRODUCT(($L$2:$L$900=TRUE)*($P$2:$P$900>P17))+COUNTIFS($L$2:L17,L17,$P$2:P17,P17)-1,1+SUMPRODUCT(($L$2:$L$900=TRUE)*($Q$2:$Q$900>Q17))+COUNTIFS($L$2:L17,L17,$Q$2:Q17,Q17)-1,1+SUMPRODUCT(($L$2:$L$900=TRUE)*($R$2:$R$900>R17))+COUNTIFS($L$2:L17,L17,$R$2:R17,R17)-1,1+SUMPRODUCT(($L$2:$L$900=TRUE)*($S$2:$S$900>S17))+COUNTIFS($L$2:L17,L17,$S$2:S17,S17)-1,1+SUMPRODUCT(($L$2:$L$900=TRUE)*($T$2:$T$900>T17))+COUNTIFS($L$2:L17,L17,$T$2:T17,T17)-1,1+SUMPRODUCT(($L$2:$L$900=TRUE)*($U$2:$U$900>U17))+COUNTIFS($L$2:L17,L17,$U$2:U17,U17)-1,1+SUMPRODUCT(($L$2:$L$900=TRUE)*($V$2:$V$900>V17))+COUNTIFS($L$2:L17,L17,$V$2:V17,V17)-1,1+SUMPRODUCT(($L$2:$L$900=TRUE)*($W$2:$W$900>W17))+COUNTIFS($L$2:L17,L17,$W$2:W17,W17)-1,1+SUMPRODUCT(($L$2:$L$900=TRUE)*($X$2:$X$900>X17))+COUNTIFS($L$2:L17,L17,$X$2:X17,X17)-1,1+SUMPRODUCT(($L$2:$L$900=TRUE)*($Y$2:$Y$900>Y17))+COUNTIFS($L$2:L17,L17,$Y$2:Y17,Y17)-1,1+SUMPRODUCT(($L$2:$L$900=TRUE)*($Z$2:$Z$900>Z17))+COUNTIFS($L$2:L17,L17,$Z$2:Z17,Z17)-1,1+SUMPRODUCT(($L$2:$L$900=TRUE)*($AA$2:$AA$900>AA17))+COUNTIFS($L$2:L17,L17,$AA$2:AA17,AA17)-1,1+SUMPRODUCT(($L$2:$L$900=TRUE)*($AB$2:$AB$900>AB17))+COUNTIFS($L$2:L17,L17,$AB$2:AB17,AB17)-1,1+SUMPRODUCT(($L$2:$L$900=TRUE)*($AC$2:$AC$900>AC17))+COUNTIFS($L$2:L17,L17,$AC$2:AC17,AC17)-1,1+SUMPRODUCT(($L$2:$L$900=TRUE)*($AD$2:$AD$900>AD17))+COUNTIFS($L$2:L17,L17,$AD$2:AD17,AD17)-1,1+SUMPRODUCT(($L$2:$L$900=TRUE)*($AE$2:$AE$900>AE17))+COUNTIFS($L$2:L17,L17,$AE$2:AE17,AE17)-1,1+SUMPRODUCT(($L$2:$L$900=TRUE)*($AF$2:$AF$900>AF17))+COUNTIFS($L$2:L17,L17,$AF$2:AF17,AF17)-1,1+SUMPRODUCT(($L$2:$L$900=TRUE)*($AG$2:$AG$900>AG17))+COUNTIFS($L$2:L17,L17,$AG$2:AG17,AG17)-1,1+SUMPRODUCT(($L$2:$L$900=TRUE)*($AH$2:$AH$900>AH17))+COUNTIFS($L$2:L17,L17,$AH$2:AH17,AH17)-1,1+SUMPRODUCT(($L$2:$L$900=TRUE)*($AI$2:$AI$900>AI17))+COUNTIFS($L$2:L17,L17,$AI$2:AI17,AI17)-1,1+SUMPRODUCT(($L$2:$L$900=TRUE)*($AJ$2:$AJ$900>AJ17))+COUNTIFS($L$2:L17,L17,$AJ$2:AJ17,AJ17)-1,1+SUMPRODUCT(($L$2:$L$900=TRUE)*($AK$2:$AK$900>AK17))+COUNTIFS($L$2:L17,L17,$AK$2:AK17,AK17)-1,1+SUMPRODUCT(($L$2:$L$900=TRUE)*($AL$2:$AL$900>AL17))+COUNTIFS($L$2:L17,L17,$AL$2:AL17,AL17)-1,1+SUMPRODUCT(($L$2:$L$900=TRUE)*($AM$2:$AM$900>AM17))+COUNTIFS($L$2:L17,L17,$AM$2:AM17,AM17)-1,1+SUMPRODUCT(($L$2:$L$900=TRUE)*($AN$2:$AN$900>AN17))+COUNTIFS($L$2:L17,L17,$AN$2:AN17,AN17)-1)),"") -> 601 | D17: Anthony Alford | E17: =IFERROR(INDEX('Draft Log'!$D$4:$D$555,MATCH(D17,'Draft Log'!$C$4:$C$555,0)),"") ->  | F17: =IFERROR(INDEX('ADP-Rank'!$C$2:$C$790,MATCH(D17,'ADP-Rank'!$A$2:$A$790,0)),"") -> OF | H17: OF | I17: =IF(AND(F17="OF",'Guts-2'!$M$9=0),IF(MAX(Pre!J17:L17)=Pre!J17,"LF",IF(MAX(Pre!J17:L17)=Pre!K17,"CF",IF(MAX(Pre!J17:L17)=Pre!L17,"RF","LF"))),"") ->  | J17: =IFERROR(INDEX('ADP-Rank'!$X$2:$X$790,MATCH(D17,'ADP-Rank'!$A$2:$A$790,0)),TRUE) -> TRUE | K17: FALSE | L17: =IF(J17=FALSE,FALSE,IF(AND('Your Roto Draft'!$P$6="Hide Drafted Players",K17=TRUE),FALSE,CHOOSE($I$1,TRUE,OR(RIGHT('Your Roto Draft'!$P$5,LEN('Your Roto Draft'!$P$5)-11)=H17,IF(RIGHT('Your Roto Draft'!$P$5,LEN('Your Roto Draft'!$P$5)-11)<>"C",NOT(ISERROR(SEARCH(RIGHT('Your Roto Draft'!$P$5,LEN('Your Roto Draft'!$P$5)-11),Pre!$CB17))),AND(NOT(ISERROR(SEARCH(RIGHT('Your Roto Draft'!$P$5,LEN('Your Roto Draft'!$P$5)-11),Pre!$CB17))),ISERROR(SEARCH("CF",Pre!$CB17)))),RIGHT('Your Roto Draft'!$P$5,LEN('Your Roto Draft'!$P$5)-11)=Pre!BP17),OR(H17="1B",H17="3B",ISNUMBER(SEARCH("1B",Pre!$CB17)),ISNUMBER(SEARCH("3B",Pre!$CB17))),OR(H17="2B",H17="SS",ISNUMBER(SEARCH("2B",Pre!$CB17)),ISNUMBER(SEARCH("SS",Pre!$CB17))),OR(H17="1B",H17="3B",H17="2B",H17="SS",ISNUMBER(SEARCH("1B",Pre!$CB17)),ISNUMBER(SEARCH("3B",Pre!$CB17)),ISNUMBER(SEARCH("2B",Pre!$CB17)),ISNUMBER(SEARCH("SS",Pre!$CB17))),OR(H17="SP",H17="RP",ISNUMBER(SEARCH("SP",Pre!$CB17)),ISNUMBER(SEARCH("RP",Pre!$CB17))),AND(H17<>"RP",H17<>"SP",NOT(ISNUMBER(SEARCH("RP",Pre!$CB17))),NOT(ISNUMBER(SEARCH("SP",Pre!$CB17)))),OR(H17="SP",H17="RP",ISNUMBER(SEARCH("SP",Pre!$CB17)),ISNUMBER(SEARCH("RP",Pre!$CB17)))))) -> TRUE | M17: =IF('ADP-Rank'!AB17="",9999,'ADP-Rank'!AB17) -> 592.5 | N17: =IF(LEFT($D17,15)="Unlisted Player",-1001,'All-WERTH'!AQ17) -> -7.590110831 | O17: =IF('ADP-Rank'!Z17="",9999,'ADP-Rank'!Z17) -> 681 | P17: =IF(LEFT($D17,15)="Unlisted Player",-1001,IF('All-WERTH'!S17="",-1000,'All-WERTH'!S17)) -> -1.539849323 | Q17: =IF(LEFT($D17,15)="Unlisted Player",-1001,IF('All-WERTH'!T17="",-1000,'All-WERTH'!T17)) -> -2.058654925 | R17: =IF(LEFT($D17,15)="Unlisted Player",-1001,IF('All-WERTH'!U17="",-1000,'All-WERTH'!U17)) -> -2.577736074 | S17: =IF(LEFT($D17,15)="Unlisted Player",-1001,IF('All-WERTH'!V17="",-1000,'All-WERTH'!V17)) -> -2.76281395 | T17: =IF(LEFT($D17,15)="Unlisted Player",-1001,IF('All-WERTH'!W17="",-1000,'All-WERTH'!W17)) -> 1.34894344 | U17: =IF(LEFT($D17,15)="Unlisted Player",-1001,IF('All-WERTH'!X17="",-1000,'All-WERTH'!X17)) -> -1000 | V17: =IF(LEFT($D17,15)="Unlisted Player",-1001,IF('All-WERTH'!Y17="",-1000,'All-WERTH'!Y17)) -> -1000 | W17: =IF(LEFT($D17,15)="Unlisted Player",-1001,IF('All-WERTH'!Z17="",-1000,'All-WERTH'!Z17)) -> -1000 | X17: =IF(LEFT($D17,15)="Unlisted Player",-1001,IF('All-WERTH'!AA17="",-1000,'All-WERTH'!AA17)) -> -1000 | Y17: =IF(LEFT($D17,15)="Unlisted Player",-1001,IF('All-WERTH'!AB17="",-1000,'All-WERTH'!AB17)) -> -1000 | Z17: =IF(LEFT($D17,15)="Unlisted Player",-1001,IF('All-WERTH'!AC17="",-1000,'All-WERTH'!AC17)) -> -1000 | AA17: =IF(LEFT($D17,15)="Unlisted Player",-1001,IF('All-WERTH'!AD17="",-1000,'All-WERTH'!AD17)) -> -1000 | AB17: =IF(LEFT($D17,15)="Unlisted Player",-1001,IF('All-WERTH'!AE17="",-1000,'All-WERTH'!AE17)) -> -1000 | AC17: =IF(LEFT($D17,15)="Unlisted Player",-1001,IF('All-WERTH'!AF17="",-1000,'All-WERTH'!AF17)) -> -1000 | AD17: =IF(LEFT($D17,15)="Unlisted Player",-1001,IF('All-WERTH'!AG17="",-1000,'All-WERTH'!AG17)) -> -1000 | AE17: =IF(LEFT($D17,15)="Unlisted Player",-1001,IF('All-WERTH'!AH17="",-1000,'All-WERTH'!AH17)) -> -1000 | AF17: =IF(LEFT($D17,15)="Unlisted Player",-1001,IF('All-WERTH'!AI17="",-1000,'All-WERTH'!AI17)) -> -1000 | AG17: =IF(LEFT($D17,15)="Unlisted Player",-1001,IF('All-WERTH'!AJ17="",-1000,'All-WERTH'!AJ17)) -> -1000 | AH17: =IF(LEFT($D17,15)="Unlisted Player",-1001,IF('All-WERTH'!AK17="",-1000,'All-WERTH'!AK17)) -> -1000 | AI17: =IF(LEFT($D17,15)="Unlisted Player",-1001,IF('All-WERTH'!AL17="",-1000,'All-WERTH'!AL17)) -> -1000 | AJ17: =IF(LEFT($D17,15)="Unlisted Player",-1001,IF('All-WERTH'!AM17="",-1000,'All-WERTH'!AM17)) -> -1000 | AK17: =IF(LEFT($D17,15)="Unlisted Player",-1001,IF('All-WERTH'!AN17="",-1000,'All-WERTH'!AN17)) -> -1000 | AL17: =IF(LEFT($D17,15)="Unlisted Player",-1001,IF('All-WERTH'!AO17="",-1000,'All-WERTH'!AO17)) -> -1000 | AM17: =IF(LEFT($D17,15)="Unlisted Player",-1001,IF('All-WERTH'!AP17="",-1000,'All-WERTH'!AP17)) -> -1000 | AN17: =IF(LEFT($D17,15)="Unlisted Player",-1001,'All-WERTH'!AT17) -> -4.729516098 | AO17: =IF(ISERROR(VLOOKUP($B16,Keepers!$C$2:$D$450,2,FALSE)),B16,"") -> Francisco Lindor | AP17: =IFERROR(INDEX($AO$1:$AO$899,SMALL(IF($AO$1:$AO$899<>"",ROW($AO$1:$AO$899)),ROW(AO17))),"") -> Yu Darvish
A18: Yu Darvish | B18: =IFERROR(INDEX($A$1:$A$899,SMALL(IF($A$1:$A$899<>"",ROW($A$1:$A$899)),ROW(A18))),"") -> Bryce Harper | C18: =IFERROR(IF(L18=FALSE,"",CHOOSE(MATCH(RIGHT('Your Roto Draft'!$P$4,LEN('Your Roto Draft'!$P$4)-8),$M$1:$AN$1,0),1+SUMPRODUCT(($L$2:$L$900=TRUE)*($M$2:$M$900<M18))+COUNTIFS($L$2:L18,L18,$M$2:M18,M18)-1,1+SUMPRODUCT(($L$2:$L$900=TRUE)*($N$2:$N$900>N18))+COUNTIFS($L$2:L18,L18,$N$2:N18,N18)-1,1+SUMPRODUCT(($L$2:$L$900=TRUE)*($O$2:$O$900<O18))+COUNTIFS($L$2:L18,L18,$O$2:O18,O18)-1,1+SUMPRODUCT(($L$2:$L$900=TRUE)*($P$2:$P$900>P18))+COUNTIFS($L$2:L18,L18,$P$2:P18,P18)-1,1+SUMPRODUCT(($L$2:$L$900=TRUE)*($Q$2:$Q$900>Q18))+COUNTIFS($L$2:L18,L18,$Q$2:Q18,Q18)-1,1+SUMPRODUCT(($L$2:$L$900=TRUE)*($R$2:$R$900>R18))+COUNTIFS($L$2:L18,L18,$R$2:R18,R18)-1,1+SUMPRODUCT(($L$2:$L$900=TRUE)*($S$2:$S$900>S18))+COUNTIFS($L$2:L18,L18,$S$2:S18,S18)-1,1+SUMPRODUCT(($L$2:$L$900=TRUE)*($T$2:$T$900>T18))+COUNTIFS($L$2:L18,L18,$T$2:T18,T18)-1,1+SUMPRODUCT(($L$2:$L$900=TRUE)*($U$2:$U$900>U18))+COUNTIFS($L$2:L18,L18,$U$2:U18,U18)-1,1+SUMPRODUCT(($L$2:$L$900=TRUE)*($V$2:$V$900>V18))+COUNTIFS($L$2:L18,L18,$V$2:V18,V18)-1,1+SUMPRODUCT(($L$2:$L$900=TRUE)*($W$2:$W$900>W18))+COUNTIFS($L$2:L18,L18,$W$2:W18,W18)-1,1+SUMPRODUCT(($L$2:$L$900=TRUE)*($X$2:$X$900>X18))+COUNTIFS($L$2:L18,L18,$X$2:X18,X18)-1,1+SUMPRODUCT(($L$2:$L$900=TRUE)*($Y$2:$Y$900>Y18))+COUNTIFS($L$2:L18,L18,$Y$2:Y18,Y18)-1,1+SUMPRODUCT(($L$2:$L$900=TRUE)*($Z$2:$Z$900>Z18))+COUNTIFS($L$2:L18,L18,$Z$2:Z18,Z18)-1,1+SUMPRODUCT(($L$2:$L$900=TRUE)*($AA$2:$AA$900>AA18))+COUNTIFS($L$2:L18,L18,$AA$2:AA18,AA18)-1,1+SUMPRODUCT(($L$2:$L$900=TRUE)*($AB$2:$AB$900>AB18))+COUNTIFS($L$2:L18,L18,$AB$2:AB18,AB18)-1,1+SUMPRODUCT(($L$2:$L$900=TRUE)*($AC$2:$AC$900>AC18))+COUNTIFS($L$2:L18,L18,$AC$2:AC18,AC18)-1,1+SUMPRODUCT(($L$2:$L$900=TRUE)*($AD$2:$AD$900>AD18))+COUNTIFS($L$2:L18,L18,$AD$2:AD18,AD18)-1,1+SUMPRODUCT(($L$2:$L$900=TRUE)*($AE$2:$AE$900>AE18))+COUNTIFS($L$2:L18,L18,$AE$2:AE18,AE18)-1,1+SUMPRODUCT(($L$2:$L$900=TRUE)*($AF$2:$AF$900>AF18))+COUNTIFS($L$2:L18,L18,$AF$2:AF18,AF18)-1,1+SUMPRODUCT(($L$2:$L$900=TRUE)*($AG$2:$AG$900>AG18))+COUNTIFS($L$2:L18,L18,$AG$2:AG18,AG18)-1,1+SUMPRODUCT(($L$2:$L$900=TRUE)*($AH$2:$AH$900>AH18))+COUNTIFS($L$2:L18,L18,$AH$2:AH18,AH18)-1,1+SUMPRODUCT(($L$2:$L$900=TRUE)*($AI$2:$AI$900>AI18))+COUNTIFS($L$2:L18,L18,$AI$2:AI18,AI18)-1,1+SUMPRODUCT(($L$2:$L$900=TRUE)*($AJ$2:$AJ$900>AJ18))+COUNTIFS($L$2:L18,L18,$AJ$2:AJ18,AJ18)-1,1+SUMPRODUCT(($L$2:$L$900=TRUE)*($AK$2:$AK$900>AK18))+COUNTIFS($L$2:L18,L18,$AK$2:AK18,AK18)-1,1+SUMPRODUCT(($L$2:$L$900=TRUE)*($AL$2:$AL$900>AL18))+COUNTIFS($L$2:L18,L18,$AL$2:AL18,AL18)-1,1+SUMPRODUCT(($L$2:$L$900=TRUE)*($AM$2:$AM$900>AM18))+COUNTIFS($L$2:L18,L18,$AM$2:AM18,AM18)-1,1+SUMPRODUCT(($L$2:$L$900=TRUE)*($AN$2:$AN$900>AN18))+COUNTIFS($L$2:L18,L18,$AN$2:AN18,AN18)-1)),"") -> 710 | D18: Kolby Allard | E18: =IFERROR(INDEX('Draft Log'!$D$4:$D$555,MATCH(D18,'Draft Log'!$C$4:$C$555,0)),"") ->  | F18: =IFERROR(INDEX('ADP-Rank'!$C$2:$C$790,MATCH(D18,'ADP-Rank'!$A$2:$A$790,0)),"") -> SP | H18: SP | I18: =IF(AND(F18="OF",'Guts-2'!$M$9=0),IF(MAX(Pre!J18:L18)=Pre!J18,"LF",IF(MAX(Pre!J18:L18)=Pre!K18,"CF",IF(MAX(Pre!J18:L18)=Pre!L18,"RF","LF"))),"") ->  | J18: =IFERROR(INDEX('ADP-Rank'!$X$2:$X$790,MATCH(D18,'ADP-Rank'!$A$2:$A$790,0)),TRUE) -> TRUE | K18: FALSE | L18: =IF(J18=FALSE,FALSE,IF(AND('Your Roto Draft'!$P$6="Hide Drafted Players",K18=TRUE),FALSE,CHOOSE($I$1,TRUE,OR(RIGHT('Your Roto Draft'!$P$5,LEN('Your Roto Draft'!$P$5)-11)=H18,IF(RIGHT('Your Roto Draft'!$P$5,LEN('Your Roto Draft'!$P$5)-11)<>"C",NOT(ISERROR(SEARCH(RIGHT('Your Roto Draft'!$P$5,LEN('Your Roto Draft'!$P$5)-11),Pre!$CB18))),AND(NOT(ISERROR(SEARCH(RIGHT('Your Roto Draft'!$P$5,LEN('Your Roto Draft'!$P$5)-11),Pre!$CB18))),ISERROR(SEARCH("CF",Pre!$CB18)))),RIGHT('Your Roto Draft'!$P$5,LEN('Your Roto Draft'!$P$5)-11)=Pre!BP18),OR(H18="1B",H18="3B",ISNUMBER(SEARCH("1B",Pre!$CB18)),ISNUMBER(SEARCH("3B",Pre!$CB18))),OR(H18="2B",H18="SS",ISNUMBER(SEARCH("2B",Pre!$CB18)),ISNUMBER(SEARCH("SS",Pre!$CB18))),OR(H18="1B",H18="3B",H18="2B",H18="SS",ISNUMBER(SEARCH("1B",Pre!$CB18)),ISNUMBER(SEARCH("3B",Pre!$CB18)),ISNUMBER(SEARCH("2B",Pre!$CB18)),ISNUMBER(SEARCH("SS",Pre!$CB18))),OR(H18="SP",H18="RP",ISNUMBER(SEARCH("SP",Pre!$CB18)),ISNUMBER(SEARCH("RP",Pre!$CB18))),AND(H18<>"RP",H18<>"SP",NOT(ISNUMBER(SEARCH("RP",Pre!$CB18))),NOT(ISNUMBER(SEARCH("SP",Pre!$CB18)))),OR(H18="SP",H18="RP",ISNUMBER(SEARCH("SP",Pre!$CB18)),ISNUMBER(SEARCH("RP",Pre!$CB18)))))) -> TRUE | M18: =IF('ADP-Rank'!AB18="",9999,'ADP-Rank'!AB18) -> 750 | N18: =IF(LEFT($D18,15)="Unlisted Player",-1001,'All-WERTH'!AQ18) -> -8.373818259 | O18: =IF('ADP-Rank'!Z18="",9999,'ADP-Rank'!Z18) -> 603 | P18: =IF(LEFT($D18,15)="Unlisted Player",-1001,IF('All-WERTH'!S18="",-1000,'All-WERTH'!S18)) -> -1000 | Q18: =IF(LEFT($D18,15)="Unlisted Player",-1001,IF('All-WERTH'!T18="",-1000,'All-WERTH'!T18)) -> -1000 | R18: =IF(LEFT($D18,15)="Unlisted Player",-1001,IF('All-WERTH'!U18="",-1000,'All-WERTH'!U18)) -> -1000 | S18: =IF(LEFT($D18,15)="Unlisted Player",-1001,IF('All-WERTH'!V18="",-1000,'All-WERTH'!V18)) -> -1000 | T18: =IF(LEFT($D18,15)="Unlisted Player",-1001,IF('All-WERTH'!W18="",-1000,'All-WERTH'!W18)) -> -1000 | U18: =IF(LEFT($D18,15)="Unlisted Player",-1001,IF('All-WERTH'!X18="",-1000,'All-WERTH'!X18)) -> -1000 | V18: =IF(LEFT($D18,15)="Unlisted Player",-1001,IF('All-WERTH'!Y18="",-1000,'All-WERTH'!Y18)) -> -1000 | W18: =IF(LEFT($D18,15)="Unlisted Player",-1001,IF('All-WERTH'!Z18="",-1000,'All-WERTH'!Z18)) -> -1000 | X18: =IF(LEFT($D18,15)="Unlisted Player",-1001,IF('All-WERTH'!AA18="",-1000,'All-WERTH'!AA18)) -> -1000 | Y18: =IF(LEFT($D18,15)="Unlisted Player",-1001,IF('All-WERTH'!AB18="",-1000,'All-WERTH'!AB18)) -> -1000 | Z18: =IF(LEFT($D18,15)="Unlisted Player",-1001,IF('All-WERTH'!AC18="",-1000,'All-WERTH'!AC18)) -> -1000 | AA18: =IF(LEFT($D18,15)="Unlisted Player",-1001,IF('All-WERTH'!AD18="",-1000,'All-WERTH'!AD18)) -> -1000 | AB18: =IF(LEFT($D18,15)="Unlisted Player",-1001,IF('All-WERTH'!AE18="",-1000,'All-WERTH'!AE18)) -> -1.665019803 | AC18: =IF(LEFT($D18,15)="Unlisted Player",-1001,IF('All-WERTH'!AF18="",-1000,'All-WERTH'!AF18)) -> -0.4598927588 | AD18: =IF(LEFT($D18,15)="Unlisted Player",-1001,IF('All-WERTH'!AG18="",-1000,'All-WERTH'!AG18)) -> -1.571791785 | AE18: =IF(LEFT($D18,15)="Unlisted Player",-1001,IF('All-WERTH'!AH18="",-1000,'All-WERTH'!AH18)) -> -2.087510809 | AF18: =IF(LEFT($D18,15)="Unlisted Player",-1001,IF('All-WERTH'!AI18="",-1000,'All-WERTH'!AI18)) -> -2.589603104 | AG18: =IF(LEFT($D18,15)="Unlisted Player",-1001,IF('All-WERTH'!AJ18="",-1000,'All-WERTH'!AJ18)) -> -1000 | AH18: =IF(LEFT($D18,15)="Unlisted Player",-1001,IF('All-WERTH'!AK18="",-1000,'All-WERTH'!AK18)) -> -1000 | AI18: =IF(LEFT($D18,15)="Unlisted Player",-1001,IF('All-WERTH'!AL18="",-1000,'All-WERTH'!AL18)) -> -1000 | AJ18: =IF(LEFT($D18,15)="Unlisted Player",-1001,IF('All-WERTH'!AM18="",-1000,'All-WERTH'!AM18)) -> -1000 | AK18: =IF(LEFT($D18,15)="Unlisted Player",-1001,IF('All-WERTH'!AN18="",-1000,'All-WERTH'!AN18)) -> -1000 | AL18: =IF(LEFT($D18,15)="Unlisted Player",-1001,IF('All-WERTH'!AO18="",-1000,'All-WERTH'!AO18)) -> -1000 | AM18: =IF(LEFT($D18,15)="Unlisted Player",-1001,IF('All-WERTH'!AP18="",-1000,'All-WERTH'!AP18)) -> -1000 | AN18: =IF(LEFT($D18,15)="Unlisted Player",-1001,'All-WERTH'!AT18) -> -5.021896802 | AO18: =IF(ISERROR(VLOOKUP($B17,Keepers!$C$2:$D$450,2,FALSE)),B17,"") -> Yu Darvish | AP18: =IFERROR(INDEX($AO$1:$AO$899,SMALL(IF($AO$1:$AO$899<>"",ROW($AO$1:$AO$899)),ROW(AO18))),"") -> Bryce Harper
A19: Bryce Harper | B19: =IFERROR(INDEX($A$1:$A$899,SMALL(IF($A$1:$A$899<>"",ROW($A$1:$A$899)),ROW(A19))),"") -> Walker Buehler | C19: =IFERROR(IF(L19=FALSE,"",CHOOSE(MATCH(RIGHT('Your Roto Draft'!$P$4,LEN('Your Roto Draft'!$P$4)-8),$M$1:$AN$1,0),1+SUMPRODUCT(($L$2:$L$900=TRUE)*($M$2:$M$900<M19))+COUNTIFS($L$2:L19,L19,$M$2:M19,M19)-1,1+SUMPRODUCT(($L$2:$L$900=TRUE)*($N$2:$N$900>N19))+COUNTIFS($L$2:L19,L19,$N$2:N19,N19)-1,1+SUMPRODUCT(($L$2:$L$900=TRUE)*($O$2:$O$900<O19))+COUNTIFS($L$2:L19,L19,$O$2:O19,O19)-1,1+SUMPRODUCT(($L$2:$L$900=TRUE)*($P$2:$P$900>P19))+COUNTIFS($L$2:L19,L19,$P$2:P19,P19)-1,1+SUMPRODUCT(($L$2:$L$900=TRUE)*($Q$2:$Q$900>Q19))+COUNTIFS($L$2:L19,L19,$Q$2:Q19,Q19)-1,1+SUMPRODUCT(($L$2:$L$900=TRUE)*($R$2:$R$900>R19))+COUNTIFS($L$2:L19,L19,$R$2:R19,R19)-1,1+SUMPRODUCT(($L$2:$L$900=TRUE)*($S$2:$S$900>S19))+COUNTIFS($L$2:L19,L19,$S$2:S19,S19)-1,1+SUMPRODUCT(($L$2:$L$900=TRUE)*($T$2:$T$900>T19))+COUNTIFS($L$2:L19,L19,$T$2:T19,T19)-1,1+SUMPRODUCT(($L$2:$L$900=TRUE)*($U$2:$U$900>U19))+COUNTIFS($L$2:L19,L19,$U$2:U19,U19)-1,1+SUMPRODUCT(($L$2:$L$900=TRUE)*($V$2:$V$900>V19))+COUNTIFS($L$2:L19,L19,$V$2:V19,V19)-1,1+SUMPRODUCT(($L$2:$L$900=TRUE)*($W$2:$W$900>W19))+COUNTIFS($L$2:L19,L19,$W$2:W19,W19)-1,1+SUMPRODUCT(($L$2:$L$900=TRUE)*($X$2:$X$900>X19))+COUNTIFS($L$2:L19,L19,$X$2:X19,X19)-1,1+SUMPRODUCT(($L$2:$L$900=TRUE)*($Y$2:$Y$900>Y19))+COUNTIFS($L$2:L19,L19,$Y$2:Y19,Y19)-1,1+SUMPRODUCT(($L$2:$L$900=TRUE)*($Z$2:$Z$900>Z19))+COUNTIFS($L$2:L19,L19,$Z$2:Z19,Z19)-1,1+SUMPRODUCT(($L$2:$L$900=TRUE)*($AA$2:$AA$900>AA19))+COUNTIFS($L$2:L19,L19,$AA$2:AA19,AA19)-1,1+SUMPRODUCT(($L$2:$L$900=TRUE)*($AB$2:$AB$900>AB19))+COUNTIFS($L$2:L19,L19,$AB$2:AB19,AB19)-1,1+SUMPRODUCT(($L$2:$L$900=TRUE)*($AC$2:$AC$900>AC19))+COUNTIFS($L$2:L19,L19,$AC$2:AC19,AC19)-1,1+SUMPRODUCT(($L$2:$L$900=TRUE)*($AD$2:$AD$900>AD19))+COUNTIFS($L$2:L19,L19,$AD$2:AD19,AD19)-1,1+SUMPRODUCT(($L$2:$L$900=TRUE)*($AE$2:$AE$900>AE19))+COUNTIFS($L$2:L19,L19,$AE$2:AE19,AE19)-1,1+SUMPRODUCT(($L$2:$L$900=TRUE)*($AF$2:$AF$900>AF19))+COUNTIFS($L$2:L19,L19,$AF$2:AF19,AF19)-1,1+SUMPRODUCT(($L$2:$L$900=TRUE)*($AG$2:$AG$900>AG19))+COUNTIFS($L$2:L19,L19,$AG$2:AG19,AG19)-1,1+SUMPRODUCT(($L$2:$L$900=TRUE)*($AH$2:$AH$900>AH19))+COUNTIFS($L$2:L19,L19,$AH$2:AH19,AH19)-1,1+SUMPRODUCT(($L$2:$L$900=TRUE)*($AI$2:$AI$900>AI19))+COUNTIFS($L$2:L19,L19,$AI$2:AI19,AI19)-1,1+SUMPRODUCT(($L$2:$L$900=TRUE)*($AJ$2:$AJ$900>AJ19))+COUNTIFS($L$2:L19,L19,$AJ$2:AJ19,AJ19)-1,1+SUMPRODUCT(($L$2:$L$900=TRUE)*($AK$2:$AK$900>AK19))+COUNTIFS($L$2:L19,L19,$AK$2:AK19,AK19)-1,1+SUMPRODUCT(($L$2:$L$900=TRUE)*($AL$2:$AL$900>AL19))+COUNTIFS($L$2:L19,L19,$AL$2:AL19,AL19)-1,1+SUMPRODUCT(($L$2:$L$900=TRUE)*($AM$2:$AM$900>AM19))+COUNTIFS($L$2:L19,L19,$AM$2:AM19,AM19)-1,1+SUMPRODUCT(($L$2:$L$900=TRUE)*($AN$2:$AN$900>AN19))+COUNTIFS($L$2:L19,L19,$AN$2:AN19,AN19)-1)),"") -> 717 | D19: Austin Allen | E19: =IFERROR(INDEX('Draft Log'!$D$4:$D$555,MATCH(D19,'Draft Log'!$C$4:$C$555,0)),"") ->  | F19: =IFERROR(INDEX('ADP-Rank'!$C$2:$C$790,MATCH(D19,'ADP-Rank'!$A$2:$A$790,0)),"") -> C | H19: C | I19: =IF(AND(F19="OF",'Guts-2'!$M$9=0),IF(MAX(Pre!J19:L19)=Pre!J19,"LF",IF(MAX(Pre!J19:L19)=Pre!K19,"CF",IF(MAX(Pre!J19:L19)=Pre!L19,"RF","LF"))),"") ->  | J19: =IFERROR(INDEX('ADP-Rank'!$X$2:$X$790,MATCH(D19,'ADP-Rank'!$A$2:$A$790,0)),TRUE) -> TRUE | K19: FALSE | L19: =IF(J19=FALSE,FALSE,IF(AND('Your Roto Draft'!$P$6="Hide Drafted Players",K19=TRUE),FALSE,CHOOSE($I$1,TRUE,OR(RIGHT('Your Roto Draft'!$P$5,LEN('Your Roto Draft'!$P$5)-11)=H19,IF(RIGHT('Your Roto Draft'!$P$5,LEN('Your Roto Draft'!$P$5)-11)<>"C",NOT(ISERROR(SEARCH(RIGHT('Your Roto Draft'!$P$5,LEN('Your Roto Draft'!$P$5)-11),Pre!$CB19))),AND(NOT(ISERROR(SEARCH(RIGHT('Your Roto Draft'!$P$5,LEN('Your Roto Draft'!$P$5)-11),Pre!$CB19))),ISERROR(SEARCH("CF",Pre!$CB19)))),RIGHT('Your Roto Draft'!$P$5,LEN('Your Roto Draft'!$P$5)-11)=Pre!BP19),OR(H19="1B",H19="3B",ISNUMBER(SEARCH("1B",Pre!$CB19)),ISNUMBER(SEARCH("3B",Pre!$CB19))),OR(H19="2B",H19="SS",ISNUMBER(SEARCH("2B",Pre!$CB19)),ISNUMBER(SEARCH("SS",Pre!$CB19))),OR(H19="1B",H19="3B",H19="2B",H19="SS",ISNUMBER(SEARCH("1B",Pre!$CB19)),ISNUMBER(SEARCH("3B",Pre!$CB19)),ISNUMBER(SEARCH("2B",Pre!$CB19)),ISNUMBER(SEARCH("SS",Pre!$CB19))),OR(H19="SP",H19="RP",ISNUMBER(SEARCH("SP",Pre!$CB19)),ISNUMBER(SEARCH("RP",Pre!$CB19))),AND(H19<>"RP",H19<>"SP",NOT(ISNUMBER(SEARCH("RP",Pre!$CB19))),NOT(ISNUMBER(SEARCH("SP",Pre!$CB19)))),OR(H19="SP",H19="RP",ISNUMBER(SEARCH("SP",Pre!$CB19)),ISNUMBER(SEARCH("RP",Pre!$CB19)))))) -> TRUE | M19: =IF('ADP-Rank'!AB19="",9999,'ADP-Rank'!AB19) -> 773.5 | N19: =IF(LEFT($D19,15)="Unlisted Player",-1001,'All-WERTH'!AQ19) -> -10.30637429 | O19: =IF('ADP-Rank'!Z19="",9999,'ADP-Rank'!Z19) -> 9999 | P19: =IF(LEFT($D19,15)="Unlisted Player",-1001,IF('All-WERTH'!S19="",-1000,'All-WERTH'!S19)) -> -0.8061656865 | Q19: =IF(LEFT($D19,15)="Unlisted Player",-1001,IF('All-WERTH'!T19="",-1000,'All-WERTH'!T19)) -> -2.088533599 | R19: =IF(LEFT($D19,15)="Unlisted Player",-1001,IF('All-WERTH'!U19="",-1000,'All-WERTH'!U19)) -> -3.373959506 | S19: =IF(LEFT($D19,15)="Unlisted Player",-1001,IF('All-WERTH'!V19="",-1000,'All-WERTH'!V19)) -> -2.815903011 | T19: =IF(LEFT($D19,15)="Unlisted Player",-1001,IF('All-WERTH'!W19="",-1000,'All-WERTH'!W19)) -> -1.221812491 | U19: =IF(LEFT($D19,15)="Unlisted Player",-1001,IF('All-WERTH'!X19="",-1000,'All-WERTH'!X19)) -> -1000 | V19: =IF(LEFT($D19,15)="Unlisted Player",-1001,IF('All-WERTH'!Y19="",-1000,'All-WERTH'!Y19)) -> -1000 | W19: =IF(LEFT($D19,15)="Unlisted Player",-1001,IF('All-WERTH'!Z19="",-1000,'All-WERTH'!Z19)) -> -1000 | X19: =IF(LEFT($D19,15)="Unlisted Player",-1001,IF('All-WERTH'!AA19="",-1000,'All-WERTH'!AA19)) -> -1000 | Y19: =IF(LEFT($D19,15)="Unlisted Player",-1001,IF('All-WERTH'!AB19="",-1000,'All-WERTH'!AB19)) -> -1000 | Z19: =IF(LEFT($D19,15)="Unlisted Player",-1001,IF('All-WERTH'!AC19="",-1000,'All-WERTH'!AC19)) -> -1000 | AA19: =IF(LEFT($D19,15)="Unlisted Player",-1001,IF('All-WERTH'!AD19="",-1000,'All-WERTH'!AD19)) -> -1000 | AB19: =IF(LEFT($D19,15)="Unlisted Player",-1001,IF('All-WERTH'!AE19="",-1000,'All-WERTH'!AE19)) -> -1000 | AC19: =IF(LEFT($D19,15)="Unlisted Player",-1001,IF('All-WERTH'!AF19="",-1000,'All-WERTH'!AF19)) -> -1000 | AD19: =IF(LEFT($D19,15)="Unlisted Player",-1001,IF('All-WERTH'!AG19="",-1000,'All-WERTH'!AG19)) -> -1000 | AE19: =IF(LEFT($D19,15)="Unlisted Player",-1001,IF('All-WERTH'!AH19="",-1000,'All-WERTH'!AH19)) -> -1000 | AF19: =IF(LEFT($D19,15)="Unlisted Player",-1001,IF('All-WERTH'!AI19="",-1000,'All-WERTH'!AI19)) -> -1000 | AG19: =IF(LEFT($D19,15)="Unlisted Player",-1001,IF('All-WERTH'!AJ19="",-1000,'All-WERTH'!AJ19)) -> -1000 | AH19: =IF(LEFT($D19,15)="Unlisted Player",-1001,IF('All-WERTH'!AK19="",-1000,'All-WERTH'!AK19)) -> -1000 | AI19: =IF(LEFT($D19,15)="Unlisted Player",-1001,IF('All-WERTH'!AL19="",-1000,'All-WERTH'!AL19)) -> -1000 | AJ19: =IF(LEFT($D19,15)="Unlisted Player",-1001,IF('All-WERTH'!AM19="",-1000,'All-WERTH'!AM19)) -> -1000 | AK19: =IF(LEFT($D19,15)="Unlisted Player",-1001,IF('All-WERTH'!AN19="",-1000,'All-WERTH'!AN19)) -> -1000 | AL19: =IF(LEFT($D19,15)="Unlisted Player",-1001,IF('All-WERTH'!AO19="",-1000,'All-WERTH'!AO19)) -> -1000 | AM19: =IF(LEFT($D19,15)="Unlisted Player",-1001,IF('All-WERTH'!AP19="",-1000,'All-WERTH'!AP19)) -> -1000 | AN19: =IF(LEFT($D19,15)="Unlisted Player",-1001,'All-WERTH'!AT19) -> -3.126902596 | AO19: =IF(ISERROR(VLOOKUP($B18,Keepers!$C$2:$D$450,2,FALSE)),B18,"") -> Bryce Harper | AP19: =IFERROR(INDEX($AO$1:$AO$899,SMALL(IF($AO$1:$AO$899<>"",ROW($AO$1:$AO$899)),ROW(AO19))),"") -> Walker Buehler
A20: Walker Buehler | B20: =IFERROR(INDEX($A$1:$A$899,SMALL(IF($A$1:$A$899<>"",ROW($A$1:$A$899)),ROW(A20))),"") -> Lucas Giolito | C20: =IFERROR(IF(L20=FALSE,"",CHOOSE(MATCH(RIGHT('Your Roto Draft'!$P$4,LEN('Your Roto Draft'!$P$4)-8),$M$1:$AN$1,0),1+SUMPRODUCT(($L$2:$L$900=TRUE)*($M$2:$M$900<M20))+COUNTIFS($L$2:L20,L20,$M$2:M20,M20)-1,1+SUMPRODUCT(($L$2:$L$900=TRUE)*($N$2:$N$900>N20))+COUNTIFS($L$2:L20,L20,$N$2:N20,N20)-1,1+SUMPRODUCT(($L$2:$L$900=TRUE)*($O$2:$O$900<O20))+COUNTIFS($L$2:L20,L20,$O$2:O20,O20)-1,1+SUMPRODUCT(($L$2:$L$900=TRUE)*($P$2:$P$900>P20))+COUNTIFS($L$2:L20,L20,$P$2:P20,P20)-1,1+SUMPRODUCT(($L$2:$L$900=TRUE)*($Q$2:$Q$900>Q20))+COUNTIFS($L$2:L20,L20,$Q$2:Q20,Q20)-1,1+SUMPRODUCT(($L$2:$L$900=TRUE)*($R$2:$R$900>R20))+COUNTIFS($L$2:L20,L20,$R$2:R20,R20)-1,1+SUMPRODUCT(($L$2:$L$900=TRUE)*($S$2:$S$900>S20))+COUNTIFS($L$2:L20,L20,$S$2:S20,S20)-1,1+SUMPRODUCT(($L$2:$L$900=TRUE)*($T$2:$T$900>T20))+COUNTIFS($L$2:L20,L20,$T$2:T20,T20)-1,1+SUMPRODUCT(($L$2:$L$900=TRUE)*($U$2:$U$900>U20))+COUNTIFS($L$2:L20,L20,$U$2:U20,U20)-1,1+SUMPRODUCT(($L$2:$L$900=TRUE)*($V$2:$V$900>V20))+COUNTIFS($L$2:L20,L20,$V$2:V20,V20)-1,1+SUMPRODUCT(($L$2:$L$900=TRUE)*($W$2:$W$900>W20))+COUNTIFS($L$2:L20,L20,$W$2:W20,W20)-1,1+SUMPRODUCT(($L$2:$L$900=TRUE)*($X$2:$X$900>X20))+COUNTIFS($L$2:L20,L20,$X$2:X20,X20)-1,1+SUMPRODUCT(($L$2:$L$900=TRUE)*($Y$2:$Y$900>Y20))+COUNTIFS($L$2:L20,L20,$Y$2:Y20,Y20)-1,1+SUMPRODUCT(($L$2:$L$900=TRUE)*($Z$2:$Z$900>Z20))+COUNTIFS($L$2:L20,L20,$Z$2:Z20,Z20)-1,1+SUMPRODUCT(($L$2:$L$900=TRUE)*($AA$2:$AA$900>AA20))+COUNTIFS($L$2:L20,L20,$AA$2:AA20,AA20)-1,1+SUMPRODUCT(($L$2:$L$900=TRUE)*($AB$2:$AB$900>AB20))+COUNTIFS($L$2:L20,L20,$AB$2:AB20,AB20)-1,1+SUMPRODUCT(($L$2:$L$900=TRUE)*($AC$2:$AC$900>AC20))+COUNTIFS($L$2:L20,L20,$AC$2:AC20,AC20)-1,1+SUMPRODUCT(($L$2:$L$900=TRUE)*($AD$2:$AD$900>AD20))+COUNTIFS($L$2:L20,L20,$AD$2:AD20,AD20)-1,1+SUMPRODUCT(($L$2:$L$900=TRUE)*($AE$2:$AE$900>AE20))+COUNTIFS($L$2:L20,L20,$AE$2:AE20,AE20)-1,1+SUMPRODUCT(($L$2:$L$900=TRUE)*($AF$2:$AF$900>AF20))+COUNTIFS($L$2:L20,L20,$AF$2:AF20,AF20)-1,1+SUMPRODUCT(($L$2:$L$900=TRUE)*($AG$2:$AG$900>AG20))+COUNTIFS($L$2:L20,L20,$AG$2:AG20,AG20)-1,1+SUMPRODUCT(($L$2:$L$900=TRUE)*($AH$2:$AH$900>AH20))+COUNTIFS($L$2:L20,L20,$AH$2:AH20,AH20)-1,1+SUMPRODUCT(($L$2:$L$900=TRUE)*($AI$2:$AI$900>AI20))+COUNTIFS($L$2:L20,L20,$AI$2:AI20,AI20)-1,1+SUMPRODUCT(($L$2:$L$900=TRUE)*($AJ$2:$AJ$900>AJ20))+COUNTIFS($L$2:L20,L20,$AJ$2:AJ20,AJ20)-1,1+SUMPRODUCT(($L$2:$L$900=TRUE)*($AK$2:$AK$900>AK20))+COUNTIFS($L$2:L20,L20,$AK$2:AK20,AK20)-1,1+SUMPRODUCT(($L$2:$L$900=TRUE)*($AL$2:$AL$900>AL20))+COUNTIFS($L$2:L20,L20,$AL$2:AL20,AL20)-1,1+SUMPRODUCT(($L$2:$L$900=TRUE)*($AM$2:$AM$900>AM20))+COUNTIFS($L$2:L20,L20,$AM$2:AM20,AM20)-1,1+SUMPRODUCT(($L$2:$L$900=TRUE)*($AN$2:$AN$900>AN20))+COUNTIFS($L$2:L20,L20,$AN$2:AN20,AN20)-1)),"") -> 46 | D20: Pete Alonso | E20: =IFERROR(INDEX('Draft Log'!$D$4:$D$555,MATCH(D20,'Draft Log'!$C$4:$C$555,0)),"") ->  | F20: =IFERROR(INDEX('ADP-Rank'!$C$2:$C$790,MATCH(D20,'ADP-Rank'!$A$2:$A$790,0)),"") -> 1B | H20: 1B | I20: =IF(AND(F20="OF",'Guts-2'!$M$9=0),IF(MAX(Pre!J20:L20)=Pre!J20,"LF",IF(MAX(Pre!J20:L20)=Pre!K20,"CF",IF(MAX(Pre!J20:L20)=Pre!L20,"RF","LF"))),"") ->  | J20: =IFERROR(INDEX('ADP-Rank'!$X$2:$X$790,MATCH(D20,'ADP-Rank'!$A$2:$A$790,0)),TRUE) -> TRUE | K20: FALSE | L20: =IF(J20=FALSE,FALSE,IF(AND('Your Roto Draft'!$P$6="Hide Drafted Players",K20=TRUE),FALSE,CHOOSE($I$1,TRUE,OR(RIGHT('Your Roto Draft'!$P$5,LEN('Your Roto Draft'!$P$5)-11)=H20,IF(RIGHT('Your Roto Draft'!$P$5,LEN('Your Roto Draft'!$P$5)-11)<>"C",NOT(ISERROR(SEARCH(RIGHT('Your Roto Draft'!$P$5,LEN('Your Roto Draft'!$P$5)-11),Pre!$CB20))),AND(NOT(ISERROR(SEARCH(RIGHT('Your Roto Draft'!$P$5,LEN('Your Roto Draft'!$P$5)-11),Pre!$CB20))),ISERROR(SEARCH("CF",Pre!$CB20)))),RIGHT('Your Roto Draft'!$P$5,LEN('Your Roto Draft'!$P$5)-11)=Pre!BP20),OR(H20="1B",H20="3B",ISNUMBER(SEARCH("1B",Pre!$CB20)),ISNUMBER(SEARCH("3B",Pre!$CB20))),OR(H20="2B",H20="SS",ISNUMBER(SEARCH("2B",Pre!$CB20)),ISNUMBER(SEARCH("SS",Pre!$CB20))),OR(H20="1B",H20="3B",H20="2B",H20="SS",ISNUMBER(SEARCH("1B",Pre!$CB20)),ISNUMBER(SEARCH("3B",Pre!$CB20)),ISNUMBER(SEARCH("2B",Pre!$CB20)),ISNUMBER(SEARCH("SS",Pre!$CB20))),OR(H20="SP",H20="RP",ISNUMBER(SEARCH("SP",Pre!$CB20)),ISNUMBER(SEARCH("RP",Pre!$CB20))),AND(H20<>"RP",H20<>"SP",NOT(ISNUMBER(SEARCH("RP",Pre!$CB20))),NOT(ISNUMBER(SEARCH("SP",Pre!$CB20)))),OR(H20="SP",H20="RP",ISNUMBER(SEARCH("SP",Pre!$CB20)),ISNUMBER(SEARCH("RP",Pre!$CB20)))))) -> TRUE | M20: =IF('ADP-Rank'!AB20="",9999,'ADP-Rank'!AB20) -> 48.2 | N20: =IF(LEFT($D20,15)="Unlisted Player",-1001,'All-WERTH'!AQ20) -> 3.176404152 | O20: =IF('ADP-Rank'!Z20="",9999,'ADP-Rank'!Z20) -> 47 | P20: =IF(LEFT($D20,15)="Unlisted Player",-1001,IF('All-WERTH'!S20="",-1000,'All-WERTH'!S20)) -> -0.8324795718 | Q20: =IF(LEFT($D20,15)="Unlisted Player",-1001,IF('All-WERTH'!T20="",-1000,'All-WERTH'!T20)) -> 2.359582042 | R20: =IF(LEFT($D20,15)="Unlisted Player",-1001,IF('All-WERTH'!U20="",-1000,'All-WERTH'!U20)) -> 0.7924573245 | S20: =IF(LEFT($D20,15)="Unlisted Player",-1001,IF('All-WERTH'!V20="",-1000,'All-WERTH'!V20)) -> 1.758207633 | T20: =IF(LEFT($D20,15)="Unlisted Player",-1001,IF('All-WERTH'!W20="",-1000,'All-WERTH'!W20)) -> -0.9013632767 | U20: =IF(LEFT($D20,15)="Unlisted Player",-1001,IF('All-WERTH'!X20="",-1000,'All-WERTH'!X20)) -> -1000 | V20: =IF(LEFT($D20,15)="Unlisted Player",-1001,IF('All-WERTH'!Y20="",-1000,'All-WERTH'!Y20)) -> -1000 | W20: =IF(LEFT($D20,15)="Unlisted Player",-1001,IF('All-WERTH'!Z20="",-1000,'All-WERTH'!Z20)) -> -1000 | X20: =IF(LEFT($D20,15)="Unlisted Player",-1001,IF('All-WERTH'!AA20="",-1000,'All-WERTH'!AA20)) -> -1000 | Y20: =IF(LEFT($D20,15)="Unlisted Player",-1001,IF('All-WERTH'!AB20="",-1000,'All-WERTH'!AB20)) -> -1000 | Z20: =IF(LEFT($D20,15)="Unlisted Player",-1001,IF('All-WERTH'!AC20="",-1000,'All-WERTH'!AC20)) -> -1000 | AA20: =IF(LEFT($D20,15)="Unlisted Player",-1001,IF('All-WERTH'!AD20="",-1000,'All-WERTH'!AD20)) -> -1000 | AB20: =IF(LEFT($D20,15)="Unlisted Player",-1001,IF('All-WERTH'!AE20="",-1000,'All-WERTH'!AE20)) -> -1000 | AC20: =IF(LEFT($D20,15)="Unlisted Player",-1001,IF('All-WERTH'!AF20="",-1000,'All-WERTH'!AF20)) -> -1000 | AD20: =IF(LEFT($D20,15)="Unlisted Player",-1001,IF('All-WERTH'!AG20="",-1000,'All-WERTH'!AG20)) -> -1000 | AE20: =IF(LEFT($D20,15)="Unlisted Player",-1001,IF('All-WERTH'!AH20="",-1000,'All-WERTH'!AH20)) -> -1000 | AF20: =IF(LEFT($D20,15)="Unlisted Player",-1001,IF('All-WERTH'!AI20="",-1000,'All-WERTH'!AI20)) -> -1000 | AG20: =IF(LEFT($D20,15)="Unlisted Player",-1001,IF('All-WERTH'!AJ20="",-1000,'All-WERTH'!AJ20)) -> -1000 | AH20: =IF(LEFT($D20,15)="Unlisted Player",-1001,IF('All-WERTH'!AK20="",-1000,'All-WERTH'!AK20)) -> -1000 | AI20: =IF(LEFT($D20,15)="Unlisted Player",-1001,IF('All-WERTH'!AL20="",-1000,'All-WERTH'!AL20)) -> -1000 | AJ20: =IF(LEFT($D20,15)="Unlisted Player",-1001,IF('All-WERTH'!AM20="",-1000,'All-WERTH'!AM20)) -> -1000 | AK20: =IF(LEFT($D20,15)="Unlisted Player",-1001,IF('All-WERTH'!AN20="",-1000,'All-WERTH'!AN20)) -> -1000 | AL20: =IF(LEFT($D20,15)="Unlisted Player",-1001,IF('All-WERTH'!AO20="",-1000,'All-WERTH'!AO20)) -> -1000 | AM20: =IF(LEFT($D20,15)="Unlisted Player",-1001,IF('All-WERTH'!AP20="",-1000,'All-WERTH'!AP20)) -> -1000 | AN20: =IF(LEFT($D20,15)="Unlisted Player",-1001,'All-WERTH'!AT20) -> 5.967214453 | AO20: =IF(ISERROR(VLOOKUP($B19,Keepers!$C$2:$D$450,2,FALSE)),B19,"") -> Walker Buehler | AP20: =IFERROR(INDEX($AO$1:$AO$899,SMALL(IF($AO$1:$AO$899<>"",ROW($AO$1:$AO$899)),ROW(AO20))),"") -> Lucas Giolito
A21: Lucas Giolito | B21: =IFERROR(INDEX($A$1:$A$899,SMALL(IF($A$1:$A$899<>"",ROW($A$1:$A$899)),ROW(A21))),"") -> Manny Machado | C21: =IFERROR(IF(L21=FALSE,"",CHOOSE(MATCH(RIGHT('Your Roto Draft'!$P$4,LEN('Your Roto Draft'!$P$4)-8),$M$1:$AN$1,0),1+SUMPRODUCT(($L$2:$L$900=TRUE)*($M$2:$M$900<M21))+COUNTIFS($L$2:L21,L21,$M$2:M21,M21)-1,1+SUMPRODUCT(($L$2:$L$900=TRUE)*($N$2:$N$900>N21))+COUNTIFS($L$2:L21,L21,$N$2:N21,N21)-1,1+SUMPRODUCT(($L$2:$L$900=TRUE)*($O$2:$O$900<O21))+COUNTIFS($L$2:L21,L21,$O$2:O21,O21)-1,1+SUMPRODUCT(($L$2:$L$900=TRUE)*($P$2:$P$900>P21))+COUNTIFS($L$2:L21,L21,$P$2:P21,P21)-1,1+SUMPRODUCT(($L$2:$L$900=TRUE)*($Q$2:$Q$900>Q21))+COUNTIFS($L$2:L21,L21,$Q$2:Q21,Q21)-1,1+SUMPRODUCT(($L$2:$L$900=TRUE)*($R$2:$R$900>R21))+COUNTIFS($L$2:L21,L21,$R$2:R21,R21)-1,1+SUMPRODUCT(($L$2:$L$900=TRUE)*($S$2:$S$900>S21))+COUNTIFS($L$2:L21,L21,$S$2:S21,S21)-1,1+SUMPRODUCT(($L$2:$L$900=TRUE)*($T$2:$T$900>T21))+COUNTIFS($L$2:L21,L21,$T$2:T21,T21)-1,1+SUMPRODUCT(($L$2:$L$900=TRUE)*($U$2:$U$900>U21))+COUNTIFS($L$2:L21,L21,$U$2:U21,U21)-1,1+SUMPRODUCT(($L$2:$L$900=TRUE)*($V$2:$V$900>V21))+COUNTIFS($L$2:L21,L21,$V$2:V21,V21)-1,1+SUMPRODUCT(($L$2:$L$900=TRUE)*($W$2:$W$900>W21))+COUNTIFS($L$2:L21,L21,$W$2:W21,W21)-1,1+SUMPRODUCT(($L$2:$L$900=TRUE)*($X$2:$X$900>X21))+COUNTIFS($L$2:L21,L21,$X$2:X21,X21)-1,1+SUMPRODUCT(($L$2:$L$900=TRUE)*($Y$2:$Y$900>Y21))+COUNTIFS($L$2:L21,L21,$Y$2:Y21,Y21)-1,1+SUMPRODUCT(($L$2:$L$900=TRUE)*($Z$2:$Z$900>Z21))+COUNTIFS($L$2:L21,L21,$Z$2:Z21,Z21)-1,1+SUMPRODUCT(($L$2:$L$900=TRUE)*($AA$2:$AA$900>AA21))+COUNTIFS($L$2:L21,L21,$AA$2:AA21,AA21)-1,1+SUMPRODUCT(($L$2:$L$900=TRUE)*($AB$2:$AB$900>AB21))+COUNTIFS($L$2:L21,L21,$AB$2:AB21,AB21)-1,1+SUMPRODUCT(($L$2:$L$900=TRUE)*($AC$2:$AC$900>AC21))+COUNTIFS($L$2:L21,L21,$AC$2:AC21,AC21)-1,1+SUMPRODUCT(($L$2:$L$900=TRUE)*($AD$2:$AD$900>AD21))+COUNTIFS($L$2:L21,L21,$AD$2:AD21,AD21)-1,1+SUMPRODUCT(($L$2:$L$900=TRUE)*($AE$2:$AE$900>AE21))+COUNTIFS($L$2:L21,L21,$AE$2:AE21,AE21)-1,1+SUMPRODUCT(($L$2:$L$900=TRUE)*($AF$2:$AF$900>AF21))+COUNTIFS($L$2:L21,L21,$AF$2:AF21,AF21)-1,1+SUMPRODUCT(($L$2:$L$900=TRUE)*($AG$2:$AG$900>AG21))+COUNTIFS($L$2:L21,L21,$AG$2:AG21,AG21)-1,1+SUMPRODUCT(($L$2:$L$900=TRUE)*($AH$2:$AH$900>AH21))+COUNTIFS($L$2:L21,L21,$AH$2:AH21,AH21)-1,1+SUMPRODUCT(($L$2:$L$900=TRUE)*($AI$2:$AI$900>AI21))+COUNTIFS($L$2:L21,L21,$AI$2:AI21,AI21)-1,1+SUMPRODUCT(($L$2:$L$900=TRUE)*($AJ$2:$AJ$900>AJ21))+COUNTIFS($L$2:L21,L21,$AJ$2:AJ21,AJ21)-1,1+SUMPRODUCT(($L$2:$L$900=TRUE)*($AK$2:$AK$900>AK21))+COUNTIFS($L$2:L21,L21,$AK$2:AK21,AK21)-1,1+SUMPRODUCT(($L$2:$L$900=TRUE)*($AL$2:$AL$900>AL21))+COUNTIFS($L$2:L21,L21,$AL$2:AL21,AL21)-1,1+SUMPRODUCT(($L$2:$L$900=TRUE)*($AM$2:$AM$900>AM21))+COUNTIFS($L$2:L21,L21,$AM$2:AM21,AM21)-1,1+SUMPRODUCT(($L$2:$L$900=TRUE)*($AN$2:$AN$900>AN21))+COUNTIFS($L$2:L21,L21,$AN$2:AN21,AN21)-1)),"") -> 90 | D21: Jose Altuve | E21: =IFERROR(INDEX('Draft Log'!$D$4:$D$555,MATCH(D21,'Draft Log'!$C$4:$C$555,0)),"") ->  | F21: =IFERROR(INDEX('ADP-Rank'!$C$2:$C$790,MATCH(D21,'ADP-Rank'!$A$2:$A$790,0)),"") -> 2B | H21: 2B | I21: =IF(AND(F21="OF",'Guts-2'!$M$9=0),IF(MAX(Pre!J21:L21)=Pre!J21,"LF",IF(MAX(Pre!J21:L21)=Pre!K21,"CF",IF(MAX(Pre!J21:L21)=Pre!L21,"RF","LF"))),"") ->  | J21: =IFERROR(INDEX('ADP-Rank'!$X$2:$X$790,MATCH(D21,'ADP-Rank'!$A$2:$A$790,0)),TRUE) -> TRUE | K21: FALSE | L21: =IF(J21=FALSE,FALSE,IF(AND('Your Roto Draft'!$P$6="Hide Drafted Players",K21=TRUE),FALSE,CHOOSE($I$1,TRUE,OR(RIGHT('Your Roto Draft'!$P$5,LEN('Your Roto Draft'!$P$5)-11)=H21,IF(RIGHT('Your Roto Draft'!$P$5,LEN('Your Roto Draft'!$P$5)-11)<>"C",NOT(ISERROR(SEARCH(RIGHT('Your Roto Draft'!$P$5,LEN('Your Roto Draft'!$P$5)-11),Pre!$CB21))),AND(NOT(ISERROR(SEARCH(RIGHT('Your Roto Draft'!$P$5,LEN('Your Roto Draft'!$P$5)-11),Pre!$CB21))),ISERROR(SEARCH("CF",Pre!$CB21)))),RIGHT('Your Roto Draft'!$P$5,LEN('Your Roto Draft'!$P$5)-11)=Pre!BP21),OR(H21="1B",H21="3B",ISNUMBER(SEARCH("1B",Pre!$CB21)),ISNUMBER(SEARCH("3B",Pre!$CB21))),OR(H21="2B",H21="SS",ISNUMBER(SEARCH("2B",Pre!$CB21)),ISNUMBER(SEARCH("SS",Pre!$CB21))),OR(H21="1B",H21="3B",H21="2B",H21="SS",ISNUMBER(SEARCH("1B",Pre!$CB21)),ISNUMBER(SEARCH("3B",Pre!$CB21)),ISNUMBER(SEARCH("2B",Pre!$CB21)),ISNUMBER(SEARCH("SS",Pre!$CB21))),OR(H21="SP",H21="RP",ISNUMBER(SEARCH("SP",Pre!$CB21)),ISNUMBER(SEARCH("RP",Pre!$CB21))),AND(H21<>"RP",H21<>"SP",NOT(ISNUMBER(SEARCH("RP",Pre!$CB21))),NOT(ISNUMBER(SEARCH("SP",Pre!$CB21)))),OR(H21="SP",H21="RP",ISNUMBER(SEARCH("SP",Pre!$CB21)),ISNUMBER(SEARCH("RP",Pre!$CB21)))))) -> TRUE | M21: =IF('ADP-Rank'!AB21="",9999,'ADP-Rank'!AB21) -> 90.2 | N21: =IF(LEFT($D21,15)="Unlisted Player",-1001,'All-WERTH'!AQ21) -> 3.054336635 | O21: =IF('ADP-Rank'!Z21="",9999,'ADP-Rank'!Z21) -> 77 | P21: =IF(LEFT($D21,15)="Unlisted Player",-1001,IF('All-WERTH'!S21="",-1000,'All-WERTH'!S21)) -> 1.36211525 | Q21: =IF(LEFT($D21,15)="Unlisted Player",-1001,IF('All-WERTH'!T21="",-1000,'All-WERTH'!T21)) -> -0.2562051889 | R21: =IF(LEFT($D21,15)="Unlisted Player",-1001,IF('All-WERTH'!U21="",-1000,'All-WERTH'!U21)) -> 1.296775549 | S21: =IF(LEFT($D21,15)="Unlisted Player",-1001,IF('All-WERTH'!V21="",-1000,'All-WERTH'!V21)) -> -0.06902096924 | T21: =IF(LEFT($D21,15)="Unlisted Player",-1001,IF('All-WERTH'!W21="",-1000,'All-WERTH'!W21)) -> 0.7206719943 | U21: =IF(LEFT($D21,15)="Unlisted Player",-1001,IF('All-WERTH'!X21="",-1000,'All-WERTH'!X21)) -> -1000 | V21: =IF(LEFT($D21,15)="Unlisted Player",-1001,IF('All-WERTH'!Y21="",-1000,'All-WERTH'!Y21)) -> -1000 | W21: =IF(LEFT($D21,15)="Unlisted Player",-1001,IF('All-WERTH'!Z21="",-1000,'All-WERTH'!Z21)) -> -1000 | X21: =IF(LEFT($D21,15)="Unlisted Player",-1001,IF('All-WERTH'!AA21="",-1000,'All-WERTH'!AA21)) -> -1000 | Y21: =IF(LEFT($D21,15)="Unlisted Player",-1001,IF('All-WERTH'!AB21="",-1000,'All-WERTH'!AB21)) -> -1000 | Z21: =IF(LEFT($D21,15)="Unlisted Player",-1001,IF('All-WERTH'!AC21="",-1000,'All-WERTH'!AC21)) -> -1000 | AA21: =IF(LEFT($D21,15)="Unlisted Player",-1001,IF('All-WERTH'!AD21="",-1000,'All-WERTH'!AD21)) -> -1000 | AB21: =IF(LEFT($D21,15)="Unlisted Player",-1001,IF('All-WERTH'!AE21="",-1000,'All-WERTH'!AE21)) -> -1000 | AC21: =IF(LEFT($D21,15)="Unlisted Player",-1001,IF('All-WERTH'!AF21="",-1000,'All-WERTH'!AF21)) -> -1000 | AD21: =IF(LEFT($D21,15)="Unlisted Player",-1001,IF('All-WERTH'!AG21="",-1000,'All-WERTH'!AG21)) -> -1000 | AE21: =IF(LEFT($D21,15)="Unlisted Player",-1001,IF('All-WERTH'!AH21="",-1000,'All-WERTH'!AH21)) -> -1000 | AF21: =IF(LEFT($D21,15)="Unlisted Player",-1001,IF('All-WERTH'!AI21="",-1000,'All-WERTH'!AI21)) -> -1000 | AG21: =IF(LEFT($D21,15)="Unlisted Player",-1001,IF('All-WERTH'!AJ21="",-1000,'All-WERTH'!AJ21)) -> -1000 | AH21: =IF(LEFT($D21,15)="Unlisted Player",-1001,IF('All-WERTH'!AK21="",-1000,'All-WERTH'!AK21)) -> -1000 | AI21: =IF(LEFT($D21,15)="Unlisted Player",-1001,IF('All-WERTH'!AL21="",-1000,'All-WERTH'!AL21)) -> -1000 | AJ21: =IF(LEFT($D21,15)="Unlisted Player",-1001,IF('All-WERTH'!AM21="",-1000,'All-WERTH'!AM21)) -> -1000 | AK21: =IF(LEFT($D21,15)="Unlisted Player",-1001,IF('All-WERTH'!AN21="",-1000,'All-WERTH'!AN21)) -> -1000 | AL21: =IF(LEFT($D21,15)="Unlisted Player",-1001,IF('All-WERTH'!AO21="",-1000,'All-WERTH'!AO21)) -> -1000 | AM21: =IF(LEFT($D21,15)="Unlisted Player",-1001,IF('All-WERTH'!AP21="",-1000,'All-WERTH'!AP21)) -> -1000 | AN21: =IF(LEFT($D21,15)="Unlisted Player",-1001,'All-WERTH'!AT21) -> 5.7018321 | AO21: =IF(ISERROR(VLOOKUP($B20,Keepers!$C$2:$D$450,2,FALSE)),B20,"") -> Lucas Giolito | AP21: =IFERROR(INDEX($AO$1:$AO$899,SMALL(IF($AO$1:$AO$899<>"",ROW($AO$1:$AO$899)),ROW(AO21))),"") -> Manny Machado
A22: Manny Machado | B22: =IFERROR(INDEX($A$1:$A$899,SMALL(IF($A$1:$A$899<>"",ROW($A$1:$A$899)),ROW(A22))),"") -> Aaron Nola | C22: =IFERROR(IF(L22=FALSE,"",CHOOSE(MATCH(RIGHT('Your Roto Draft'!$P$4,LEN('Your Roto Draft'!$P$4)-8),$M$1:$AN$1,0),1+SUMPRODUCT(($L$2:$L$900=TRUE)*($M$2:$M$900<M22))+COUNTIFS($L$2:L22,L22,$M$2:M22,M22)-1,1+SUMPRODUCT(($L$2:$L$900=TRUE)*($N$2:$N$900>N22))+COUNTIFS($L$2:L22,L22,$N$2:N22,N22)-1,1+SUMPRODUCT(($L$2:$L$900=TRUE)*($O$2:$O$900<O22))+COUNTIFS($L$2:L22,L22,$O$2:O22,O22)-1,1+SUMPRODUCT(($L$2:$L$900=TRUE)*($P$2:$P$900>P22))+COUNTIFS($L$2:L22,L22,$P$2:P22,P22)-1,1+SUMPRODUCT(($L$2:$L$900=TRUE)*($Q$2:$Q$900>Q22))+COUNTIFS($L$2:L22,L22,$Q$2:Q22,Q22)-1,1+SUMPRODUCT(($L$2:$L$900=TRUE)*($R$2:$R$900>R22))+COUNTIFS($L$2:L22,L22,$R$2:R22,R22)-1,1+SUMPRODUCT(($L$2:$L$900=TRUE)*($S$2:$S$900>S22))+COUNTIFS($L$2:L22,L22,$S$2:S22,S22)-1,1+SUMPRODUCT(($L$2:$L$900=TRUE)*($T$2:$T$900>T22))+COUNTIFS($L$2:L22,L22,$T$2:T22,T22)-1,1+SUMPRODUCT(($L$2:$L$900=TRUE)*($U$2:$U$900>U22))+COUNTIFS($L$2:L22,L22,$U$2:U22,U22)-1,1+SUMPRODUCT(($L$2:$L$900=TRUE)*($V$2:$V$900>V22))+COUNTIFS($L$2:L22,L22,$V$2:V22,V22)-1,1+SUMPRODUCT(($L$2:$L$900=TRUE)*($W$2:$W$900>W22))+COUNTIFS($L$2:L22,L22,$W$2:W22,W22)-1,1+SUMPRODUCT(($L$2:$L$900=TRUE)*($X$2:$X$900>X22))+COUNTIFS($L$2:L22,L22,$X$2:X22,X22)-1,1+SUMPRODUCT(($L$2:$L$900=TRUE)*($Y$2:$Y$900>Y22))+COUNTIFS($L$2:L22,L22,$Y$2:Y22,Y22)-1,1+SUMPRODUCT(($L$2:$L$900=TRUE)*($Z$2:$Z$900>Z22))+COUNTIFS($L$2:L22,L22,$Z$2:Z22,Z22)-1,1+SUMPRODUCT(($L$2:$L$900=TRUE)*($AA$2:$AA$900>AA22))+COUNTIFS($L$2:L22,L22,$AA$2:AA22,AA22)-1,1+SUMPRODUCT(($L$2:$L$900=TRUE)*($AB$2:$AB$900>AB22))+COUNTIFS($L$2:L22,L22,$AB$2:AB22,AB22)-1,1+SUMPRODUCT(($L$2:$L$900=TRUE)*($AC$2:$AC$900>AC22))+COUNTIFS($L$2:L22,L22,$AC$2:AC22,AC22)-1,1+SUMPRODUCT(($L$2:$L$900=TRUE)*($AD$2:$AD$900>AD22))+COUNTIFS($L$2:L22,L22,$AD$2:AD22,AD22)-1,1+SUMPRODUCT(($L$2:$L$900=TRUE)*($AE$2:$AE$900>AE22))+COUNTIFS($L$2:L22,L22,$AE$2:AE22,AE22)-1,1+SUMPRODUCT(($L$2:$L$900=TRUE)*($AF$2:$AF$900>AF22))+COUNTIFS($L$2:L22,L22,$AF$2:AF22,AF22)-1,1+SUMPRODUCT(($L$2:$L$900=TRUE)*($AG$2:$AG$900>AG22))+COUNTIFS($L$2:L22,L22,$AG$2:AG22,AG22)-1,1+SUMPRODUCT(($L$2:$L$900=TRUE)*($AH$2:$AH$900>AH22))+COUNTIFS($L$2:L22,L22,$AH$2:AH22,AH22)-1,1+SUMPRODUCT(($L$2:$L$900=TRUE)*($AI$2:$AI$900>AI22))+COUNTIFS($L$2:L22,L22,$AI$2:AI22,AI22)-1,1+SUMPRODUCT(($L$2:$L$900=TRUE)*($AJ$2:$AJ$900>AJ22))+COUNTIFS($L$2:L22,L22,$AJ$2:AJ22,AJ22)-1,1+SUMPRODUCT(($L$2:$L$900=TRUE)*($AK$2:$AK$900>AK22))+COUNTIFS($L$2:L22,L22,$AK$2:AK22,AK22)-1,1+SUMPRODUCT(($L$2:$L$900=TRUE)*($AL$2:$AL$900>AL22))+COUNTIFS($L$2:L22,L22,$AL$2:AL22,AL22)-1,1+SUMPRODUCT(($L$2:$L$900=TRUE)*($AM$2:$AM$900>AM22))+COUNTIFS($L$2:L22,L22,$AM$2:AM22,AM22)-1,1+SUMPRODUCT(($L$2:$L$900=TRUE)*($AN$2:$AN$900>AN22))+COUNTIFS($L$2:L22,L22,$AN$2:AN22,AN22)-1)),"") -> 544 | D22: Jose Alvarado | E22: =IFERROR(INDEX('Draft Log'!$D$4:$D$555,MATCH(D22,'Draft Log'!$C$4:$C$555,0)),"") ->  | F22: =IFERROR(INDEX('ADP-Rank'!$C$2:$C$790,MATCH(D22,'ADP-Rank'!$A$2:$A$790,0)),"") -> RP | H22: RP | I22: =IF(AND(F22="OF",'Guts-2'!$M$9=0),IF(MAX(Pre!J22:L22)=Pre!J22,"LF",IF(MAX(Pre!J22:L22)=Pre!K22,"CF",IF(MAX(Pre!J22:L22)=Pre!L22,"RF","LF"))),"") ->  | J22: =IFERROR(INDEX('ADP-Rank'!$X$2:$X$790,MATCH(D22,'ADP-Rank'!$A$2:$A$790,0)),TRUE) -> TRUE | K22: FALSE | L22: =IF(J22=FALSE,FALSE,IF(AND('Your Roto Draft'!$P$6="Hide Drafted Players",K22=TRUE),FALSE,CHOOSE($I$1,TRUE,OR(RIGHT('Your Roto Draft'!$P$5,LEN('Your Roto Draft'!$P$5)-11)=H22,IF(RIGHT('Your Roto Draft'!$P$5,LEN('Your Roto Draft'!$P$5)-11)<>"C",NOT(ISERROR(SEARCH(RIGHT('Your Roto Draft'!$P$5,LEN('Your Roto Draft'!$P$5)-11),Pre!$CB22))),AND(NOT(ISERROR(SEARCH(RIGHT('Your Roto Draft'!$P$5,LEN('Your Roto Draft'!$P$5)-11),Pre!$CB22))),ISERROR(SEARCH("CF",Pre!$CB22)))),RIGHT('Your Roto Draft'!$P$5,LEN('Your Roto Draft'!$P$5)-11)=Pre!BP22),OR(H22="1B",H22="3B",ISNUMBER(SEARCH("1B",Pre!$CB22)),ISNUMBER(SEARCH("3B",Pre!$CB22))),OR(H22="2B",H22="SS",ISNUMBER(SEARCH("2B",Pre!$CB22)),ISNUMBER(SEARCH("SS",Pre!$CB22))),OR(H22="1B",H22="3B",H22="2B",H22="SS",ISNUMBER(SEARCH("1B",Pre!$CB22)),ISNUMBER(SEARCH("3B",Pre!$CB22)),ISNUMBER(SEARCH("2B",Pre!$CB22)),ISNUMBER(SEARCH("SS",Pre!$CB22))),OR(H22="SP",H22="RP",ISNUMBER(SEARCH("SP",Pre!$CB22)),ISNUMBER(SEARCH("RP",Pre!$CB22))),AND(H22<>"RP",H22<>"SP",NOT(ISNUMBER(SEARCH("RP",Pre!$CB22))),NOT(ISNUMBER(SEARCH("SP",Pre!$CB22)))),OR(H22="SP",H22="RP",ISNUMBER(SEARCH("SP",Pre!$CB22)),ISNUMBER(SEARCH("RP",Pre!$CB22)))))) -> TRUE | M22: =IF('ADP-Rank'!AB22="",9999,'ADP-Rank'!AB22) -> 525.7 | N22: =IF(LEFT($D22,15)="Unlisted Player",-1001,'All-WERTH'!AQ22) -> -4.490137923 | O22: =IF('ADP-Rank'!Z22="",9999,'ADP-Rank'!Z22) -> 443 | P22: =IF(LEFT($D22,15)="Unlisted Player",-1001,IF('All-WERTH'!S22="",-1000,'All-WERTH'!S22)) -> -1000 | Q22: =IF(LEFT($D22,15)="Unlisted Player",-1001,IF('All-WERTH'!T22="",-1000,'All-WERTH'!T22)) -> -1000 | R22: =IF(LEFT($D22,15)="Unlisted Player",-1001,IF('All-WERTH'!U22="",-1000,'All-WERTH'!U22)) -> -1000 | S22: =IF(LEFT($D22,15)="Unlisted Player",-1001,IF('All-WERTH'!V22="",-1000,'All-WERTH'!V22)) -> -1000 | T22: =IF(LEFT($D22,15)="Unlisted Player",-1001,IF('All-WERTH'!W22="",-1000,'All-WERTH'!W22)) -> -1000 | U22: =IF(LEFT($D22,15)="Unlisted Player",-1001,IF('All-WERTH'!X22="",-1000,'All-WERTH'!X22)) -> -1000 | V22: =IF(LEFT($D22,15)="Unlisted Player",-1001,IF('All-WERTH'!Y22="",-1000,'All-WERTH'!Y22)) -> -1000 | W22: =IF(LEFT($D22,15)="Unlisted Player",-1001,IF('All-WERTH'!Z22="",-1000,'All-WERTH'!Z22)) -> -1000 | X22: =IF(LEFT($D22,15)="Unlisted Player",-1001,IF('All-WERTH'!AA22="",-1000,'All-WERTH'!AA22)) -> -1000 | Y22: =IF(LEFT($D22,15)="Unlisted Player",-1001,IF('All-WERTH'!AB22="",-1000,'All-WERTH'!AB22)) -> -1000 | Z22: =IF(LEFT($D22,15)="Unlisted Player",-1001,IF('All-WERTH'!AC22="",-1000,'All-WERTH'!AC22)) -> -1000 | AA22: =IF(LEFT($D22,15)="Unlisted Player",-1001,IF('All-WERTH'!AD22="",-1000,'All-WERTH'!AD22)) -> -1000 | AB22: =IF(LEFT($D22,15)="Unlisted Player",-1001,IF('All-WERTH'!AE22="",-1000,'All-WERTH'!AE22)) -> -1.522466655 | AC22: =IF(LEFT($D22,15)="Unlisted Player",-1001,IF('All-WERTH'!AF22="",-1000,'All-WERTH'!AF22)) -> 0.01955618741 | AD22: =IF(LEFT($D22,15)="Unlisted Player",-1001,IF('All-WERTH'!AG22="",-1000,'All-WERTH'!AG22)) -> -1.561706208 | AE22: =IF(LEFT($D22,15)="Unlisted Player",-1001,IF('All-WERTH'!AH22="",-1000,'All-WERTH'!AH22)) -> -0.3711349285 | AF22: =IF(LEFT($D22,15)="Unlisted Player",-1001,IF('All-WERTH'!AI22="",-1000,'All-WERTH'!AI22)) -> -1.054386319 | AG22: =IF(LEFT($D22,15)="Unlisted Player",-1001,IF('All-WERTH'!AJ22="",-1000,'All-WERTH'!AJ22)) -> -1000 | AH22: =IF(LEFT($D22,15)="Unlisted Player",-1001,IF('All-WERTH'!AK22="",-1000,'All-WERTH'!AK22)) -> -1000 | AI22: =IF(LEFT($D22,15)="Unlisted Player",-1001,IF('All-WERTH'!AL22="",-1000,'All-WERTH'!AL22)) -> -1000 | AJ22: =IF(LEFT($D22,15)="Unlisted Player",-1001,IF('All-WERTH'!AM22="",-1000,'All-WERTH'!AM22)) -> -1000 | AK22: =IF(LEFT($D22,15)="Unlisted Player",-1001,IF('All-WERTH'!AN22="",-1000,'All-WERTH'!AN22)) -> -1000 | AL22: =IF(LEFT($D22,15)="Unlisted Player",-1001,IF('All-WERTH'!AO22="",-1000,'All-WERTH'!AO22)) -> -1000 | AM22: =IF(LEFT($D22,15)="Unlisted Player",-1001,IF('All-WERTH'!AP22="",-1000,'All-WERTH'!AP22)) -> -1000 | AN22: =IF(LEFT($D22,15)="Unlisted Player",-1001,'All-WERTH'!AT22) -> -1.769040852 | AO22: =IF(ISERROR(VLOOKUP($B21,Keepers!$C$2:$D$450,2,FALSE)),B21,"") -> Manny Machado | AP22: =IFERROR(INDEX($AO$1:$AO$899,SMALL(IF($AO$1:$AO$899<>"",ROW($AO$1:$AO$899)),ROW(AO22))),"") -> Aaron Nola
A23: Aaron Nola | B23: =IFERROR(INDEX($A$1:$A$899,SMALL(IF($A$1:$A$899<>"",ROW($A$1:$A$899)),ROW(A23))),"") -> Max Scherzer | C23: =IFERROR(IF(L23=FALSE,"",CHOOSE(MATCH(RIGHT('Your Roto Draft'!$P$4,LEN('Your Roto Draft'!$P$4)-8),$M$1:$AN$1,0),1+SUMPRODUCT(($L$2:$L$900=TRUE)*($M$2:$M$900<M23))+COUNTIFS($L$2:L23,L23,$M$2:M23,M23)-1,1+SUMPRODUCT(($L$2:$L$900=TRUE)*($N$2:$N$900>N23))+COUNTIFS($L$2:L23,L23,$N$2:N23,N23)-1,1+SUMPRODUCT(($L$2:$L$900=TRUE)*($O$2:$O$900<O23))+COUNTIFS($L$2:L23,L23,$O$2:O23,O23)-1,1+SUMPRODUCT(($L$2:$L$900=TRUE)*($P$2:$P$900>P23))+COUNTIFS($L$2:L23,L23,$P$2:P23,P23)-1,1+SUMPRODUCT(($L$2:$L$900=TRUE)*($Q$2:$Q$900>Q23))+COUNTIFS($L$2:L23,L23,$Q$2:Q23,Q23)-1,1+SUMPRODUCT(($L$2:$L$900=TRUE)*($R$2:$R$900>R23))+COUNTIFS($L$2:L23,L23,$R$2:R23,R23)-1,1+SUMPRODUCT(($L$2:$L$900=TRUE)*($S$2:$S$900>S23))+COUNTIFS($L$2:L23,L23,$S$2:S23,S23)-1,1+SUMPRODUCT(($L$2:$L$900=TRUE)*($T$2:$T$900>T23))+COUNTIFS($L$2:L23,L23,$T$2:T23,T23)-1,1+SUMPRODUCT(($L$2:$L$900=TRUE)*($U$2:$U$900>U23))+COUNTIFS($L$2:L23,L23,$U$2:U23,U23)-1,1+SUMPRODUCT(($L$2:$L$900=TRUE)*($V$2:$V$900>V23))+COUNTIFS($L$2:L23,L23,$V$2:V23,V23)-1,1+SUMPRODUCT(($L$2:$L$900=TRUE)*($W$2:$W$900>W23))+COUNTIFS($L$2:L23,L23,$W$2:W23,W23)-1,1+SUMPRODUCT(($L$2:$L$900=TRUE)*($X$2:$X$900>X23))+COUNTIFS($L$2:L23,L23,$X$2:X23,X23)-1,1+SUMPRODUCT(($L$2:$L$900=TRUE)*($Y$2:$Y$900>Y23))+COUNTIFS($L$2:L23,L23,$Y$2:Y23,Y23)-1,1+SUMPRODUCT(($L$2:$L$900=TRUE)*($Z$2:$Z$900>Z23))+COUNTIFS($L$2:L23,L23,$Z$2:Z23,Z23)-1,1+SUMPRODUCT(($L$2:$L$900=TRUE)*($AA$2:$AA$900>AA23))+COUNTIFS($L$2:L23,L23,$AA$2:AA23,AA23)-1,1+SUMPRODUCT(($L$2:$L$900=TRUE)*($AB$2:$AB$900>AB23))+COUNTIFS($L$2:L23,L23,$AB$2:AB23,AB23)-1,1+SUMPRODUCT(($L$2:$L$900=TRUE)*($AC$2:$AC$900>AC23))+COUNTIFS($L$2:L23,L23,$AC$2:AC23,AC23)-1,1+SUMPRODUCT(($L$2:$L$900=TRUE)*($AD$2:$AD$900>AD23))+COUNTIFS($L$2:L23,L23,$AD$2:AD23,AD23)-1,1+SUMPRODUCT(($L$2:$L$900=TRUE)*($AE$2:$AE$900>AE23))+COUNTIFS($L$2:L23,L23,$AE$2:AE23,AE23)-1,1+SUMPRODUCT(($L$2:$L$900=TRUE)*($AF$2:$AF$900>AF23))+COUNTIFS($L$2:L23,L23,$AF$2:AF23,AF23)-1,1+SUMPRODUCT(($L$2:$L$900=TRUE)*($AG$2:$AG$900>AG23))+COUNTIFS($L$2:L23,L23,$AG$2:AG23,AG23)-1,1+SUMPRODUCT(($L$2:$L$900=TRUE)*($AH$2:$AH$900>AH23))+COUNTIFS($L$2:L23,L23,$AH$2:AH23,AH23)-1,1+SUMPRODUCT(($L$2:$L$900=TRUE)*($AI$2:$AI$900>AI23))+COUNTIFS($L$2:L23,L23,$AI$2:AI23,AI23)-1,1+SUMPRODUCT(($L$2:$L$900=TRUE)*($AJ$2:$AJ$900>AJ23))+COUNTIFS($L$2:L23,L23,$AJ$2:AJ23,AJ23)-1,1+SUMPRODUCT(($L$2:$L$900=TRUE)*($AK$2:$AK$900>AK23))+COUNTIFS($L$2:L23,L23,$AK$2:AK23,AK23)-1,1+SUMPRODUCT(($L$2:$L$900=TRUE)*($AL$2:$AL$900>AL23))+COUNTIFS($L$2:L23,L23,$AL$2:AL23,AL23)-1,1+SUMPRODUCT(($L$2:$L$900=TRUE)*($AM$2:$AM$900>AM23))+COUNTIFS($L$2:L23,L23,$AM$2:AM23,AM23)-1,1+SUMPRODUCT(($L$2:$L$900=TRUE)*($AN$2:$AN$900>AN23))+COUNTIFS($L$2:L23,L23,$AN$2:AN23,AN23)-1)),"") -> 79 | D23: Yordan Alvarez | E23: =IFERROR(INDEX('Draft Log'!$D$4:$D$555,MATCH(D23,'Draft Log'!$C$4:$C$555,0)),"") ->  | F23: =IFERROR(INDEX('ADP-Rank'!$C$2:$C$790,MATCH(D23,'ADP-Rank'!$A$2:$A$790,0)),"") -> DH | H23: DH | I23: =IF(AND(F23="OF",'Guts-2'!$M$9=0),IF(MAX(Pre!J23:L23)=Pre!J23,"LF",IF(MAX(Pre!J23:L23)=Pre!K23,"CF",IF(MAX(Pre!J23:L23)=Pre!L23,"RF","LF"))),"") ->  | J23: =IFERROR(INDEX('ADP-Rank'!$X$2:$X$790,MATCH(D23,'ADP-Rank'!$A$2:$A$790,0)),TRUE) -> TRUE | K23: FALSE | L23: =IF(J23=FALSE,FALSE,IF(AND('Your Roto Draft'!$P$6="Hide Drafted Players",K23=TRUE),FALSE,CHOOSE($I$1,TRUE,OR(RIGHT('Your Roto Draft'!$P$5,LEN('Your Roto Draft'!$P$5)-11)=H23,IF(RIGHT('Your Roto Draft'!$P$5,LEN('Your Roto Draft'!$P$5)-11)<>"C",NOT(ISERROR(SEARCH(RIGHT('Your Roto Draft'!$P$5,LEN('Your Roto Draft'!$P$5)-11),Pre!$CB23))),AND(NOT(ISERROR(SEARCH(RIGHT('Your Roto Draft'!$P$5,LEN('Your Roto Draft'!$P$5)-11),Pre!$CB23))),ISERROR(SEARCH("CF",Pre!$CB23)))),RIGHT('Your Roto Draft'!$P$5,LEN('Your Roto Draft'!$P$5)-11)=Pre!BP23),OR(H23="1B",H23="3B",ISNUMBER(SEARCH("1B",Pre!$CB23)),ISNUMBER(SEARCH("3B",Pre!$CB23))),OR(H23="2B",H23="SS",ISNUMBER(SEARCH("2B",Pre!$CB23)),ISNUMBER(SEARCH("SS",Pre!$CB23))),OR(H23="1B",H23="3B",H23="2B",H23="SS",ISNUMBER(SEARCH("1B",Pre!$CB23)),ISNUMBER(SEARCH("3B",Pre!$CB23)),ISNUMBER(SEARCH("2B",Pre!$CB23)),ISNUMBER(SEARCH("SS",Pre!$CB23))),OR(H23="SP",H23="RP",ISNUMBER(SEARCH("SP",Pre!$CB23)),ISNUMBER(SEARCH("RP",Pre!$CB23))),AND(H23<>"RP",H23<>"SP",NOT(ISNUMBER(SEARCH("RP",Pre!$CB23))),NOT(ISNUMBER(SEARCH("SP",Pre!$CB23)))),OR(H23="SP",H23="RP",ISNUMBER(SEARCH("SP",Pre!$CB23)),ISNUMBER(SEARCH("RP",Pre!$CB23)))))) -> TRUE | M23: =IF('ADP-Rank'!AB23="",9999,'ADP-Rank'!AB23) -> 81 | N23: =IF(LEFT($D23,15)="Unlisted Player",-1001,'All-WERTH'!AQ23) -> 1.510978207 | O23: =IF('ADP-Rank'!Z23="",9999,'ADP-Rank'!Z23) -> 57 | P23: =IF(LEFT($D23,15)="Unlisted Player",-1001,IF('All-WERTH'!S23="",-1000,'All-WERTH'!S23)) -> 0.8653257621 | Q23: =IF(LEFT($D23,15)="Unlisted Player",-1001,IF('All-WERTH'!T23="",-1000,'All-WERTH'!T23)) -> 0.9390504446 | R23: =IF(LEFT($D23,15)="Unlisted Player",-1001,IF('All-WERTH'!U23="",-1000,'All-WERTH'!U23)) -> -0.334097739 | S23: =IF(LEFT($D23,15)="Unlisted Player",-1001,IF('All-WERTH'!V23="",-1000,'All-WERTH'!V23)) -> 0.6470569427 | T23: =IF(LEFT($D23,15)="Unlisted Player",-1001,IF('All-WERTH'!W23="",-1000,'All-WERTH'!W23)) -> -0.6063572034 | U23: =IF(LEFT($D23,15)="Unlisted Player",-1001,IF('All-WERTH'!X23="",-1000,'All-WERTH'!X23)) -> -1000 | V23: =IF(LEFT($D23,15)="Unlisted Player",-1001,IF('All-WERTH'!Y23="",-1000,'All-WERTH'!Y23)) -> -1000 | W23: =IF(LEFT($D23,15)="Unlisted Player",-1001,IF('All-WERTH'!Z23="",-1000,'All-WERTH'!Z23)) -> -1000 | X23: =IF(LEFT($D23,15)="Unlisted Player",-1001,IF('All-WERTH'!AA23="",-1000,'All-WERTH'!AA23)) -> -1000 | Y23: =IF(LEFT($D23,15)="Unlisted Player",-1001,IF('All-WERTH'!AB23="",-1000,'All-WERTH'!AB23)) -> -1000 | Z23: =IF(LEFT($D23,15)="Unlisted Player",-1001,IF('All-WERTH'!AC23="",-1000,'All-WERTH'!AC23)) -> -1000 | AA23: =IF(LEFT($D23,15)="Unlisted Player",-1001,IF('All-WERTH'!AD23="",-1000,'All-WERTH'!AD23)) -> -1000 | AB23: =IF(LEFT($D23,15)="Unlisted Player",-1001,IF('All-WERTH'!AE23="",-1000,'All-WERTH'!AE23)) -> -1000 | AC23: =IF(LEFT($D23,15)="Unlisted Player",-1001,IF('All-WERTH'!AF23="",-1000,'All-WERTH'!AF23)) -> -1000 | AD23: =IF(LEFT($D23,15)="Unlisted Player",-1001,IF('All-WERTH'!AG23="",-1000,'All-WERTH'!AG23)) -> -1000 | AE23: =IF(LEFT($D23,15)="Unlisted Player",-1001,IF('All-WERTH'!AH23="",-1000,'All-WERTH'!AH23)) -> -1000 | AF23: =IF(LEFT($D23,15)="Unlisted Player",-1001,IF('All-WERTH'!AI23="",-1000,'All-WERTH'!AI23)) -> -1000 | AG23: =IF(LEFT($D23,15)="Unlisted Player",-1001,IF('All-WERTH'!AJ23="",-1000,'All-WERTH'!AJ23)) -> -1000 | AH23: =IF(LEFT($D23,15)="Unlisted Player",-1001,IF('All-WERTH'!AK23="",-1000,'All-WERTH'!AK23)) -> -1000 | AI23: =IF(LEFT($D23,15)="Unlisted Player",-1001,IF('All-WERTH'!AL23="",-1000,'All-WERTH'!AL23)) -> -1000 | AJ23: =IF(LEFT($D23,15)="Unlisted Player",-1001,IF('All-WERTH'!AM23="",-1000,'All-WERTH'!AM23)) -> -1000 | AK23: =IF(LEFT($D23,15)="Unlisted Player",-1001,IF('All-WERTH'!AN23="",-1000,'All-WERTH'!AN23)) -> -1000 | AL23: =IF(LEFT($D23,15)="Unlisted Player",-1001,IF('All-WERTH'!AO23="",-1000,'All-WERTH'!AO23)) -> -1000 | AM23: =IF(LEFT($D23,15)="Unlisted Player",-1001,IF('All-WERTH'!AP23="",-1000,'All-WERTH'!AP23)) -> -1000 | AN23: =IF(LEFT($D23,15)="Unlisted Player",-1001,'All-WERTH'!AT23) -> 2.376309645 | AO23: =IF(ISERROR(VLOOKUP($B22,Keepers!$C$2:$D$450,2,FALSE)),B22,"") -> Aaron Nola | AP23: =IFERROR(INDEX($AO$1:$AO$899,SMALL(IF($AO$1:$AO$899<>"",ROW($AO$1:$AO$899)),ROW(AO23))),"") -> Max Scherzer
A24: Max Scherzer | B24: =IFERROR(INDEX($A$1:$A$899,SMALL(IF($A$1:$A$899<>"",ROW($A$1:$A$899)),ROW(A24))),"") -> DJ LeMahieu | C24: =IFERROR(IF(L24=FALSE,"",CHOOSE(MATCH(RIGHT('Your Roto Draft'!$P$4,LEN('Your Roto Draft'!$P$4)-8),$M$1:$AN$1,0),1+SUMPRODUCT(($L$2:$L$900=TRUE)*($M$2:$M$900<M24))+COUNTIFS($L$2:L24,L24,$M$2:M24,M24)-1,1+SUMPRODUCT(($L$2:$L$900=TRUE)*($N$2:$N$900>N24))+COUNTIFS($L$2:L24,L24,$N$2:N24,N24)-1,1+SUMPRODUCT(($L$2:$L$900=TRUE)*($O$2:$O$900<O24))+COUNTIFS($L$2:L24,L24,$O$2:O24,O24)-1,1+SUMPRODUCT(($L$2:$L$900=TRUE)*($P$2:$P$900>P24))+COUNTIFS($L$2:L24,L24,$P$2:P24,P24)-1,1+SUMPRODUCT(($L$2:$L$900=TRUE)*($Q$2:$Q$900>Q24))+COUNTIFS($L$2:L24,L24,$Q$2:Q24,Q24)-1,1+SUMPRODUCT(($L$2:$L$900=TRUE)*($R$2:$R$900>R24))+COUNTIFS($L$2:L24,L24,$R$2:R24,R24)-1,1+SUMPRODUCT(($L$2:$L$900=TRUE)*($S$2:$S$900>S24))+COUNTIFS($L$2:L24,L24,$S$2:S24,S24)-1,1+SUMPRODUCT(($L$2:$L$900=TRUE)*($T$2:$T$900>T24))+COUNTIFS($L$2:L24,L24,$T$2:T24,T24)-1,1+SUMPRODUCT(($L$2:$L$900=TRUE)*($U$2:$U$900>U24))+COUNTIFS($L$2:L24,L24,$U$2:U24,U24)-1,1+SUMPRODUCT(($L$2:$L$900=TRUE)*($V$2:$V$900>V24))+COUNTIFS($L$2:L24,L24,$V$2:V24,V24)-1,1+SUMPRODUCT(($L$2:$L$900=TRUE)*($W$2:$W$900>W24))+COUNTIFS($L$2:L24,L24,$W$2:W24,W24)-1,1+SUMPRODUCT(($L$2:$L$900=TRUE)*($X$2:$X$900>X24))+COUNTIFS($L$2:L24,L24,$X$2:X24,X24)-1,1+SUMPRODUCT(($L$2:$L$900=TRUE)*($Y$2:$Y$900>Y24))+COUNTIFS($L$2:L24,L24,$Y$2:Y24,Y24)-1,1+SUMPRODUCT(($L$2:$L$900=TRUE)*($Z$2:$Z$900>Z24))+COUNTIFS($L$2:L24,L24,$Z$2:Z24,Z24)-1,1+SUMPRODUCT(($L$2:$L$900=TRUE)*($AA$2:$AA$900>AA24))+COUNTIFS($L$2:L24,L24,$AA$2:AA24,AA24)-1,1+SUMPRODUCT(($L$2:$L$900=TRUE)*($AB$2:$AB$900>AB24))+COUNTIFS($L$2:L24,L24,$AB$2:AB24,AB24)-1,1+SUMPRODUCT(($L$2:$L$900=TRUE)*($AC$2:$AC$900>AC24))+COUNTIFS($L$2:L24,L24,$AC$2:AC24,AC24)-1,1+SUMPRODUCT(($L$2:$L$900=TRUE)*($AD$2:$AD$900>AD24))+COUNTIFS($L$2:L24,L24,$AD$2:AD24,AD24)-1,1+SUMPRODUCT(($L$2:$L$900=TRUE)*($AE$2:$AE$900>AE24))+COUNTIFS($L$2:L24,L24,$AE$2:AE24,AE24)-1,1+SUMPRODUCT(($L$2:$L$900=TRUE)*($AF$2:$AF$900>AF24))+COUNTIFS($L$2:L24,L24,$AF$2:AF24,AF24)-1,1+SUMPRODUCT(($L$2:$L$900=TRUE)*($AG$2:$AG$900>AG24))+COUNTIFS($L$2:L24,L24,$AG$2:AG24,AG24)-1,1+SUMPRODUCT(($L$2:$L$900=TRUE)*($AH$2:$AH$900>AH24))+COUNTIFS($L$2:L24,L24,$AH$2:AH24,AH24)-1,1+SUMPRODUCT(($L$2:$L$900=TRUE)*($AI$2:$AI$900>AI24))+COUNTIFS($L$2:L24,L24,$AI$2:AI24,AI24)-1,1+SUMPRODUCT(($L$2:$L$900=TRUE)*($AJ$2:$AJ$900>AJ24))+COUNTIFS($L$2:L24,L24,$AJ$2:AJ24,AJ24)-1,1+SUMPRODUCT(($L$2:$L$900=TRUE)*($AK$2:$AK$900>AK24))+COUNTIFS($L$2:L24,L24,$AK$2:AK24,AK24)-1,1+SUMPRODUCT(($L$2:$L$900=TRUE)*($AL$2:$AL$900>AL24))+COUNTIFS($L$2:L24,L24,$AL$2:AL24,AL24)-1,1+SUMPRODUCT(($L$2:$L$900=TRUE)*($AM$2:$AM$900>AM24))+COUNTIFS($L$2:L24,L24,$AM$2:AM24,AM24)-1,1+SUMPRODUCT(($L$2:$L$900=TRUE)*($AN$2:$AN$900>AN24))+COUNTIFS($L$2:L24,L24,$AN$2:AN24,AN24)-1)),"") -> 350 | D24: Adbert Alzolay | E24: =IFERROR(INDEX('Draft Log'!$D$4:$D$555,MATCH(D24,'Draft Log'!$C$4:$C$555,0)),"") ->  | F24: =IFERROR(INDEX('ADP-Rank'!$C$2:$C$790,MATCH(D24,'ADP-Rank'!$A$2:$A$790,0)),"") -> SP | H24: SP | I24: =IF(AND(F24="OF",'Guts-2'!$M$9=0),IF(MAX(Pre!J24:L24)=Pre!J24,"LF",IF(MAX(Pre!J24:L24)=Pre!K24,"CF",IF(MAX(Pre!J24:L24)=Pre!L24,"RF","LF"))),"") ->  | J24: =IFERROR(INDEX('ADP-Rank'!$X$2:$X$790,MATCH(D24,'ADP-Rank'!$A$2:$A$790,0)),TRUE) -> TRUE | K24: FALSE | L24: =IF(J24=FALSE,FALSE,IF(AND('Your Roto Draft'!$P$6="Hide Drafted Players",K24=TRUE),FALSE,CHOOSE($I$1,TRUE,OR(RIGHT('Your Roto Draft'!$P$5,LEN('Your Roto Draft'!$P$5)-11)=H24,IF(RIGHT('Your Roto Draft'!$P$5,LEN('Your Roto Draft'!$P$5)-11)<>"C",NOT(ISERROR(SEARCH(RIGHT('Your Roto Draft'!$P$5,LEN('Your Roto Draft'!$P$5)-11),Pre!$CB24))),AND(NOT(ISERROR(SEARCH(RIGHT('Your Roto Draft'!$P$5,LEN('Your Roto Draft'!$P$5)-11),Pre!$CB24))),ISERROR(SEARCH("CF",Pre!$CB24)))),RIGHT('Your Roto Draft'!$P$5,LEN('Your Roto Draft'!$P$5)-11)=Pre!BP24),OR(H24="1B",H24="3B",ISNUMBER(SEARCH("1B",Pre!$CB24)),ISNUMBER(SEARCH("3B",Pre!$CB24))),OR(H24="2B",H24="SS",ISNUMBER(SEARCH("2B",Pre!$CB24)),ISNUMBER(SEARCH("SS",Pre!$CB24))),OR(H24="1B",H24="3B",H24="2B",H24="SS",ISNUMBER(SEARCH("1B",Pre!$CB24)),ISNUMBER(SEARCH("3B",Pre!$CB24)),ISNUMBER(SEARCH("2B",Pre!$CB24)),ISNUMBER(SEARCH("SS",Pre!$CB24))),OR(H24="SP",H24="RP",ISNUMBER(SEARCH("SP",Pre!$CB24)),ISNUMBER(SEARCH("RP",Pre!$CB24))),AND(H24<>"RP",H24<>"SP",NOT(ISNUMBER(SEARCH("RP",Pre!$CB24))),NOT(ISNUMBER(SEARCH("SP",Pre!$CB24)))),OR(H24="SP",H24="RP",ISNUMBER(SEARCH("SP",Pre!$CB24)),ISNUMBER(SEARCH("RP",Pre!$CB24)))))) -> TRUE | M24: =IF('ADP-Rank'!AB24="",9999,'ADP-Rank'!AB24) -> 347.5 | N24: =IF(LEFT($D24,15)="Unlisted Player",-1001,'All-WERTH'!AQ24) -> -6.042000157 | O24: =IF('ADP-Rank'!Z24="",9999,'ADP-Rank'!Z24) -> 373 | P24: =IF(LEFT($D24,15)="Unlisted Player",-1001,IF('All-WERTH'!S24="",-1000,'All-WERTH'!S24)) -> -1000 | Q24: =IF(LEFT($D24,15)="Unlisted Player",-1001,IF('All-WERTH'!T24="",-1000,'All-WERTH'!T24)) -> -1000 | R24: =IF(LEFT($D24,15)="Unlisted Player",-1001,IF('All-WERTH'!U24="",-1000,'All-WERTH'!U24)) -> -1000 | S24: =IF(LEFT($D24,15)="Unlisted Player",-1001,IF('All-WERTH'!V24="",-1000,'All-WERTH'!V24)) -> -1000 | T24: =IF(LEFT($D24,15)="Unlisted Player",-1001,IF('All-WERTH'!W24="",-1000,'All-WERTH'!W24)) -> -1000 | U24: =IF(LEFT($D24,15)="Unlisted Player",-1001,IF('All-WERTH'!X24="",-1000,'All-WERTH'!X24)) -> -1000 | V24: =IF(LEFT($D24,15)="Unlisted Player",-1001,IF('All-WERTH'!Y24="",-1000,'All-WERTH'!Y24)) -> -1000 | W24: =IF(LEFT($D24,15)="Unlisted Player",-1001,IF('All-WERTH'!Z24="",-1000,'All-WERTH'!Z24)) -> -1000 | X24: =IF(LEFT($D24,15)="Unlisted Player",-1001,IF('All-WERTH'!AA24="",-1000,'All-WERTH'!AA24)) -> -1000 | Y24: =IF(LEFT($D24,15)="Unlisted Player",-1001,IF('All-WERTH'!AB24="",-1000,'All-WERTH'!AB24)) -> -1000 | Z24: =IF(LEFT($D24,15)="Unlisted Player",-1001,IF('All-WERTH'!AC24="",-1000,'All-WERTH'!AC24)) -> -1000 | AA24: =IF(LEFT($D24,15)="Unlisted Player",-1001,IF('All-WERTH'!AD24="",-1000,'All-WERTH'!AD24)) -> -1000 | AB24: =IF(LEFT($D24,15)="Unlisted Player",-1001,IF('All-WERTH'!AE24="",-1000,'All-WERTH'!AE24)) -> -0.7725065789 | AC24: =IF(LEFT($D24,15)="Unlisted Player",-1001,IF('All-WERTH'!AF24="",-1000,'All-WERTH'!AF24)) -> -0.4598927588 | AD24: =IF(LEFT($D24,15)="Unlisted Player",-1001,IF('All-WERTH'!AG24="",-1000,'All-WERTH'!AG24)) -> -1.085994171 | AE24: =IF(LEFT($D24,15)="Unlisted Player",-1001,IF('All-WERTH'!AH24="",-1000,'All-WERTH'!AH24)) -> -1.866786219 | AF24: =IF(LEFT($D24,15)="Unlisted Player",-1001,IF('All-WERTH'!AI24="",-1000,'All-WERTH'!AI24)) -> -1.856820429 | AG24: =IF(LEFT($D24,15)="Unlisted Player",-1001,IF('All-WERTH'!AJ24="",-1000,'All-WERTH'!AJ24)) -> -1000 | AH24: =IF(LEFT($D24,15)="Unlisted Player",-1001,IF('All-WERTH'!AK24="",-1000,'All-WERTH'!AK24)) -> -1000 | AI24: =IF(LEFT($D24,15)="Unlisted Player",-1001,IF('All-WERTH'!AL24="",-1000,'All-WERTH'!AL24)) -> -1000 | AJ24: =IF(LEFT($D24,15)="Unlisted Player",-1001,IF('All-WERTH'!AM24="",-1000,'All-WERTH'!AM24)) -> -1000 | AK24: =IF(LEFT($D24,15)="Unlisted Player",-1001,IF('All-WERTH'!AN24="",-1000,'All-WERTH'!AN24)) -> -1000 | AL24: =IF(LEFT($D24,15)="Unlisted Player",-1001,IF('All-WERTH'!AO24="",-1000,'All-WERTH'!AO24)) -> -1000 | AM24: =IF(LEFT($D24,15)="Unlisted Player",-1001,IF('All-WERTH'!AP24="",-1000,'All-WERTH'!AP24)) -> -1000 | AN24: =IF(LEFT($D24,15)="Unlisted Player",-1001,'All-WERTH'!AT24) -> -2.6900787 | AO24: =IF(ISERROR(VLOOKUP($B23,Keepers!$C$2:$D$450,2,FALSE)),B23,"") -> Max Scherzer | AP24: =IFERROR(INDEX($AO$1:$AO$899,SMALL(IF($AO$1:$AO$899<>"",ROW($AO$1:$AO$899)),ROW(AO24))),"") -> DJ LeMahieu
A25: DJ LeMahieu | B25: =IFERROR(INDEX($A$1:$A$899,SMALL(IF($A$1:$A$899<>"",ROW($A$1:$A$899)),ROW(A25))),"") -> Bo Bichette | C25: =IFERROR(IF(L25=FALSE,"",CHOOSE(MATCH(RIGHT('Your Roto Draft'!$P$4,LEN('Your Roto Draft'!$P$4)-8),$M$1:$AN$1,0),1+SUMPRODUCT(($L$2:$L$900=TRUE)*($M$2:$M$900<M25))+COUNTIFS($L$2:L25,L25,$M$2:M25,M25)-1,1+SUMPRODUCT(($L$2:$L$900=TRUE)*($N$2:$N$900>N25))+COUNTIFS($L$2:L25,L25,$N$2:N25,N25)-1,1+SUMPRODUCT(($L$2:$L$900=TRUE)*($O$2:$O$900<O25))+COUNTIFS($L$2:L25,L25,$O$2:O25,O25)-1,1+SUMPRODUCT(($L$2:$L$900=TRUE)*($P$2:$P$900>P25))+COUNTIFS($L$2:L25,L25,$P$2:P25,P25)-1,1+SUMPRODUCT(($L$2:$L$900=TRUE)*($Q$2:$Q$900>Q25))+COUNTIFS($L$2:L25,L25,$Q$2:Q25,Q25)-1,1+SUMPRODUCT(($L$2:$L$900=TRUE)*($R$2:$R$900>R25))+COUNTIFS($L$2:L25,L25,$R$2:R25,R25)-1,1+SUMPRODUCT(($L$2:$L$900=TRUE)*($S$2:$S$900>S25))+COUNTIFS($L$2:L25,L25,$S$2:S25,S25)-1,1+SUMPRODUCT(($L$2:$L$900=TRUE)*($T$2:$T$900>T25))+COUNTIFS($L$2:L25,L25,$T$2:T25,T25)-1,1+SUMPRODUCT(($L$2:$L$900=TRUE)*($U$2:$U$900>U25))+COUNTIFS($L$2:L25,L25,$U$2:U25,U25)-1,1+SUMPRODUCT(($L$2:$L$900=TRUE)*($V$2:$V$900>V25))+COUNTIFS($L$2:L25,L25,$V$2:V25,V25)-1,1+SUMPRODUCT(($L$2:$L$900=TRUE)*($W$2:$W$900>W25))+COUNTIFS($L$2:L25,L25,$W$2:W25,W25)-1,1+SUMPRODUCT(($L$2:$L$900=TRUE)*($X$2:$X$900>X25))+COUNTIFS($L$2:L25,L25,$X$2:X25,X25)-1,1+SUMPRODUCT(($L$2:$L$900=TRUE)*($Y$2:$Y$900>Y25))+COUNTIFS($L$2:L25,L25,$Y$2:Y25,Y25)-1,1+SUMPRODUCT(($L$2:$L$900=TRUE)*($Z$2:$Z$900>Z25))+COUNTIFS($L$2:L25,L25,$Z$2:Z25,Z25)-1,1+SUMPRODUCT(($L$2:$L$900=TRUE)*($AA$2:$AA$900>AA25))+COUNTIFS($L$2:L25,L25,$AA$2:AA25,AA25)-1,1+SUMPRODUCT(($L$2:$L$900=TRUE)*($AB$2:$AB$900>AB25))+COUNTIFS($L$2:L25,L25,$AB$2:AB25,AB25)-1,1+SUMPRODUCT(($L$2:$L$900=TRUE)*($AC$2:$AC$900>AC25))+COUNTIFS($L$2:L25,L25,$AC$2:AC25,AC25)-1,1+SUMPRODUCT(($L$2:$L$900=TRUE)*($AD$2:$AD$900>AD25))+COUNTIFS($L$2:L25,L25,$AD$2:AD25,AD25)-1,1+SUMPRODUCT(($L$2:$L$900=TRUE)*($AE$2:$AE$900>AE25))+COUNTIFS($L$2:L25,L25,$AE$2:AE25,AE25)-1,1+SUMPRODUCT(($L$2:$L$900=TRUE)*($AF$2:$AF$900>AF25))+COUNTIFS($L$2:L25,L25,$AF$2:AF25,AF25)-1,1+SUMPRODUCT(($L$2:$L$900=TRUE)*($AG$2:$AG$900>AG25))+COUNTIFS($L$2:L25,L25,$AG$2:AG25,AG25)-1,1+SUMPRODUCT(($L$2:$L$900=TRUE)*($AH$2:$AH$900>AH25))+COUNTIFS($L$2:L25,L25,$AH$2:AH25,AH25)-1,1+SUMPRODUCT(($L$2:$L$900=TRUE)*($AI$2:$AI$900>AI25))+COUNTIFS($L$2:L25,L25,$AI$2:AI25,AI25)-1,1+SUMPRODUCT(($L$2:$L$900=TRUE)*($AJ$2:$AJ$900>AJ25))+COUNTIFS($L$2:L25,L25,$AJ$2:AJ25,AJ25)-1,1+SUMPRODUCT(($L$2:$L$900=TRUE)*($AK$2:$AK$900>AK25))+COUNTIFS($L$2:L25,L25,$AK$2:AK25,AK25)-1,1+SUMPRODUCT(($L$2:$L$900=TRUE)*($AL$2:$AL$900>AL25))+COUNTIFS($L$2:L25,L25,$AL$2:AL25,AL25)-1,1+SUMPRODUCT(($L$2:$L$900=TRUE)*($AM$2:$AM$900>AM25))+COUNTIFS($L$2:L25,L25,$AM$2:AM25,AM25)-1,1+SUMPRODUCT(($L$2:$L$900=TRUE)*($AN$2:$AN$900>AN25))+COUNTIFS($L$2:L25,L25,$AN$2:AN25,AN25)-1)),"") -> 649 | D25: Brett Anderson | E25: =IFERROR(INDEX('Draft Log'!$D$4:$D$555,MATCH(D25,'Draft Log'!$C$4:$C$555,0)),"") ->  | F25: =IFERROR(INDEX('ADP-Rank'!$C$2:$C$790,MATCH(D25,'ADP-Rank'!$A$2:$A$790,0)),"") -> SP | H25: SP | I25: =IF(AND(F25="OF",'Guts-2'!$M$9=0),IF(MAX(Pre!J25:L25)=Pre!J25,"LF",IF(MAX(Pre!J25:L25)=Pre!K25,"CF",IF(MAX(Pre!J25:L25)=Pre!L25,"RF","LF"))),"") ->  | J25: =IFERROR(INDEX('ADP-Rank'!$X$2:$X$790,MATCH(D25,'ADP-Rank'!$A$2:$A$790,0)),TRUE) -> TRUE | K25: FALSE | L25: =IF(J25=FALSE,FALSE,IF(AND('Your Roto Draft'!$P$6="Hide Drafted Players",K25=TRUE),FALSE,CHOOSE($I$1,TRUE,OR(RIGHT('Your Roto Draft'!$P$5,LEN('Your Roto Draft'!$P$5)-11)=H25,IF(RIGHT('Your Roto Draft'!$P$5,LEN('Your Roto Draft'!$P$5)-11)<>"C",NOT(ISERROR(SEARCH(RIGHT('Your Roto Draft'!$P$5,LEN('Your Roto Draft'!$P$5)-11),Pre!$CB25))),AND(NOT(ISERROR(SEARCH(RIGHT('Your Roto Draft'!$P$5,LEN('Your Roto Draft'!$P$5)-11),Pre!$CB25))),ISERROR(SEARCH("CF",Pre!$CB25)))),RIGHT('Your Roto Draft'!$P$5,LEN('Your Roto Draft'!$P$5)-11)=Pre!BP25),OR(H25="1B",H25="3B",ISNUMBER(SEARCH("1B",Pre!$CB25)),ISNUMBER(SEARCH("3B",Pre!$CB25))),OR(H25="2B",H25="SS",ISNUMBER(SEARCH("2B",Pre!$CB25)),ISNUMBER(SEARCH("SS",Pre!$CB25))),OR(H25="1B",H25="3B",H25="2B",H25="SS",ISNUMBER(SEARCH("1B",Pre!$CB25)),ISNUMBER(SEARCH("3B",Pre!$CB25)),ISNUMBER(SEARCH("2B",Pre!$CB25)),ISNUMBER(SEARCH("SS",Pre!$CB25))),OR(H25="SP",H25="RP",ISNUMBER(SEARCH("SP",Pre!$CB25)),ISNUMBER(SEARCH("RP",Pre!$CB25))),AND(H25<>"RP",H25<>"SP",NOT(ISNUMBER(SEARCH("RP",Pre!$CB25))),NOT(ISNUMBER(SEARCH("SP",Pre!$CB25)))),OR(H25="SP",H25="RP",ISNUMBER(SEARCH("SP",Pre!$CB25)),ISNUMBER(SEARCH("RP",Pre!$CB25)))))) -> TRUE | M25: =IF('ADP-Rank'!AB25="",9999,'ADP-Rank'!AB25) -> 642 | N25: =IF(LEFT($D25,15)="Unlisted Player",-1001,'All-WERTH'!AQ25) -> -6.698402141 | O25: =IF('ADP-Rank'!Z25="",9999,'ADP-Rank'!Z25) -> 604 | P25: =IF(LEFT($D25,15)="Unlisted Player",-1001,IF('All-WERTH'!S25="",-1000,'All-WERTH'!S25)) -> -1000 | Q25: =IF(LEFT($D25,15)="Unlisted Player",-1001,IF('All-WERTH'!T25="",-1000,'All-WERTH'!T25)) -> -1000 | R25: =IF(LEFT($D25,15)="Unlisted Player",-1001,IF('All-WERTH'!U25="",-1000,'All-WERTH'!U25)) -> -1000 | S25: =IF(LEFT($D25,15)="Unlisted Player",-1001,IF('All-WERTH'!V25="",-1000,'All-WERTH'!V25)) -> -1000 | T25: =IF(LEFT($D25,15)="Unlisted Player",-1001,IF('All-WERTH'!W25="",-1000,'All-WERTH'!W25)) -> -1000 | U25: =IF(LEFT($D25,15)="Unlisted Player",-1001,IF('All-WERTH'!X25="",-1000,'All-WERTH'!X25)) -> -1000 | V25: =IF(LEFT($D25,15)="Unlisted Player",-1001,IF('All-WERTH'!Y25="",-1000,'All-WERTH'!Y25)) -> -1000 | W25: =IF(LEFT($D25,15)="Unlisted Player",-1001,IF('All-WERTH'!Z25="",-1000,'All-WERTH'!Z25)) -> -1000 | X25: =IF(LEFT($D25,15)="Unlisted Player",-1001,IF('All-WERTH'!AA25="",-1000,'All-WERTH'!AA25)) -> -1000 | Y25: =IF(LEFT($D25,15)="Unlisted Player",-1001,IF('All-WERTH'!AB25="",-1000,'All-WERTH'!AB25)) -> -1000 | Z25: =IF(LEFT($D25,15)="Unlisted Player",-1001,IF('All-WERTH'!AC25="",-1000,'All-WERTH'!AC25)) -> -1000 | AA25: =IF(LEFT($D25,15)="Unlisted Player",-1001,IF('All-WERTH'!AD25="",-1000,'All-WERTH'!AD25)) -> -1000 | AB25: =IF(LEFT($D25,15)="Unlisted Player",-1001,IF('All-WERTH'!AE25="",-1000,'All-WERTH'!AE25)) -> -0.9174727254 | AC25: =IF(LEFT($D25,15)="Unlisted Player",-1001,IF('All-WERTH'!AF25="",-1000,'All-WERTH'!AF25)) -> -0.4598927588 | AD25: =IF(LEFT($D25,15)="Unlisted Player",-1001,IF('All-WERTH'!AG25="",-1000,'All-WERTH'!AG25)) -> -1.608055881 | AE25: =IF(LEFT($D25,15)="Unlisted Player",-1001,IF('All-WERTH'!AH25="",-1000,'All-WERTH'!AH25)) -> -1.650679236 | AF25: =IF(LEFT($D25,15)="Unlisted Player",-1001,IF('All-WERTH'!AI25="",-1000,'All-WERTH'!AI25)) -> -2.06230154 | AG25: =IF(LEFT($D25,15)="Unlisted Player",-1001,IF('All-WERTH'!AJ25="",-1000,'All-WERTH'!AJ25)) -> -1000 | AH25: =IF(LEFT($D25,15)="Unlisted Player",-1001,IF('All-WERTH'!AK25="",-1000,'All-WERTH'!AK25)) -> -1000 | AI25: =IF(LEFT($D25,15)="Unlisted Player",-1001,IF('All-WERTH'!AL25="",-1000,'All-WERTH'!AL25)) -> -1000 | AJ25: =IF(LEFT($D25,15)="Unlisted Player",-1001,IF('All-WERTH'!AM25="",-1000,'All-WERTH'!AM25)) -> -1000 | AK25: =IF(LEFT($D25,15)="Unlisted Player",-1001,IF('All-WERTH'!AN25="",-1000,'All-WERTH'!AN25)) -> -1000 | AL25: =IF(LEFT($D25,15)="Unlisted Player",-1001,IF('All-WERTH'!AO25="",-1000,'All-WERTH'!AO25)) -> -1000 | AM25: =IF(LEFT($D25,15)="Unlisted Player",-1001,IF('All-WERTH'!AP25="",-1000,'All-WERTH'!AP25)) -> -1000 | AN25: =IF(LEFT($D25,15)="Unlisted Player",-1001,'All-WERTH'!AT25) -> -3.346480683 | AO25: =IF(ISERROR(VLOOKUP($B24,Keepers!$C$2:$D$450,2,FALSE)),B24,"") -> DJ LeMahieu | AP25: =IFERROR(INDEX($AO$1:$AO$899,SMALL(IF($AO$1:$AO$899<>"",ROW($AO$1:$AO$899)),ROW(AO25))),"") -> Bo Bichette
A26: Bo Bichette | B26: =IFERROR(INDEX($A$1:$A$899,SMALL(IF($A$1:$A$899<>"",ROW($A$1:$A$899)),ROW(A26))),"") -> Luis Castillo | C26: =IFERROR(IF(L26=FALSE,"",CHOOSE(MATCH(RIGHT('Your Roto Draft'!$P$4,LEN('Your Roto Draft'!$P$4)-8),$M$1:$AN$1,0),1+SUMPRODUCT(($L$2:$L$900=TRUE)*($M$2:$M$900<M26))+COUNTIFS($L$2:L26,L26,$M$2:M26,M26)-1,1+SUMPRODUCT(($L$2:$L$900=TRUE)*($N$2:$N$900>N26))+COUNTIFS($L$2:L26,L26,$N$2:N26,N26)-1,1+SUMPRODUCT(($L$2:$L$900=TRUE)*($O$2:$O$900<O26))+COUNTIFS($L$2:L26,L26,$O$2:O26,O26)-1,1+SUMPRODUCT(($L$2:$L$900=TRUE)*($P$2:$P$900>P26))+COUNTIFS($L$2:L26,L26,$P$2:P26,P26)-1,1+SUMPRODUCT(($L$2:$L$900=TRUE)*($Q$2:$Q$900>Q26))+COUNTIFS($L$2:L26,L26,$Q$2:Q26,Q26)-1,1+SUMPRODUCT(($L$2:$L$900=TRUE)*($R$2:$R$900>R26))+COUNTIFS($L$2:L26,L26,$R$2:R26,R26)-1,1+SUMPRODUCT(($L$2:$L$900=TRUE)*($S$2:$S$900>S26))+COUNTIFS($L$2:L26,L26,$S$2:S26,S26)-1,1+SUMPRODUCT(($L$2:$L$900=TRUE)*($T$2:$T$900>T26))+COUNTIFS($L$2:L26,L26,$T$2:T26,T26)-1,1+SUMPRODUCT(($L$2:$L$900=TRUE)*($U$2:$U$900>U26))+COUNTIFS($L$2:L26,L26,$U$2:U26,U26)-1,1+SUMPRODUCT(($L$2:$L$900=TRUE)*($V$2:$V$900>V26))+COUNTIFS($L$2:L26,L26,$V$2:V26,V26)-1,1+SUMPRODUCT(($L$2:$L$900=TRUE)*($W$2:$W$900>W26))+COUNTIFS($L$2:L26,L26,$W$2:W26,W26)-1,1+SUMPRODUCT(($L$2:$L$900=TRUE)*($X$2:$X$900>X26))+COUNTIFS($L$2:L26,L26,$X$2:X26,X26)-1,1+SUMPRODUCT(($L$2:$L$900=TRUE)*($Y$2:$Y$900>Y26))+COUNTIFS($L$2:L26,L26,$Y$2:Y26,Y26)-1,1+SUMPRODUCT(($L$2:$L$900=TRUE)*($Z$2:$Z$900>Z26))+COUNTIFS($L$2:L26,L26,$Z$2:Z26,Z26)-1,1+SUMPRODUCT(($L$2:$L$900=TRUE)*($AA$2:$AA$900>AA26))+COUNTIFS($L$2:L26,L26,$AA$2:AA26,AA26)-1,1+SUMPRODUCT(($L$2:$L$900=TRUE)*($AB$2:$AB$900>AB26))+COUNTIFS($L$2:L26,L26,$AB$2:AB26,AB26)-1,1+SUMPRODUCT(($L$2:$L$900=TRUE)*($AC$2:$AC$900>AC26))+COUNTIFS($L$2:L26,L26,$AC$2:AC26,AC26)-1,1+SUMPRODUCT(($L$2:$L$900=TRUE)*($AD$2:$AD$900>AD26))+COUNTIFS($L$2:L26,L26,$AD$2:AD26,AD26)-1,1+SUMPRODUCT(($L$2:$L$900=TRUE)*($AE$2:$AE$900>AE26))+COUNTIFS($L$2:L26,L26,$AE$2:AE26,AE26)-1,1+SUMPRODUCT(($L$2:$L$900=TRUE)*($AF$2:$AF$900>AF26))+COUNTIFS($L$2:L26,L26,$AF$2:AF26,AF26)-1,1+SUMPRODUCT(($L$2:$L$900=TRUE)*($AG$2:$AG$900>AG26))+COUNTIFS($L$2:L26,L26,$AG$2:AG26,AG26)-1,1+SUMPRODUCT(($L$2:$L$900=TRUE)*($AH$2:$AH$900>AH26))+COUNTIFS($L$2:L26,L26,$AH$2:AH26,AH26)-1,1+SUMPRODUCT(($L$2:$L$900=TRUE)*($AI$2:$AI$900>AI26))+COUNTIFS($L$2:L26,L26,$AI$2:AI26,AI26)-1,1+SUMPRODUCT(($L$2:$L$900=TRUE)*($AJ$2:$AJ$900>AJ26))+COUNTIFS($L$2:L26,L26,$AJ$2:AJ26,AJ26)-1,1+SUMPRODUCT(($L$2:$L$900=TRUE)*($AK$2:$AK$900>AK26))+COUNTIFS($L$2:L26,L26,$AK$2:AK26,AK26)-1,1+SUMPRODUCT(($L$2:$L$900=TRUE)*($AL$2:$AL$900>AL26))+COUNTIFS($L$2:L26,L26,$AL$2:AL26,AL26)-1,1+SUMPRODUCT(($L$2:$L$900=TRUE)*($AM$2:$AM$900>AM26))+COUNTIFS($L$2:L26,L26,$AM$2:AM26,AM26)-1,1+SUMPRODUCT(($L$2:$L$900=TRUE)*($AN$2:$AN$900>AN26))+COUNTIFS($L$2:L26,L26,$AN$2:AN26,AN26)-1)),"") -> 259 | D26: Brian Anderson | E26: =IFERROR(INDEX('Draft Log'!$D$4:$D$555,MATCH(D26,'Draft Log'!$C$4:$C$555,0)),"") ->  | F26: =IFERROR(INDEX('ADP-Rank'!$C$2:$C$790,MATCH(D26,'ADP-Rank'!$A$2:$A$790,0)),"") -> 3B | H26: 3B | I26: =IF(AND(F26="OF",'Guts-2'!$M$9=0),IF(MAX(Pre!J26:L26)=Pre!J26,"LF",IF(MAX(Pre!J26:L26)=Pre!K26,"CF",IF(MAX(Pre!J26:L26)=Pre!L26,"RF","LF"))),"") ->  | J26: =IFERROR(INDEX('ADP-Rank'!$X$2:$X$790,MATCH(D26,'ADP-Rank'!$A$2:$A$790,0)),TRUE) -> TRUE | K26: FALSE | L26: =IF(J26=FALSE,FALSE,IF(AND('Your Roto Draft'!$P$6="Hide Drafted Players",K26=TRUE),FALSE,CHOOSE($I$1,TRUE,OR(RIGHT('Your Roto Draft'!$P$5,LEN('Your Roto Draft'!$P$5)-11)=H26,IF(RIGHT('Your Roto Draft'!$P$5,LEN('Your Roto Draft'!$P$5)-11)<>"C",NOT(ISERROR(SEARCH(RIGHT('Your Roto Draft'!$P$5,LEN('Your Roto Draft'!$P$5)-11),Pre!$CB26))),AND(NOT(ISERROR(SEARCH(RIGHT('Your Roto Draft'!$P$5,LEN('Your Roto Draft'!$P$5)-11),Pre!$CB26))),ISERROR(SEARCH("CF",Pre!$CB26)))),RIGHT('Your Roto Draft'!$P$5,LEN('Your Roto Draft'!$P$5)-11)=Pre!BP26),OR(H26="1B",H26="3B",ISNUMBER(SEARCH("1B",Pre!$CB26)),ISNUMBER(SEARCH("3B",Pre!$CB26))),OR(H26="2B",H26="SS",ISNUMBER(SEARCH("2B",Pre!$CB26)),ISNUMBER(SEARCH("SS",Pre!$CB26))),OR(H26="1B",H26="3B",H26="2B",H26="SS",ISNUMBER(SEARCH("1B",Pre!$CB26)),ISNUMBER(SEARCH("3B",Pre!$CB26)),ISNUMBER(SEARCH("2B",Pre!$CB26)),ISNUMBER(SEARCH("SS",Pre!$CB26))),OR(H26="SP",H26="RP",ISNUMBER(SEARCH("SP",Pre!$CB26)),ISNUMBER(SEARCH("RP",Pre!$CB26))),AND(H26<>"RP",H26<>"SP",NOT(ISNUMBER(SEARCH("RP",Pre!$CB26))),NOT(ISNUMBER(SEARCH("SP",Pre!$CB26)))),OR(H26="SP",H26="RP",ISNUMBER(SEARCH("SP",Pre!$CB26)),ISNUMBER(SEARCH("RP",Pre!$CB26)))))) -> TRUE | M26: =IF('ADP-Rank'!AB26="",9999,'ADP-Rank'!AB26) -> 258.4 | N26: =IF(LEFT($D26,15)="Unlisted Player",-1001,'All-WERTH'!AQ26) -> -1.443251287 | O26: =IF('ADP-Rank'!Z26="",9999,'ADP-Rank'!Z26) -> 204 | P26: =IF(LEFT($D26,15)="Unlisted Player",-1001,IF('All-WERTH'!S26="",-1000,'All-WERTH'!S26)) -> -0.5241834409 | Q26: =IF(LEFT($D26,15)="Unlisted Player",-1001,IF('All-WERTH'!T26="",-1000,'All-WERTH'!T26)) -> -0.1632272669 | R26: =IF(LEFT($D26,15)="Unlisted Player",-1001,IF('All-WERTH'!U26="",-1000,'All-WERTH'!U26)) -> -0.1802583383 | S26: =IF(LEFT($D26,15)="Unlisted Player",-1001,IF('All-WERTH'!V26="",-1000,'All-WERTH'!V26)) -> 0.1627570292 | T26: =IF(LEFT($D26,15)="Unlisted Player",-1001,IF('All-WERTH'!W26="",-1000,'All-WERTH'!W26)) -> -0.7383392701 | U26: =IF(LEFT($D26,15)="Unlisted Player",-1001,IF('All-WERTH'!X26="",-1000,'All-WERTH'!X26)) -> -1000 | V26: =IF(LEFT($D26,15)="Unlisted Player",-1001,IF('All-WERTH'!Y26="",-1000,'All-WERTH'!Y26)) -> -1000 | W26: =IF(LEFT($D26,15)="Unlisted Player",-1001,IF('All-WERTH'!Z26="",-1000,'All-WERTH'!Z26)) -> -1000 | X26: =IF(LEFT($D26,15)="Unlisted Player",-1001,IF('All-WERTH'!AA26="",-1000,'All-WERTH'!AA26)) -> -1000 | Y26: =IF(LEFT($D26,15)="Unlisted Player",-1001,IF('All-WERTH'!AB26="",-1000,'All-WERTH'!AB26)) -> -1000 | Z26: =IF(LEFT($D26,15)="Unlisted Player",-1001,IF('All-WERTH'!AC26="",-1000,'All-WERTH'!AC26)) -> -1000 | AA26: =IF(LEFT($D26,15)="Unlisted Player",-1001,IF('All-WERTH'!AD26="",-1000,'All-WERTH'!AD26)) -> -1000 | AB26: =IF(LEFT($D26,15)="Unlisted Player",-1001,IF('All-WERTH'!AE26="",-1000,'All-WERTH'!AE26)) -> -1000 | AC26: =IF(LEFT($D26,15)="Unlisted Player",-1001,IF('All-WERTH'!AF26="",-1000,'All-WERTH'!AF26)) -> -1000 | AD26: =IF(LEFT($D26,15)="Unlisted Player",-1001,IF('All-WERTH'!AG26="",-1000,'All-WERTH'!AG26)) -> -1000 | AE26: =IF(LEFT($D26,15)="Unlisted Player",-1001,IF('All-WERTH'!AH26="",-1000,'All-WERTH'!AH26)) -> -1000 | AF26: =IF(LEFT($D26,15)="Unlisted Player",-1001,IF('All-WERTH'!AI26="",-1000,'All-WERTH'!AI26)) -> -1000 | AG26: =IF(LEFT($D26,15)="Unlisted Player",-1001,IF('All-WERTH'!AJ26="",-1000,'All-WERTH'!AJ26)) -> -1000 | AH26: =IF(LEFT($D26,15)="Unlisted Player",-1001,IF('All-WERTH'!AK26="",-1000,'All-WERTH'!AK26)) -> -1000 | AI26: =IF(LEFT($D26,15)="Unlisted Player",-1001,IF('All-WERTH'!AL26="",-1000,'All-WERTH'!AL26)) -> -1000 | AJ26: =IF(LEFT($D26,15)="Unlisted Player",-1001,IF('All-WERTH'!AM26="",-1000,'All-WERTH'!AM26)) -> -1000 | AK26: =IF(LEFT($D26,15)="Unlisted Player",-1001,IF('All-WERTH'!AN26="",-1000,'All-WERTH'!AN26)) -> -1000 | AL26: =IF(LEFT($D26,15)="Unlisted Player",-1001,IF('All-WERTH'!AO26="",-1000,'All-WERTH'!AO26)) -> -1000 | AM26: =IF(LEFT($D26,15)="Unlisted Player",-1001,IF('All-WERTH'!AP26="",-1000,'All-WERTH'!AP26)) -> -1000 | AN26: =IF(LEFT($D26,15)="Unlisted Player",-1001,'All-WERTH'!AT26) -> 2.309817347 | AO26: =IF(ISERROR(VLOOKUP($B25,Keepers!$C$2:$D$450,2,FALSE)),B25,"") -> Bo Bichette | AP26: =IFERROR(INDEX($AO$1:$AO$899,SMALL(IF($AO$1:$AO$899<>"",ROW($AO$1:$AO$899)),ROW(AO26))),"") -> Luis Castillo
A27: Luis Castillo | B27: =IFERROR(INDEX($A$1:$A$899,SMALL(IF($A$1:$A$899<>"",ROW($A$1:$A$899)),ROW(A27))),"") -> Adalberto Mondesi | C27: =IFERROR(IF(L27=FALSE,"",CHOOSE(MATCH(RIGHT('Your Roto Draft'!$P$4,LEN('Your Roto Draft'!$P$4)-8),$M$1:$AN$1,0),1+SUMPRODUCT(($L$2:$L$900=TRUE)*($M$2:$M$900<M27))+COUNTIFS($L$2:L27,L27,$M$2:M27,M27)-1,1+SUMPRODUCT(($L$2:$L$900=TRUE)*($N$2:$N$900>N27))+COUNTIFS($L$2:L27,L27,$N$2:N27,N27)-1,1+SUMPRODUCT(($L$2:$L$900=TRUE)*($O$2:$O$900<O27))+COUNTIFS($L$2:L27,L27,$O$2:O27,O27)-1,1+SUMPRODUCT(($L$2:$L$900=TRUE)*($P$2:$P$900>P27))+COUNTIFS($L$2:L27,L27,$P$2:P27,P27)-1,1+SUMPRODUCT(($L$2:$L$900=TRUE)*($Q$2:$Q$900>Q27))+COUNTIFS($L$2:L27,L27,$Q$2:Q27,Q27)-1,1+SUMPRODUCT(($L$2:$L$900=TRUE)*($R$2:$R$900>R27))+COUNTIFS($L$2:L27,L27,$R$2:R27,R27)-1,1+SUMPRODUCT(($L$2:$L$900=TRUE)*($S$2:$S$900>S27))+COUNTIFS($L$2:L27,L27,$S$2:S27,S27)-1,1+SUMPRODUCT(($L$2:$L$900=TRUE)*($T$2:$T$900>T27))+COUNTIFS($L$2:L27,L27,$T$2:T27,T27)-1,1+SUMPRODUCT(($L$2:$L$900=TRUE)*($U$2:$U$900>U27))+COUNTIFS($L$2:L27,L27,$U$2:U27,U27)-1,1+SUMPRODUCT(($L$2:$L$900=TRUE)*($V$2:$V$900>V27))+COUNTIFS($L$2:L27,L27,$V$2:V27,V27)-1,1+SUMPRODUCT(($L$2:$L$900=TRUE)*($W$2:$W$900>W27))+COUNTIFS($L$2:L27,L27,$W$2:W27,W27)-1,1+SUMPRODUCT(($L$2:$L$900=TRUE)*($X$2:$X$900>X27))+COUNTIFS($L$2:L27,L27,$X$2:X27,X27)-1,1+SUMPRODUCT(($L$2:$L$900=TRUE)*($Y$2:$Y$900>Y27))+COUNTIFS($L$2:L27,L27,$Y$2:Y27,Y27)-1,1+SUMPRODUCT(($L$2:$L$900=TRUE)*($Z$2:$Z$900>Z27))+COUNTIFS($L$2:L27,L27,$Z$2:Z27,Z27)-1,1+SUMPRODUCT(($L$2:$L$900=TRUE)*($AA$2:$AA$900>AA27))+COUNTIFS($L$2:L27,L27,$AA$2:AA27,AA27)-1,1+SUMPRODUCT(($L$2:$L$900=TRUE)*($AB$2:$AB$900>AB27))+COUNTIFS($L$2:L27,L27,$AB$2:AB27,AB27)-1,1+SUMPRODUCT(($L$2:$L$900=TRUE)*($AC$2:$AC$900>AC27))+COUNTIFS($L$2:L27,L27,$AC$2:AC27,AC27)-1,1+SUMPRODUCT(($L$2:$L$900=TRUE)*($AD$2:$AD$900>AD27))+COUNTIFS($L$2:L27,L27,$AD$2:AD27,AD27)-1,1+SUMPRODUCT(($L$2:$L$900=TRUE)*($AE$2:$AE$900>AE27))+COUNTIFS($L$2:L27,L27,$AE$2:AE27,AE27)-1,1+SUMPRODUCT(($L$2:$L$900=TRUE)*($AF$2:$AF$900>AF27))+COUNTIFS($L$2:L27,L27,$AF$2:AF27,AF27)-1,1+SUMPRODUCT(($L$2:$L$900=TRUE)*($AG$2:$AG$900>AG27))+COUNTIFS($L$2:L27,L27,$AG$2:AG27,AG27)-1,1+SUMPRODUCT(($L$2:$L$900=TRUE)*($AH$2:$AH$900>AH27))+COUNTIFS($L$2:L27,L27,$AH$2:AH27,AH27)-1,1+SUMPRODUCT(($L$2:$L$900=TRUE)*($AI$2:$AI$900>AI27))+COUNTIFS($L$2:L27,L27,$AI$2:AI27,AI27)-1,1+SUMPRODUCT(($L$2:$L$900=TRUE)*($AJ$2:$AJ$900>AJ27))+COUNTIFS($L$2:L27,L27,$AJ$2:AJ27,AJ27)-1,1+SUMPRODUCT(($L$2:$L$900=TRUE)*($AK$2:$AK$900>AK27))+COUNTIFS($L$2:L27,L27,$AK$2:AK27,AK27)-1,1+SUMPRODUCT(($L$2:$L$900=TRUE)*($AL$2:$AL$900>AL27))+COUNTIFS($L$2:L27,L27,$AL$2:AL27,AL27)-1,1+SUMPRODUCT(($L$2:$L$900=TRUE)*($AM$2:$AM$900>AM27))+COUNTIFS($L$2:L27,L27,$AM$2:AM27,AM27)-1,1+SUMPRODUCT(($L$2:$L$900=TRUE)*($AN$2:$AN$900>AN27))+COUNTIFS($L$2:L27,L27,$AN$2:AN27,AN27)-1)),"") -> 92 | D27: Ian Anderson | E27: =IFERROR(INDEX('Draft Log'!$D$4:$D$555,MATCH(D27,'Draft Log'!$C$4:$C$555,0)),"") ->  | F27: =IFERROR(INDEX('ADP-Rank'!$C$2:$C$790,MATCH(D27,'ADP-Rank'!$A$2:$A$790,0)),"") -> SP | H27: SP | I27: =IF(AND(F27="OF",'Guts-2'!$M$9=0),IF(MAX(Pre!J27:L27)=Pre!J27,"LF",IF(MAX(Pre!J27:L27)=Pre!K27,"CF",IF(MAX(Pre!J27:L27)=Pre!L27,"RF","LF"))),"") ->  | J27: =IFERROR(INDEX('ADP-Rank'!$X$2:$X$790,MATCH(D27,'ADP-Rank'!$A$2:$A$790,0)),TRUE) -> TRUE | K27: FALSE | L27: =IF(J27=FALSE,FALSE,IF(AND('Your Roto Draft'!$P$6="Hide Drafted Players",K27=TRUE),FALSE,CHOOSE($I$1,TRUE,OR(RIGHT('Your Roto Draft'!$P$5,LEN('Your Roto Draft'!$P$5)-11)=H27,IF(RIGHT('Your Roto Draft'!$P$5,LEN('Your Roto Draft'!$P$5)-11)<>"C",NOT(ISERROR(SEARCH(RIGHT('Your Roto Draft'!$P$5,LEN('Your Roto Draft'!$P$5)-11),Pre!$CB27))),AND(NOT(ISERROR(SEARCH(RIGHT('Your Roto Draft'!$P$5,LEN('Your Roto Draft'!$P$5)-11),Pre!$CB27))),ISERROR(SEARCH("CF",Pre!$CB27)))),RIGHT('Your Roto Draft'!$P$5,LEN('Your Roto Draft'!$P$5)-11)=Pre!BP27),OR(H27="1B",H27="3B",ISNUMBER(SEARCH("1B",Pre!$CB27)),ISNUMBER(SEARCH("3B",Pre!$CB27))),OR(H27="2B",H27="SS",ISNUMBER(SEARCH("2B",Pre!$CB27)),ISNUMBER(SEARCH("SS",Pre!$CB27))),OR(H27="1B",H27="3B",H27="2B",H27="SS",ISNUMBER(SEARCH("1B",Pre!$CB27)),ISNUMBER(SEARCH("3B",Pre!$CB27)),ISNUMBER(SEARCH("2B",Pre!$CB27)),ISNUMBER(SEARCH("SS",Pre!$CB27))),OR(H27="SP",H27="RP",ISNUMBER(SEARCH("SP",Pre!$CB27)),ISNUMBER(SEARCH("RP",Pre!$CB27))),AND(H27<>"RP",H27<>"SP",NOT(ISNUMBER(SEARCH("RP",Pre!$CB27))),NOT(ISNUMBER(SEARCH("SP",Pre!$CB27)))),OR(H27="SP",H27="RP",ISNUMBER(SEARCH("SP",Pre!$CB27)),ISNUMBER(SEARCH("RP",Pre!$CB27)))))) -> TRUE | M27: =IF('ADP-Rank'!AB27="",9999,'ADP-Rank'!AB27) -> 94.2 | N27: =IF(LEFT($D27,15)="Unlisted Player",-1001,'All-WERTH'!AQ27) -> -2.463597228 | O27: =IF('ADP-Rank'!Z27="",9999,'ADP-Rank'!Z27) -> 110 | P27: =IF(LEFT($D27,15)="Unlisted Player",-1001,IF('All-WERTH'!S27="",-1000,'All-WERTH'!S27)) -> -1000 | Q27: =IF(LEFT($D27,15)="Unlisted Player",-1001,IF('All-WERTH'!T27="",-1000,'All-WERTH'!T27)) -> -1000 | R27: =IF(LEFT($D27,15)="Unlisted Player",-1001,IF('All-WERTH'!U27="",-1000,'All-WERTH'!U27)) -> -1000 | S27: =IF(LEFT($D27,15)="Unlisted Player",-1001,IF('All-WERTH'!V27="",-1000,'All-WERTH'!V27)) -> -1000 | T27: =IF(LEFT($D27,15)="Unlisted Player",-1001,IF('All-WERTH'!W27="",-1000,'All-WERTH'!W27)) -> -1000 | U27: =IF(LEFT($D27,15)="Unlisted Player",-1001,IF('All-WERTH'!X27="",-1000,'All-WERTH'!X27)) -> -1000 | V27: =IF(LEFT($D27,15)="Unlisted Player",-1001,IF('All-WERTH'!Y27="",-1000,'All-WERTH'!Y27)) -> -1000 | W27: =IF(LEFT($D27,15)="Unlisted Player",-1001,IF('All-WERTH'!Z27="",-1000,'All-WERTH'!Z27)) -> -1000 | X27: =IF(LEFT($D27,15)="Unlisted Player",-1001,IF('All-WERTH'!AA27="",-1000,'All-WERTH'!AA27)) -> -1000 | Y27: =IF(LEFT($D27,15)="Unlisted Player",-1001,IF('All-WERTH'!AB27="",-1000,'All-WERTH'!AB27)) -> -1000 | Z27: =IF(LEFT($D27,15)="Unlisted Player",-1001,IF('All-WERTH'!AC27="",-1000,'All-WERTH'!AC27)) -> -1000 | AA27: =IF(LEFT($D27,15)="Unlisted Player",-1001,IF('All-WERTH'!AD27="",-1000,'All-WERTH'!AD27)) -> -1000 | AB27: =IF(LEFT($D27,15)="Unlisted Player",-1001,IF('All-WERTH'!AE27="",-1000,'All-WERTH'!AE27)) -> -0.07032321379 | AC27: =IF(LEFT($D27,15)="Unlisted Player",-1001,IF('All-WERTH'!AF27="",-1000,'All-WERTH'!AF27)) -> -0.4598927588 | AD27: =IF(LEFT($D27,15)="Unlisted Player",-1001,IF('All-WERTH'!AG27="",-1000,'All-WERTH'!AG27)) -> 0.1801105154 | AE27: =IF(LEFT($D27,15)="Unlisted Player",-1001,IF('All-WERTH'!AH27="",-1000,'All-WERTH'!AH27)) -> -0.674134907 | AF27: =IF(LEFT($D27,15)="Unlisted Player",-1001,IF('All-WERTH'!AI27="",-1000,'All-WERTH'!AI27)) -> -1.439356864 | AG27: =IF(LEFT($D27,15)="Unlisted Player",-1001,IF('All-WERTH'!AJ27="",-1000,'All-WERTH'!AJ27)) -> -1000 | AH27: =IF(LEFT($D27,15)="Unlisted Player",-1001,IF('All-WERTH'!AK27="",-1000,'All-WERTH'!AK27)) -> -1000 | AI27: =IF(LEFT($D27,15)="Unlisted Player",-1001,IF('All-WERTH'!AL27="",-1000,'All-WERTH'!AL27)) -> -1000 | AJ27: =IF(LEFT($D27,15)="Unlisted Player",-1001,IF('All-WERTH'!AM27="",-1000,'All-WERTH'!AM27)) -> -1000 | AK27: =IF(LEFT($D27,15)="Unlisted Player",-1001,IF('All-WERTH'!AN27="",-1000,'All-WERTH'!AN27)) -> -1000 | AL27: =IF(LEFT($D27,15)="Unlisted Player",-1001,IF('All-WERTH'!AO27="",-1000,'All-WERTH'!AO27)) -> -1000 | AM27: =IF(LEFT($D27,15)="Unlisted Player",-1001,IF('All-WERTH'!AP27="",-1000,'All-WERTH'!AP27)) -> -1000 | AN27: =IF(LEFT($D27,15)="Unlisted Player",-1001,'All-WERTH'!AT27) -> 0.8883242297 | AO27: =IF(ISERROR(VLOOKUP($B26,Keepers!$C$2:$D$450,2,FALSE)),B26,"") -> Luis Castillo | AP27: =IFERROR(INDEX($AO$1:$AO$899,SMALL(IF($AO$1:$AO$899<>"",ROW($AO$1:$AO$899)),ROW(AO27))),"") -> Adalberto Mondesi
A28: Adalberto Mondesi | B28: =IFERROR(INDEX($A$1:$A$899,SMALL(IF($A$1:$A$899<>"",ROW($A$1:$A$899)),ROW(A28))),"") -> Anthony Rendon | C28: =IFERROR(IF(L28=FALSE,"",CHOOSE(MATCH(RIGHT('Your Roto Draft'!$P$4,LEN('Your Roto Draft'!$P$4)-8),$M$1:$AN$1,0),1+SUMPRODUCT(($L$2:$L$900=TRUE)*($M$2:$M$900<M28))+COUNTIFS($L$2:L28,L28,$M$2:M28,M28)-1,1+SUMPRODUCT(($L$2:$L$900=TRUE)*($N$2:$N$900>N28))+COUNTIFS($L$2:L28,L28,$N$2:N28,N28)-1,1+SUMPRODUCT(($L$2:$L$900=TRUE)*($O$2:$O$900<O28))+COUNTIFS($L$2:L28,L28,$O$2:O28,O28)-1,1+SUMPRODUCT(($L$2:$L$900=TRUE)*($P$2:$P$900>P28))+COUNTIFS($L$2:L28,L28,$P$2:P28,P28)-1,1+SUMPRODUCT(($L$2:$L$900=TRUE)*($Q$2:$Q$900>Q28))+COUNTIFS($L$2:L28,L28,$Q$2:Q28,Q28)-1,1+SUMPRODUCT(($L$2:$L$900=TRUE)*($R$2:$R$900>R28))+COUNTIFS($L$2:L28,L28,$R$2:R28,R28)-1,1+SUMPRODUCT(($L$2:$L$900=TRUE)*($S$2:$S$900>S28))+COUNTIFS($L$2:L28,L28,$S$2:S28,S28)-1,1+SUMPRODUCT(($L$2:$L$900=TRUE)*($T$2:$T$900>T28))+COUNTIFS($L$2:L28,L28,$T$2:T28,T28)-1,1+SUMPRODUCT(($L$2:$L$900=TRUE)*($U$2:$U$900>U28))+COUNTIFS($L$2:L28,L28,$U$2:U28,U28)-1,1+SUMPRODUCT(($L$2:$L$900=TRUE)*($V$2:$V$900>V28))+COUNTIFS($L$2:L28,L28,$V$2:V28,V28)-1,1+SUMPRODUCT(($L$2:$L$900=TRUE)*($W$2:$W$900>W28))+COUNTIFS($L$2:L28,L28,$W$2:W28,W28)-1,1+SUMPRODUCT(($L$2:$L$900=TRUE)*($X$2:$X$900>X28))+COUNTIFS($L$2:L28,L28,$X$2:X28,X28)-1,1+SUMPRODUCT(($L$2:$L$900=TRUE)*($Y$2:$Y$900>Y28))+COUNTIFS($L$2:L28,L28,$Y$2:Y28,Y28)-1,1+SUMPRODUCT(($L$2:$L$900=TRUE)*($Z$2:$Z$900>Z28))+COUNTIFS($L$2:L28,L28,$Z$2:Z28,Z28)-1,1+SUMPRODUCT(($L$2:$L$900=TRUE)*($AA$2:$AA$900>AA28))+COUNTIFS($L$2:L28,L28,$AA$2:AA28,AA28)-1,1+SUMPRODUCT(($L$2:$L$900=TRUE)*($AB$2:$AB$900>AB28))+COUNTIFS($L$2:L28,L28,$AB$2:AB28,AB28)-1,1+SUMPRODUCT(($L$2:$L$900=TRUE)*($AC$2:$AC$900>AC28))+COUNTIFS($L$2:L28,L28,$AC$2:AC28,AC28)-1,1+SUMPRODUCT(($L$2:$L$900=TRUE)*($AD$2:$AD$900>AD28))+COUNTIFS($L$2:L28,L28,$AD$2:AD28,AD28)-1,1+SUMPRODUCT(($L$2:$L$900=TRUE)*($AE$2:$AE$900>AE28))+COUNTIFS($L$2:L28,L28,$AE$2:AE28,AE28)-1,1+SUMPRODUCT(($L$2:$L$900=TRUE)*($AF$2:$AF$900>AF28))+COUNTIFS($L$2:L28,L28,$AF$2:AF28,AF28)-1,1+SUMPRODUCT(($L$2:$L$900=TRUE)*($AG$2:$AG$900>AG28))+COUNTIFS($L$2:L28,L28,$AG$2:AG28,AG28)-1,1+SUMPRODUCT(($L$2:$L$900=TRUE)*($AH$2:$AH$900>AH28))+COUNTIFS($L$2:L28,L28,$AH$2:AH28,AH28)-1,1+SUMPRODUCT(($L$2:$L$900=TRUE)*($AI$2:$AI$900>AI28))+COUNTIFS($L$2:L28,L28,$AI$2:AI28,AI28)-1,1+SUMPRODUCT(($L$2:$L$900=TRUE)*($AJ$2:$AJ$900>AJ28))+COUNTIFS($L$2:L28,L28,$AJ$2:AJ28,AJ28)-1,1+SUMPRODUCT(($L$2:$L$900=TRUE)*($AK$2:$AK$900>AK28))+COUNTIFS($L$2:L28,L28,$AK$2:AK28,AK28)-1,1+SUMPRODUCT(($L$2:$L$900=TRUE)*($AL$2:$AL$900>AL28))+COUNTIFS($L$2:L28,L28,$AL$2:AL28,AL28)-1,1+SUMPRODUCT(($L$2:$L$900=TRUE)*($AM$2:$AM$900>AM28))+COUNTIFS($L$2:L28,L28,$AM$2:AM28,AM28)-1,1+SUMPRODUCT(($L$2:$L$900=TRUE)*($AN$2:$AN$900>AN28))+COUNTIFS($L$2:L28,L28,$AN$2:AN28,AN28)-1)),"") -> 151 | D28: Nick Anderson | E28: =IFERROR(INDEX('Draft Log'!$D$4:$D$555,MATCH(D28,'Draft Log'!$C$4:$C$555,0)),"") ->  | F28: =IFERROR(INDEX('ADP-Rank'!$C$2:$C$790,MATCH(D28,'ADP-Rank'!$A$2:$A$790,0)),"") -> RP | H28: RP | I28: =IF(AND(F28="OF",'Guts-2'!$M$9=0),IF(MAX(Pre!J28:L28)=Pre!J28,"LF",IF(MAX(Pre!J28:L28)=Pre!K28,"CF",IF(MAX(Pre!J28:L28)=Pre!L28,"RF","LF"))),"") ->  | J28: =IFERROR(INDEX('ADP-Rank'!$X$2:$X$790,MATCH(D28,'ADP-Rank'!$A$2:$A$790,0)),TRUE) -> TRUE | K28: FALSE | L28: =IF(J28=FALSE,FALSE,IF(AND('Your Roto Draft'!$P$6="Hide Drafted Players",K28=TRUE),FALSE,CHOOSE($I$1,TRUE,OR(RIGHT('Your Roto Draft'!$P$5,LEN('Your Roto Draft'!$P$5)-11)=H28,IF(RIGHT('Your Roto Draft'!$P$5,LEN('Your Roto Draft'!$P$5)-11)<>"C",NOT(ISERROR(SEARCH(RIGHT('Your Roto Draft'!$P$5,LEN('Your Roto Draft'!$P$5)-11),Pre!$CB28))),AND(NOT(ISERROR(SEARCH(RIGHT('Your Roto Draft'!$P$5,LEN('Your Roto Draft'!$P$5)-11),Pre!$CB28))),ISERROR(SEARCH("CF",Pre!$CB28)))),RIGHT('Your Roto Draft'!$P$5,LEN('Your Roto Draft'!$P$5)-11)=Pre!BP28),OR(H28="1B",H28="3B",ISNUMBER(SEARCH("1B",Pre!$CB28)),ISNUMBER(SEARCH("3B",Pre!$CB28))),OR(H28="2B",H28="SS",ISNUMBER(SEARCH("2B",Pre!$CB28)),ISNUMBER(SEARCH("SS",Pre!$CB28))),OR(H28="1B",H28="3B",H28="2B",H28="SS",ISNUMBER(SEARCH("1B",Pre!$CB28)),ISNUMBER(SEARCH("3B",Pre!$CB28)),ISNUMBER(SEARCH("2B",Pre!$CB28)),ISNUMBER(SEARCH("SS",Pre!$CB28))),OR(H28="SP",H28="RP",ISNUMBER(SEARCH("SP",Pre!$CB28)),ISNUMBER(SEARCH("RP",Pre!$CB28))),AND(H28<>"RP",H28<>"SP",NOT(ISNUMBER(SEARCH("RP",Pre!$CB28))),NOT(ISNUMBER(SEARCH("SP",Pre!$CB28)))),OR(H28="SP",H28="RP",ISNUMBER(SEARCH("SP",Pre!$CB28)),ISNUMBER(SEARCH("RP",Pre!$CB28)))))) -> TRUE | M28: =IF('ADP-Rank'!AB28="",9999,'ADP-Rank'!AB28) -> 152.4 | N28: =IF(LEFT($D28,15)="Unlisted Player",-1001,'All-WERTH'!AQ28) -> -0.8893840933 | O28: =IF('ADP-Rank'!Z28="",9999,'ADP-Rank'!Z28) -> 159 | P28: =IF(LEFT($D28,15)="Unlisted Player",-1001,IF('All-WERTH'!S28="",-1000,'All-WERTH'!S28)) -> -1000 | Q28: =IF(LEFT($D28,15)="Unlisted Player",-1001,IF('All-WERTH'!T28="",-1000,'All-WERTH'!T28)) -> -1000 | R28: =IF(LEFT($D28,15)="Unlisted Player",-1001,IF('All-WERTH'!U28="",-1000,'All-WERTH'!U28)) -> -1000 | S28: =IF(LEFT($D28,15)="Unlisted Player",-1001,IF('All-WERTH'!V28="",-1000,'All-WERTH'!V28)) -> -1000 | T28: =IF(LEFT($D28,15)="Unlisted Player",-1001,IF('All-WERTH'!W28="",-1000,'All-WERTH'!W28)) -> -1000 | U28: =IF(LEFT($D28,15)="Unlisted Player",-1001,IF('All-WERTH'!X28="",-1000,'All-WERTH'!X28)) -> -1000 | V28: =IF(LEFT($D28,15)="Unlisted Player",-1001,IF('All-WERTH'!Y28="",-1000,'All-WERTH'!Y28)) -> -1000 | W28: =IF(LEFT($D28,15)="Unlisted Player",-1001,IF('All-WERTH'!Z28="",-1000,'All-WERTH'!Z28)) -> -1000 | X28: =IF(LEFT($D28,15)="Unlisted Player",-1001,IF('All-WERTH'!AA28="",-1000,'All-WERTH'!AA28)) -> -1000 | Y28: =IF(LEFT($D28,15)="Unlisted Player",-1001,IF('All-WERTH'!AB28="",-1000,'All-WERTH'!AB28)) -> -1000 | Z28: =IF(LEFT($D28,15)="Unlisted Player",-1001,IF('All-WERTH'!AC28="",-1000,'All-WERTH'!AC28)) -> -1000 | AA28: =IF(LEFT($D28,15)="Unlisted Player",-1001,IF('All-WERTH'!AD28="",-1000,'All-WERTH'!AD28)) -> -1000 | AB28: =IF(LEFT($D28,15)="Unlisted Player",-1001,IF('All-WERTH'!AE28="",-1000,'All-WERTH'!AE28)) -> -1.388160622 | AC28: =IF(LEFT($D28,15)="Unlisted Player",-1001,IF('All-WERTH'!AF28="",-1000,'All-WERTH'!AF28)) -> 0.9576084734 | AD28: =IF(LEFT($D28,15)="Unlisted Player",-1001,IF('All-WERTH'!AG28="",-1000,'All-WERTH'!AG28)) -> -1.047520124 | AE28: =IF(LEFT($D28,15)="Unlisted Player",-1001,IF('All-WERTH'!AH28="",-1000,'All-WERTH'!AH28)) -> 0.3707397128 | AF28: =IF(LEFT($D28,15)="Unlisted Player",-1001,IF('All-WERTH'!AI28="",-1000,'All-WERTH'!AI28)) -> 0.2179484671 | AG28: =IF(LEFT($D28,15)="Unlisted Player",-1001,IF('All-WERTH'!AJ28="",-1000,'All-WERTH'!AJ28)) -> -1000 | AH28: =IF(LEFT($D28,15)="Unlisted Player",-1001,IF('All-WERTH'!AK28="",-1000,'All-WERTH'!AK28)) -> -1000 | AI28: =IF(LEFT($D28,15)="Unlisted Player",-1001,IF('All-WERTH'!AL28="",-1000,'All-WERTH'!AL28)) -> -1000 | AJ28: =IF(LEFT($D28,15)="Unlisted Player",-1001,IF('All-WERTH'!AM28="",-1000,'All-WERTH'!AM28)) -> -1000 | AK28: =IF(LEFT($D28,15)="Unlisted Player",-1001,IF('All-WERTH'!AN28="",-1000,'All-WERTH'!AN28)) -> -1000 | AL28: =IF(LEFT($D28,15)="Unlisted Player",-1001,IF('All-WERTH'!AO28="",-1000,'All-WERTH'!AO28)) -> -1000 | AM28: =IF(LEFT($D28,15)="Unlisted Player",-1001,IF('All-WERTH'!AP28="",-1000,'All-WERTH'!AP28)) -> -1000 | AN28: =IF(LEFT($D28,15)="Unlisted Player",-1001,'All-WERTH'!AT28) -> 1.831712978 | AO28: =IF(ISERROR(VLOOKUP($B27,Keepers!$C$2:$D$450,2,FALSE)),B27,"") -> Adalberto Mondesi | AP28: =IFERROR(INDEX($AO$1:$AO$899,SMALL(IF($AO$1:$AO$899<>"",ROW($AO$1:$AO$899)),ROW(AO28))),"") -> Anthony Rendon
A29: Anthony Rendon | B29: =IFERROR(INDEX($A$1:$A$899,SMALL(IF($A$1:$A$899<>"",ROW($A$1:$A$899)),ROW(A29))),"") -> Xander Bogaerts | C29: =IFERROR(IF(L29=FALSE,"",CHOOSE(MATCH(RIGHT('Your Roto Draft'!$P$4,LEN('Your Roto Draft'!$P$4)-8),$M$1:$AN$1,0),1+SUMPRODUCT(($L$2:$L$900=TRUE)*($M$2:$M$900<M29))+COUNTIFS($L$2:L29,L29,$M$2:M29,M29)-1,1+SUMPRODUCT(($L$2:$L$900=TRUE)*($N$2:$N$900>N29))+COUNTIFS($L$2:L29,L29,$N$2:N29,N29)-1,1+SUMPRODUCT(($L$2:$L$900=TRUE)*($O$2:$O$900<O29))+COUNTIFS($L$2:L29,L29,$O$2:O29,O29)-1,1+SUMPRODUCT(($L$2:$L$900=TRUE)*($P$2:$P$900>P29))+COUNTIFS($L$2:L29,L29,$P$2:P29,P29)-1,1+SUMPRODUCT(($L$2:$L$900=TRUE)*($Q$2:$Q$900>Q29))+COUNTIFS($L$2:L29,L29,$Q$2:Q29,Q29)-1,1+SUMPRODUCT(($L$2:$L$900=TRUE)*($R$2:$R$900>R29))+COUNTIFS($L$2:L29,L29,$R$2:R29,R29)-1,1+SUMPRODUCT(($L$2:$L$900=TRUE)*($S$2:$S$900>S29))+COUNTIFS($L$2:L29,L29,$S$2:S29,S29)-1,1+SUMPRODUCT(($L$2:$L$900=TRUE)*($T$2:$T$900>T29))+COUNTIFS($L$2:L29,L29,$T$2:T29,T29)-1,1+SUMPRODUCT(($L$2:$L$900=TRUE)*($U$2:$U$900>U29))+COUNTIFS($L$2:L29,L29,$U$2:U29,U29)-1,1+SUMPRODUCT(($L$2:$L$900=TRUE)*($V$2:$V$900>V29))+COUNTIFS($L$2:L29,L29,$V$2:V29,V29)-1,1+SUMPRODUCT(($L$2:$L$900=TRUE)*($W$2:$W$900>W29))+COUNTIFS($L$2:L29,L29,$W$2:W29,W29)-1,1+SUMPRODUCT(($L$2:$L$900=TRUE)*($X$2:$X$900>X29))+COUNTIFS($L$2:L29,L29,$X$2:X29,X29)-1,1+SUMPRODUCT(($L$2:$L$900=TRUE)*($Y$2:$Y$900>Y29))+COUNTIFS($L$2:L29,L29,$Y$2:Y29,Y29)-1,1+SUMPRODUCT(($L$2:$L$900=TRUE)*($Z$2:$Z$900>Z29))+COUNTIFS($L$2:L29,L29,$Z$2:Z29,Z29)-1,1+SUMPRODUCT(($L$2:$L$900=TRUE)*($AA$2:$AA$900>AA29))+COUNTIFS($L$2:L29,L29,$AA$2:AA29,AA29)-1,1+SUMPRODUCT(($L$2:$L$900=TRUE)*($AB$2:$AB$900>AB29))+COUNTIFS($L$2:L29,L29,$AB$2:AB29,AB29)-1,1+SUMPRODUCT(($L$2:$L$900=TRUE)*($AC$2:$AC$900>AC29))+COUNTIFS($L$2:L29,L29,$AC$2:AC29,AC29)-1,1+SUMPRODUCT(($L$2:$L$900=TRUE)*($AD$2:$AD$900>AD29))+COUNTIFS($L$2:L29,L29,$AD$2:AD29,AD29)-1,1+SUMPRODUCT(($L$2:$L$900=TRUE)*($AE$2:$AE$900>AE29))+COUNTIFS($L$2:L29,L29,$AE$2:AE29,AE29)-1,1+SUMPRODUCT(($L$2:$L$900=TRUE)*($AF$2:$AF$900>AF29))+COUNTIFS($L$2:L29,L29,$AF$2:AF29,AF29)-1,1+SUMPRODUCT(($L$2:$L$900=TRUE)*($AG$2:$AG$900>AG29))+COUNTIFS($L$2:L29,L29,$AG$2:AG29,AG29)-1,1+SUMPRODUCT(($L$2:$L$900=TRUE)*($AH$2:$AH$900>AH29))+COUNTIFS($L$2:L29,L29,$AH$2:AH29,AH29)-1,1+SUMPRODUCT(($L$2:$L$900=TRUE)*($AI$2:$AI$900>AI29))+COUNTIFS($L$2:L29,L29,$AI$2:AI29,AI29)-1,1+SUMPRODUCT(($L$2:$L$900=TRUE)*($AJ$2:$AJ$900>AJ29))+COUNTIFS($L$2:L29,L29,$AJ$2:AJ29,AJ29)-1,1+SUMPRODUCT(($L$2:$L$900=TRUE)*($AK$2:$AK$900>AK29))+COUNTIFS($L$2:L29,L29,$AK$2:AK29,AK29)-1,1+SUMPRODUCT(($L$2:$L$900=TRUE)*($AL$2:$AL$900>AL29))+COUNTIFS($L$2:L29,L29,$AL$2:AL29,AL29)-1,1+SUMPRODUCT(($L$2:$L$900=TRUE)*($AM$2:$AM$900>AM29))+COUNTIFS($L$2:L29,L29,$AM$2:AM29,AM29)-1,1+SUMPRODUCT(($L$2:$L$900=TRUE)*($AN$2:$AN$900>AN29))+COUNTIFS($L$2:L29,L29,$AN$2:AN29,AN29)-1)),"") -> 47 | D29: Tim Anderson | E29: =IFERROR(INDEX('Draft Log'!$D$4:$D$555,MATCH(D29,'Draft Log'!$C$4:$C$555,0)),"") ->  | F29: =IFERROR(INDEX('ADP-Rank'!$C$2:$C$790,MATCH(D29,'ADP-Rank'!$A$2:$A$790,0)),"") -> SS | H29: SS | I29: =IF(AND(F29="OF",'Guts-2'!$M$9=0),IF(MAX(Pre!J29:L29)=Pre!J29,"LF",IF(MAX(Pre!J29:L29)=Pre!K29,"CF",IF(MAX(Pre!J29:L29)=Pre!L29,"RF","LF"))),"") ->  | J29: =IFERROR(INDEX('ADP-Rank'!$X$2:$X$790,MATCH(D29,'ADP-Rank'!$A$2:$A$790,0)),TRUE) -> TRUE | K29: FALSE | L29: =IF(J29=FALSE,FALSE,IF(AND('Your Roto Draft'!$P$6="Hide Drafted Players",K29=TRUE),FALSE,CHOOSE($I$1,TRUE,OR(RIGHT('Your Roto Draft'!$P$5,LEN('Your Roto Draft'!$P$5)-11)=H29,IF(RIGHT('Your Roto Draft'!$P$5,LEN('Your Roto Draft'!$P$5)-11)<>"C",NOT(ISERROR(SEARCH(RIGHT('Your Roto Draft'!$P$5,LEN('Your Roto Draft'!$P$5)-11),Pre!$CB29))),AND(NOT(ISERROR(SEARCH(RIGHT('Your Roto Draft'!$P$5,LEN('Your Roto Draft'!$P$5)-11),Pre!$CB29))),ISERROR(SEARCH("CF",Pre!$CB29)))),RIGHT('Your Roto Draft'!$P$5,LEN('Your Roto Draft'!$P$5)-11)=Pre!BP29),OR(H29="1B",H29="3B",ISNUMBER(SEARCH("1B",Pre!$CB29)),ISNUMBER(SEARCH("3B",Pre!$CB29))),OR(H29="2B",H29="SS",ISNUMBER(SEARCH("2B",Pre!$CB29)),ISNUMBER(SEARCH("SS",Pre!$CB29))),OR(H29="1B",H29="3B",H29="2B",H29="SS",ISNUMBER(SEARCH("1B",Pre!$CB29)),ISNUMBER(SEARCH("3B",Pre!$CB29)),ISNUMBER(SEARCH("2B",Pre!$CB29)),ISNUMBER(SEARCH("SS",Pre!$CB29))),OR(H29="SP",H29="RP",ISNUMBER(SEARCH("SP",Pre!$CB29)),ISNUMBER(SEARCH("RP",Pre!$CB29))),AND(H29<>"RP",H29<>"SP",NOT(ISNUMBER(SEARCH("RP",Pre!$CB29))),NOT(ISNUMBER(SEARCH("SP",Pre!$CB29)))),OR(H29="SP",H29="RP",ISNUMBER(SEARCH("SP",Pre!$CB29)),ISNUMBER(SEARCH("RP",Pre!$CB29)))))) -> TRUE | M29: =IF('ADP-Rank'!AB29="",9999,'ADP-Rank'!AB29) -> 48.4 | N29: =IF(LEFT($D29,15)="Unlisted Player",-1001,'All-WERTH'!AQ29) -> 4.118847494 | O29: =IF('ADP-Rank'!Z29="",9999,'ADP-Rank'!Z29) -> 39 | P29: =IF(LEFT($D29,15)="Unlisted Player",-1001,IF('All-WERTH'!S29="",-1000,'All-WERTH'!S29)) -> 1.406595706 | Q29: =IF(LEFT($D29,15)="Unlisted Player",-1001,IF('All-WERTH'!T29="",-1000,'All-WERTH'!T29)) -> -0.04725044537 | R29: =IF(LEFT($D29,15)="Unlisted Player",-1001,IF('All-WERTH'!U29="",-1000,'All-WERTH'!U29)) -> 1.266702141 | S29: =IF(LEFT($D29,15)="Unlisted Player",-1001,IF('All-WERTH'!V29="",-1000,'All-WERTH'!V29)) -> -0.1592012984 | T29: =IF(LEFT($D29,15)="Unlisted Player",-1001,IF('All-WERTH'!W29="",-1000,'All-WERTH'!W29)) -> 1.65200139 | U29: =IF(LEFT($D29,15)="Unlisted Player",-1001,IF('All-WERTH'!X29="",-1000,'All-WERTH'!X29)) -> -1000 | V29: =IF(LEFT($D29,15)="Unlisted Player",-1001,IF('All-WERTH'!Y29="",-1000,'All-WERTH'!Y29)) -> -1000 | W29: =IF(LEFT($D29,15)="Unlisted Player",-1001,IF('All-WERTH'!Z29="",-1000,'All-WERTH'!Z29)) -> -1000 | X29: =IF(LEFT($D29,15)="Unlisted Player",-1001,IF('All-WERTH'!AA29="",-1000,'All-WERTH'!AA29)) -> -1000 | Y29: =IF(LEFT($D29,15)="Unlisted Player",-1001,IF('All-WERTH'!AB29="",-1000,'All-WERTH'!AB29)) -> -1000 | Z29: =IF(LEFT($D29,15)="Unlisted Player",-1001,IF('All-WERTH'!AC29="",-1000,'All-WERTH'!AC29)) -> -1000 | AA29: =IF(LEFT($D29,15)="Unlisted Player",-1001,IF('All-WERTH'!AD29="",-1000,'All-WERTH'!AD29)) -> -1000 | AB29: =IF(LEFT($D29,15)="Unlisted Player",-1001,IF('All-WERTH'!AE29="",-1000,'All-WERTH'!AE29)) -> -1000 | AC29: =IF(LEFT($D29,15)="Unlisted Player",-1001,IF('All-WERTH'!AF29="",-1000,'All-WERTH'!AF29)) -> -1000 | AD29: =IF(LEFT($D29,15)="Unlisted Player",-1001,IF('All-WERTH'!AG29="",-1000,'All-WERTH'!AG29)) -> -1000 | AE29: =IF(LEFT($D29,15)="Unlisted Player",-1001,IF('All-WERTH'!AH29="",-1000,'All-WERTH'!AH29)) -> -1000 | AF29: =IF(LEFT($D29,15)="Unlisted Player",-1001,IF('All-WERTH'!AI29="",-1000,'All-WERTH'!AI29)) -> -1000 | AG29: =IF(LEFT($D29,15)="Unlisted Player",-1001,IF('All-WERTH'!AJ29="",-1000,'All-WERTH'!AJ29)) -> -1000 | AH29: =IF(LEFT($D29,15)="Unlisted Player",-1001,IF('All-WERTH'!AK29="",-1000,'All-WERTH'!AK29)) -> -1000 | AI29: =IF(LEFT($D29,15)="Unlisted Player",-1001,IF('All-WERTH'!AL29="",-1000,'All-WERTH'!AL29)) -> -1000 | AJ29: =IF(LEFT($D29,15)="Unlisted Player",-1001,IF('All-WERTH'!AM29="",-1000,'All-WERTH'!AM29)) -> -1000 | AK29: =IF(LEFT($D29,15)="Unlisted Player",-1001,IF('All-WERTH'!AN29="",-1000,'All-WERTH'!AN29)) -> -1000 | AL29: =IF(LEFT($D29,15)="Unlisted Player",-1001,IF('All-WERTH'!AO29="",-1000,'All-WERTH'!AO29)) -> -1000 | AM29: =IF(LEFT($D29,15)="Unlisted Player",-1001,IF('All-WERTH'!AP29="",-1000,'All-WERTH'!AP29)) -> -1000 | AN29: =IF(LEFT($D29,15)="Unlisted Player",-1001,'All-WERTH'!AT29) -> 6.764251933 | AO29: =IF(ISERROR(VLOOKUP($B28,Keepers!$C$2:$D$450,2,FALSE)),B28,"") -> Anthony Rendon | AP29: =IFERROR(INDEX($AO$1:$AO$899,SMALL(IF($AO$1:$AO$899<>"",ROW($AO$1:$AO$899)),ROW(AO29))),"") -> Xander Bogaerts
A30: Xander Bogaerts | B30: =IFERROR(INDEX($A$1:$A$899,SMALL(IF($A$1:$A$899<>"",ROW($A$1:$A$899)),ROW(A30))),"") -> Jack Flaherty | C30: =IFERROR(IF(L30=FALSE,"",CHOOSE(MATCH(RIGHT('Your Roto Draft'!$P$4,LEN('Your Roto Draft'!$P$4)-8),$M$1:$AN$1,0),1+SUMPRODUCT(($L$2:$L$900=TRUE)*($M$2:$M$900<M30))+COUNTIFS($L$2:L30,L30,$M$2:M30,M30)-1,1+SUMPRODUCT(($L$2:$L$900=TRUE)*($N$2:$N$900>N30))+COUNTIFS($L$2:L30,L30,$N$2:N30,N30)-1,1+SUMPRODUCT(($L$2:$L$900=TRUE)*($O$2:$O$900<O30))+COUNTIFS($L$2:L30,L30,$O$2:O30,O30)-1,1+SUMPRODUCT(($L$2:$L$900=TRUE)*($P$2:$P$900>P30))+COUNTIFS($L$2:L30,L30,$P$2:P30,P30)-1,1+SUMPRODUCT(($L$2:$L$900=TRUE)*($Q$2:$Q$900>Q30))+COUNTIFS($L$2:L30,L30,$Q$2:Q30,Q30)-1,1+SUMPRODUCT(($L$2:$L$900=TRUE)*($R$2:$R$900>R30))+COUNTIFS($L$2:L30,L30,$R$2:R30,R30)-1,1+SUMPRODUCT(($L$2:$L$900=TRUE)*($S$2:$S$900>S30))+COUNTIFS($L$2:L30,L30,$S$2:S30,S30)-1,1+SUMPRODUCT(($L$2:$L$900=TRUE)*($T$2:$T$900>T30))+COUNTIFS($L$2:L30,L30,$T$2:T30,T30)-1,1+SUMPRODUCT(($L$2:$L$900=TRUE)*($U$2:$U$900>U30))+COUNTIFS($L$2:L30,L30,$U$2:U30,U30)-1,1+SUMPRODUCT(($L$2:$L$900=TRUE)*($V$2:$V$900>V30))+COUNTIFS($L$2:L30,L30,$V$2:V30,V30)-1,1+SUMPRODUCT(($L$2:$L$900=TRUE)*($W$2:$W$900>W30))+COUNTIFS($L$2:L30,L30,$W$2:W30,W30)-1,1+SUMPRODUCT(($L$2:$L$900=TRUE)*($X$2:$X$900>X30))+COUNTIFS($L$2:L30,L30,$X$2:X30,X30)-1,1+SUMPRODUCT(($L$2:$L$900=TRUE)*($Y$2:$Y$900>Y30))+COUNTIFS($L$2:L30,L30,$Y$2:Y30,Y30)-1,1+SUMPRODUCT(($L$2:$L$900=TRUE)*($Z$2:$Z$900>Z30))+COUNTIFS($L$2:L30,L30,$Z$2:Z30,Z30)-1,1+SUMPRODUCT(($L$2:$L$900=TRUE)*($AA$2:$AA$900>AA30))+COUNTIFS($L$2:L30,L30,$AA$2:AA30,AA30)-1,1+SUMPRODUCT(($L$2:$L$900=TRUE)*($AB$2:$AB$900>AB30))+COUNTIFS($L$2:L30,L30,$AB$2:AB30,AB30)-1,1+SUMPRODUCT(($L$2:$L$900=TRUE)*($AC$2:$AC$900>AC30))+COUNTIFS($L$2:L30,L30,$AC$2:AC30,AC30)-1,1+SUMPRODUCT(($L$2:$L$900=TRUE)*($AD$2:$AD$900>AD30))+COUNTIFS($L$2:L30,L30,$AD$2:AD30,AD30)-1,1+SUMPRODUCT(($L$2:$L$900=TRUE)*($AE$2:$AE$900>AE30))+COUNTIFS($L$2:L30,L30,$AE$2:AE30,AE30)-1,1+SUMPRODUCT(($L$2:$L$900=TRUE)*($AF$2:$AF$900>AF30))+COUNTIFS($L$2:L30,L30,$AF$2:AF30,AF30)-1,1+SUMPRODUCT(($L$2:$L$900=TRUE)*($AG$2:$AG$900>AG30))+COUNTIFS($L$2:L30,L30,$AG$2:AG30,AG30)-1,1+SUMPRODUCT(($L$2:$L$900=TRUE)*($AH$2:$AH$900>AH30))+COUNTIFS($L$2:L30,L30,$AH$2:AH30,AH30)-1,1+SUMPRODUCT(($L$2:$L$900=TRUE)*($AI$2:$AI$900>AI30))+COUNTIFS($L$2:L30,L30,$AI$2:AI30,AI30)-1,1+SUMPRODUCT(($L$2:$L$900=TRUE)*($AJ$2:$AJ$900>AJ30))+COUNTIFS($L$2:L30,L30,$AJ$2:AJ30,AJ30)-1,1+SUMPRODUCT(($L$2:$L$900=TRUE)*($AK$2:$AK$900>AK30))+COUNTIFS($L$2:L30,L30,$AK$2:AK30,AK30)-1,1+SUMPRODUCT(($L$2:$L$900=TRUE)*($AL$2:$AL$900>AL30))+COUNTIFS($L$2:L30,L30,$AL$2:AL30,AL30)-1,1+SUMPRODUCT(($L$2:$L$900=TRUE)*($AM$2:$AM$900>AM30))+COUNTIFS($L$2:L30,L30,$AM$2:AM30,AM30)-1,1+SUMPRODUCT(($L$2:$L$900=TRUE)*($AN$2:$AN$900>AN30))+COUNTIFS($L$2:L30,L30,$AN$2:AN30,AN30)-1)),"") -> 347 | D30: Elvis Andrus | E30: =IFERROR(INDEX('Draft Log'!$D$4:$D$555,MATCH(D30,'Draft Log'!$C$4:$C$555,0)),"") ->  | F30: =IFERROR(INDEX('ADP-Rank'!$C$2:$C$790,MATCH(D30,'ADP-Rank'!$A$2:$A$790,0)),"") -> SS | H30: SS | I30: =IF(AND(F30="OF",'Guts-2'!$M$9=0),IF(MAX(Pre!J30:L30)=Pre!J30,"LF",IF(MAX(Pre!J30:L30)=Pre!K30,"CF",IF(MAX(Pre!J30:L30)=Pre!L30,"RF","LF"))),"") ->  | J30: =IFERROR(INDEX('ADP-Rank'!$X$2:$X$790,MATCH(D30,'ADP-Rank'!$A$2:$A$790,0)),TRUE) -> TRUE | K30: FALSE | L30: =IF(J30=FALSE,FALSE,IF(AND('Your Roto Draft'!$P$6="Hide Drafted Players",K30=TRUE),FALSE,CHOOSE($I$1,TRUE,OR(RIGHT('Your Roto Draft'!$P$5,LEN('Your Roto Draft'!$P$5)-11)=H30,IF(RIGHT('Your Roto Draft'!$P$5,LEN('Your Roto Draft'!$P$5)-11)<>"C",NOT(ISERROR(SEARCH(RIGHT('Your Roto Draft'!$P$5,LEN('Your Roto Draft'!$P$5)-11),Pre!$CB30))),AND(NOT(ISERROR(SEARCH(RIGHT('Your Roto Draft'!$P$5,LEN('Your Roto Draft'!$P$5)-11),Pre!$CB30))),ISERROR(SEARCH("CF",Pre!$CB30)))),RIGHT('Your Roto Draft'!$P$5,LEN('Your Roto Draft'!$P$5)-11)=Pre!BP30),OR(H30="1B",H30="3B",ISNUMBER(SEARCH("1B",Pre!$CB30)),ISNUMBER(SEARCH("3B",Pre!$CB30))),OR(H30="2B",H30="SS",ISNUMBER(SEARCH("2B",Pre!$CB30)),ISNUMBER(SEARCH("SS",Pre!$CB30))),OR(H30="1B",H30="3B",H30="2B",H30="SS",ISNUMBER(SEARCH("1B",Pre!$CB30)),ISNUMBER(SEARCH("3B",Pre!$CB30)),ISNUMBER(SEARCH("2B",Pre!$CB30)),ISNUMBER(SEARCH("SS",Pre!$CB30))),OR(H30="SP",H30="RP",ISNUMBER(SEARCH("SP",Pre!$CB30)),ISNUMBER(SEARCH("RP",Pre!$CB30))),AND(H30<>"RP",H30<>"SP",NOT(ISNUMBER(SEARCH("RP",Pre!$CB30))),NOT(ISNUMBER(SEARCH("SP",Pre!$CB30)))),OR(H30="SP",H30="RP",ISNUMBER(SEARCH("SP",Pre!$CB30)),ISNUMBER(SEARCH("RP",Pre!$CB30)))))) -> TRUE | M30: =IF('ADP-Rank'!AB30="",9999,'ADP-Rank'!AB30) -> 345.8 | N30: =IF(LEFT($D30,15)="Unlisted Player",-1001,'All-WERTH'!AQ30) -> -2.645404439 | O30: =IF('ADP-Rank'!Z30="",9999,'ADP-Rank'!Z30) -> 273 | P30: =IF(LEFT($D30,15)="Unlisted Player",-1001,IF('All-WERTH'!S30="",-1000,'All-WERTH'!S30)) -> -0.3783210103 | Q30: =IF(LEFT($D30,15)="Unlisted Player",-1001,IF('All-WERTH'!T30="",-1000,'All-WERTH'!T30)) -> -1.580411196 | R30: =IF(LEFT($D30,15)="Unlisted Player",-1001,IF('All-WERTH'!U30="",-1000,'All-WERTH'!U30)) -> -0.8519147749 | S30: =IF(LEFT($D30,15)="Unlisted Player",-1001,IF('All-WERTH'!V30="",-1000,'All-WERTH'!V30)) -> -1.227518994 | T30: =IF(LEFT($D30,15)="Unlisted Player",-1001,IF('All-WERTH'!W30="",-1000,'All-WERTH'!W30)) -> 1.392761536 | U30: =IF(LEFT($D30,15)="Unlisted Player",-1001,IF('All-WERTH'!X30="",-1000,'All-WERTH'!X30)) -> -1000 | V30: =IF(LEFT($D30,15)="Unlisted Player",-1001,IF('All-WERTH'!Y30="",-1000,'All-WERTH'!Y30)) -> -1000 | W30: =IF(LEFT($D30,15)="Unlisted Player",-1001,IF('All-WERTH'!Z30="",-1000,'All-WERTH'!Z30)) -> -1000 | X30: =IF(LEFT($D30,15)="Unlisted Player",-1001,IF('All-WERTH'!AA30="",-1000,'All-WERTH'!AA30)) -> -1000 | Y30: =IF(LEFT($D30,15)="Unlisted Player",-1001,IF('All-WERTH'!AB30="",-1000,'All-WERTH'!AB30)) -> -1000 | Z30: =IF(LEFT($D30,15)="Unlisted Player",-1001,IF('All-WERTH'!AC30="",-1000,'All-WERTH'!AC30)) -> -1000 | AA30: =IF(LEFT($D30,15)="Unlisted Player",-1001,IF('All-WERTH'!AD30="",-1000,'All-WERTH'!AD30)) -> -1000 | AB30: =IF(LEFT($D30,15)="Unlisted Player",-1001,IF('All-WERTH'!AE30="",-1000,'All-WERTH'!AE30)) -> -1000 | AC30: =IF(LEFT($D30,15)="Unlisted Player",-1001,IF('All-WERTH'!AF30="",-1000,'All-WERTH'!AF30)) -> -1000 | AD30: =IF(LEFT($D30,15)="Unlisted Player",-1001,IF('All-WERTH'!AG30="",-1000,'All-WERTH'!AG30)) -> -1000 | AE30: =IF(LEFT($D30,15)="Unlisted Player",-1001,IF('All-WERTH'!AH30="",-1000,'All-WERTH'!AH30)) -> -1000 | AF30: =IF(LEFT($D30,15)="Unlisted Player",-1001,IF('All-WERTH'!AI30="",-1000,'All-WERTH'!AI30)) -> -1000 | AG30: =IF(LEFT($D30,15)="Unlisted Player",-1001,IF('All-WERTH'!AJ30="",-1000,'All-WERTH'!AJ30)) -> -1000 | AH30: =IF(LEFT($D30,15)="Unlisted Player",-1001,IF('All-WERTH'!AK30="",-1000,'All-WERTH'!AK30)) -> -1000 | AI30: =IF(LEFT($D30,15)="Unlisted Player",-1001,IF('All-WERTH'!AL30="",-1000,'All-WERTH'!AL30)) -> -1000 | AJ30: =IF(LEFT($D30,15)="Unlisted Player",-1001,IF('All-WERTH'!AM30="",-1000,'All-WERTH'!AM30)) -> -1000 | AK30: =IF(LEFT($D30,15)="Unlisted Player",-1001,IF('All-WERTH'!AN30="",-1000,'All-WERTH'!AN30)) -> -1000 | AL30: =IF(LEFT($D30,15)="Unlisted Player",-1001,IF('All-WERTH'!AO30="",-1000,'All-WERTH'!AO30)) -> -1000 | AM30: =IF(LEFT($D30,15)="Unlisted Player",-1001,IF('All-WERTH'!AP30="",-1000,'All-WERTH'!AP30)) -> -1000 | AN30: =IF(LEFT($D30,15)="Unlisted Player",-1001,'All-WERTH'!AT30) -> 0 | AO30: =IF(ISERROR(VLOOKUP($B29,Keepers!$C$2:$D$450,2,FALSE)),B29,"") -> Xander Bogaerts | AP30: =IFERROR(INDEX($AO$1:$AO$899,SMALL(IF($AO$1:$AO$899<>"",ROW($AO$1:$AO$899)),ROW(AO30))),"") -> Jack Flaherty
A31: Jack Flaherty | B31: =IFERROR(INDEX($A$1:$A$899,SMALL(IF($A$1:$A$899<>"",ROW($A$1:$A$899)),ROW(A31))),"") -> Clayton Kershaw | C31: =IFERROR(IF(L31=FALSE,"",CHOOSE(MATCH(RIGHT('Your Roto Draft'!$P$4,LEN('Your Roto Draft'!$P$4)-8),$M$1:$AN$1,0),1+SUMPRODUCT(($L$2:$L$900=TRUE)*($M$2:$M$900<M31))+COUNTIFS($L$2:L31,L31,$M$2:M31,M31)-1,1+SUMPRODUCT(($L$2:$L$900=TRUE)*($N$2:$N$900>N31))+COUNTIFS($L$2:L31,L31,$N$2:N31,N31)-1,1+SUMPRODUCT(($L$2:$L$900=TRUE)*($O$2:$O$900<O31))+COUNTIFS($L$2:L31,L31,$O$2:O31,O31)-1,1+SUMPRODUCT(($L$2:$L$900=TRUE)*($P$2:$P$900>P31))+COUNTIFS($L$2:L31,L31,$P$2:P31,P31)-1,1+SUMPRODUCT(($L$2:$L$900=TRUE)*($Q$2:$Q$900>Q31))+COUNTIFS($L$2:L31,L31,$Q$2:Q31,Q31)-1,1+SUMPRODUCT(($L$2:$L$900=TRUE)*($R$2:$R$900>R31))+COUNTIFS($L$2:L31,L31,$R$2:R31,R31)-1,1+SUMPRODUCT(($L$2:$L$900=TRUE)*($S$2:$S$900>S31))+COUNTIFS($L$2:L31,L31,$S$2:S31,S31)-1,1+SUMPRODUCT(($L$2:$L$900=TRUE)*($T$2:$T$900>T31))+COUNTIFS($L$2:L31,L31,$T$2:T31,T31)-1,1+SUMPRODUCT(($L$2:$L$900=TRUE)*($U$2:$U$900>U31))+COUNTIFS($L$2:L31,L31,$U$2:U31,U31)-1,1+SUMPRODUCT(($L$2:$L$900=TRUE)*($V$2:$V$900>V31))+COUNTIFS($L$2:L31,L31,$V$2:V31,V31)-1,1+SUMPRODUCT(($L$2:$L$900=TRUE)*($W$2:$W$900>W31))+COUNTIFS($L$2:L31,L31,$W$2:W31,W31)-1,1+SUMPRODUCT(($L$2:$L$900=TRUE)*($X$2:$X$900>X31))+COUNTIFS($L$2:L31,L31,$X$2:X31,X31)-1,1+SUMPRODUCT(($L$2:$L$900=TRUE)*($Y$2:$Y$900>Y31))+COUNTIFS($L$2:L31,L31,$Y$2:Y31,Y31)-1,1+SUMPRODUCT(($L$2:$L$900=TRUE)*($Z$2:$Z$900>Z31))+COUNTIFS($L$2:L31,L31,$Z$2:Z31,Z31)-1,1+SUMPRODUCT(($L$2:$L$900=TRUE)*($AA$2:$AA$900>AA31))+COUNTIFS($L$2:L31,L31,$AA$2:AA31,AA31)-1,1+SUMPRODUCT(($L$2:$L$900=TRUE)*($AB$2:$AB$900>AB31))+COUNTIFS($L$2:L31,L31,$AB$2:AB31,AB31)-1,1+SUMPRODUCT(($L$2:$L$900=TRUE)*($AC$2:$AC$900>AC31))+COUNTIFS($L$2:L31,L31,$AC$2:AC31,AC31)-1,1+SUMPRODUCT(($L$2:$L$900=TRUE)*($AD$2:$AD$900>AD31))+COUNTIFS($L$2:L31,L31,$AD$2:AD31,AD31)-1,1+SUMPRODUCT(($L$2:$L$900=TRUE)*($AE$2:$AE$900>AE31))+COUNTIFS($L$2:L31,L31,$AE$2:AE31,AE31)-1,1+SUMPRODUCT(($L$2:$L$900=TRUE)*($AF$2:$AF$900>AF31))+COUNTIFS($L$2:L31,L31,$AF$2:AF31,AF31)-1,1+SUMPRODUCT(($L$2:$L$900=TRUE)*($AG$2:$AG$900>AG31))+COUNTIFS($L$2:L31,L31,$AG$2:AG31,AG31)-1,1+SUMPRODUCT(($L$2:$L$900=TRUE)*($AH$2:$AH$900>AH31))+COUNTIFS($L$2:L31,L31,$AH$2:AH31,AH31)-1,1+SUMPRODUCT(($L$2:$L$900=TRUE)*($AI$2:$AI$900>AI31))+COUNTIFS($L$2:L31,L31,$AI$2:AI31,AI31)-1,1+SUMPRODUCT(($L$2:$L$900=TRUE)*($AJ$2:$AJ$900>AJ31))+COUNTIFS($L$2:L31,L31,$AJ$2:AJ31,AJ31)-1,1+SUMPRODUCT(($L$2:$L$900=TRUE)*($AK$2:$AK$900>AK31))+COUNTIFS($L$2:L31,L31,$AK$2:AK31,AK31)-1,1+SUMPRODUCT(($L$2:$L$900=TRUE)*($AL$2:$AL$900>AL31))+COUNTIFS($L$2:L31,L31,$AL$2:AL31,AL31)-1,1+SUMPRODUCT(($L$2:$L$900=TRUE)*($AM$2:$AM$900>AM31))+COUNTIFS($L$2:L31,L31,$AM$2:AM31,AM31)-1,1+SUMPRODUCT(($L$2:$L$900=TRUE)*($AN$2:$AN$900>AN31))+COUNTIFS($L$2:L31,L31,$AN$2:AN31,AN31)-1)),"") -> 486 | D31: Miguel Andujar | E31: =IFERROR(INDEX('Draft Log'!$D$4:$D$555,MATCH(D31,'Draft Log'!$C$4:$C$555,0)),"") ->  | F31: =IFERROR(INDEX('ADP-Rank'!$C$2:$C$790,MATCH(D31,'ADP-Rank'!$A$2:$A$790,0)),"") -> OF | H31: OF | I31: =IF(AND(F31="OF",'Guts-2'!$M$9=0),IF(MAX(Pre!J31:L31)=Pre!J31,"LF",IF(MAX(Pre!J31:L31)=Pre!K31,"CF",IF(MAX(Pre!J31:L31)=Pre!L31,"RF","LF"))),"") ->  | J31: =IFERROR(INDEX('ADP-Rank'!$X$2:$X$790,MATCH(D31,'ADP-Rank'!$A$2:$A$790,0)),TRUE) -> TRUE | K31: FALSE | L31: =IF(J31=FALSE,FALSE,IF(AND('Your Roto Draft'!$P$6="Hide Drafted Players",K31=TRUE),FALSE,CHOOSE($I$1,TRUE,OR(RIGHT('Your Roto Draft'!$P$5,LEN('Your Roto Draft'!$P$5)-11)=H31,IF(RIGHT('Your Roto Draft'!$P$5,LEN('Your Roto Draft'!$P$5)-11)<>"C",NOT(ISERROR(SEARCH(RIGHT('Your Roto Draft'!$P$5,LEN('Your Roto Draft'!$P$5)-11),Pre!$CB31))),AND(NOT(ISERROR(SEARCH(RIGHT('Your Roto Draft'!$P$5,LEN('Your Roto Draft'!$P$5)-11),Pre!$CB31))),ISERROR(SEARCH("CF",Pre!$CB31)))),RIGHT('Your Roto Draft'!$P$5,LEN('Your Roto Draft'!$P$5)-11)=Pre!BP31),OR(H31="1B",H31="3B",ISNUMBER(SEARCH("1B",Pre!$CB31)),ISNUMBER(SEARCH("3B",Pre!$CB31))),OR(H31="2B",H31="SS",ISNUMBER(SEARCH("2B",Pre!$CB31)),ISNUMBER(SEARCH("SS",Pre!$CB31))),OR(H31="1B",H31="3B",H31="2B",H31="SS",ISNUMBER(SEARCH("1B",Pre!$CB31)),ISNUMBER(SEARCH("3B",Pre!$CB31)),ISNUMBER(SEARCH("2B",Pre!$CB31)),ISNUMBER(SEARCH("SS",Pre!$CB31))),OR(H31="SP",H31="RP",ISNUMBER(SEARCH("SP",Pre!$CB31)),ISNUMBER(SEARCH("RP",Pre!$CB31))),AND(H31<>"RP",H31<>"SP",NOT(ISNUMBER(SEARCH("RP",Pre!$CB31))),NOT(ISNUMBER(SEARCH("SP",Pre!$CB31)))),OR(H31="SP",H31="RP",ISNUMBER(SEARCH("SP",Pre!$CB31)),ISNUMBER(SEARCH("RP",Pre!$CB31)))))) -> TRUE | M31: =IF('ADP-Rank'!AB31="",9999,'ADP-Rank'!AB31) -> 456.3 | N31: =IF(LEFT($D31,15)="Unlisted Player",-1001,'All-WERTH'!AQ31) -> -8.470056909 | O31: =IF('ADP-Rank'!Z31="",9999,'ADP-Rank'!Z31) -> 644 | P31: =IF(LEFT($D31,15)="Unlisted Player",-1001,IF('All-WERTH'!S31="",-1000,'All-WERTH'!S31)) -> -0.1010234851 | Q31: =IF(LEFT($D31,15)="Unlisted Player",-1001,IF('All-WERTH'!T31="",-1000,'All-WERTH'!T31)) -> -1.865622107 | R31: =IF(LEFT($D31,15)="Unlisted Player",-1001,IF('All-WERTH'!U31="",-1000,'All-WERTH'!U31)) -> -2.871371797 | S31: =IF(LEFT($D31,15)="Unlisted Player",-1001,IF('All-WERTH'!V31="",-1000,'All-WERTH'!V31)) -> -2.515761353 | T31: =IF(LEFT($D31,15)="Unlisted Player",-1001,IF('All-WERTH'!W31="",-1000,'All-WERTH'!W31)) -> -1.116278168 | U31: =IF(LEFT($D31,15)="Unlisted Player",-1001,IF('All-WERTH'!X31="",-1000,'All-WERTH'!X31)) -> -1000 | V31: =IF(LEFT($D31,15)="Unlisted Player",-1001,IF('All-WERTH'!Y31="",-1000,'All-WERTH'!Y31)) -> -1000 | W31: =IF(LEFT($D31,15)="Unlisted Player",-1001,IF('All-WERTH'!Z31="",-1000,'All-WERTH'!Z31)) -> -1000 | X31: =IF(LEFT($D31,15)="Unlisted Player",-1001,IF('All-WERTH'!AA31="",-1000,'All-WERTH'!AA31)) -> -1000 | Y31: =IF(LEFT($D31,15)="Unlisted Player",-1001,IF('All-WERTH'!AB31="",-1000,'All-WERTH'!AB31)) -> -1000 | Z31: =IF(LEFT($D31,15)="Unlisted Player",-1001,IF('All-WERTH'!AC31="",-1000,'All-WERTH'!AC31)) -> -1000 | AA31: =IF(LEFT($D31,15)="Unlisted Player",-1001,IF('All-WERTH'!AD31="",-1000,'All-WERTH'!AD31)) -> -1000 | AB31: =IF(LEFT($D31,15)="Unlisted Player",-1001,IF('All-WERTH'!AE31="",-1000,'All-WERTH'!AE31)) -> -1000 | AC31: =IF(LEFT($D31,15)="Unlisted Player",-1001,IF('All-WERTH'!AF31="",-1000,'All-WERTH'!AF31)) -> -1000 | AD31: =IF(LEFT($D31,15)="Unlisted Player",-1001,IF('All-WERTH'!AG31="",-1000,'All-WERTH'!AG31)) -> -1000 | AE31: =IF(LEFT($D31,15)="Unlisted Player",-1001,IF('All-WERTH'!AH31="",-1000,'All-WERTH'!AH31)) -> -1000 | AF31: =IF(LEFT($D31,15)="Unlisted Player",-1001,IF('All-WERTH'!AI31="",-1000,'All-WERTH'!AI31)) -> -1000 | AG31: =IF(LEFT($D31,15)="Unlisted Player",-1001,IF('All-WERTH'!AJ31="",-1000,'All-WERTH'!AJ31)) -> -1000 | AH31: =IF(LEFT($D31,15)="Unlisted Player",-1001,IF('All-WERTH'!AK31="",-1000,'All-WERTH'!AK31)) -> -1000 | AI31: =IF(LEFT($D31,15)="Unlisted Player",-1001,IF('All-WERTH'!AL31="",-1000,'All-WERTH'!AL31)) -> -1000 | AJ31: =IF(LEFT($D31,15)="Unlisted Player",-1001,IF('All-WERTH'!AM31="",-1000,'All-WERTH'!AM31)) -> -1000 | AK31: =IF(LEFT($D31,15)="Unlisted Player",-1001,IF('All-WERTH'!AN31="",-1000,'All-WERTH'!AN31)) -> -1000 | AL31: =IF(LEFT($D31,15)="Unlisted Player",-1001,IF('All-WERTH'!AO31="",-1000,'All-WERTH'!AO31)) -> -1000 | AM31: =IF(LEFT($D31,15)="Unlisted Player",-1001,IF('All-WERTH'!AP31="",-1000,'All-WERTH'!AP31)) -> -1000 | AN31: =IF(LEFT($D31,15)="Unlisted Player",-1001,'All-WERTH'!AT31) -> -5.609462176 | AO31: =IF(ISERROR(VLOOKUP($B30,Keepers!$C$2:$D$450,2,FALSE)),B30,"") -> Jack Flaherty | AP31: =IFERROR(INDEX($AO$1:$AO$899,SMALL(IF($AO$1:$AO$899<>"",ROW($AO$1:$AO$899)),ROW(AO31))),"") -> Clayton Kershaw
... 38 more rows

Sheet Guts-1 (hidden)
A1: AVG | B1: =IFERROR(IF(VLOOKUP(A1,Settings!$C$5:$D$16,2,FALSE)="Full",1,IF(VLOOKUP(A1,Settings!$C$5:$D$16,2,FALSE)="Half",0.5,0)),0) -> 1 | C1: 16 | D1: 22 | E1: 37 | F1: W | G1: =IFERROR(IF(VLOOKUP(F1,Settings!$C$19:$D$30,2,FALSE)="Full",1,IF(VLOOKUP(F1,Settings!$C$19:$D$30,2,FALSE)="Half",0.5,0)),0) -> 1 | H1: 2 | I1: 2 | J1: 10 | K1: Stats or WERTH or Hide? | L1: =IF('Your Roto Draft'!P7=P5,1,IF('Your Roto Draft'!P7=P6,2,IF('Your Roto Draft'!P7=P7,3,""))) -> 1 | M1: =MAX(COUNTIF(L2:L13,">"""),COUNTIF(L14:L25,">""")) -> 5 | O1: List | P1: List | Q1: Pos | R1: Sort by ADP | S1: Show All Positions | T1: =IFERROR(INDEX($S$1:$S$24,SMALL(IF($S$1:$S$24<>"",ROW($S$1:$S$24)),ROW(B1))),"") -> Show All Positions
A2: HR | B2: =IFERROR(IF(VLOOKUP(A2,Settings!$C$5:$D$16,2,FALSE)="Full",1,IF(VLOOKUP(A2,Settings!$C$5:$D$16,2,FALSE)="Half",0.5,0)),0) -> 1 | C2: 10 | D2: 10 | E2: 27 | F2: SV | G2: =IFERROR(IF(VLOOKUP(F2,Settings!$C$19:$D$30,2,FALSE)="Full",1,IF(VLOOKUP(F2,Settings!$C$19:$D$30,2,FALSE)="Half",0.5,0)),0) -> 1 | H2: 9 | I2: 9 | J2: 17 | K2: =IF(OR(MATCH(L2,'Guts-1'!$A$1:$A$23,0)={11,20,21}),1,0) -> 0 | L2: =IF(ISBLANK(Settings!C5),"",Settings!C5) -> AVG | M2: =IF(L$1=2,1,IF(OR(L2="AVG",L2="OBP",L2="SLG",L2="OPS"),2,IF(L2="","",1))) -> 2 | N2: =IF(OR(L2="AVG",L2="OBP",L2="SLG",L2="OPS"),2,IF(L2="","",1)) -> 2 | O2: =IFERROR(INDEX($L$1:$L$25,SMALL(IF($L$1:$L$25<>"",ROW($L$1:$L$25)),ROW(B2))),"") -> AVG | P2: Stats | Q2: =IF('Guts-2'!$M$2>=ROW(Q1),"C","") -> C | R2: Sort by WERTH | S2: =IF('Guts-2'!$M2>0,"Only Show: "&'Guts-2'!L2,"") -> Only Show: C | T2: =IFERROR(INDEX($S$1:$S$24,SMALL(IF($S$1:$S$24<>"",ROW($S$1:$S$24)),ROW(B2))),"") -> Only Show: C | U2: =IF(ISERROR(VLOOKUP(A1,$L$2:$M$25,2,FALSE)),A1,"") ->  | V2: =IF(ISERROR(VLOOKUP(F1,$L$2:$M$25,2,FALSE)),F1,"") ->  | W2: =IFERROR(INDEX($U$1:$U$24,SMALL(IF($U$1:$U$24<>"",ROW($U$1:$U$24)),ROW(B1))),"") -> SLG | X2: =IFERROR(INDEX($V$1:$V$28,SMALL(IF($V$1:$V$28<>"",ROW($V$1:$V$28)),ROW(B1))),"") -> QS
A3: R | B3: =IFERROR(IF(VLOOKUP(A3,Settings!$C$5:$D$16,2,FALSE)="Full",1,IF(VLOOKUP(A3,Settings!$C$5:$D$16,2,FALSE)="Half",0.5,0)),0) -> 1 | C3: 5 | D3: 5 | E3: 22 | F3: K | G3: =IFERROR(IF(VLOOKUP(F3,Settings!$C$19:$D$30,2,FALSE)="Full",1,IF(VLOOKUP(F3,Settings!$C$19:$D$30,2,FALSE)="Half",0.5,0)),0) -> 1 | H3: 7 | I3: 7 | J3: 15 | K3: =IF(OR(MATCH(L3,'Guts-1'!$A$1:$A$23,0)={11,20,21}),1,0) -> 0 | L3: =IF(ISBLANK(Settings!C6),"",Settings!C6) -> HR | M3: =IF(L$1=2,1,IF(OR(L3="AVG",L3="OBP",L3="SLG",L3="OPS"),2,IF(L3="","",1))) -> 1 | N3: =IF(OR(L3="AVG",L3="OBP",L3="SLG",L3="OPS"),2,IF(L3="","",1)) -> 1 | O3: =IFERROR(INDEX($L$1:$L$25,SMALL(IF($L$1:$L$25<>"",ROW($L$1:$L$25)),ROW(B3))),"") -> HR | P3: Ranks | Q3: =IF('Guts-2'!$M$2>=ROW(Q2),"C","") ->  | R3: Sort by Pos Adj WERTH | S3: =IF('Guts-2'!$M3>0,"Only Show: "&'Guts-2'!L3,"") -> Only Show: 1B | T3: =IFERROR(INDEX($S$1:$S$24,SMALL(IF($S$1:$S$24<>"",ROW($S$1:$S$24)),ROW(B3))),"") -> Only Show: 1B | W3: =IFERROR(INDEX($U$1:$U$24,SMALL(IF($U$1:$U$24<>"",ROW($U$1:$U$24)),ROW(B2))),"") -> OBP | X3: =IFERROR(INDEX($V$1:$V$28,SMALL(IF($V$1:$V$28<>"",ROW($V$1:$V$28)),ROW(B2))),"") -> Holds
A4: RBI | B4: =IFERROR(IF(VLOOKUP(A4,Settings!$C$5:$D$16,2,FALSE)="Full",1,IF(VLOOKUP(A4,Settings!$C$5:$D$16,2,FALSE)="Half",0.5,0)),0) -> 1 | C4: 11 | D4: 11 | E4: 28 | F4: ERA | G4: =IFERROR(IF(VLOOKUP(F4,Settings!$C$19:$D$30,2,FALSE)="Full",1,IF(VLOOKUP(F4,Settings!$C$19:$D$30,2,FALSE)="Half",0.5,0)),0) -> 1 | H4: 10 | I4: 29 | J4: 21 | K4: =IF(OR(MATCH(L4,'Guts-1'!$A$1:$A$23,0)={11,20,21}),1,0) -> 0 | L4: =IF(ISBLANK(Settings!C7),"",Settings!C7) -> R | M4: 1 | N4: 1 | O4: =IFERROR(INDEX($L$1:$L$25,SMALL(IF($L$1:$L$25<>"",ROW($L$1:$L$25)),ROW(B4))),"") -> R | P4: List | Q4: =IF('Guts-2'!$M$2>=ROW(Q3),"C","") ->  | R4: Sort by Expert Ranking | S4: =IF('Guts-2'!$M4>0,"Only Show: "&'Guts-2'!L4,"") -> Only Show: 2B | T4: =IFERROR(INDEX($S$1:$S$24,SMALL(IF($S$1:$S$24<>"",ROW($S$1:$S$24)),ROW(B4))),"") -> Only Show: 2B | W4: =IFERROR(INDEX($U$1:$U$24,SMALL(IF($U$1:$U$24<>"",ROW($U$1:$U$24)),ROW(B3))),"") -> OPS | X4: =IFERROR(INDEX($V$1:$V$28,SMALL(IF($V$1:$V$28<>"",ROW($V$1:$V$28)),ROW(B3))),"") -> Sv + Hld
A5: SB | B5: =IFERROR(IF(VLOOKUP(A5,Settings!$C$5:$D$16,2,FALSE)="Full",1,IF(VLOOKUP(A5,Settings!$C$5:$D$16,2,FALSE)="Half",0.5,0)),0) -> 1 | C5: 12 | D5: 12 | E5: 29 | F5: WHIP | G5: =IFERROR(IF(VLOOKUP(F5,Settings!$C$19:$D$30,2,FALSE)="Full",1,IF(VLOOKUP(F5,Settings!$C$19:$D$30,2,FALSE)="Half",0.5,0)),0) -> 1 | H5: 11 | I5: 30 | J5: 22 | K5: =IF(OR(MATCH(L5,'Guts-1'!$A$1:$A$23,0)={11,20,21}),1,0) -> 0 | L5: =IF(ISBLANK(Settings!C8),"",Settings!C8) -> RBI | M5: 1 | N5: 1 | O5: =IFERROR(INDEX($L$1:$L$25,SMALL(IF($L$1:$L$25<>"",ROW($L$1:$L$25)),ROW(B5))),"") -> RBI | P5: Show Stats | Q5: =IF('Guts-2'!$M$2>=ROW(Q4),"C","") ->  | R5: =IF(O2="","","Sort by "&O2) -> Sort by AVG | S5: =IF('Guts-2'!$M5>0,"Only Show: "&'Guts-2'!L5,"") -> Only Show: 3B | T5: =IFERROR(INDEX($S$1:$S$24,SMALL(IF($S$1:$S$24<>"",ROW($S$1:$S$24)),ROW(B5))),"") -> Only Show: 3B | W5: =IFERROR(INDEX($U$1:$U$24,SMALL(IF($U$1:$U$24<>"",ROW($U$1:$U$24)),ROW(B4))),"") -> Net SB | X5: =IFERROR(INDEX($V$1:$V$28,SMALL(IF($V$1:$V$28<>"",ROW($V$1:$V$28)),ROW(B4))),"") -> K-BB
A6: SLG | B6: =IFERROR(IF(VLOOKUP(A6,Settings!$C$5:$D$16,2,FALSE)="Full",1,IF(VLOOKUP(A6,Settings!$C$5:$D$16,2,FALSE)="Half",0.5,0)),0) -> 0 | C6: 18 | D6: 24 | E6: 39 | F6: QS | G6: =IFERROR(IF(VLOOKUP(F6,Settings!$C$19:$D$30,2,FALSE)="Full",1,IF(VLOOKUP(F6,Settings!$C$19:$D$30,2,FALSE)="Half",0.5,0)),0) -> 0 | H6: 13 | I6: 13 | J6: 24 | K6: =IF(OR(MATCH(L6,'Guts-1'!$A$1:$A$23,0)={11,20,21}),1,0) -> 0 | L6: =IF(ISBLANK(Settings!C9),"",Settings!C9) -> SB | M6: 1 | N6: 1 | O6: =IFERROR(INDEX($L$1:$L$25,SMALL(IF($L$1:$L$25<>"",ROW($L$1:$L$25)),ROW(B6))),"") -> SB | P6: Show WERTH Values | Q6: =IF('Guts-2'!$M$3>=ROW(Q1),"1B","") -> 1B | R6: =IF(O3="","","Sort by "&O3) -> Sort by HR | S6: =IF('Guts-2'!$M6>0,"Only Show: "&'Guts-2'!L6,"") -> Only Show: SS | T6: =IFERROR(INDEX($S$1:$S$24,SMALL(IF($S$1:$S$24<>"",ROW($S$1:$S$24)),ROW(B6))),"") -> Only Show: SS | W6: =IFERROR(INDEX($U$1:$U$24,SMALL(IF($U$1:$U$24<>"",ROW($U$1:$U$24)),ROW(B5))),"") -> Total Bases | X6: =IFERROR(INDEX($V$1:$V$28,SMALL(IF($V$1:$V$28<>"",ROW($V$1:$V$28)),ROW(B5))),"") -> K/BB
A7: OBP | B7: =IFERROR(IF(VLOOKUP(A7,Settings!$C$5:$D$16,2,FALSE)="Full",1,IF(VLOOKUP(A7,Settings!$C$5:$D$16,2,FALSE)="Half",0.5,0)),0) -> 0 | C7: 17 | D7: 23 | E7: 38 | F7: Holds | G7: =IFERROR(IF(VLOOKUP(F7,Settings!$C$19:$D$30,2,FALSE)="Full",1,IF(VLOOKUP(F7,Settings!$C$19:$D$30,2,FALSE)="Half",0.5,0)),0) -> 0 | H7: 17 | I7: 17 | J7: 27 | K7: =IF(OR(MATCH(L7,'Guts-1'!$A$1:$A$23,0)={11,20,21}),1,0) ->  | L7: =IF(ISBLANK(Settings!C10),"",Settings!C10) ->  | O7: =IFERROR(INDEX($L$1:$L$25,SMALL(IF($L$1:$L$25<>"",ROW($L$1:$L$25)),ROW(B7))),"") -> W | P7: Show Neither | Q7: =IF('Guts-2'!$M$3>=ROW(Q2),"1B","") ->  | R7: Sort by R | S7: =IF('Guts-2'!$M7>0,"Only Show: "&'Guts-2'!L7,"") -> Only Show: CI | T7: =IFERROR(INDEX($S$1:$S$24,SMALL(IF($S$1:$S$24<>"",ROW($S$1:$S$24)),ROW(B7))),"") -> Only Show: CI | U7: SLG | V7: QS | W7: =IFERROR(INDEX($U$1:$U$24,SMALL(IF($U$1:$U$24<>"",ROW($U$1:$U$24)),ROW(B6))),"") -> K's | X7: =IFERROR(INDEX($V$1:$V$28,SMALL(IF($V$1:$V$28<>"",ROW($V$1:$V$28)),ROW(B6))),"") -> K/9
A8: OPS | B8: =IFERROR(IF(VLOOKUP(A8,Settings!$C$5:$D$16,2,FALSE)="Full",1,IF(VLOOKUP(A8,Settings!$C$5:$D$16,2,FALSE)="Half",0.5,0)),0) -> 0 | C8: 19 | D8: 25 | E8: 40 | F8: Sv + Hld | G8: =IFERROR(IF(VLOOKUP(F8,Settings!$C$19:$D$30,2,FALSE)="Full",1,IF(VLOOKUP(F8,Settings!$C$19:$D$30,2,FALSE)="Half",0.5,0)),0) -> 0 | H8: 24 | I8: 24 | J8: 28 | K8: =IF(OR(MATCH(L8,'Guts-1'!$A$1:$A$23,0)={11,20,21}),1,0) ->  | L8: =IF(ISBLANK(Settings!C11),"",Settings!C11) ->  | O8: =IFERROR(INDEX($L$1:$L$25,SMALL(IF($L$1:$L$25<>"",ROW($L$1:$L$25)),ROW(B8))),"") -> SV | P8: List | Q8: =IF('Guts-2'!$M$3>=ROW(Q3),"1B","") ->  | R8: Sort by RBI | S8: =IF('Guts-2'!$M8>0,"Only Show: "&'Guts-2'!L8,"") -> Only Show: MI | T8: =IFERROR(INDEX($S$1:$S$24,SMALL(IF($S$1:$S$24<>"",ROW($S$1:$S$24)),ROW(B8))),"") -> Only Show: MI | U8: OBP | V8: Holds | W8: =IFERROR(INDEX($U$1:$U$24,SMALL(IF($U$1:$U$24<>"",ROW($U$1:$U$24)),ROW(B7))),"") -> Hits | X8: =IFERROR(INDEX($V$1:$V$28,SMALL(IF($V$1:$V$28<>"",ROW($V$1:$V$28)),ROW(B7))),"") -> CG
A9: Net SB | B9: =IFERROR(IF(VLOOKUP(A9,Settings!$C$5:$D$16,2,FALSE)="Full",1,IF(VLOOKUP(A9,Settings!$C$5:$D$16,2,FALSE)="Half",0.5,0)),0) -> 0 | C9: 31 | D9: 31 | E9: 48 | F9: K-BB | G9: =IFERROR(IF(VLOOKUP(F9,Settings!$C$19:$D$30,2,FALSE)="Full",1,IF(VLOOKUP(F9,Settings!$C$19:$D$30,2,FALSE)="Half",0.5,0)),0) -> 0 | H9: 25 | I9: 25 | J9: 29 | K9: =IF(OR(MATCH(L9,'Guts-1'!$A$1:$A$23,0)={11,20,21}),1,0) ->  | L9: =IF(ISBLANK(Settings!C12),"",Settings!C12) ->  | O9: =IFERROR(INDEX($L$1:$L$25,SMALL(IF($L$1:$L$25<>"",ROW($L$1:$L$25)),ROW(B9))),"") -> K | P9: Mixed (Standard) | Q9: =IF('Guts-2'!$M$4>=ROW(Q1),"2B","") -> 2B | R9: Sort by SB | S9: =IF('Guts-2'!$M9>0,"Only Show: "&'Guts-2'!L9,"") -> Only Show: OF | T9: =IFERROR(INDEX($S$1:$S$24,SMALL(IF($S$1:$S$24<>"",ROW($S$1:$S$24)),ROW(B9))),"") -> Only Show: OF | U9: OPS | V9: Sv + Hld | W9: =IFERROR(INDEX($U$1:$U$24,SMALL(IF($U$1:$U$24<>"",ROW($U$1:$U$24)),ROW(B8))),"") -> BB | X9: =IFERROR(INDEX($V$1:$V$28,SMALL(IF($V$1:$V$28<>"",ROW($V$1:$V$28)),ROW(B8))),"") -> Shutouts
A10: Total Bases | B10: =IFERROR(IF(VLOOKUP(A10,Settings!$C$5:$D$16,2,FALSE)="Full",1,IF(VLOOKUP(A10,Settings!$C$5:$D$16,2,FALSE)="Half",0.5,0)),0) -> 0 | C10: 20 | D10: 20 | E10: 45 | F10: K/BB | G10: =IFERROR(IF(VLOOKUP(F10,Settings!$C$19:$D$30,2,FALSE)="Full",1,IF(VLOOKUP(F10,Settings!$C$19:$D$30,2,FALSE)="Half",0.5,0)),0) -> 0 | H10: 26 | I10: 33 | J10: 34 | K10: =IF(OR(MATCH(L10,'Guts-1'!$A$1:$A$23,0)={11,20,21}),1,0) ->  | L10: =IF(ISBLANK(Settings!C13),"",Settings!C13) ->  | O10: =IFERROR(INDEX($L$1:$L$25,SMALL(IF($L$1:$L$25<>"",ROW($L$1:$L$25)),ROW(B10))),"") -> ERA | P10: AL-Only | Q10: =IF('Guts-2'!$M$4>=ROW(Q2),"2B","") ->  | R10: Sort by W | S10: =IF('Guts-2'!$M10>0,"Only Show: "&'Guts-2'!L10,"") -> Only Show: DH | T10: =IFERROR(INDEX($S$1:$S$24,SMALL(IF($S$1:$S$24<>"",ROW($S$1:$S$24)),ROW(B10))),"") -> Only Show: DH | U10: Net SB | V10: K-BB | W10: =IFERROR(INDEX($U$1:$U$24,SMALL(IF($U$1:$U$24<>"",ROW($U$1:$U$24)),ROW(B9))),"") -> 1B | X10: =IFERROR(INDEX($V$1:$V$28,SMALL(IF($V$1:$V$28<>"",ROW($V$1:$V$28)),ROW(B9))),"") -> ER
A11: K's | B11: =IFERROR(IF(VLOOKUP(A11,Settings!$C$5:$D$16,2,FALSE)="Full",1,IF(VLOOKUP(A11,Settings!$C$5:$D$16,2,FALSE)="Half",0.5,0)),0) -> 0 | C11: 15 | D11: 15 | E11: 32 | F11: K/9 | G11: =IFERROR(IF(VLOOKUP(F11,Settings!$C$19:$D$30,2,FALSE)="Full",1,IF(VLOOKUP(F11,Settings!$C$19:$D$30,2,FALSE)="Half",0.5,0)),0) -> 0 | H11: 12 | I11: 31 | J11: 23 | K11: =IF(OR(MATCH(L11,'Guts-1'!$A$1:$A$23,0)={11,20,21}),1,0) ->  | L11: =IF(ISBLANK(Settings!C14),"",Settings!C14) ->  | O11: =IFERROR(INDEX($L$1:$L$25,SMALL(IF($L$1:$L$25<>"",ROW($L$1:$L$25)),ROW(B11))),"") -> WHIP | P11: NL-Only | Q11: =IF('Guts-2'!$M$4>=ROW(Q3),"2B","") ->  | R11: Sort by SV | S11: Only Show: SP | T11: =IFERROR(INDEX($S$1:$S$24,SMALL(IF($S$1:$S$24<>"",ROW($S$1:$S$24)),ROW(B11))),"") -> Only Show: SP | U11: Total Bases | V11: K/BB | W11: =IFERROR(INDEX($U$1:$U$24,SMALL(IF($U$1:$U$24<>"",ROW($U$1:$U$24)),ROW(B10))),"") -> 2B | X11: =IFERROR(INDEX($V$1:$V$28,SMALL(IF($V$1:$V$28<>"",ROW($V$1:$V$28)),ROW(B10))),"") -> BAA
A12: Hits | B12: =IFERROR(IF(VLOOKUP(A12,Settings!$C$5:$D$16,2,FALSE)="Full",1,IF(VLOOKUP(A12,Settings!$C$5:$D$16,2,FALSE)="Half",0.5,0)),0) -> 0 | C12: 6 | D12: 6 | E12: 23 | F12: CG | G12: =IFERROR(IF(VLOOKUP(F12,Settings!$C$19:$D$30,2,FALSE)="Full",1,IF(VLOOKUP(F12,Settings!$C$19:$D$30,2,FALSE)="Half",0.5,0)),0) -> 0 | H12: 19 | I12: 19 | J12: 37 | K12: =IF(OR(MATCH(L12,'Guts-1'!$A$1:$A$23,0)={11,20,21}),1,0) ->  | L12: =IF(ISBLANK(Settings!C15),"",Settings!C15) ->  | O12: =IFERROR(INDEX($L$1:$L$25,SMALL(IF($L$1:$L$25<>"",ROW($L$1:$L$25)),ROW(B12))),"") ->  | P12: Specific Teams Only | Q12: =IF('Guts-2'!$M$5>=ROW(Q1),"3B","") -> 3B | R12: Sort by K | S12: Only Show: RP | T12: =IFERROR(INDEX($S$1:$S$24,SMALL(IF($S$1:$S$24<>"",ROW($S$1:$S$24)),ROW(B12))),"") -> Only Show: RP | U12: K's | V12: K/9 | W12: =IFERROR(INDEX($U$1:$U$24,SMALL(IF($U$1:$U$24<>"",ROW($U$1:$U$24)),ROW(B11))),"") -> 3B | X12: =IFERROR(INDEX($V$1:$V$28,SMALL(IF($V$1:$V$28<>"",ROW($V$1:$V$28)),ROW(B11))),"") -> Hits Allw
A13: BB | B13: =IFERROR(IF(VLOOKUP(A13,Settings!$C$5:$D$16,2,FALSE)="Full",1,IF(VLOOKUP(A13,Settings!$C$5:$D$16,2,FALSE)="Half",0.5,0)),0) -> 0 | C13: 14 | D13: 14 | E13: 31 | F13: Shutouts | G13: =IFERROR(IF(VLOOKUP(F13,Settings!$C$19:$D$30,2,FALSE)="Full",1,IF(VLOOKUP(F13,Settings!$C$19:$D$30,2,FALSE)="Half",0.5,0)),0) -> 0 | H13: 20 | I13: 20 | J13: 36 | K13: =IF(OR(MATCH(L13,'Guts-1'!$A$1:$A$23,0)={11,20,21}),1,0) ->  | L13: =IF(ISBLANK(Settings!C16),"",Settings!C16) ->  | O13: =IFERROR(INDEX($L$1:$L$25,SMALL(IF($L$1:$L$25<>"",ROW($L$1:$L$25)),ROW(B13))),"") ->  | P13: Y | Q13: =IF('Guts-2'!$M$5>=ROW(Q2),"3B","") ->  | R13: Sort by ERA | S13: =IF('Guts-2'!$M13>0,"Only Show: "&'Guts-2'!L13,"") -> Only Show: P | T13: =IFERROR(INDEX($S$1:$S$24,SMALL(IF($S$1:$S$24<>"",ROW($S$1:$S$24)),ROW(B13))),"") -> Only Show: P | U13: Hits | V13: CG | W13: =IFERROR(INDEX($U$1:$U$24,SMALL(IF($U$1:$U$24<>"",ROW($U$1:$U$24)),ROW(B12))),"") -> 2B + 3B | X13: =IFERROR(INDEX($V$1:$V$28,SMALL(IF($V$1:$V$28<>"",ROW($V$1:$V$28)),ROW(B12))),"") -> HR's
A14: 1B | B14: =IFERROR(IF(VLOOKUP(A14,Settings!$C$5:$D$16,2,FALSE)="Full",1,IF(VLOOKUP(A14,Settings!$C$5:$D$16,2,FALSE)="Half",0.5,0)),0) -> 0 | C14: 7 | D14: 7 | E14: 24 | F14: ER | G14: =IFERROR(IF(VLOOKUP(F14,Settings!$C$19:$D$30,2,FALSE)="Full",1,IF(VLOOKUP(F14,Settings!$C$19:$D$30,2,FALSE)="Half",0.5,0)),0) -> 0 | H14: 8 | I14: 8 | J14: 16 | K14: =IF(OR(MATCH(L14,'Guts-1'!$F$1:$F$27,0)={4,5,14,15,16,17,18,19,24,26}),1,0) -> 0 | L14: =IF(ISBLANK(Settings!C19),"",Settings!C19) -> W | M14: =IF(L$1=2,1,IF(OR(L14="ERA",L14="WHIP"),4,IF(OR(L14="K/9",L14="K/BB"),3,IF(L14="BAA",2,IF(L14="","",1))))) -> 1 | N14: =IF(OR(L14="ERA",L14="WHIP"),4,IF(OR(L14="K/9",L14="K/BB"),3,IF(L14="BAA",2,IF(L14="","",1)))) -> 1 | O14: =IFERROR(INDEX($L$1:$L$25,SMALL(IF($L$1:$L$25<>"",ROW($L$1:$L$25)),ROW(B14))),"") ->  | P14: N | Q14: =IF('Guts-2'!$M$5>=ROW(Q3),"3B","") ->  | R14: Sort by WHIP | S14: =IF('Guts-2'!$M14>0,"Only Show: "&'Guts-2'!L14,"") ->  | T14: =IFERROR(INDEX($S$1:$S$24,SMALL(IF($S$1:$S$24<>"",ROW($S$1:$S$24)),ROW(B14))),"") -> Only Show: Hitters | U14: BB | V14: Shutouts | W14: =IFERROR(INDEX($U$1:$U$24,SMALL(IF($U$1:$U$24<>"",ROW($U$1:$U$24)),ROW(B13))),"") -> R + RBI - HR | X14: =IFERROR(INDEX($V$1:$V$28,SMALL(IF($V$1:$V$28<>"",ROW($V$1:$V$28)),ROW(B13))),"") -> Walks
A15: 2B | B15: =IFERROR(IF(VLOOKUP(A15,Settings!$C$5:$D$16,2,FALSE)="Full",1,IF(VLOOKUP(A15,Settings!$C$5:$D$16,2,FALSE)="Half",0.5,0)),0) -> 0 | C15: 8 | D15: 8 | E15: 25 | F15: BAA | G15: =IFERROR(IF(VLOOKUP(F15,Settings!$C$19:$D$30,2,FALSE)="Full",1,IF(VLOOKUP(F15,Settings!$C$19:$D$30,2,FALSE)="Half",0.5,0)),0) -> 0 | H15: 18 | I15: 32 | J15: 33 | K15: =IF(OR(MATCH(L15,'Guts-1'!$F$1:$F$27,0)={4,5,14,15,16,17,18,19,24,26}),1,0) -> 0 | L15: =IF(ISBLANK(Settings!C20),"",Settings!C20) -> SV | M15: =IF(L$1=2,1,IF(OR(L15="ERA",L15="WHIP"),4,IF(OR(L15="K/9",L15="K/BB"),3,IF(L15="BAA",2,IF(L15="","",1))))) -> 1 | N15: =IF(OR(L15="ERA",L15="WHIP"),4,IF(OR(L15="K/9",L15="K/BB"),3,IF(L15="BAA",2,IF(L15="","",1)))) -> 1 | O15: =IFERROR(INDEX($L$1:$L$25,SMALL(IF($L$1:$L$25<>"",ROW($L$1:$L$25)),ROW(B15))),"") ->  | P15: Full | Q15: =IF('Guts-2'!$M$6>=ROW(Q1),"SS","") -> SS | S15: =IF('Guts-2'!$M15>0,"Only Show: "&'Guts-2'!L15,"") ->  | T15: =IFERROR(INDEX($S$1:$S$24,SMALL(IF($S$1:$S$24<>"",ROW($S$1:$S$24)),ROW(B15))),"") -> Only Show: Pitchers | U15: 1B | V15: ER | W15: =IFERROR(INDEX($U$1:$U$24,SMALL(IF($U$1:$U$24<>"",ROW($U$1:$U$24)),ROW(B14))),"") -> SB + BB - K | X15: =IFERROR(INDEX($V$1:$V$28,SMALL(IF($V$1:$V$28<>"",ROW($V$1:$V$28)),ROW(B14))),"") -> L
A16: 3B | B16: =IFERROR(IF(VLOOKUP(A16,Settings!$C$5:$D$16,2,FALSE)="Full",1,IF(VLOOKUP(A16,Settings!$C$5:$D$16,2,FALSE)="Half",0.5,0)),0) -> 0 | C16: 9 | D16: 9 | E16: 26 | F16: Hits Allw | G16: =IFERROR(IF(VLOOKUP(F16,Settings!$C$19:$D$30,2,FALSE)="Full",1,IF(VLOOKUP(F16,Settings!$C$19:$D$30,2,FALSE)="Half",0.5,0)),0) -> 0 | H16: 5 | I16: 5 | J16: 13 | K16: =IF(OR(MATCH(L16,'Guts-1'!$F$1:$F$27,0)={4,5,14,15,16,17,18,19,24,26}),1,0) -> 0 | L16: =IF(ISBLANK(Settings!C21),"",Settings!C21) -> K | M16: 1 | N16: 1 | O16: =IFERROR(INDEX($L$1:$L$25,SMALL(IF($L$1:$L$25<>"",ROW($L$1:$L$25)),ROW(B16))),"") ->  | P16: Half | Q16: =IF('Guts-2'!$M$6>=ROW(Q2),"SS","") ->  | S16: =IF('Guts-2'!$M16>0,"Only Show: "&'Guts-2'!L16,"") ->  | T16: =IFERROR(INDEX($S$1:$S$24,SMALL(IF($S$1:$S$24<>"",ROW($S$1:$S$24)),ROW(B16))),"") ->  | U16: 2B | V16: BAA | W16: =IFERROR(INDEX($U$1:$U$24,SMALL(IF($U$1:$U$24<>"",ROW($U$1:$U$24)),ROW(B15))),"") -> CS | X16: =IFERROR(INDEX($V$1:$V$28,SMALL(IF($V$1:$V$28<>"",ROW($V$1:$V$28)),ROW(B15))),"") -> IP
A17: 2B + 3B | B17: =IFERROR(IF(VLOOKUP(A17,Settings!$C$5:$D$16,2,FALSE)="Full",1,IF(VLOOKUP(A17,Settings!$C$5:$D$16,2,FALSE)="Half",0.5,0)),0) -> 0 | C17: 30 | D17: 30 | E17: 47 | F17: HR's | G17: =IFERROR(IF(VLOOKUP(F17,Settings!$C$19:$D$30,2,FALSE)="Full",1,IF(VLOOKUP(F17,Settings!$C$19:$D$30,2,FALSE)="Half",0.5,0)),0) -> 0 | H17: 16 | I17: 16 | J17: 31 | K17: =IF(OR(MATCH(L17,'Guts-1'!$F$1:$F$27,0)={4,5,14,15,16,17,18,19,24,26}),1,0) -> 1 | L17: =IF(ISBLANK(Settings!C22),"",Settings!C22) -> ERA | M17: 4 | N17: 4 | O17: =IFERROR(INDEX($L$1:$L$25,SMALL(IF($L$1:$L$25<>"",ROW($L$1:$L$25)),ROW(B17))),"") ->  | P17: Snake Draft | Q17: =IF('Guts-2'!$M$6>=ROW(Q3),"SS","") ->  | S17: =IF('Guts-2'!$M17>0,"Only Show: "&'Guts-2'!L17,"") ->  | T17: =IFERROR(INDEX($S$1:$S$24,SMALL(IF($S$1:$S$24<>"",ROW($S$1:$S$24)),ROW(B17))),"") ->  | U17: 3B | V17: Hits Allw | W17: =IFERROR(INDEX($U$1:$U$24,SMALL(IF($U$1:$U$24<>"",ROW($U$1:$U$24)),ROW(B16))),"") -> Errors | X17: =IFERROR(INDEX($V$1:$V$28,SMALL(IF($V$1:$V$28<>"",ROW($V$1:$V$28)),ROW(B16))),"") -> GS
A18: R + RBI - HR | B18: =IFERROR(IF(VLOOKUP(A18,Settings!$C$5:$D$16,2,FALSE)="Full",1,IF(VLOOKUP(A18,Settings!$C$5:$D$16,2,FALSE)="Half",0.5,0)),0) -> 0 | C18: 21 | D18: 21 | E18: 46 | F18: Walks | G18: =IFERROR(IF(VLOOKUP(F18,Settings!$C$19:$D$30,2,FALSE)="Full",1,IF(VLOOKUP(F18,Settings!$C$19:$D$30,2,FALSE)="Half",0.5,0)),0) -> 0 | H18: 6 | I18: 6 | J18: 14 | K18: =IF(OR(MATCH(L18,'Guts-1'!$F$1:$F$27,0)={4,5,14,15,16,17,18,19,24,26}),1,0) -> 1 | L18: =IF(ISBLANK(Settings!C23),"",Settings!C23) -> WHIP | M18: 4 | N18: 4 | O18: =IFERROR(INDEX($L$1:$L$25,SMALL(IF($L$1:$L$25<>"",ROW($L$1:$L$25)),ROW(B18))),"") ->  | P18: Same Order Every Round | Q18: =IF('Guts-2'!$M$7>=ROW(Q1),"CI","") -> CI | S18: Only Show: Hitters | U18: 2B + 3B | V18: HR's | W18: =IFERROR(INDEX($U$1:$U$24,SMALL(IF($U$1:$U$24<>"",ROW($U$1:$U$24)),ROW(B17))),"") -> XBH | X18: =IFERROR(INDEX($V$1:$V$28,SMALL(IF($V$1:$V$28<>"",ROW($V$1:$V$28)),ROW(B17))),"") -> Games
A19: SB + BB - K | B19: =IFERROR(IF(VLOOKUP(A19,Settings!$C$5:$D$16,2,FALSE)="Full",1,IF(VLOOKUP(A19,Settings!$C$5:$D$16,2,FALSE)="Half",0.5,0)),0) -> 0 | C19: 32 | D19: 32 | E19: 49 | F19: L | G19: =IFERROR(IF(VLOOKUP(F19,Settings!$C$19:$D$30,2,FALSE)="Full",1,IF(VLOOKUP(F19,Settings!$C$19:$D$30,2,FALSE)="Half",0.5,0)),0) -> 0 | H19: 3 | I19: 3 | J19: 11 | K19: =IF(OR(MATCH(L19,'Guts-1'!$F$1:$F$27,0)={4,5,14,15,16,17,18,19,24,26}),1,0) ->  | L19: =IF(ISBLANK(Settings!C24),"",Settings!C24) ->  | O19: =IFERROR(INDEX($L$1:$L$25,SMALL(IF($L$1:$L$25<>"",ROW($L$1:$L$25)),ROW(B19))),"") ->  | P19: Show Drafted Players | Q19: =IF('Guts-2'!$M$7>=ROW(Q2),"CI","") ->  | S19: Only Show: Pitchers | U19: R + RBI - HR | V19: Walks | W19: =IFERROR(INDEX($U$1:$U$24,SMALL(IF($U$1:$U$24<>"",ROW($U$1:$U$24)),ROW(B18))),"") -> HBP | X19: =IFERROR(INDEX($V$1:$V$28,SMALL(IF($V$1:$V$28<>"",ROW($V$1:$V$28)),ROW(B18))),"") -> GF
A20: CS | B20: =IFERROR(IF(VLOOKUP(A20,Settings!$C$5:$D$16,2,FALSE)="Full",1,IF(VLOOKUP(A20,Settings!$C$5:$D$16,2,FALSE)="Half",0.5,0)),0) -> 0 | C20: 13 | D20: 13 | E20: 30 | F20: IP | G20: =IFERROR(IF(VLOOKUP(F20,Settings!$C$19:$D$30,2,FALSE)="Full",1,IF(VLOOKUP(F20,Settings!$C$19:$D$30,2,FALSE)="Half",0.5,0)),0) -> 0 | H20: 4 | I20: 4 | J20: 12 | K20: =IF(OR(MATCH(L20,'Guts-1'!$F$1:$F$27,0)={4,5,14,15,16,17,18,19,24,26}),1,0) ->  | L20: =IF(ISBLANK(Settings!C25),"",Settings!C25) ->  | O20: =IFERROR(INDEX($L$1:$L$25,SMALL(IF($L$1:$L$25<>"",ROW($L$1:$L$25)),ROW(B20))),"") ->  | P20: Hide Drafted Players | Q20: =IF('Guts-2'!$M$7>=ROW(Q3),"CI","") ->  | U20: SB + BB - K | V20: L | W20: =IFERROR(INDEX($U$1:$U$24,SMALL(IF($U$1:$U$24<>"",ROW($U$1:$U$24)),ROW(B19))),"") ->  | X20: =IFERROR(INDEX($V$1:$V$28,SMALL(IF($V$1:$V$28<>"",ROW($V$1:$V$28)),ROW(B19))),"") -> Blown Sv
A21: Errors | B21: =IFERROR(IF(VLOOKUP(A21,Settings!$C$5:$D$16,2,FALSE)="Full",1,IF(VLOOKUP(A21,Settings!$C$5:$D$16,2,FALSE)="Half",0.5,0)),0) -> 0 | C21: 33 | D21: 33 | E21: 50 | F21: GS | G21: =IFERROR(IF(VLOOKUP(F21,Settings!$C$19:$D$30,2,FALSE)="Full",1,IF(VLOOKUP(F21,Settings!$C$19:$D$30,2,FALSE)="Half",0.5,0)),0) -> 0 | H21: 14 | I21: 14 | J21: 35 | K21: =IF(OR(MATCH(L21,'Guts-1'!$F$1:$F$27,0)={4,5,14,15,16,17,18,19,24,26}),1,0) ->  | L21: =IF(ISBLANK(Settings!C26),"",Settings!C26) ->  | O21: =IFERROR(INDEX($L$1:$L$25,SMALL(IF($L$1:$L$25<>"",ROW($L$1:$L$25)),ROW(B21))),"") ->  | Q21: =IF('Guts-2'!$M$8>=ROW(Q1),"MI","") -> MI | U21: CS | V21: IP | W21: =IFERROR(INDEX($U$1:$U$24,SMALL(IF($U$1:$U$24<>"",ROW($U$1:$U$24)),ROW(B20))),"") ->  | X21: =IFERROR(INDEX($V$1:$V$28,SMALL(IF($V$1:$V$28<>"",ROW($V$1:$V$28)),ROW(B20))),"") -> Net Sv
A22: XBH | B22: =IFERROR(IF(VLOOKUP(A22,Settings!$C$5:$D$16,2,FALSE)="Full",1,IF(VLOOKUP(A22,Settings!$C$5:$D$16,2,FALSE)="Half",0.5,0)),0) -> 0 | C22: 34 | D22: 34 | E22: 51 | F22: Games | G22: =IFERROR(IF(VLOOKUP(F22,Settings!$C$19:$D$30,2,FALSE)="Full",1,IF(VLOOKUP(F22,Settings!$C$19:$D$30,2,FALSE)="Half",0.5,0)),0) -> 0 | H22: 15 | I22: 15 | J22: 38 | K22: =IF(OR(MATCH(L22,'Guts-1'!$F$1:$F$27,0)={4,5,14,15,16,17,18,19,24,26}),1,0) ->  | L22: =IF(ISBLANK(Settings!C27),"",Settings!C27) ->  | O22: =IFERROR(INDEX($L$1:$L$25,SMALL(IF($L$1:$L$25<>"",ROW($L$1:$L$25)),ROW(B22))),"") ->  | P22: Hot | Q22: =IF('Guts-2'!$M$8>=ROW(Q2),"MI","") ->  | U22: Errors | V22: GS | W22: =IFERROR(INDEX($U$1:$U$24,SMALL(IF($U$1:$U$24<>"",ROW($U$1:$U$24)),ROW(B21))),"") ->  | X22: =IFERROR(INDEX($V$1:$V$28,SMALL(IF($V$1:$V$28<>"",ROW($V$1:$V$28)),ROW(B21))),"") -> H/9
A23: HBP | B23: =IFERROR(IF(VLOOKUP(A23,Settings!$C$5:$D$16,2,FALSE)="Full",1,IF(VLOOKUP(A23,Settings!$C$5:$D$16,2,FALSE)="Half",0.5,0)),0) -> 0 | C23: 35 | D23: 35 | E23: 52 | F23: GF | G23: =IFERROR(IF(VLOOKUP(F23,Settings!$C$19:$D$30,2,FALSE)="Full",1,IF(VLOOKUP(F23,Settings!$C$19:$D$30,2,FALSE)="Half",0.5,0)),0) -> 0 | H23: 21 | I23: 21 | J23: 39 | K23: =IF(OR(MATCH(L23,'Guts-1'!$F$1:$F$27,0)={4,5,14,15,16,17,18,19,24,26}),1,0) ->  | L23: =IF(ISBLANK(Settings!C28),"",Settings!C28) ->  | O23: =IFERROR(INDEX($L$1:$L$25,SMALL(IF($L$1:$L$25<>"",ROW($L$1:$L$25)),ROW(B23))),"") ->  | P23: Cold | Q23: =IF('Guts-2'!$M$8>=ROW(Q3),"MI","") ->  | U23: XBH | V23: Games | X23: =IFERROR(INDEX($V$1:$V$28,SMALL(IF($V$1:$V$28<>"",ROW($V$1:$V$28)),ROW(B22))),"") -> IP-ER
A24: Roster Size | B24: =SUM(Settings!G5:G23) -> 29 | F24: Blown Sv | G24: =IFERROR(IF(VLOOKUP(F24,Settings!$C$19:$D$30,2,FALSE)="Full",1,IF(VLOOKUP(F24,Settings!$C$19:$D$30,2,FALSE)="Half",0.5,0)),0) -> 0 | H24: 22 | I24: 22 | J24: 40 | K24: =IF(OR(MATCH(L24,'Guts-1'!$F$1:$F$27,0)={4,5,14,15,16,17,18,19,24,26}),1,0) ->  | L24: =IF(ISBLANK(Settings!C29),"",Settings!C29) ->  | O24: =IFERROR(INDEX($L$1:$L$25,SMALL(IF($L$1:$L$25<>"",ROW($L$1:$L$25)),ROW(B24))),"") ->  | P24: Target | Q24: =IF('Guts-2'!$M$17>=ROW(Q1),"IF","") ->  | U24: HBP | V24: GF | X24: =IFERROR(INDEX($V$1:$V$26,SMALL(IF($V$1:$V$26<>"",ROW($V$1:$V$26)),ROW(B23))),"") -> 
A25: H-GP | B25: =Settings!S11 -> 10 | C25: 19 | F25: Net Sv | G25: =IFERROR(IF(VLOOKUP(F25,Settings!$C$19:$D$30,2,FALSE)="Full",1,IF(VLOOKUP(F25,Settings!$C$19:$D$30,2,FALSE)="Half",0.5,0)),0) -> 0 | H25: 23 | I25: 23 | J25: 41 | K25: =IF(OR(MATCH(L25,'Guts-1'!$F$1:$F$27,0)={4,5,14,15,16,17,18,19,24,26}),1,0) ->  | L25: =IF(ISBLANK(Settings!C30),"",Settings!C30) ->  | O25: =IFERROR(INDEX($L$1:$L$25,SMALL(IF($L$1:$L$25<>"",ROW($L$1:$L$25)),ROW(B25))),"") ->  | P25: Avoid | Q25: =IF('Guts-2'!$M$17>=ROW(Q2),"IF","") ->  | V25: Blown Sv | X25: =IFERROR(INDEX($V$1:$V$26,SMALL(IF($V$1:$V$26<>"",ROW($V$1:$V$26)),ROW(B24))),"") -> 
A26: H-GS | B26: =Settings!S12 -> 10 | C26: 20 | F26: H/9 | G26: =IFERROR(IF(VLOOKUP(F26,Settings!$C$19:$D$30,2,FALSE)="Full",1,IF(VLOOKUP(F26,Settings!$C$19:$D$30,2,FALSE)="Half",0.5,0)),0) -> 0 | H26: 27 | I26: 28 | J26: 43 | K26: League Min | L26: 5 | P26: Injury | Q26: =IF('Guts-2'!$M$17>=ROW(Q3),"IF","") ->  | V26: Net Sv | X26: =IFERROR(INDEX($V$1:$V$26,SMALL(IF($V$1:$V$26<>"",ROW($V$1:$V$26)),ROW(B25))),"") -> 
A27: RP-G | B27: =Settings!S14 -> 5 | C27: 21 | F27: IP-ER | G27: =IFERROR(IF(VLOOKUP(F27,Settings!$C$19:$D$30,2,FALSE)="Full",1,IF(VLOOKUP(F27,Settings!$C$19:$D$30,2,FALSE)="Half",0.5,0)),0) -> 0 | H27: 34 | I27: 34 | J27: 44 | P27: Note | Q27: =IF('Guts-2'!$M$17>=ROW(Q4),"IF","") ->  | V27: H/9 | X27: =IFERROR(INDEX($V$1:$V$24,SMALL(IF($V$1:$V$24<>"",ROW($V$1:$V$24)),ROW(B26))),"") -> 
A28: SP-G | B28: =Settings!S13 -> 5 | C28: 22 | P28: Sleeper | Q28: =IF('Guts-2'!$M$17>=ROW(Q5),"IF","") ->  | V28: IP-ER | X28: =IFERROR(INDEX($V$1:$V$24,SMALL(IF($V$1:$V$24<>"",ROW($V$1:$V$24)),ROW(B27))),"") -> 
P29: Bust | Q29: =IF('Guts-2'!$M$17>=ROW(Q6),"IF","") ->  | X29: =IFERROR(INDEX($V$1:$V$24,SMALL(IF($V$1:$V$24<>"",ROW($V$1:$V$24)),ROW(B28))),"") -> 
P30: Sort drop-down by: ADP | Q30: =IF('Guts-2'!$M$9>=ROW(Q1),"OF","") -> OF | X30: =IFERROR(INDEX($V$1:$V$24,SMALL(IF($V$1:$V$24<>"",ROW($V$1:$V$24)),ROW(B29))),"") -> 
P31: Sort drop-down by: Last Name | Q31: =IF('Guts-2'!$M$9>=ROW(Q2),"OF","") -> OF | X31: =IFERROR(INDEX($V$1:$V$24,SMALL(IF($V$1:$V$24<>"",ROW($V$1:$V$24)),ROW(B30))),"") -> 
... 38 more rows

Sheet Guts-2 (hidden)
A1: =Settings!K10 -> Team 1 | B1: CBS | C1: ESPN - E. Karabell | D1: THE BAT | E1: Teams | F1: Starters | G1: THE BAT | H1: =IF(OR(Settings!$S$30<>100,Settings!$R$30<>100),0,Settings!R23) -> 10 | I1: =IF(OR(Settings!$S$30<>100,Settings!$R$30<>100),0,Settings!S23) -> 10 | J1: LAA | K1: =IF(OR(Settings!$M$5="AL-Only",Settings!$M$5="Mixed (Standard)"),TRUE,IF(Settings!$M$5="Specific Teams Only",IF(Settings!O6="Y",TRUE,FALSE),FALSE)) -> TRUE | L1: # of Teams | M1: =Settings!K5 -> 12 | N1: None | O1: Hitter | P1: Pitcher | Q1: HitterDirOF | R1: Hitter4OF
